Workbook

Sheet Component Weights
A1: Green Component Weightings | D1: Detailed instructions and options for using this tool are found in the Using the DYO® GBD Kit Decision Matrix Software Section of your DYO® Green Building Decision Kit.
A3: Components | B3: Weight
A5: Incremental Energy Savings | B5: 0.08 | C5: M | D5: The amount of incremental energy, expressed in Btu/Hr, that a product saves or generates for the structure.
A6: Use of Recycled Content | B6: 0.12 | C6: H | D6: The amount of recycled content, expressed as a percentage, found in a product.
A7: Low Energy Usage Manufacturing Process | B7: 0.08 | C7: M | D7: The amount of energy used in manufacture of the product.
A8: Easily Biodegradable | B8: 0.12 | C8: H | D8: The amount of time it will take the product to degrade once its useful life is over.
A9: Made from Natural Materials | B9: 0.05 | C9: L | D9: The amount, expressed as a percentage, of natural (not man-made) materials used to make the product.
A10: Available Locally | B10: 0.23 | C10: H+ | D10: The distance in miles that the product must travel to the destination of final use.
A11: Low Emissions Potential | B11: 0.12 | C11: H | D11: The amount of time it will take the product to stop outgassing.
A12: Listed in Other Programs (e.g. EnergyStar) | B12: 0.08 | C12: M | D12: The level of product recommendation in recognized energy and environmental programs.
A13: Non Hazardous as Waste | B13: 0.12 | C13: H | D13: The amount of hazardous materials and components found in the product.
A14: Total Weightings Must Equal 100% | B14: =SUM(B5:B13) -> 1 | D14: =IF(B14<>100%,"Keep Working - Weightings must equal 100%"," ") -> 
A16: Score: | B16: H | C16: L | D16: M | E16: N | F16: X | G16: X | H16: X | I16: X | J16: X
A17: Score Weight | B17: 3 | C17: 1 | D17: 2 | E17: 0 | F17: 4 | G17: 5 | H17: 6 | I17: 7 | J17: 8
A18: Instructions: | D18: [Warning: Your screen will flash.]
A19: Use this page to weight (prioritize) the green components found in the products you will be using for your project. These weightings represent what is most important to you overall for your situation and interests. You may find it helpful to first rank the components as High, Medium, or Low in importance to you, then to assign percentage weightings. The total of all percentage weightings must add up to 100%. Once you've finished, use the "Populate Product Tables" button to populate the tables on each product tab that follows with these values. Then, using the tabs at the bottom, choose the product(s) for which you have decisions to make. You may then change the percentage weighting values on the product tab (if you wish) to reflect your preferences for each particular product type. When finished with the products tabs, import your prioritized lists using the instructions on the Top Picks Report tab to print a report showing the top products that match your priorities.

Sheet Structural Building Materials
A1: Instructions: Scroll down to see all products. New products may be added to the end of the list. Rate the performance of each product as "N, L, M or H." (Hover over the component title for the rating description.) Use your Backspace button to clear values. The Sort button (below) will incorporate your priorities as currently stated on the table to the right. (Scroll to the right to see the table.) | B1: Available Locally | C1: Incremental Energy Savings | D1: Use of Recycled Content | E1: Low Energy Usage Manufacturing Process | F1: Easily Biodegradable | G1: Made from Natural Materials | H1: Low Emissions Potential | I1: Listed in Other Programs | J1: Non Hazardous as Waste | K1: Total Raw Score | L1: Incremental Energy Savings Weighted Score | M1: Use of Recycled Content Weighted Score | N1: Low Energy Usage Mfg. Process Weighted Score | O1: Easily Biodegradable Weighted Score | P1: Made from Natural Materials Weighted Score | Q1: Available Locally Weighted Score | R1: Low Emissions Potential Weighted Score | S1: Listed in Other Programs Weighted Score | T1: Non Hazardous as Waste Weighted Score | U1: Total Weighted Score | V1: Force Ranking | X1: Weighted Score for Force Rank Calculation | Z1: Detailed instructions and options for using this tool are found in the Using the DYO® GBD Kit Decision Matrix Software Section of your DYO® Green Building Decision Kit.
A2: Straw Bale Construction | C2: H | D2: H | E2: H | F2: H | G2: H | H2: H | I2: M | J2: H | K2: =SUM(IF(ISBLANK(C2),,LOOKUP(C2,'Component Weights'!$B$16:$J$16,'Component Weights'!$B$17:$J$17)),IF(ISBLANK(D2),,LOOKUP(D2,'Component Weights'!$B$16:$J$16,'Component Weights'!$B$17:$J$17)),IF(ISBLANK(E2),,LOOKUP(E2,'Component Weights'!$B$16:$J$16,'Component Weights'!$B$17:$J$17)),IF(ISBLANK(F2),,LOOKUP(F2,'Component Weights'!$B$16:$J$16,'Component Weights'!$B$17:$J$17)),IF(ISBLANK(G2),,LOOKUP(G2,'Component Weights'!$B$16:$J$16,'Component Weights'!$B$17:$J$17)),IF(ISBLANK(B2),,LOOKUP(B2,'Component Weights'!$B$16:$J$16,'Component Weights'!$B$17:$J$17)),IF(ISBLANK(H2),,LOOKUP(H2,'Component Weights'!$B$16:$J$16,'Component Weights'!$B$17:$J$17)),IF(ISBLANK(I2),,LOOKUP(I2,'Component Weights'!$B$16:$J$16,'Component Weights'!$B$17:$J$17)),IF(ISBLANK(J2),,LOOKUP(J2,'Component Weights'!$B$16:$J$16,'Component Weights'!$B$17:$J$17))) -> 23 | L2: =IF(ISBLANK(C2)," ",(LOOKUP(C2,'Component Weights'!$B$16:$J$16,'Component Weights'!$B$17:$J$17)*$AA$4)) -> 0.24 | M2: =IF(ISBLANK(D2)," ",(LOOKUP(D2,'Component Weights'!$B$16:$J$16,'Component Weights'!$B$17:$J$17)*$AA$5)) -> 0.36 | N2: =IF(ISBLANK(E2)," ",(LOOKUP(E2,'Component Weights'!$B$16:$J$16,'Component Weights'!$B$17:$J$17)*$AA$6)) -> 0.24 | O2: =IF(ISBLANK(F2)," ",(LOOKUP(F2,'Component Weights'!$B$16:$J$16,'Component Weights'!$B$17:$J$17)*$AA$7)) -> 0.03 | P2: =IF(ISBLANK(G2)," ",(LOOKUP(G2,'Component Weights'!$B$16:$J$16,'Component Weights'!$B$17:$J$17)*$AA$8)) -> 0.15 | Q2: =IF(ISBLANK(B2)," ",(LOOKUP(B2,'Component Weights'!$B$16:$J$16,'Component Weights'!$B$17:$J$17)*$AA$9)) ->  | R2: =IF(ISBLANK(H2)," ",(LOOKUP(H2,'Component Weights'!$B$16:$J$16,'Component Weights'!$B$17:$J$17)*$AA$10)) -> 0.36 | S2: =IF(ISBLANK(I2)," ",(LOOKUP(I2,'Component Weights'!$B$16:$J$16,'Component Weights'!$B$17:$J$17)*$AA$11)) -> 0.16 | T2: =IF(ISBLANK(J2)," ",(LOOKUP(J2,'Component Weights'!$B$16:$J$16,'Component Weights'!$B$17:$J$17)*$AA$12)) -> 0.33 | U2: =SUM(L2:T2) -> 1.87 | V2: =IF($U2>0,RANK($U2,X$2:X$182,0),99) -> 1 | X2: =U2 -> 1.87 | Z2: Component Weights for | AA2: Weight
A3: Rammed Earth | C3: H | D3: M | E3: H | F3: H | G3: H | H3: H | I3: M | J3: H | K3: =SUM(IF(ISBLANK(C3),,LOOKUP(C3,'Component Weights'!$B$16:$J$16,'Component Weights'!$B$17:$J$17)),IF(ISBLANK(D3),,LOOKUP(D3,'Component Weights'!$B$16:$J$16,'Component Weights'!$B$17:$J$17)),IF(ISBLANK(E3),,LOOKUP(E3,'Component Weights'!$B$16:$J$16,'Component Weights'!$B$17:$J$17)),IF(ISBLANK(F3),,LOOKUP(F3,'Component Weights'!$B$16:$J$16,'Component Weights'!$B$17:$J$17)),IF(ISBLANK(G3),,LOOKUP(G3,'Component Weights'!$B$16:$J$16,'Component Weights'!$B$17:$J$17)),IF(ISBLANK(B3),,LOOKUP(B3,'Component Weights'!$B$16:$J$16,'Component Weights'!$B$17:$J$17)),IF(ISBLANK(H3),,LOOKUP(H3,'Component Weights'!$B$16:$J$16,'Component Weights'!$B$17:$J$17)),IF(ISBLANK(I3),,LOOKUP(I3,'Component Weights'!$B$16:$J$16,'Component Weights'!$B$17:$J$17)),IF(ISBLANK(J3),,LOOKUP(J3,'Component Weights'!$B$16:$J$16,'Component Weights'!$B$17:$J$17))) -> 22 | L3: =IF(ISBLANK(C3)," ",(LOOKUP(C3,'Component Weights'!$B$16:$J$16,'Component Weights'!$B$17:$J$17)*$AA$4)) -> 0.24 | M3: =IF(ISBLANK(D3)," ",(LOOKUP(D3,'Component Weights'!$B$16:$J$16,'Component Weights'!$B$17:$J$17)*$AA$5)) -> 0.24 | N3: =IF(ISBLANK(E3)," ",(LOOKUP(E3,'Component Weights'!$B$16:$J$16,'Component Weights'!$B$17:$J$17)*$AA$6)) -> 0.24 | O3: =IF(ISBLANK(F3)," ",(LOOKUP(F3,'Component Weights'!$B$16:$J$16,'Component Weights'!$B$17:$J$17)*$AA$7)) -> 0.03 | P3: =IF(ISBLANK(G3)," ",(LOOKUP(G3,'Component Weights'!$B$16:$J$16,'Component Weights'!$B$17:$J$17)*$AA$8)) -> 0.15 | Q3: =IF(ISBLANK(B3)," ",(LOOKUP(B3,'Component Weights'!$B$16:$J$16,'Component Weights'!$B$17:$J$17)*$AA$9)) ->  | R3: =IF(ISBLANK(H3)," ",(LOOKUP(H3,'Component Weights'!$B$16:$J$16,'Component Weights'!$B$17:$J$17)*$AA$10)) -> 0.36 | S3: =IF(ISBLANK(I3)," ",(LOOKUP(I3,'Component Weights'!$B$16:$J$16,'Component Weights'!$B$17:$J$17)*$AA$11)) -> 0.16 | T3: =IF(ISBLANK(J3)," ",(LOOKUP(J3,'Component Weights'!$B$16:$J$16,'Component Weights'!$B$17:$J$17)*$AA$12)) -> 0.33 | U3: 1.75 | V3: 2 | X3: 1.75 | Z3: Structural Building Materials
A4: Wood Framing - "Stick Built" | C4: M | D4: L | E4: H | F4: H | G4: H | H4: H | I4: M | J4: H | K4: =SUM(IF(ISBLANK(C4),,LOOKUP(C4,'Component Weights'!$B$16:$J$16,'Component Weights'!$B$17:$J$17)),IF(ISBLANK(D4),,LOOKUP(D4,'Component Weights'!$B$16:$J$16,'Component Weights'!$B$17:$J$17)),IF(ISBLANK(E4),,LOOKUP(E4,'Component Weights'!$B$16:$J$16,'Component Weights'!$B$17:$J$17)),IF(ISBLANK(F4),,LOOKUP(F4,'Component Weights'!$B$16:$J$16,'Component Weights'!$B$17:$J$17)),IF(ISBLANK(G4),,LOOKUP(G4,'Component Weights'!$B$16:$J$16,'Component Weights'!$B$17:$J$17)),IF(ISBLANK(B4),,LOOKUP(B4,'Component Weights'!$B$16:$J$16,'Component Weights'!$B$17:$J$17)),IF(ISBLANK(H4),,LOOKUP(H4,'Component Weights'!$B$16:$J$16,'Component Weights'!$B$17:$J$17)),IF(ISBLANK(I4),,LOOKUP(I4,'Component Weights'!$B$16:$J$16,'Component Weights'!$B$17:$J$17)),IF(ISBLANK(J4),,LOOKUP(J4,'Component Weights'!$B$16:$J$16,'Component Weights'!$B$17:$J$17))) -> 20 | L4: =IF(ISBLANK(C4)," ",(LOOKUP(C4,'Component Weights'!$B$16:$J$16,'Component Weights'!$B$17:$J$17)*$AA$4)) -> 0.16 | M4: =IF(ISBLANK(D4)," ",(LOOKUP(D4,'Component Weights'!$B$16:$J$16,'Component Weights'!$B$17:$J$17)*$AA$5)) -> 0.12 | N4: =IF(ISBLANK(E4)," ",(LOOKUP(E4,'Component Weights'!$B$16:$J$16,'Component Weights'!$B$17:$J$17)*$AA$6)) -> 0.24 | O4: =IF(ISBLANK(F4)," ",(LOOKUP(F4,'Component Weights'!$B$16:$J$16,'Component Weights'!$B$17:$J$17)*$AA$7)) -> 0.03 | P4: =IF(ISBLANK(G4)," ",(LOOKUP(G4,'Component Weights'!$B$16:$J$16,'Component Weights'!$B$17:$J$17)*$AA$8)) -> 0.15 | Q4: =IF(ISBLANK(B4)," ",(LOOKUP(B4,'Component Weights'!$B$16:$J$16,'Component Weights'!$B$17:$J$17)*$AA$9)) ->  | R4: =IF(ISBLANK(H4)," ",(LOOKUP(H4,'Component Weights'!$B$16:$J$16,'Component Weights'!$B$17:$J$17)*$AA$10)) -> 0.36 | S4: =IF(ISBLANK(I4)," ",(LOOKUP(I4,'Component Weights'!$B$16:$J$16,'Component Weights'!$B$17:$J$17)*$AA$11)) -> 0.16 | T4: =IF(ISBLANK(J4)," ",(LOOKUP(J4,'Component Weights'!$B$16:$J$16,'Component Weights'!$B$17:$J$17)*$AA$12)) -> 0.33 | U4: 1.55 | V4: 4 | X4: 1.55 | Z4: Incremental Energy Savings | AA4: 0.08 | AB4: M | AC4: The amount of incremental energy, expressed in Btu/Hr, that a product saves or generates for the structure.
A5: Adobe | C5: M | D5: L | E5: H | F5: H | G5: H | H5: H | I5: M | J5: H | K5: =SUM(IF(ISBLANK(C5),,LOOKUP(C5,'Component Weights'!$B$16:$J$16,'Component Weights'!$B$17:$J$17)),IF(ISBLANK(D5),,LOOKUP(D5,'Component Weights'!$B$16:$J$16,'Component Weights'!$B$17:$J$17)),IF(ISBLANK(E5),,LOOKUP(E5,'Component Weights'!$B$16:$J$16,'Component Weights'!$B$17:$J$17)),IF(ISBLANK(F5),,LOOKUP(F5,'Component Weights'!$B$16:$J$16,'Component Weights'!$B$17:$J$17)),IF(ISBLANK(G5),,LOOKUP(G5,'Component Weights'!$B$16:$J$16,'Component Weights'!$B$17:$J$17)),IF(ISBLANK(B5),,LOOKUP(B5,'Component Weights'!$B$16:$J$16,'Component Weights'!$B$17:$J$17)),IF(ISBLANK(H5),,LOOKUP(H5,'Component Weights'!$B$16:$J$16,'Component Weights'!$B$17:$J$17)),IF(ISBLANK(I5),,LOOKUP(I5,'Component Weights'!$B$16:$J$16,'Component Weights'!$B$17:$J$17)),IF(ISBLANK(J5),,LOOKUP(J5,'Component Weights'!$B$16:$J$16,'Component Weights'!$B$17:$J$17))) -> 20 | L5: =IF(ISBLANK(C5)," ",(LOOKUP(C5,'Component Weights'!$B$16:$J$16,'Component Weights'!$B$17:$J$17)*$AA$4)) -> 0.16 | M5: =IF(ISBLANK(D5)," ",(LOOKUP(D5,'Component Weights'!$B$16:$J$16,'Component Weights'!$B$17:$J$17)*$AA$5)) -> 0.12 | N5: =IF(ISBLANK(E5)," ",(LOOKUP(E5,'Component Weights'!$B$16:$J$16,'Component Weights'!$B$17:$J$17)*$AA$6)) -> 0.24 | O5: =IF(ISBLANK(F5)," ",(LOOKUP(F5,'Component Weights'!$B$16:$J$16,'Component Weights'!$B$17:$J$17)*$AA$7)) -> 0.03 | P5: =IF(ISBLANK(G5)," ",(LOOKUP(G5,'Component Weights'!$B$16:$J$16,'Component Weights'!$B$17:$J$17)*$AA$8)) -> 0.15 | Q5: =IF(ISBLANK(B5)," ",(LOOKUP(B5,'Component Weights'!$B$16:$J$16,'Component Weights'!$B$17:$J$17)*$AA$9)) ->  | R5: =IF(ISBLANK(H5)," ",(LOOKUP(H5,'Component Weights'!$B$16:$J$16,'Component Weights'!$B$17:$J$17)*$AA$10)) -> 0.36 | S5: =IF(ISBLANK(I5)," ",(LOOKUP(I5,'Component Weights'!$B$16:$J$16,'Component Weights'!$B$17:$J$17)*$AA$11)) -> 0.16 | T5: =IF(ISBLANK(J5)," ",(LOOKUP(J5,'Component Weights'!$B$16:$J$16,'Component Weights'!$B$17:$J$17)*$AA$12)) -> 0.33 | U5: 1.55 | V5: 4 | X5: 1.55 | Z5: Use of Recycled Content | AA5: 0.12 | AB5: H | AC5: The amount of recycled content, expressed as a percentage, found in a product.
A6: Engineered Wood – Trusses – Laminated Beams | C6: M | D6: H | E6: M | F6: M | G6: H | H6: M | I6: H | J6: H | K6: =SUM(IF(ISBLANK(C6),,LOOKUP(C6,'Component Weights'!$B$16:$J$16,'Component Weights'!$B$17:$J$17)),IF(ISBLANK(D6),,LOOKUP(D6,'Component Weights'!$B$16:$J$16,'Component Weights'!$B$17:$J$17)),IF(ISBLANK(E6),,LOOKUP(E6,'Component Weights'!$B$16:$J$16,'Component Weights'!$B$17:$J$17)),IF(ISBLANK(F6),,LOOKUP(F6,'Component Weights'!$B$16:$J$16,'Component Weights'!$B$17:$J$17)),IF(ISBLANK(G6),,LOOKUP(G6,'Component Weights'!$B$16:$J$16,'Component Weights'!$B$17:$J$17)),IF(ISBLANK(B6),,LOOKUP(B6,'Component Weights'!$B$16:$J$16,'Component Weights'!$B$17:$J$17)),IF(ISBLANK(H6),,LOOKUP(H6,'Component Weights'!$B$16:$J$16,'Component Weights'!$B$17:$J$17)),IF(ISBLANK(I6),,LOOKUP(I6,'Component Weights'!$B$16:$J$16,'Component Weights'!$B$17:$J$17)),IF(ISBLANK(J6),,LOOKUP(J6,'Component Weights'!$B$16:$J$16,'Component Weights'!$B$17:$J$17))) -> 20 | L6: =IF(ISBLANK(C6)," ",(LOOKUP(C6,'Component Weights'!$B$16:$J$16,'Component Weights'!$B$17:$J$17)*$AA$4)) -> 0.16 | M6: =IF(ISBLANK(D6)," ",(LOOKUP(D6,'Component Weights'!$B$16:$J$16,'Component Weights'!$B$17:$J$17)*$AA$5)) -> 0.36 | N6: =IF(ISBLANK(E6)," ",(LOOKUP(E6,'Component Weights'!$B$16:$J$16,'Component Weights'!$B$17:$J$17)*$AA$6)) -> 0.16 | O6: =IF(ISBLANK(F6)," ",(LOOKUP(F6,'Component Weights'!$B$16:$J$16,'Component Weights'!$B$17:$J$17)*$AA$7)) -> 0.02 | P6: =IF(ISBLANK(G6)," ",(LOOKUP(G6,'Component Weights'!$B$16:$J$16,'Component Weights'!$B$17:$J$17)*$AA$8)) -> 0.15 | Q6: =IF(ISBLANK(B6)," ",(LOOKUP(B6,'Component Weights'!$B$16:$J$16,'Component Weights'!$B$17:$J$17)*$AA$9)) ->  | R6: =IF(ISBLANK(H6)," ",(LOOKUP(H6,'Component Weights'!$B$16:$J$16,'Component Weights'!$B$17:$J$17)*$AA$10)) -> 0.24 | S6: =IF(ISBLANK(I6)," ",(LOOKUP(I6,'Component Weights'!$B$16:$J$16,'Component Weights'!$B$17:$J$17)*$AA$11)) -> 0.24 | T6: =IF(ISBLANK(J6)," ",(LOOKUP(J6,'Component Weights'!$B$16:$J$16,'Component Weights'!$B$17:$J$17)*$AA$12)) -> 0.33 | U6: 1.66 | V6: 3 | X6: 1.66 | Z6: Low Energy Usage Manufacturing Process | AA6: 0.08 | AB6: M | AC6: The amount of energy used in manufacture of the product.
A7: Structural Insulated Panels (SIPS) | C7: H | D7: M | E7: H | F7: L | G7: L | H7: M | I7: H | J7: M | K7: =SUM(IF(ISBLANK(C7),,LOOKUP(C7,'Component Weights'!$B$16:$J$16,'Component Weights'!$B$17:$J$17)),IF(ISBLANK(D7),,LOOKUP(D7,'Component Weights'!$B$16:$J$16,'Component Weights'!$B$17:$J$17)),IF(ISBLANK(E7),,LOOKUP(E7,'Component Weights'!$B$16:$J$16,'Component Weights'!$B$17:$J$17)),IF(ISBLANK(F7),,LOOKUP(F7,'Component Weights'!$B$16:$J$16,'Component Weights'!$B$17:$J$17)),IF(ISBLANK(G7),,LOOKUP(G7,'Component Weights'!$B$16:$J$16,'Component Weights'!$B$17:$J$17)),IF(ISBLANK(B7),,LOOKUP(B7,'Component Weights'!$B$16:$J$16,'Component Weights'!$B$17:$J$17)),IF(ISBLANK(H7),,LOOKUP(H7,'Component Weights'!$B$16:$J$16,'Component Weights'!$B$17:$J$17)),IF(ISBLANK(I7),,LOOKUP(I7,'Component Weights'!$B$16:$J$16,'Component Weights'!$B$17:$J$17)),IF(ISBLANK(J7),,LOOKUP(J7,'Component Weights'!$B$16:$J$16,'Component Weights'!$B$17:$J$17))) -> 17 | L7: =IF(ISBLANK(C7)," ",(LOOKUP(C7,'Component Weights'!$B$16:$J$16,'Component Weights'!$B$17:$J$17)*$AA$4)) -> 0.24 | M7: =IF(ISBLANK(D7)," ",(LOOKUP(D7,'Component Weights'!$B$16:$J$16,'Component Weights'!$B$17:$J$17)*$AA$5)) -> 0.24 | N7: =IF(ISBLANK(E7)," ",(LOOKUP(E7,'Component Weights'!$B$16:$J$16,'Component Weights'!$B$17:$J$17)*$AA$6)) -> 0.24 | O7: =IF(ISBLANK(F7)," ",(LOOKUP(F7,'Component Weights'!$B$16:$J$16,'Component Weights'!$B$17:$J$17)*$AA$7)) -> 0.01 | P7: =IF(ISBLANK(G7)," ",(LOOKUP(G7,'Component Weights'!$B$16:$J$16,'Component Weights'!$B$17:$J$17)*$AA$8)) -> 0.05 | Q7: =IF(ISBLANK(B7)," ",(LOOKUP(B7,'Component Weights'!$B$16:$J$16,'Component Weights'!$B$17:$J$17)*$AA$9)) ->  | R7: =IF(ISBLANK(H7)," ",(LOOKUP(H7,'Component Weights'!$B$16:$J$16,'Component Weights'!$B$17:$J$17)*$AA$10)) -> 0.24 | S7: =IF(ISBLANK(I7)," ",(LOOKUP(I7,'Component Weights'!$B$16:$J$16,'Component Weights'!$B$17:$J$17)*$AA$11)) -> 0.24 | T7: =IF(ISBLANK(J7)," ",(LOOKUP(J7,'Component Weights'!$B$16:$J$16,'Component Weights'!$B$17:$J$17)*$AA$12)) -> 0.22 | U7: 1.48 | V7: 6 | X7: 1.48 | Z7: Easily Biodegradable | AA7: 0.01 | AB7: H | AC7: The amount of time it will take the product to degrade once its useful life is over.
A8: Insulated Concrete Forms (ICFs) | C8: M | D8: L | E8: L | F8: N | G8: L | H8: M | I8: M | J8: M | K8: =SUM(IF(ISBLANK(C8),,LOOKUP(C8,'Component Weights'!$B$16:$J$16,'Component Weights'!$B$17:$J$17)),IF(ISBLANK(D8),,LOOKUP(D8,'Component Weights'!$B$16:$J$16,'Component Weights'!$B$17:$J$17)),IF(ISBLANK(E8),,LOOKUP(E8,'Component Weights'!$B$16:$J$16,'Component Weights'!$B$17:$J$17)),IF(ISBLANK(F8),,LOOKUP(F8,'Component Weights'!$B$16:$J$16,'Component Weights'!$B$17:$J$17)),IF(ISBLANK(G8),,LOOKUP(G8,'Component Weights'!$B$16:$J$16,'Component Weights'!$B$17:$J$17)),IF(ISBLANK(B8),,LOOKUP(B8,'Component Weights'!$B$16:$J$16,'Component Weights'!$B$17:$J$17)),IF(ISBLANK(H8),,LOOKUP(H8,'Component Weights'!$B$16:$J$16,'Component Weights'!$B$17:$J$17)),IF(ISBLANK(I8),,LOOKUP(I8,'Component Weights'!$B$16:$J$16,'Component Weights'!$B$17:$J$17)),IF(ISBLANK(J8),,LOOKUP(J8,'Component Weights'!$B$16:$J$16,'Component Weights'!$B$17:$J$17))) -> 11 | L8: =IF(ISBLANK(C8)," ",(LOOKUP(C8,'Component Weights'!$B$16:$J$16,'Component Weights'!$B$17:$J$17)*$AA$4)) -> 0.16 | M8: =IF(ISBLANK(D8)," ",(LOOKUP(D8,'Component Weights'!$B$16:$J$16,'Component Weights'!$B$17:$J$17)*$AA$5)) -> 0.12 | N8: =IF(ISBLANK(E8)," ",(LOOKUP(E8,'Component Weights'!$B$16:$J$16,'Component Weights'!$B$17:$J$17)*$AA$6)) -> 0.08 | O8: =IF(ISBLANK(F8)," ",(LOOKUP(F8,'Component Weights'!$B$16:$J$16,'Component Weights'!$B$17:$J$17)*$AA$7)) -> 0 | P8: =IF(ISBLANK(G8)," ",(LOOKUP(G8,'Component Weights'!$B$16:$J$16,'Component Weights'!$B$17:$J$17)*$AA$8)) -> 0.05 | Q8: =IF(ISBLANK(B8)," ",(LOOKUP(B8,'Component Weights'!$B$16:$J$16,'Component Weights'!$B$17:$J$17)*$AA$9)) ->  | R8: =IF(ISBLANK(H8)," ",(LOOKUP(H8,'Component Weights'!$B$16:$J$16,'Component Weights'!$B$17:$J$17)*$AA$10)) -> 0.24 | S8: =IF(ISBLANK(I8)," ",(LOOKUP(I8,'Component Weights'!$B$16:$J$16,'Component Weights'!$B$17:$J$17)*$AA$11)) -> 0.16 | T8: =IF(ISBLANK(J8)," ",(LOOKUP(J8,'Component Weights'!$B$16:$J$16,'Component Weights'!$B$17:$J$17)*$AA$12)) -> 0.22 | U8: 1.03 | V8: 7 | X8: 1.03 | Z8: Made from Natural Materials | AA8: 0.05 | AB8: L | AC8: The amount, expressed as a percentage, of natural (not man-made) materials used to make the product.
A9: Metal Framing – Steel Studs | C9: L | D9: L | E9: L | F9: L | G9: L | H9: M | I9: N | J9: M | K9: =SUM(IF(ISBLANK(C9),,LOOKUP(C9,'Component Weights'!$B$16:$J$16,'Component Weights'!$B$17:$J$17)),IF(ISBLANK(D9),,LOOKUP(D9,'Component Weights'!$B$16:$J$16,'Component Weights'!$B$17:$J$17)),IF(ISBLANK(E9),,LOOKUP(E9,'Component Weights'!$B$16:$J$16,'Component Weights'!$B$17:$J$17)),IF(ISBLANK(F9),,LOOKUP(F9,'Component Weights'!$B$16:$J$16,'Component Weights'!$B$17:$J$17)),IF(ISBLANK(G9),,LOOKUP(G9,'Component Weights'!$B$16:$J$16,'Component Weights'!$B$17:$J$17)),IF(ISBLANK(B9),,LOOKUP(B9,'Component Weights'!$B$16:$J$16,'Component Weights'!$B$17:$J$17)),IF(ISBLANK(H9),,LOOKUP(H9,'Component Weights'!$B$16:$J$16,'Component Weights'!$B$17:$J$17)),IF(ISBLANK(I9),,LOOKUP(I9,'Component Weights'!$B$16:$J$16,'Component Weights'!$B$17:$J$17)),IF(ISBLANK(J9),,LOOKUP(J9,'Component Weights'!$B$16:$J$16,'Component Weights'!$B$17:$J$17))) -> 9 | L9: =IF(ISBLANK(C9)," ",(LOOKUP(C9,'Component Weights'!$B$16:$J$16,'Component Weights'!$B$17:$J$17)*$AA$4)) -> 0.08 | M9: =IF(ISBLANK(D9)," ",(LOOKUP(D9,'Component Weights'!$B$16:$J$16,'Component Weights'!$B$17:$J$17)*$AA$5)) -> 0.12 | N9: =IF(ISBLANK(E9)," ",(LOOKUP(E9,'Component Weights'!$B$16:$J$16,'Component Weights'!$B$17:$J$17)*$AA$6)) -> 0.08 | O9: =IF(ISBLANK(F9)," ",(LOOKUP(F9,'Component Weights'!$B$16:$J$16,'Component Weights'!$B$17:$J$17)*$AA$7)) -> 0.01 | P9: =IF(ISBLANK(G9)," ",(LOOKUP(G9,'Component Weights'!$B$16:$J$16,'Component Weights'!$B$17:$J$17)*$AA$8)) -> 0.05 | Q9: =IF(ISBLANK(B9)," ",(LOOKUP(B9,'Component Weights'!$B$16:$J$16,'Component Weights'!$B$17:$J$17)*$AA$9)) ->  | R9: =IF(ISBLANK(H9)," ",(LOOKUP(H9,'Component Weights'!$B$16:$J$16,'Component Weights'!$B$17:$J$17)*$AA$10)) -> 0.24 | S9: =IF(ISBLANK(I9)," ",(LOOKUP(I9,'Component Weights'!$B$16:$J$16,'Component Weights'!$B$17:$J$17)*$AA$11)) -> 0 | T9: =IF(ISBLANK(J9)," ",(LOOKUP(J9,'Component Weights'!$B$16:$J$16,'Component Weights'!$B$17:$J$17)*$AA$12)) -> 0.22 | U9: 0.8 | V9: 8 | X9: 0.8 | Z9: Available Locally | AA9: 0.35 | AB9: H+ | AC9: The distance in miles that the product must travel to the destination of final use.
A10: Steel with Formed Foam | C10: M | D10: L | E10: L | F10: L | G10: L | H10: L | I10: L | J10: L | K10: =SUM(IF(ISBLANK(C10),,LOOKUP(C10,'Component Weights'!$B$16:$J$16,'Component Weights'!$B$17:$J$17)),IF(ISBLANK(D10),,LOOKUP(D10,'Component Weights'!$B$16:$J$16,'Component Weights'!$B$17:$J$17)),IF(ISBLANK(E10),,LOOKUP(E10,'Component Weights'!$B$16:$J$16,'Component Weights'!$B$17:$J$17)),IF(ISBLANK(F10),,LOOKUP(F10,'Component Weights'!$B$16:$J$16,'Component Weights'!$B$17:$J$17)),IF(ISBLANK(G10),,LOOKUP(G10,'Component Weights'!$B$16:$J$16,'Component Weights'!$B$17:$J$17)),IF(ISBLANK(B10),,LOOKUP(B10,'Component Weights'!$B$16:$J$16,'Component Weights'!$B$17:$J$17)),IF(ISBLANK(H10),,LOOKUP(H10,'Component Weights'!$B$16:$J$16,'Component Weights'!$B$17:$J$17)),IF(ISBLANK(I10),,LOOKUP(I10,'Component Weights'!$B$16:$J$16,'Component Weights'!$B$17:$J$17)),IF(ISBLANK(J10),,LOOKUP(J10,'Component Weights'!$B$16:$J$16,'Component Weights'!$B$17:$J$17))) -> 9 | L10: =IF(ISBLANK(C10)," ",(LOOKUP(C10,'Component Weights'!$B$16:$J$16,'Component Weights'!$B$17:$J$17)*$AA$4)) -> 0.16 | M10: =IF(ISBLANK(D10)," ",(LOOKUP(D10,'Component Weights'!$B$16:$J$16,'Component Weights'!$B$17:$J$17)*$AA$5)) -> 0.12 | N10: =IF(ISBLANK(E10)," ",(LOOKUP(E10,'Component Weights'!$B$16:$J$16,'Component Weights'!$B$17:$J$17)*$AA$6)) -> 0.08 | O10: =IF(ISBLANK(F10)," ",(LOOKUP(F10,'Component Weights'!$B$16:$J$16,'Component Weights'!$B$17:$J$17)*$AA$7)) -> 0.01 | P10: =IF(ISBLANK(G10)," ",(LOOKUP(G10,'Component Weights'!$B$16:$J$16,'Component Weights'!$B$17:$J$17)*$AA$8)) -> 0.05 | Q10: =IF(ISBLANK(B10)," ",(LOOKUP(B10,'Component Weights'!$B$16:$J$16,'Component Weights'!$B$17:$J$17)*$AA$9)) ->  | R10: =IF(ISBLANK(H10)," ",(LOOKUP(H10,'Component Weights'!$B$16:$J$16,'Component Weights'!$B$17:$J$17)*$AA$10)) -> 0.12 | S10: =IF(ISBLANK(I10)," ",(LOOKUP(I10,'Component Weights'!$B$16:$J$16,'Component Weights'!$B$17:$J$17)*$AA$11)) -> 0.08 | T10: =IF(ISBLANK(J10)," ",(LOOKUP(J10,'Component Weights'!$B$16:$J$16,'Component Weights'!$B$17:$J$17)*$AA$12)) -> 0.11 | U10: 0.73 | V10: 9 | X10: 0.73 | Z10: Low Emissions Potential | AA10: 0.12 | AB10: H | AC10: The amount of time it will take the product to stop outgassing.
A11: Fiberglass/Plastic | C11: L | D11: N | E11: N | F11: N | G11: N | H11: N | I11: N | J11: N | K11: =SUM(IF(ISBLANK(C11),,LOOKUP(C11,'Component Weights'!$B$16:$J$16,'Component Weights'!$B$17:$J$17)),IF(ISBLANK(D11),,LOOKUP(D11,'Component Weights'!$B$16:$J$16,'Component Weights'!$B$17:$J$17)),IF(ISBLANK(E11),,LOOKUP(E11,'Component Weights'!$B$16:$J$16,'Component Weights'!$B$17:$J$17)),IF(ISBLANK(F11),,LOOKUP(F11,'Component Weights'!$B$16:$J$16,'Component Weights'!$B$17:$J$17)),IF(ISBLANK(G11),,LOOKUP(G11,'Component Weights'!$B$16:$J$16,'Component Weights'!$B$17:$J$17)),IF(ISBLANK(B11),,LOOKUP(B11,'Component Weights'!$B$16:$J$16,'Component Weights'!$B$17:$J$17)),IF(ISBLANK(H11),,LOOKUP(H11,'Component Weights'!$B$16:$J$16,'Component Weights'!$B$17:$J$17)),IF(ISBLANK(I11),,LOOKUP(I11,'Component Weights'!$B$16:$J$16,'Component Weights'!$B$17:$J$17)),IF(ISBLANK(J11),,LOOKUP(J11,'Component Weights'!$B$16:$J$16,'Component Weights'!$B$17:$J$17))) -> 1 | L11: =IF(ISBLANK(C11)," ",(LOOKUP(C11,'Component Weights'!$B$16:$J$16,'Component Weights'!$B$17:$J$17)*$AA$4)) -> 0.08 | M11: =IF(ISBLANK(D11)," ",(LOOKUP(D11,'Component Weights'!$B$16:$J$16,'Component Weights'!$B$17:$J$17)*$AA$5)) -> 0 | N11: =IF(ISBLANK(E11)," ",(LOOKUP(E11,'Component Weights'!$B$16:$J$16,'Component Weights'!$B$17:$J$17)*$AA$6)) -> 0 | O11: =IF(ISBLANK(F11)," ",(LOOKUP(F11,'Component Weights'!$B$16:$J$16,'Component Weights'!$B$17:$J$17)*$AA$7)) -> 0 | P11: =IF(ISBLANK(G11)," ",(LOOKUP(G11,'Component Weights'!$B$16:$J$16,'Component Weights'!$B$17:$J$17)*$AA$8)) -> 0 | Q11: =IF(ISBLANK(B11)," ",(LOOKUP(B11,'Component Weights'!$B$16:$J$16,'Component Weights'!$B$17:$J$17)*$AA$9)) ->  | R11: =IF(ISBLANK(H11)," ",(LOOKUP(H11,'Component Weights'!$B$16:$J$16,'Component Weights'!$B$17:$J$17)*$AA$10)) -> 0 | S11: =IF(ISBLANK(I11)," ",(LOOKUP(I11,'Component Weights'!$B$16:$J$16,'Component Weights'!$B$17:$J$17)*$AA$11)) -> 0 | T11: =IF(ISBLANK(J11)," ",(LOOKUP(J11,'Component Weights'!$B$16:$J$16,'Component Weights'!$B$17:$J$17)*$AA$12)) -> 0 | U11: 0.08 | V11: 10 | X11: 0.08 | Z11: Listed in Other Programs (e.g. EnergyStar) | AA11: 0.08 | AB11: M | AC11: The level of product recommendation in recognized energy and environmental programs.
A12: (Enter Custom Product Here) | K12: =SUM(IF(ISBLANK(C12),,LOOKUP(C12,'Component Weights'!$B$16:$J$16,'Component Weights'!$B$17:$J$17)),IF(ISBLANK(D12),,LOOKUP(D12,'Component Weights'!$B$16:$J$16,'Component Weights'!$B$17:$J$17)),IF(ISBLANK(E12),,LOOKUP(E12,'Component Weights'!$B$16:$J$16,'Component Weights'!$B$17:$J$17)),IF(ISBLANK(F12),,LOOKUP(F12,'Component Weights'!$B$16:$J$16,'Component Weights'!$B$17:$J$17)),IF(ISBLANK(G12),,LOOKUP(G12,'Component Weights'!$B$16:$J$16,'Component Weights'!$B$17:$J$17)),IF(ISBLANK(B12),,LOOKUP(B12,'Component Weights'!$B$16:$J$16,'Component Weights'!$B$17:$J$17)),IF(ISBLANK(H12),,LOOKUP(H12,'Component Weights'!$B$16:$J$16,'Component Weights'!$B$17:$J$17)),IF(ISBLANK(I12),,LOOKUP(I12,'Component Weights'!$B$16:$J$16,'Component Weights'!$B$17:$J$17)),IF(ISBLANK(J12),,LOOKUP(J12,'Component Weights'!$B$16:$J$16,'Component Weights'!$B$17:$J$17))) -> 0 | L12: =IF(ISBLANK(C12)," ",(LOOKUP(C12,'Component Weights'!$B$16:$J$16,'Component Weights'!$B$17:$J$17)*$AA$4)) ->  | M12: =IF(ISBLANK(D12)," ",(LOOKUP(D12,'Component Weights'!$B$16:$J$16,'Component Weights'!$B$17:$J$17)*$AA$5)) ->  | N12: =IF(ISBLANK(E12)," ",(LOOKUP(E12,'Component Weights'!$B$16:$J$16,'Component Weights'!$B$17:$J$17)*$AA$6)) ->  | O12: =IF(ISBLANK(F12)," ",(LOOKUP(F12,'Component Weights'!$B$16:$J$16,'Component Weights'!$B$17:$J$17)*$AA$7)) ->  | P12: =IF(ISBLANK(G12)," ",(LOOKUP(G12,'Component Weights'!$B$16:$J$16,'Component Weights'!$B$17:$J$17)*$AA$8)) ->  | Q12: =IF(ISBLANK(B12)," ",(LOOKUP(B12,'Component Weights'!$B$16:$J$16,'Component Weights'!$B$17:$J$17)*$AA$9)) ->  | R12: =IF(ISBLANK(H12)," ",(LOOKUP(H12,'Component Weights'!$B$16:$J$16,'Component Weights'!$B$17:$J$17)*$AA$10)) ->  | S12: =IF(ISBLANK(I12)," ",(LOOKUP(I12,'Component Weights'!$B$16:$J$16,'Component Weights'!$B$17:$J$17)*$AA$11)) ->  | T12: =IF(ISBLANK(J12)," ",(LOOKUP(J12,'Component Weights'!$B$16:$J$16,'Component Weights'!$B$17:$J$17)*$AA$12)) ->  | U12: 0 | V12: 99 | X12: 0 | Z12: Non Hazardous as Waste | AA12: 0.11 | AB12: H | AC12: The amount of hazardous materials and components found in the product.
A13: (Enter Custom Product Here) | K13: =SUM(IF(ISBLANK(C13),,LOOKUP(C13,'Component Weights'!$B$16:$J$16,'Component Weights'!$B$17:$J$17)),IF(ISBLANK(D13),,LOOKUP(D13,'Component Weights'!$B$16:$J$16,'Component Weights'!$B$17:$J$17)),IF(ISBLANK(E13),,LOOKUP(E13,'Component Weights'!$B$16:$J$16,'Component Weights'!$B$17:$J$17)),IF(ISBLANK(F13),,LOOKUP(F13,'Component Weights'!$B$16:$J$16,'Component Weights'!$B$17:$J$17)),IF(ISBLANK(G13),,LOOKUP(G13,'Component Weights'!$B$16:$J$16,'Component Weights'!$B$17:$J$17)),IF(ISBLANK(B13),,LOOKUP(B13,'Component Weights'!$B$16:$J$16,'Component Weights'!$B$17:$J$17)),IF(ISBLANK(H13),,LOOKUP(H13,'Component Weights'!$B$16:$J$16,'Component Weights'!$B$17:$J$17)),IF(ISBLANK(I13),,LOOKUP(I13,'Component Weights'!$B$16:$J$16,'Component Weights'!$B$17:$J$17)),IF(ISBLANK(J13),,LOOKUP(J13,'Component Weights'!$B$16:$J$16,'Component Weights'!$B$17:$J$17))) -> 0 | L13: =IF(ISBLANK(C13)," ",(LOOKUP(C13,'Component Weights'!$B$16:$J$16,'Component Weights'!$B$17:$J$17)*$AA$4)) ->  | M13: =IF(ISBLANK(D13)," ",(LOOKUP(D13,'Component Weights'!$B$16:$J$16,'Component Weights'!$B$17:$J$17)*$AA$5)) ->  | N13: =IF(ISBLANK(E13)," ",(LOOKUP(E13,'Component Weights'!$B$16:$J$16,'Component Weights'!$B$17:$J$17)*$AA$6)) ->  | O13: =IF(ISBLANK(F13)," ",(LOOKUP(F13,'Component Weights'!$B$16:$J$16,'Component Weights'!$B$17:$J$17)*$AA$7)) ->  | P13: =IF(ISBLANK(G13)," ",(LOOKUP(G13,'Component Weights'!$B$16:$J$16,'Component Weights'!$B$17:$J$17)*$AA$8)) ->  | Q13: =IF(ISBLANK(B13)," ",(LOOKUP(B13,'Component Weights'!$B$16:$J$16,'Component Weights'!$B$17:$J$17)*$AA$9)) ->  | R13: =IF(ISBLANK(H13)," ",(LOOKUP(H13,'Component Weights'!$B$16:$J$16,'Component Weights'!$B$17:$J$17)*$AA$10)) ->  | S13: =IF(ISBLANK(I13)," ",(LOOKUP(I13,'Component Weights'!$B$16:$J$16,'Component Weights'!$B$17:$J$17)*$AA$11)) ->  | T13: =IF(ISBLANK(J13)," ",(LOOKUP(J13,'Component Weights'!$B$16:$J$16,'Component Weights'!$B$17:$J$17)*$AA$12)) ->  | U13: 0 | V13: 99 | X13: =U13 -> 0 | Z13: Total Weightings Must Equal 100% | AA13: =SUM(AA4:AA12) -> 1 | AC13: =IF(AA13<>100%,"Keep Working - Weightings must equal 100%"," ") -> 
A14: (Enter Custom Product Here) | K14: =SUM(IF(ISBLANK(C14),,LOOKUP(C14,'Component Weights'!$B$16:$J$16,'Component Weights'!$B$17:$J$17)),IF(ISBLANK(D14),,LOOKUP(D14,'Component Weights'!$B$16:$J$16,'Component Weights'!$B$17:$J$17)),IF(ISBLANK(E14),,LOOKUP(E14,'Component Weights'!$B$16:$J$16,'Component Weights'!$B$17:$J$17)),IF(ISBLANK(F14),,LOOKUP(F14,'Component Weights'!$B$16:$J$16,'Component Weights'!$B$17:$J$17)),IF(ISBLANK(G14),,LOOKUP(G14,'Component Weights'!$B$16:$J$16,'Component Weights'!$B$17:$J$17)),IF(ISBLANK(B14),,LOOKUP(B14,'Component Weights'!$B$16:$J$16,'Component Weights'!$B$17:$J$17)),IF(ISBLANK(H14),,LOOKUP(H14,'Component Weights'!$B$16:$J$16,'Component Weights'!$B$17:$J$17)),IF(ISBLANK(I14),,LOOKUP(I14,'Component Weights'!$B$16:$J$16,'Component Weights'!$B$17:$J$17)),IF(ISBLANK(J14),,LOOKUP(J14,'Component Weights'!$B$16:$J$16,'Component Weights'!$B$17:$J$17))) -> 0 | L14: =IF(ISBLANK(C14)," ",(LOOKUP(C14,'Component Weights'!$B$16:$J$16,'Component Weights'!$B$17:$J$17)*$AA$4)) ->  | M14: =IF(ISBLANK(D14)," ",(LOOKUP(D14,'Component Weights'!$B$16:$J$16,'Component Weights'!$B$17:$J$17)*$AA$5)) ->  | N14: =IF(ISBLANK(E14)," ",(LOOKUP(E14,'Component Weights'!$B$16:$J$16,'Component Weights'!$B$17:$J$17)*$AA$6)) ->  | O14: =IF(ISBLANK(F14)," ",(LOOKUP(F14,'Component Weights'!$B$16:$J$16,'Component Weights'!$B$17:$J$17)*$AA$7)) ->  | P14: =IF(ISBLANK(G14)," ",(LOOKUP(G14,'Component Weights'!$B$16:$J$16,'Component Weights'!$B$17:$J$17)*$AA$8)) ->  | Q14: =IF(ISBLANK(B14)," ",(LOOKUP(B14,'Component Weights'!$B$16:$J$16,'Component Weights'!$B$17:$J$17)*$AA$9)) ->  | R14: =IF(ISBLANK(H14)," ",(LOOKUP(H14,'Component Weights'!$B$16:$J$16,'Component Weights'!$B$17:$J$17)*$AA$10)) ->  | S14: =IF(ISBLANK(I14)," ",(LOOKUP(I14,'Component Weights'!$B$16:$J$16,'Component Weights'!$B$17:$J$17)*$AA$11)) ->  | T14: =IF(ISBLANK(J14)," ",(LOOKUP(J14,'Component Weights'!$B$16:$J$16,'Component Weights'!$B$17:$J$17)*$AA$12)) ->  | U14: 0 | V14: 99 | X14: =U14 -> 0
A15: (Enter Custom Product Here) | K15: =SUM(IF(ISBLANK(C15),,LOOKUP(C15,'Component Weights'!$B$16:$J$16,'Component Weights'!$B$17:$J$17)),IF(ISBLANK(D15),,LOOKUP(D15,'Component Weights'!$B$16:$J$16,'Component Weights'!$B$17:$J$17)),IF(ISBLANK(E15),,LOOKUP(E15,'Component Weights'!$B$16:$J$16,'Component Weights'!$B$17:$J$17)),IF(ISBLANK(F15),,LOOKUP(F15,'Component Weights'!$B$16:$J$16,'Component Weights'!$B$17:$J$17)),IF(ISBLANK(G15),,LOOKUP(G15,'Component Weights'!$B$16:$J$16,'Component Weights'!$B$17:$J$17)),IF(ISBLANK(B15),,LOOKUP(B15,'Component Weights'!$B$16:$J$16,'Component Weights'!$B$17:$J$17)),IF(ISBLANK(H15),,LOOKUP(H15,'Component Weights'!$B$16:$J$16,'Component Weights'!$B$17:$J$17)),IF(ISBLANK(I15),,LOOKUP(I15,'Component Weights'!$B$16:$J$16,'Component Weights'!$B$17:$J$17)),IF(ISBLANK(J15),,LOOKUP(J15,'Component Weights'!$B$16:$J$16,'Component Weights'!$B$17:$J$17))) -> 0 | L15: =IF(ISBLANK(C15)," ",(LOOKUP(C15,'Component Weights'!$B$16:$J$16,'Component Weights'!$B$17:$J$17)*$AA$4)) ->  | M15: =IF(ISBLANK(D15)," ",(LOOKUP(D15,'Component Weights'!$B$16:$J$16,'Component Weights'!$B$17:$J$17)*$AA$5)) ->  | N15: =IF(ISBLANK(E15)," ",(LOOKUP(E15,'Component Weights'!$B$16:$J$16,'Component Weights'!$B$17:$J$17)*$AA$6)) ->  | O15: =IF(ISBLANK(F15)," ",(LOOKUP(F15,'Component Weights'!$B$16:$J$16,'Component Weights'!$B$17:$J$17)*$AA$7)) ->  | P15: =IF(ISBLANK(G15)," ",(LOOKUP(G15,'Component Weights'!$B$16:$J$16,'Component Weights'!$B$17:$J$17)*$AA$8)) ->  | Q15: =IF(ISBLANK(B15)," ",(LOOKUP(B15,'Component Weights'!$B$16:$J$16,'Component Weights'!$B$17:$J$17)*$AA$9)) ->  | R15: =IF(ISBLANK(H15)," ",(LOOKUP(H15,'Component Weights'!$B$16:$J$16,'Component Weights'!$B$17:$J$17)*$AA$10)) ->  | S15: =IF(ISBLANK(I15)," ",(LOOKUP(I15,'Component Weights'!$B$16:$J$16,'Component Weights'!$B$17:$J$17)*$AA$11)) ->  | T15: =IF(ISBLANK(J15)," ",(LOOKUP(J15,'Component Weights'!$B$16:$J$16,'Component Weights'!$B$17:$J$17)*$AA$12)) ->  | U15: 0 | V15: 99 | X15: =U15 -> 0
A16: (Enter Custom Product Here) | K16: =SUM(IF(ISBLANK(C16),,LOOKUP(C16,'Component Weights'!$B$16:$J$16,'Component Weights'!$B$17:$J$17)),IF(ISBLANK(D16),,LOOKUP(D16,'Component Weights'!$B$16:$J$16,'Component Weights'!$B$17:$J$17)),IF(ISBLANK(E16),,LOOKUP(E16,'Component Weights'!$B$16:$J$16,'Component Weights'!$B$17:$J$17)),IF(ISBLANK(F16),,LOOKUP(F16,'Component Weights'!$B$16:$J$16,'Component Weights'!$B$17:$J$17)),IF(ISBLANK(G16),,LOOKUP(G16,'Component Weights'!$B$16:$J$16,'Component Weights'!$B$17:$J$17)),IF(ISBLANK(B16),,LOOKUP(B16,'Component Weights'!$B$16:$J$16,'Component Weights'!$B$17:$J$17)),IF(ISBLANK(H16),,LOOKUP(H16,'Component Weights'!$B$16:$J$16,'Component Weights'!$B$17:$J$17)),IF(ISBLANK(I16),,LOOKUP(I16,'Component Weights'!$B$16:$J$16,'Component Weights'!$B$17:$J$17)),IF(ISBLANK(J16),,LOOKUP(J16,'Component Weights'!$B$16:$J$16,'Component Weights'!$B$17:$J$17))) -> 0 | L16: =IF(ISBLANK(C16)," ",(LOOKUP(C16,'Component Weights'!$B$16:$J$16,'Component Weights'!$B$17:$J$17)*$AA$4)) ->  | M16: =IF(ISBLANK(D16)," ",(LOOKUP(D16,'Component Weights'!$B$16:$J$16,'Component Weights'!$B$17:$J$17)*$AA$5)) ->  | N16: =IF(ISBLANK(E16)," ",(LOOKUP(E16,'Component Weights'!$B$16:$J$16,'Component Weights'!$B$17:$J$17)*$AA$6)) ->  | O16: =IF(ISBLANK(F16)," ",(LOOKUP(F16,'Component Weights'!$B$16:$J$16,'Component Weights'!$B$17:$J$17)*$AA$7)) ->  | P16: =IF(ISBLANK(G16)," ",(LOOKUP(G16,'Component Weights'!$B$16:$J$16,'Component Weights'!$B$17:$J$17)*$AA$8)) ->  | Q16: =IF(ISBLANK(B16)," ",(LOOKUP(B16,'Component Weights'!$B$16:$J$16,'Component Weights'!$B$17:$J$17)*$AA$9)) ->  | R16: =IF(ISBLANK(H16)," ",(LOOKUP(H16,'Component Weights'!$B$16:$J$16,'Component Weights'!$B$17:$J$17)*$AA$10)) ->  | S16: =IF(ISBLANK(I16)," ",(LOOKUP(I16,'Component Weights'!$B$16:$J$16,'Component Weights'!$B$17:$J$17)*$AA$11)) ->  | T16: =IF(ISBLANK(J16)," ",(LOOKUP(J16,'Component Weights'!$B$16:$J$16,'Component Weights'!$B$17:$J$17)*$AA$12)) ->  | U16: 0 | V16: 99 | X16: =U16 -> 0
A17: (Enter Custom Product Here) | K17: =SUM(IF(ISBLANK(C17),,LOOKUP(C17,'Component Weights'!$B$16:$J$16,'Component Weights'!$B$17:$J$17)),IF(ISBLANK(D17),,LOOKUP(D17,'Component Weights'!$B$16:$J$16,'Component Weights'!$B$17:$J$17)),IF(ISBLANK(E17),,LOOKUP(E17,'Component Weights'!$B$16:$J$16,'Component Weights'!$B$17:$J$17)),IF(ISBLANK(F17),,LOOKUP(F17,'Component Weights'!$B$16:$J$16,'Component Weights'!$B$17:$J$17)),IF(ISBLANK(G17),,LOOKUP(G17,'Component Weights'!$B$16:$J$16,'Component Weights'!$B$17:$J$17)),IF(ISBLANK(B17),,LOOKUP(B17,'Component Weights'!$B$16:$J$16,'Component Weights'!$B$17:$J$17)),IF(ISBLANK(H17),,LOOKUP(H17,'Component Weights'!$B$16:$J$16,'Component Weights'!$B$17:$J$17)),IF(ISBLANK(I17),,LOOKUP(I17,'Component Weights'!$B$16:$J$16,'Component Weights'!$B$17:$J$17)),IF(ISBLANK(J17),,LOOKUP(J17,'Component Weights'!$B$16:$J$16,'Component Weights'!$B$17:$J$17))) -> 0 | L17: =IF(ISBLANK(C17)," ",(LOOKUP(C17,'Component Weights'!$B$16:$J$16,'Component Weights'!$B$17:$J$17)*$AA$4)) ->  | M17: =IF(ISBLANK(D17)," ",(LOOKUP(D17,'Component Weights'!$B$16:$J$16,'Component Weights'!$B$17:$J$17)*$AA$5)) ->  | N17: =IF(ISBLANK(E17)," ",(LOOKUP(E17,'Component Weights'!$B$16:$J$16,'Component Weights'!$B$17:$J$17)*$AA$6)) ->  | O17: =IF(ISBLANK(F17)," ",(LOOKUP(F17,'Component Weights'!$B$16:$J$16,'Component Weights'!$B$17:$J$17)*$AA$7)) ->  | P17: =IF(ISBLANK(G17)," ",(LOOKUP(G17,'Component Weights'!$B$16:$J$16,'Component Weights'!$B$17:$J$17)*$AA$8)) ->  | Q17: =IF(ISBLANK(B17)," ",(LOOKUP(B17,'Component Weights'!$B$16:$J$16,'Component Weights'!$B$17:$J$17)*$AA$9)) ->  | R17: =IF(ISBLANK(H17)," ",(LOOKUP(H17,'Component Weights'!$B$16:$J$16,'Component Weights'!$B$17:$J$17)*$AA$10)) ->  | S17: =IF(ISBLANK(I17)," ",(LOOKUP(I17,'Component Weights'!$B$16:$J$16,'Component Weights'!$B$17:$J$17)*$AA$11)) ->  | T17: =IF(ISBLANK(J17)," ",(LOOKUP(J17,'Component Weights'!$B$16:$J$16,'Component Weights'!$B$17:$J$17)*$AA$12)) ->  | U17: 0 | V17: 99 | X17: 0
K18: =AVERAGE(K$2:K11) -> 15.2 | L18: =AVERAGE(L$2:L11) -> 0.168 | M18: =AVERAGE(M$2:M11) -> 0.18 | N18: =AVERAGE(N$2:N11) -> 0.16 | O18: =AVERAGE(O$2:O11) -> 0.017 | P18: =AVERAGE(P$2:P11) -> 0.095 | Q18: =AVERAGE(Q$2:Q11) ->  | R18: =AVERAGE(R$2:R11) -> 0.252 | S18: =AVERAGE(S$2:S11) -> 0.136 | T18: =AVERAGE(T$2:T11) -> 0.242 | U18: =AVERAGE(U$2:U11) -> 1.25 | V18: =IF(AND(OR($C18=72,$C18=73,$C18=74,$C18=75,$C18=76),$U18>0),RANK($U18,Y$3:Y$19,0)," ") -> 

Sheet Building Exterior
A1: Instructions: Scroll down to see all products. New products may be added to the end of the list. Rate the performance of each product as "N, L, M or H." (Hover over the component title for the rating description.) Use your Backspace button to clear values. The Sort button (below) will incorporate your priorities as currently stated on the table to the right. (Scroll to the right to see the table.) | B1: Available Locally | C1: Incremental Energy Savings | D1: Use of Recycled Content | E1: Low Energy Usage Manufacturing Process | F1: Easily Biodegradable | G1: Made from Natural Materials | H1: Low Emissions Potential | I1: Listed in Other Programs | J1: Non Hazardous as Waste | K1: Total Raw Score | L1: Incremental Energy Savings Weighted Score | M1: Use of Recycled Content Weighted Score | N1: Low Energy Usage Mfg. Process Weighted Score | O1: Easily Biodegradable Weighted Score | P1: Made from Natural Materials Weighted Score | Q1: Available Locally Weighted Score | R1: Low Emissions Potential Weighted Score | S1: Listed in Other Programs Weighted Score | T1: Non Hazardous as Waste Weighted Score | U1: Total Weighted Score | V1: Force Ranking | X1: Weighted Score for Force Rank Calculation | Z1: Detailed instructions and options for using this tool are found in the Using the DYO® GBD Kit Decision Matrix Software Section of your DYO® Green Building Decision Kit.
A2: Wood | D2: N | E2: H | F2: H | G2: H | H2: H | I2: H | J2: H | K2: =SUM(IF(ISBLANK(C2),,LOOKUP(C2,'Component Weights'!$B$16:$J$16,'Component Weights'!$B$17:$J$17)),IF(ISBLANK(D2),,LOOKUP(D2,'Component Weights'!$B$16:$J$16,'Component Weights'!$B$17:$J$17)),IF(ISBLANK(E2),,LOOKUP(E2,'Component Weights'!$B$16:$J$16,'Component Weights'!$B$17:$J$17)),IF(ISBLANK(F2),,LOOKUP(F2,'Component Weights'!$B$16:$J$16,'Component Weights'!$B$17:$J$17)),IF(ISBLANK(G2),,LOOKUP(G2,'Component Weights'!$B$16:$J$16,'Component Weights'!$B$17:$J$17)),IF(ISBLANK(B2),,LOOKUP(B2,'Component Weights'!$B$16:$J$16,'Component Weights'!$B$17:$J$17)),IF(ISBLANK(H2),,LOOKUP(H2,'Component Weights'!$B$16:$J$16,'Component Weights'!$B$17:$J$17)),IF(ISBLANK(I2),,LOOKUP(I2,'Component Weights'!$B$16:$J$16,'Component Weights'!$B$17:$J$17)),IF(ISBLANK(J2),,LOOKUP(J2,'Component Weights'!$B$16:$J$16,'Component Weights'!$B$17:$J$17))) -> 18 | L2: =IF(ISBLANK(C2)," ",(LOOKUP(C2,'Component Weights'!$B$16:$J$16,'Component Weights'!$B$17:$J$17)*$AA$4)) ->  | M2: =IF(ISBLANK(D2)," ",(LOOKUP(D2,'Component Weights'!$B$16:$J$16,'Component Weights'!$B$17:$J$17)*$AA$5)) -> 0 | N2: =IF(ISBLANK(E2)," ",(LOOKUP(E2,'Component Weights'!$B$16:$J$16,'Component Weights'!$B$17:$J$17)*$AA$6)) -> 0.24 | O2: =IF(ISBLANK(F2)," ",(LOOKUP(F2,'Component Weights'!$B$16:$J$16,'Component Weights'!$B$17:$J$17)*$AA$7)) -> 0.36 | P2: =IF(ISBLANK(G2)," ",(LOOKUP(G2,'Component Weights'!$B$16:$J$16,'Component Weights'!$B$17:$J$17)*$AA$8)) -> 0.15 | Q2: =IF(ISBLANK(B2)," ",(LOOKUP(B2,'Component Weights'!$B$16:$J$16,'Component Weights'!$B$17:$J$17)*$AA$9)) ->  | R2: =IF(ISBLANK(H2)," ",(LOOKUP(H2,'Component Weights'!$B$16:$J$16,'Component Weights'!$B$17:$J$17)*$AA$10)) -> 0.36 | S2: =IF(ISBLANK(I2)," ",(LOOKUP(I2,'Component Weights'!$B$16:$J$16,'Component Weights'!$B$17:$J$17)*$AA$11)) -> 0.24 | T2: =IF(ISBLANK(J2)," ",(LOOKUP(J2,'Component Weights'!$B$16:$J$16,'Component Weights'!$B$17:$J$17)*$AA$12)) -> 0.36 | U2: =SUM(L2:T2) -> 1.71 | V2: =IF($U2>0,RANK($U2,X$2:X$206,0),99) -> 1 | X2: =U2 -> 1.71 | Z2: Component Weights for | AA2: Weight
A3: Artificial Stone | D3: M | E3: M | F3: M | G3: M | H3: M | I3: H | J3: H | K3: =SUM(IF(ISBLANK(C3),,LOOKUP(C3,'Component Weights'!$B$16:$J$16,'Component Weights'!$B$17:$J$17)),IF(ISBLANK(D3),,LOOKUP(D3,'Component Weights'!$B$16:$J$16,'Component Weights'!$B$17:$J$17)),IF(ISBLANK(E3),,LOOKUP(E3,'Component Weights'!$B$16:$J$16,'Component Weights'!$B$17:$J$17)),IF(ISBLANK(F3),,LOOKUP(F3,'Component Weights'!$B$16:$J$16,'Component Weights'!$B$17:$J$17)),IF(ISBLANK(G3),,LOOKUP(G3,'Component Weights'!$B$16:$J$16,'Component Weights'!$B$17:$J$17)),IF(ISBLANK(B3),,LOOKUP(B3,'Component Weights'!$B$16:$J$16,'Component Weights'!$B$17:$J$17)),IF(ISBLANK(H3),,LOOKUP(H3,'Component Weights'!$B$16:$J$16,'Component Weights'!$B$17:$J$17)),IF(ISBLANK(I3),,LOOKUP(I3,'Component Weights'!$B$16:$J$16,'Component Weights'!$B$17:$J$17)),IF(ISBLANK(J3),,LOOKUP(J3,'Component Weights'!$B$16:$J$16,'Component Weights'!$B$17:$J$17))) -> 16 | L3: =IF(ISBLANK(C3)," ",(LOOKUP(C3,'Component Weights'!$B$16:$J$16,'Component Weights'!$B$17:$J$17)*$AA$4)) ->  | M3: =IF(ISBLANK(D3)," ",(LOOKUP(D3,'Component Weights'!$B$16:$J$16,'Component Weights'!$B$17:$J$17)*$AA$5)) -> 0.24 | N3: =IF(ISBLANK(E3)," ",(LOOKUP(E3,'Component Weights'!$B$16:$J$16,'Component Weights'!$B$17:$J$17)*$AA$6)) -> 0.16 | O3: =IF(ISBLANK(F3)," ",(LOOKUP(F3,'Component Weights'!$B$16:$J$16,'Component Weights'!$B$17:$J$17)*$AA$7)) -> 0.24 | P3: =IF(ISBLANK(G3)," ",(LOOKUP(G3,'Component Weights'!$B$16:$J$16,'Component Weights'!$B$17:$J$17)*$AA$8)) -> 0.1 | Q3: =IF(ISBLANK(B3)," ",(LOOKUP(B3,'Component Weights'!$B$16:$J$16,'Component Weights'!$B$17:$J$17)*$AA$9)) ->  | R3: =IF(ISBLANK(H3)," ",(LOOKUP(H3,'Component Weights'!$B$16:$J$16,'Component Weights'!$B$17:$J$17)*$AA$10)) -> 0.24 | S3: =IF(ISBLANK(I3)," ",(LOOKUP(I3,'Component Weights'!$B$16:$J$16,'Component Weights'!$B$17:$J$17)*$AA$11)) -> 0.24 | T3: =IF(ISBLANK(J3)," ",(LOOKUP(J3,'Component Weights'!$B$16:$J$16,'Component Weights'!$B$17:$J$17)*$AA$12)) -> 0.36 | U3: 1.58 | V3: 2 | X3: 1.58 | Z3: Building Exterior
A4: Composite | D4: H | E4: M | F4: M | G4: M | H4: M | I4: H | J4: M | K4: =SUM(IF(ISBLANK(C4),,LOOKUP(C4,'Component Weights'!$B$16:$J$16,'Component Weights'!$B$17:$J$17)),IF(ISBLANK(D4),,LOOKUP(D4,'Component Weights'!$B$16:$J$16,'Component Weights'!$B$17:$J$17)),IF(ISBLANK(E4),,LOOKUP(E4,'Component Weights'!$B$16:$J$16,'Component Weights'!$B$17:$J$17)),IF(ISBLANK(F4),,LOOKUP(F4,'Component Weights'!$B$16:$J$16,'Component Weights'!$B$17:$J$17)),IF(ISBLANK(G4),,LOOKUP(G4,'Component Weights'!$B$16:$J$16,'Component Weights'!$B$17:$J$17)),IF(ISBLANK(B4),,LOOKUP(B4,'Component Weights'!$B$16:$J$16,'Component Weights'!$B$17:$J$17)),IF(ISBLANK(H4),,LOOKUP(H4,'Component Weights'!$B$16:$J$16,'Component Weights'!$B$17:$J$17)),IF(ISBLANK(I4),,LOOKUP(I4,'Component Weights'!$B$16:$J$16,'Component Weights'!$B$17:$J$17)),IF(ISBLANK(J4),,LOOKUP(J4,'Component Weights'!$B$16:$J$16,'Component Weights'!$B$17:$J$17))) -> 16 | L4: =IF(ISBLANK(C4)," ",(LOOKUP(C4,'Component Weights'!$B$16:$J$16,'Component Weights'!$B$17:$J$17)*$AA$4)) ->  | M4: =IF(ISBLANK(D4)," ",(LOOKUP(D4,'Component Weights'!$B$16:$J$16,'Component Weights'!$B$17:$J$17)*$AA$5)) -> 0.36 | N4: =IF(ISBLANK(E4)," ",(LOOKUP(E4,'Component Weights'!$B$16:$J$16,'Component Weights'!$B$17:$J$17)*$AA$6)) -> 0.16 | O4: =IF(ISBLANK(F4)," ",(LOOKUP(F4,'Component Weights'!$B$16:$J$16,'Component Weights'!$B$17:$J$17)*$AA$7)) -> 0.24 | P4: =IF(ISBLANK(G4)," ",(LOOKUP(G4,'Component Weights'!$B$16:$J$16,'Component Weights'!$B$17:$J$17)*$AA$8)) -> 0.1 | Q4: =IF(ISBLANK(B4)," ",(LOOKUP(B4,'Component Weights'!$B$16:$J$16,'Component Weights'!$B$17:$J$17)*$AA$9)) ->  | R4: =IF(ISBLANK(H4)," ",(LOOKUP(H4,'Component Weights'!$B$16:$J$16,'Component Weights'!$B$17:$J$17)*$AA$10)) -> 0.24 | S4: =IF(ISBLANK(I4)," ",(LOOKUP(I4,'Component Weights'!$B$16:$J$16,'Component Weights'!$B$17:$J$17)*$AA$11)) -> 0.24 | T4: =IF(ISBLANK(J4)," ",(LOOKUP(J4,'Component Weights'!$B$16:$J$16,'Component Weights'!$B$17:$J$17)*$AA$12)) -> 0.24 | U4: 1.58 | V4: 2 | X4: 1.58 | Z4: Incremental Energy Savings | AA4: 0.08 | AB4: M | AC4: The amount of incremental energy, expressed in Btu/Hr, that a product saves or generates for the structure.
A5: Brick | D5: N | E5: M | F5: M | G5: M | H5: H | I5: H | J5: H | K5: =SUM(IF(ISBLANK(C5),,LOOKUP(C5,'Component Weights'!$B$16:$J$16,'Component Weights'!$B$17:$J$17)),IF(ISBLANK(D5),,LOOKUP(D5,'Component Weights'!$B$16:$J$16,'Component Weights'!$B$17:$J$17)),IF(ISBLANK(E5),,LOOKUP(E5,'Component Weights'!$B$16:$J$16,'Component Weights'!$B$17:$J$17)),IF(ISBLANK(F5),,LOOKUP(F5,'Component Weights'!$B$16:$J$16,'Component Weights'!$B$17:$J$17)),IF(ISBLANK(G5),,LOOKUP(G5,'Component Weights'!$B$16:$J$16,'Component Weights'!$B$17:$J$17)),IF(ISBLANK(B5),,LOOKUP(B5,'Component Weights'!$B$16:$J$16,'Component Weights'!$B$17:$J$17)),IF(ISBLANK(H5),,LOOKUP(H5,'Component Weights'!$B$16:$J$16,'Component Weights'!$B$17:$J$17)),IF(ISBLANK(I5),,LOOKUP(I5,'Component Weights'!$B$16:$J$16,'Component Weights'!$B$17:$J$17)),IF(ISBLANK(J5),,LOOKUP(J5,'Component Weights'!$B$16:$J$16,'Component Weights'!$B$17:$J$17))) -> 15 | L5: =IF(ISBLANK(C5)," ",(LOOKUP(C5,'Component Weights'!$B$16:$J$16,'Component Weights'!$B$17:$J$17)*$AA$4)) ->  | M5: =IF(ISBLANK(D5)," ",(LOOKUP(D5,'Component Weights'!$B$16:$J$16,'Component Weights'!$B$17:$J$17)*$AA$5)) -> 0 | N5: =IF(ISBLANK(E5)," ",(LOOKUP(E5,'Component Weights'!$B$16:$J$16,'Component Weights'!$B$17:$J$17)*$AA$6)) -> 0.16 | O5: =IF(ISBLANK(F5)," ",(LOOKUP(F5,'Component Weights'!$B$16:$J$16,'Component Weights'!$B$17:$J$17)*$AA$7)) -> 0.24 | P5: =IF(ISBLANK(G5)," ",(LOOKUP(G5,'Component Weights'!$B$16:$J$16,'Component Weights'!$B$17:$J$17)*$AA$8)) -> 0.1 | Q5: =IF(ISBLANK(B5)," ",(LOOKUP(B5,'Component Weights'!$B$16:$J$16,'Component Weights'!$B$17:$J$17)*$AA$9)) ->  | R5: =IF(ISBLANK(H5)," ",(LOOKUP(H5,'Component Weights'!$B$16:$J$16,'Component Weights'!$B$17:$J$17)*$AA$10)) -> 0.36 | S5: =IF(ISBLANK(I5)," ",(LOOKUP(I5,'Component Weights'!$B$16:$J$16,'Component Weights'!$B$17:$J$17)*$AA$11)) -> 0.24 | T5: =IF(ISBLANK(J5)," ",(LOOKUP(J5,'Component Weights'!$B$16:$J$16,'Component Weights'!$B$17:$J$17)*$AA$12)) -> 0.36 | U5: 1.46 | V5: 4 | X5: 1.46 | Z5: Use of Recycled Content | AA5: 0.12 | AB5: H | AC5: The amount of recycled content, expressed as a percentage, found in a product.
A6: Masonry | D6: N | E6: H | F6: L | G6: M | H6: H | I6: H | J6: H | K6: =SUM(IF(ISBLANK(C6),,LOOKUP(C6,'Component Weights'!$B$16:$J$16,'Component Weights'!$B$17:$J$17)),IF(ISBLANK(D6),,LOOKUP(D6,'Component Weights'!$B$16:$J$16,'Component Weights'!$B$17:$J$17)),IF(ISBLANK(E6),,LOOKUP(E6,'Component Weights'!$B$16:$J$16,'Component Weights'!$B$17:$J$17)),IF(ISBLANK(F6),,LOOKUP(F6,'Component Weights'!$B$16:$J$16,'Component Weights'!$B$17:$J$17)),IF(ISBLANK(G6),,LOOKUP(G6,'Component Weights'!$B$16:$J$16,'Component Weights'!$B$17:$J$17)),IF(ISBLANK(B6),,LOOKUP(B6,'Component Weights'!$B$16:$J$16,'Component Weights'!$B$17:$J$17)),IF(ISBLANK(H6),,LOOKUP(H6,'Component Weights'!$B$16:$J$16,'Component Weights'!$B$17:$J$17)),IF(ISBLANK(I6),,LOOKUP(I6,'Component Weights'!$B$16:$J$16,'Component Weights'!$B$17:$J$17)),IF(ISBLANK(J6),,LOOKUP(J6,'Component Weights'!$B$16:$J$16,'Component Weights'!$B$17:$J$17))) -> 15 | L6: =IF(ISBLANK(C6)," ",(LOOKUP(C6,'Component Weights'!$B$16:$J$16,'Component Weights'!$B$17:$J$17)*$AA$4)) ->  | M6: =IF(ISBLANK(D6)," ",(LOOKUP(D6,'Component Weights'!$B$16:$J$16,'Component Weights'!$B$17:$J$17)*$AA$5)) -> 0 | N6: =IF(ISBLANK(E6)," ",(LOOKUP(E6,'Component Weights'!$B$16:$J$16,'Component Weights'!$B$17:$J$17)*$AA$6)) -> 0.24 | O6: =IF(ISBLANK(F6)," ",(LOOKUP(F6,'Component Weights'!$B$16:$J$16,'Component Weights'!$B$17:$J$17)*$AA$7)) -> 0.12 | P6: =IF(ISBLANK(G6)," ",(LOOKUP(G6,'Component Weights'!$B$16:$J$16,'Component Weights'!$B$17:$J$17)*$AA$8)) -> 0.1 | Q6: =IF(ISBLANK(B6)," ",(LOOKUP(B6,'Component Weights'!$B$16:$J$16,'Component Weights'!$B$17:$J$17)*$AA$9)) ->  | R6: =IF(ISBLANK(H6)," ",(LOOKUP(H6,'Component Weights'!$B$16:$J$16,'Component Weights'!$B$17:$J$17)*$AA$10)) -> 0.36 | S6: =IF(ISBLANK(I6)," ",(LOOKUP(I6,'Component Weights'!$B$16:$J$16,'Component Weights'!$B$17:$J$17)*$AA$11)) -> 0.24 | T6: =IF(ISBLANK(J6)," ",(LOOKUP(J6,'Component Weights'!$B$16:$J$16,'Component Weights'!$B$17:$J$17)*$AA$12)) -> 0.36 | U6: 1.42 | V6: 5 | X6: 1.42 | Z6: Low Energy Usage Manufacturing Process | AA6: 0.08 | AB6: M | AC6: The amount of energy used in manufacture of the product.
A7: Natural Stone | D7: N | E7: H | F7: N | G7: H | H7: H | I7: H | J7: H | K7: =SUM(IF(ISBLANK(C7),,LOOKUP(C7,'Component Weights'!$B$16:$J$16,'Component Weights'!$B$17:$J$17)),IF(ISBLANK(D7),,LOOKUP(D7,'Component Weights'!$B$16:$J$16,'Component Weights'!$B$17:$J$17)),IF(ISBLANK(E7),,LOOKUP(E7,'Component Weights'!$B$16:$J$16,'Component Weights'!$B$17:$J$17)),IF(ISBLANK(F7),,LOOKUP(F7,'Component Weights'!$B$16:$J$16,'Component Weights'!$B$17:$J$17)),IF(ISBLANK(G7),,LOOKUP(G7,'Component Weights'!$B$16:$J$16,'Component Weights'!$B$17:$J$17)),IF(ISBLANK(B7),,LOOKUP(B7,'Component Weights'!$B$16:$J$16,'Component Weights'!$B$17:$J$17)),IF(ISBLANK(H7),,LOOKUP(H7,'Component Weights'!$B$16:$J$16,'Component Weights'!$B$17:$J$17)),IF(ISBLANK(I7),,LOOKUP(I7,'Component Weights'!$B$16:$J$16,'Component Weights'!$B$17:$J$17)),IF(ISBLANK(J7),,LOOKUP(J7,'Component Weights'!$B$16:$J$16,'Component Weights'!$B$17:$J$17))) -> 15 | L7: =IF(ISBLANK(C7)," ",(LOOKUP(C7,'Component Weights'!$B$16:$J$16,'Component Weights'!$B$17:$J$17)*$AA$4)) ->  | M7: =IF(ISBLANK(D7)," ",(LOOKUP(D7,'Component Weights'!$B$16:$J$16,'Component Weights'!$B$17:$J$17)*$AA$5)) -> 0 | N7: =IF(ISBLANK(E7)," ",(LOOKUP(E7,'Component Weights'!$B$16:$J$16,'Component Weights'!$B$17:$J$17)*$AA$6)) -> 0.24 | O7: =IF(ISBLANK(F7)," ",(LOOKUP(F7,'Component Weights'!$B$16:$J$16,'Component Weights'!$B$17:$J$17)*$AA$7)) -> 0 | P7: =IF(ISBLANK(G7)," ",(LOOKUP(G7,'Component Weights'!$B$16:$J$16,'Component Weights'!$B$17:$J$17)*$AA$8)) -> 0.15 | Q7: =IF(ISBLANK(B7)," ",(LOOKUP(B7,'Component Weights'!$B$16:$J$16,'Component Weights'!$B$17:$J$17)*$AA$9)) ->  | R7: =IF(ISBLANK(H7)," ",(LOOKUP(H7,'Component Weights'!$B$16:$J$16,'Component Weights'!$B$17:$J$17)*$AA$10)) -> 0.36 | S7: =IF(ISBLANK(I7)," ",(LOOKUP(I7,'Component Weights'!$B$16:$J$16,'Component Weights'!$B$17:$J$17)*$AA$11)) -> 0.24 | T7: =IF(ISBLANK(J7)," ",(LOOKUP(J7,'Component Weights'!$B$16:$J$16,'Component Weights'!$B$17:$J$17)*$AA$12)) -> 0.36 | U7: 1.35 | V7: 6 | X7: 1.35 | Z7: Easily Biodegradable | AA7: 0.12 | AB7: H | AC7: The amount of time it will take the product to degrade once its useful life is over.
A8: Stucco | D8: N | E8: M | F8: L | G8: L | H8: H | I8: L | J8: M | K8: =SUM(IF(ISBLANK(C8),,LOOKUP(C8,'Component Weights'!$B$16:$J$16,'Component Weights'!$B$17:$J$17)),IF(ISBLANK(D8),,LOOKUP(D8,'Component Weights'!$B$16:$J$16,'Component Weights'!$B$17:$J$17)),IF(ISBLANK(E8),,LOOKUP(E8,'Component Weights'!$B$16:$J$16,'Component Weights'!$B$17:$J$17)),IF(ISBLANK(F8),,LOOKUP(F8,'Component Weights'!$B$16:$J$16,'Component Weights'!$B$17:$J$17)),IF(ISBLANK(G8),,LOOKUP(G8,'Component Weights'!$B$16:$J$16,'Component Weights'!$B$17:$J$17)),IF(ISBLANK(B8),,LOOKUP(B8,'Component Weights'!$B$16:$J$16,'Component Weights'!$B$17:$J$17)),IF(ISBLANK(H8),,LOOKUP(H8,'Component Weights'!$B$16:$J$16,'Component Weights'!$B$17:$J$17)),IF(ISBLANK(I8),,LOOKUP(I8,'Component Weights'!$B$16:$J$16,'Component Weights'!$B$17:$J$17)),IF(ISBLANK(J8),,LOOKUP(J8,'Component Weights'!$B$16:$J$16,'Component Weights'!$B$17:$J$17))) -> 10 | L8: =IF(ISBLANK(C8)," ",(LOOKUP(C8,'Component Weights'!$B$16:$J$16,'Component Weights'!$B$17:$J$17)*$AA$4)) ->  | M8: =IF(ISBLANK(D8)," ",(LOOKUP(D8,'Component Weights'!$B$16:$J$16,'Component Weights'!$B$17:$J$17)*$AA$5)) -> 0 | N8: =IF(ISBLANK(E8)," ",(LOOKUP(E8,'Component Weights'!$B$16:$J$16,'Component Weights'!$B$17:$J$17)*$AA$6)) -> 0.16 | O8: =IF(ISBLANK(F8)," ",(LOOKUP(F8,'Component Weights'!$B$16:$J$16,'Component Weights'!$B$17:$J$17)*$AA$7)) -> 0.12 | P8: =IF(ISBLANK(G8)," ",(LOOKUP(G8,'Component Weights'!$B$16:$J$16,'Component Weights'!$B$17:$J$17)*$AA$8)) -> 0.05 | Q8: =IF(ISBLANK(B8)," ",(LOOKUP(B8,'Component Weights'!$B$16:$J$16,'Component Weights'!$B$17:$J$17)*$AA$9)) ->  | R8: =IF(ISBLANK(H8)," ",(LOOKUP(H8,'Component Weights'!$B$16:$J$16,'Component Weights'!$B$17:$J$17)*$AA$10)) -> 0.36 | S8: =IF(ISBLANK(I8)," ",(LOOKUP(I8,'Component Weights'!$B$16:$J$16,'Component Weights'!$B$17:$J$17)*$AA$11)) -> 0.08 | T8: =IF(ISBLANK(J8)," ",(LOOKUP(J8,'Component Weights'!$B$16:$J$16,'Component Weights'!$B$17:$J$17)*$AA$12)) -> 0.24 | U8: 1.01 | V8: 7 | X8: 1.01 | Z8: Made from Natural Materials | AA8: 0.05 | AB8: L | AC8: The amount, expressed as a percentage, of natural (not man-made) materials used to make the product.
A9: Steel | D9: L | E9: L | F9: L | G9: N | H9: H | I9: L | J9: L | K9: =SUM(IF(ISBLANK(C9),,LOOKUP(C9,'Component Weights'!$B$16:$J$16,'Component Weights'!$B$17:$J$17)),IF(ISBLANK(D9),,LOOKUP(D9,'Component Weights'!$B$16:$J$16,'Component Weights'!$B$17:$J$17)),IF(ISBLANK(E9),,LOOKUP(E9,'Component Weights'!$B$16:$J$16,'Component Weights'!$B$17:$J$17)),IF(ISBLANK(F9),,LOOKUP(F9,'Component Weights'!$B$16:$J$16,'Component Weights'!$B$17:$J$17)),IF(ISBLANK(G9),,LOOKUP(G9,'Component Weights'!$B$16:$J$16,'Component Weights'!$B$17:$J$17)),IF(ISBLANK(B9),,LOOKUP(B9,'Component Weights'!$B$16:$J$16,'Component Weights'!$B$17:$J$17)),IF(ISBLANK(H9),,LOOKUP(H9,'Component Weights'!$B$16:$J$16,'Component Weights'!$B$17:$J$17)),IF(ISBLANK(I9),,LOOKUP(I9,'Component Weights'!$B$16:$J$16,'Component Weights'!$B$17:$J$17)),IF(ISBLANK(J9),,LOOKUP(J9,'Component Weights'!$B$16:$J$16,'Component Weights'!$B$17:$J$17))) -> 8 | L9: =IF(ISBLANK(C9)," ",(LOOKUP(C9,'Component Weights'!$B$16:$J$16,'Component Weights'!$B$17:$J$17)*$AA$4)) ->  | M9: =IF(ISBLANK(D9)," ",(LOOKUP(D9,'Component Weights'!$B$16:$J$16,'Component Weights'!$B$17:$J$17)*$AA$5)) -> 0.12 | N9: =IF(ISBLANK(E9)," ",(LOOKUP(E9,'Component Weights'!$B$16:$J$16,'Component Weights'!$B$17:$J$17)*$AA$6)) -> 0.08 | O9: =IF(ISBLANK(F9)," ",(LOOKUP(F9,'Component Weights'!$B$16:$J$16,'Component Weights'!$B$17:$J$17)*$AA$7)) -> 0.12 | P9: =IF(ISBLANK(G9)," ",(LOOKUP(G9,'Component Weights'!$B$16:$J$16,'Component Weights'!$B$17:$J$17)*$AA$8)) -> 0 | Q9: =IF(ISBLANK(B9)," ",(LOOKUP(B9,'Component Weights'!$B$16:$J$16,'Component Weights'!$B$17:$J$17)*$AA$9)) ->  | R9: =IF(ISBLANK(H9)," ",(LOOKUP(H9,'Component Weights'!$B$16:$J$16,'Component Weights'!$B$17:$J$17)*$AA$10)) -> 0.36 | S9: =IF(ISBLANK(I9)," ",(LOOKUP(I9,'Component Weights'!$B$16:$J$16,'Component Weights'!$B$17:$J$17)*$AA$11)) -> 0.08 | T9: =IF(ISBLANK(J9)," ",(LOOKUP(J9,'Component Weights'!$B$16:$J$16,'Component Weights'!$B$17:$J$17)*$AA$12)) -> 0.12 | U9: 0.88 | V9: 8 | X9: 0.88 | Z9: Available Locally | AA9: 0.23 | AB9: H+ | AC9: The distance in miles that the product must travel to the destination of final use.
A10: EIFS (Exterior Insulation & Finishing Systems) | D10: N | E10: M | F10: N | G10: N | H10: M | I10: M | J10: L | K10: =SUM(IF(ISBLANK(C10),,LOOKUP(C10,'Component Weights'!$B$16:$J$16,'Component Weights'!$B$17:$J$17)),IF(ISBLANK(D10),,LOOKUP(D10,'Component Weights'!$B$16:$J$16,'Component Weights'!$B$17:$J$17)),IF(ISBLANK(E10),,LOOKUP(E10,'Component Weights'!$B$16:$J$16,'Component Weights'!$B$17:$J$17)),IF(ISBLANK(F10),,LOOKUP(F10,'Component Weights'!$B$16:$J$16,'Component Weights'!$B$17:$J$17)),IF(ISBLANK(G10),,LOOKUP(G10,'Component Weights'!$B$16:$J$16,'Component Weights'!$B$17:$J$17)),IF(ISBLANK(B10),,LOOKUP(B10,'Component Weights'!$B$16:$J$16,'Component Weights'!$B$17:$J$17)),IF(ISBLANK(H10),,LOOKUP(H10,'Component Weights'!$B$16:$J$16,'Component Weights'!$B$17:$J$17)),IF(ISBLANK(I10),,LOOKUP(I10,'Component Weights'!$B$16:$J$16,'Component Weights'!$B$17:$J$17)),IF(ISBLANK(J10),,LOOKUP(J10,'Component Weights'!$B$16:$J$16,'Component Weights'!$B$17:$J$17))) -> 7 | L10: =IF(ISBLANK(C10)," ",(LOOKUP(C10,'Component Weights'!$B$16:$J$16,'Component Weights'!$B$17:$J$17)*$AA$4)) ->  | M10: =IF(ISBLANK(D10)," ",(LOOKUP(D10,'Component Weights'!$B$16:$J$16,'Component Weights'!$B$17:$J$17)*$AA$5)) -> 0 | N10: =IF(ISBLANK(E10)," ",(LOOKUP(E10,'Component Weights'!$B$16:$J$16,'Component Weights'!$B$17:$J$17)*$AA$6)) -> 0.16 | O10: =IF(ISBLANK(F10)," ",(LOOKUP(F10,'Component Weights'!$B$16:$J$16,'Component Weights'!$B$17:$J$17)*$AA$7)) -> 0 | P10: =IF(ISBLANK(G10)," ",(LOOKUP(G10,'Component Weights'!$B$16:$J$16,'Component Weights'!$B$17:$J$17)*$AA$8)) -> 0 | Q10: =IF(ISBLANK(B10)," ",(LOOKUP(B10,'Component Weights'!$B$16:$J$16,'Component Weights'!$B$17:$J$17)*$AA$9)) ->  | R10: =IF(ISBLANK(H10)," ",(LOOKUP(H10,'Component Weights'!$B$16:$J$16,'Component Weights'!$B$17:$J$17)*$AA$10)) -> 0.24 | S10: =IF(ISBLANK(I10)," ",(LOOKUP(I10,'Component Weights'!$B$16:$J$16,'Component Weights'!$B$17:$J$17)*$AA$11)) -> 0.16 | T10: =IF(ISBLANK(J10)," ",(LOOKUP(J10,'Component Weights'!$B$16:$J$16,'Component Weights'!$B$17:$J$17)*$AA$12)) -> 0.12 | U10: 0.68 | V10: 9 | X10: 0.68 | Z10: Low Emissions Potential | AA10: 0.12 | AB10: H | AC10: The amount of time it will take the product to stop outgassing.
A11: Aluminum | D11: L | E11: L | F11: N | G11: N | H11: H | I11: N | J11: L | K11: =SUM(IF(ISBLANK(C11),,LOOKUP(C11,'Component Weights'!$B$16:$J$16,'Component Weights'!$B$17:$J$17)),IF(ISBLANK(D11),,LOOKUP(D11,'Component Weights'!$B$16:$J$16,'Component Weights'!$B$17:$J$17)),IF(ISBLANK(E11),,LOOKUP(E11,'Component Weights'!$B$16:$J$16,'Component Weights'!$B$17:$J$17)),IF(ISBLANK(F11),,LOOKUP(F11,'Component Weights'!$B$16:$J$16,'Component Weights'!$B$17:$J$17)),IF(ISBLANK(G11),,LOOKUP(G11,'Component Weights'!$B$16:$J$16,'Component Weights'!$B$17:$J$17)),IF(ISBLANK(B11),,LOOKUP(B11,'Component Weights'!$B$16:$J$16,'Component Weights'!$B$17:$J$17)),IF(ISBLANK(H11),,LOOKUP(H11,'Component Weights'!$B$16:$J$16,'Component Weights'!$B$17:$J$17)),IF(ISBLANK(I11),,LOOKUP(I11,'Component Weights'!$B$16:$J$16,'Component Weights'!$B$17:$J$17)),IF(ISBLANK(J11),,LOOKUP(J11,'Component Weights'!$B$16:$J$16,'Component Weights'!$B$17:$J$17))) -> 6 | L11: =IF(ISBLANK(C11)," ",(LOOKUP(C11,'Component Weights'!$B$16:$J$16,'Component Weights'!$B$17:$J$17)*$AA$4)) ->  | M11: =IF(ISBLANK(D11)," ",(LOOKUP(D11,'Component Weights'!$B$16:$J$16,'Component Weights'!$B$17:$J$17)*$AA$5)) -> 0.12 | N11: =IF(ISBLANK(E11)," ",(LOOKUP(E11,'Component Weights'!$B$16:$J$16,'Component Weights'!$B$17:$J$17)*$AA$6)) -> 0.08 | O11: =IF(ISBLANK(F11)," ",(LOOKUP(F11,'Component Weights'!$B$16:$J$16,'Component Weights'!$B$17:$J$17)*$AA$7)) -> 0 | P11: =IF(ISBLANK(G11)," ",(LOOKUP(G11,'Component Weights'!$B$16:$J$16,'Component Weights'!$B$17:$J$17)*$AA$8)) -> 0 | Q11: =IF(ISBLANK(B11)," ",(LOOKUP(B11,'Component Weights'!$B$16:$J$16,'Component Weights'!$B$17:$J$17)*$AA$9)) ->  | R11: =IF(ISBLANK(H11)," ",(LOOKUP(H11,'Component Weights'!$B$16:$J$16,'Component Weights'!$B$17:$J$17)*$AA$10)) -> 0.36 | S11: =IF(ISBLANK(I11)," ",(LOOKUP(I11,'Component Weights'!$B$16:$J$16,'Component Weights'!$B$17:$J$17)*$AA$11)) -> 0 | T11: =IF(ISBLANK(J11)," ",(LOOKUP(J11,'Component Weights'!$B$16:$J$16,'Component Weights'!$B$17:$J$17)*$AA$12)) -> 0.12 | U11: 0.68 | V11: 9 | X11: 0.68 | Z11: Listed in Other Programs (e.g. EnergyStar) | AA11: 0.08 | AB11: M | AC11: The level of product recommendation in recognized energy and environmental programs.
A12: Vinyl | D12: N | E12: L | F12: N | G12: N | H12: N | I12: N | J12: N | K12: =SUM(IF(ISBLANK(C12),,LOOKUP(C12,'Component Weights'!$B$16:$J$16,'Component Weights'!$B$17:$J$17)),IF(ISBLANK(D12),,LOOKUP(D12,'Component Weights'!$B$16:$J$16,'Component Weights'!$B$17:$J$17)),IF(ISBLANK(E12),,LOOKUP(E12,'Component Weights'!$B$16:$J$16,'Component Weights'!$B$17:$J$17)),IF(ISBLANK(F12),,LOOKUP(F12,'Component Weights'!$B$16:$J$16,'Component Weights'!$B$17:$J$17)),IF(ISBLANK(G12),,LOOKUP(G12,'Component Weights'!$B$16:$J$16,'Component Weights'!$B$17:$J$17)),IF(ISBLANK(B12),,LOOKUP(B12,'Component Weights'!$B$16:$J$16,'Component Weights'!$B$17:$J$17)),IF(ISBLANK(H12),,LOOKUP(H12,'Component Weights'!$B$16:$J$16,'Component Weights'!$B$17:$J$17)),IF(ISBLANK(I12),,LOOKUP(I12,'Component Weights'!$B$16:$J$16,'Component Weights'!$B$17:$J$17)),IF(ISBLANK(J12),,LOOKUP(J12,'Component Weights'!$B$16:$J$16,'Component Weights'!$B$17:$J$17))) -> 1 | L12: =IF(ISBLANK(C12)," ",(LOOKUP(C12,'Component Weights'!$B$16:$J$16,'Component Weights'!$B$17:$J$17)*$AA$4)) ->  | M12: =IF(ISBLANK(D12)," ",(LOOKUP(D12,'Component Weights'!$B$16:$J$16,'Component Weights'!$B$17:$J$17)*$AA$5)) -> 0 | N12: =IF(ISBLANK(E12)," ",(LOOKUP(E12,'Component Weights'!$B$16:$J$16,'Component Weights'!$B$17:$J$17)*$AA$6)) -> 0.08 | O12: =IF(ISBLANK(F12)," ",(LOOKUP(F12,'Component Weights'!$B$16:$J$16,'Component Weights'!$B$17:$J$17)*$AA$7)) -> 0 | P12: =IF(ISBLANK(G12)," ",(LOOKUP(G12,'Component Weights'!$B$16:$J$16,'Component Weights'!$B$17:$J$17)*$AA$8)) -> 0 | Q12: =IF(ISBLANK(B12)," ",(LOOKUP(B12,'Component Weights'!$B$16:$J$16,'Component Weights'!$B$17:$J$17)*$AA$9)) ->  | R12: =IF(ISBLANK(H12)," ",(LOOKUP(H12,'Component Weights'!$B$16:$J$16,'Component Weights'!$B$17:$J$17)*$AA$10)) -> 0 | S12: =IF(ISBLANK(I12)," ",(LOOKUP(I12,'Component Weights'!$B$16:$J$16,'Component Weights'!$B$17:$J$17)*$AA$11)) -> 0 | T12: =IF(ISBLANK(J12)," ",(LOOKUP(J12,'Component Weights'!$B$16:$J$16,'Component Weights'!$B$17:$J$17)*$AA$12)) -> 0 | U12: 0.08 | V12: 11 | X12: 0.08 | Z12: Non Hazardous as Waste | AA12: 0.12 | AB12: H | AC12: The amount of hazardous materials and components found in the product.
A13: (Enter Custom Product Here) | K13: =SUM(IF(ISBLANK(C13),,LOOKUP(C13,'Component Weights'!$B$16:$J$16,'Component Weights'!$B$17:$J$17)),IF(ISBLANK(D13),,LOOKUP(D13,'Component Weights'!$B$16:$J$16,'Component Weights'!$B$17:$J$17)),IF(ISBLANK(E13),,LOOKUP(E13,'Component Weights'!$B$16:$J$16,'Component Weights'!$B$17:$J$17)),IF(ISBLANK(F13),,LOOKUP(F13,'Component Weights'!$B$16:$J$16,'Component Weights'!$B$17:$J$17)),IF(ISBLANK(G13),,LOOKUP(G13,'Component Weights'!$B$16:$J$16,'Component Weights'!$B$17:$J$17)),IF(ISBLANK(B13),,LOOKUP(B13,'Component Weights'!$B$16:$J$16,'Component Weights'!$B$17:$J$17)),IF(ISBLANK(H13),,LOOKUP(H13,'Component Weights'!$B$16:$J$16,'Component Weights'!$B$17:$J$17)),IF(ISBLANK(I13),,LOOKUP(I13,'Component Weights'!$B$16:$J$16,'Component Weights'!$B$17:$J$17)),IF(ISBLANK(J13),,LOOKUP(J13,'Component Weights'!$B$16:$J$16,'Component Weights'!$B$17:$J$17))) -> 0 | L13: =IF(ISBLANK(C13)," ",(LOOKUP(C13,'Component Weights'!$B$16:$J$16,'Component Weights'!$B$17:$J$17)*$AA$4)) ->  | M13: =IF(ISBLANK(D13)," ",(LOOKUP(D13,'Component Weights'!$B$16:$J$16,'Component Weights'!$B$17:$J$17)*$AA$5)) ->  | N13: =IF(ISBLANK(E13)," ",(LOOKUP(E13,'Component Weights'!$B$16:$J$16,'Component Weights'!$B$17:$J$17)*$AA$6)) ->  | O13: =IF(ISBLANK(F13)," ",(LOOKUP(F13,'Component Weights'!$B$16:$J$16,'Component Weights'!$B$17:$J$17)*$AA$7)) ->  | P13: =IF(ISBLANK(G13)," ",(LOOKUP(G13,'Component Weights'!$B$16:$J$16,'Component Weights'!$B$17:$J$17)*$AA$8)) ->  | Q13: =IF(ISBLANK(B13)," ",(LOOKUP(B13,'Component Weights'!$B$16:$J$16,'Component Weights'!$B$17:$J$17)*$AA$9)) ->  | R13: =IF(ISBLANK(H13)," ",(LOOKUP(H13,'Component Weights'!$B$16:$J$16,'Component Weights'!$B$17:$J$17)*$AA$10)) ->  | S13: =IF(ISBLANK(I13)," ",(LOOKUP(I13,'Component Weights'!$B$16:$J$16,'Component Weights'!$B$17:$J$17)*$AA$11)) ->  | T13: =IF(ISBLANK(J13)," ",(LOOKUP(J13,'Component Weights'!$B$16:$J$16,'Component Weights'!$B$17:$J$17)*$AA$12)) ->  | U13: 0 | V13: 99 | X13: 0 | Z13: Total Weightings Must Equal 100% | AA13: =SUM(AA4:AA12) -> 1 | AC13: =IF(AA13<>100%,"Keep Working - Weightings must equal 100%"," ") -> 
A14: (Enter Custom Product Here) | K14: =SUM(IF(ISBLANK(C14),,LOOKUP(C14,'Component Weights'!$B$16:$J$16,'Component Weights'!$B$17:$J$17)),IF(ISBLANK(D14),,LOOKUP(D14,'Component Weights'!$B$16:$J$16,'Component Weights'!$B$17:$J$17)),IF(ISBLANK(E14),,LOOKUP(E14,'Component Weights'!$B$16:$J$16,'Component Weights'!$B$17:$J$17)),IF(ISBLANK(F14),,LOOKUP(F14,'Component Weights'!$B$16:$J$16,'Component Weights'!$B$17:$J$17)),IF(ISBLANK(G14),,LOOKUP(G14,'Component Weights'!$B$16:$J$16,'Component Weights'!$B$17:$J$17)),IF(ISBLANK(B14),,LOOKUP(B14,'Component Weights'!$B$16:$J$16,'Component Weights'!$B$17:$J$17)),IF(ISBLANK(H14),,LOOKUP(H14,'Component Weights'!$B$16:$J$16,'Component Weights'!$B$17:$J$17)),IF(ISBLANK(I14),,LOOKUP(I14,'Component Weights'!$B$16:$J$16,'Component Weights'!$B$17:$J$17)),IF(ISBLANK(J14),,LOOKUP(J14,'Component Weights'!$B$16:$J$16,'Component Weights'!$B$17:$J$17))) -> 0 | L14: =IF(ISBLANK(C14)," ",(LOOKUP(C14,'Component Weights'!$B$16:$J$16,'Component Weights'!$B$17:$J$17)*$AA$4)) ->  | M14: =IF(ISBLANK(D14)," ",(LOOKUP(D14,'Component Weights'!$B$16:$J$16,'Component Weights'!$B$17:$J$17)*$AA$5)) ->  | N14: =IF(ISBLANK(E14)," ",(LOOKUP(E14,'Component Weights'!$B$16:$J$16,'Component Weights'!$B$17:$J$17)*$AA$6)) ->  | O14: =IF(ISBLANK(F14)," ",(LOOKUP(F14,'Component Weights'!$B$16:$J$16,'Component Weights'!$B$17:$J$17)*$AA$7)) ->  | P14: =IF(ISBLANK(G14)," ",(LOOKUP(G14,'Component Weights'!$B$16:$J$16,'Component Weights'!$B$17:$J$17)*$AA$8)) ->  | Q14: =IF(ISBLANK(B14)," ",(LOOKUP(B14,'Component Weights'!$B$16:$J$16,'Component Weights'!$B$17:$J$17)*$AA$9)) ->  | R14: =IF(ISBLANK(H14)," ",(LOOKUP(H14,'Component Weights'!$B$16:$J$16,'Component Weights'!$B$17:$J$17)*$AA$10)) ->  | S14: =IF(ISBLANK(I14)," ",(LOOKUP(I14,'Component Weights'!$B$16:$J$16,'Component Weights'!$B$17:$J$17)*$AA$11)) ->  | T14: =IF(ISBLANK(J14)," ",(LOOKUP(J14,'Component Weights'!$B$16:$J$16,'Component Weights'!$B$17:$J$17)*$AA$12)) ->  | U14: 0 | V14: 99 | X14: =U14 -> 0
A15: (Enter Custom Product Here) | K15: =SUM(IF(ISBLANK(C15),,LOOKUP(C15,'Component Weights'!$B$16:$J$16,'Component Weights'!$B$17:$J$17)),IF(ISBLANK(D15),,LOOKUP(D15,'Component Weights'!$B$16:$J$16,'Component Weights'!$B$17:$J$17)),IF(ISBLANK(E15),,LOOKUP(E15,'Component Weights'!$B$16:$J$16,'Component Weights'!$B$17:$J$17)),IF(ISBLANK(F15),,LOOKUP(F15,'Component Weights'!$B$16:$J$16,'Component Weights'!$B$17:$J$17)),IF(ISBLANK(G15),,LOOKUP(G15,'Component Weights'!$B$16:$J$16,'Component Weights'!$B$17:$J$17)),IF(ISBLANK(B15),,LOOKUP(B15,'Component Weights'!$B$16:$J$16,'Component Weights'!$B$17:$J$17)),IF(ISBLANK(H15),,LOOKUP(H15,'Component Weights'!$B$16:$J$16,'Component Weights'!$B$17:$J$17)),IF(ISBLANK(I15),,LOOKUP(I15,'Component Weights'!$B$16:$J$16,'Component Weights'!$B$17:$J$17)),IF(ISBLANK(J15),,LOOKUP(J15,'Component Weights'!$B$16:$J$16,'Component Weights'!$B$17:$J$17))) -> 0 | L15: =IF(ISBLANK(C15)," ",(LOOKUP(C15,'Component Weights'!$B$16:$J$16,'Component Weights'!$B$17:$J$17)*$AA$4)) ->  | M15: =IF(ISBLANK(D15)," ",(LOOKUP(D15,'Component Weights'!$B$16:$J$16,'Component Weights'!$B$17:$J$17)*$AA$5)) ->  | N15: =IF(ISBLANK(E15)," ",(LOOKUP(E15,'Component Weights'!$B$16:$J$16,'Component Weights'!$B$17:$J$17)*$AA$6)) ->  | O15: =IF(ISBLANK(F15)," ",(LOOKUP(F15,'Component Weights'!$B$16:$J$16,'Component Weights'!$B$17:$J$17)*$AA$7)) ->  | P15: =IF(ISBLANK(G15)," ",(LOOKUP(G15,'Component Weights'!$B$16:$J$16,'Component Weights'!$B$17:$J$17)*$AA$8)) ->  | Q15: =IF(ISBLANK(B15)," ",(LOOKUP(B15,'Component Weights'!$B$16:$J$16,'Component Weights'!$B$17:$J$17)*$AA$9)) ->  | R15: =IF(ISBLANK(H15)," ",(LOOKUP(H15,'Component Weights'!$B$16:$J$16,'Component Weights'!$B$17:$J$17)*$AA$10)) ->  | S15: =IF(ISBLANK(I15)," ",(LOOKUP(I15,'Component Weights'!$B$16:$J$16,'Component Weights'!$B$17:$J$17)*$AA$11)) ->  | T15: =IF(ISBLANK(J15)," ",(LOOKUP(J15,'Component Weights'!$B$16:$J$16,'Component Weights'!$B$17:$J$17)*$AA$12)) ->  | U15: 0 | V15: 99 | X15: =U15 -> 0
A16: (Enter Custom Product Here) | K16: =SUM(IF(ISBLANK(C16),,LOOKUP(C16,'Component Weights'!$B$16:$J$16,'Component Weights'!$B$17:$J$17)),IF(ISBLANK(D16),,LOOKUP(D16,'Component Weights'!$B$16:$J$16,'Component Weights'!$B$17:$J$17)),IF(ISBLANK(E16),,LOOKUP(E16,'Component Weights'!$B$16:$J$16,'Component Weights'!$B$17:$J$17)),IF(ISBLANK(F16),,LOOKUP(F16,'Component Weights'!$B$16:$J$16,'Component Weights'!$B$17:$J$17)),IF(ISBLANK(G16),,LOOKUP(G16,'Component Weights'!$B$16:$J$16,'Component Weights'!$B$17:$J$17)),IF(ISBLANK(B16),,LOOKUP(B16,'Component Weights'!$B$16:$J$16,'Component Weights'!$B$17:$J$17)),IF(ISBLANK(H16),,LOOKUP(H16,'Component Weights'!$B$16:$J$16,'Component Weights'!$B$17:$J$17)),IF(ISBLANK(I16),,LOOKUP(I16,'Component Weights'!$B$16:$J$16,'Component Weights'!$B$17:$J$17)),IF(ISBLANK(J16),,LOOKUP(J16,'Component Weights'!$B$16:$J$16,'Component Weights'!$B$17:$J$17))) -> 0 | L16: =IF(ISBLANK(C16)," ",(LOOKUP(C16,'Component Weights'!$B$16:$J$16,'Component Weights'!$B$17:$J$17)*$AA$4)) ->  | M16: =IF(ISBLANK(D16)," ",(LOOKUP(D16,'Component Weights'!$B$16:$J$16,'Component Weights'!$B$17:$J$17)*$AA$5)) ->  | N16: =IF(ISBLANK(E16)," ",(LOOKUP(E16,'Component Weights'!$B$16:$J$16,'Component Weights'!$B$17:$J$17)*$AA$6)) ->  | O16: =IF(ISBLANK(F16)," ",(LOOKUP(F16,'Component Weights'!$B$16:$J$16,'Component Weights'!$B$17:$J$17)*$AA$7)) ->  | P16: =IF(ISBLANK(G16)," ",(LOOKUP(G16,'Component Weights'!$B$16:$J$16,'Component Weights'!$B$17:$J$17)*$AA$8)) ->  | Q16: =IF(ISBLANK(B16)," ",(LOOKUP(B16,'Component Weights'!$B$16:$J$16,'Component Weights'!$B$17:$J$17)*$AA$9)) ->  | R16: =IF(ISBLANK(H16)," ",(LOOKUP(H16,'Component Weights'!$B$16:$J$16,'Component Weights'!$B$17:$J$17)*$AA$10)) ->  | S16: =IF(ISBLANK(I16)," ",(LOOKUP(I16,'Component Weights'!$B$16:$J$16,'Component Weights'!$B$17:$J$17)*$AA$11)) ->  | T16: =IF(ISBLANK(J16)," ",(LOOKUP(J16,'Component Weights'!$B$16:$J$16,'Component Weights'!$B$17:$J$17)*$AA$12)) ->  | U16: 0 | V16: 99 | X16: =U16 -> 0
A17: (Enter Custom Product Here) | K17: =SUM(IF(ISBLANK(C17),,LOOKUP(C17,'Component Weights'!$B$16:$J$16,'Component Weights'!$B$17:$J$17)),IF(ISBLANK(D17),,LOOKUP(D17,'Component Weights'!$B$16:$J$16,'Component Weights'!$B$17:$J$17)),IF(ISBLANK(E17),,LOOKUP(E17,'Component Weights'!$B$16:$J$16,'Component Weights'!$B$17:$J$17)),IF(ISBLANK(F17),,LOOKUP(F17,'Component Weights'!$B$16:$J$16,'Component Weights'!$B$17:$J$17)),IF(ISBLANK(G17),,LOOKUP(G17,'Component Weights'!$B$16:$J$16,'Component Weights'!$B$17:$J$17)),IF(ISBLANK(B17),,LOOKUP(B17,'Component Weights'!$B$16:$J$16,'Component Weights'!$B$17:$J$17)),IF(ISBLANK(H17),,LOOKUP(H17,'Component Weights'!$B$16:$J$16,'Component Weights'!$B$17:$J$17)),IF(ISBLANK(I17),,LOOKUP(I17,'Component Weights'!$B$16:$J$16,'Component Weights'!$B$17:$J$17)),IF(ISBLANK(J17),,LOOKUP(J17,'Component Weights'!$B$16:$J$16,'Component Weights'!$B$17:$J$17))) -> 0 | L17: =IF(ISBLANK(C17)," ",(LOOKUP(C17,'Component Weights'!$B$16:$J$16,'Component Weights'!$B$17:$J$17)*$AA$4)) ->  | M17: =IF(ISBLANK(D17)," ",(LOOKUP(D17,'Component Weights'!$B$16:$J$16,'Component Weights'!$B$17:$J$17)*$AA$5)) ->  | N17: =IF(ISBLANK(E17)," ",(LOOKUP(E17,'Component Weights'!$B$16:$J$16,'Component Weights'!$B$17:$J$17)*$AA$6)) ->  | O17: =IF(ISBLANK(F17)," ",(LOOKUP(F17,'Component Weights'!$B$16:$J$16,'Component Weights'!$B$17:$J$17)*$AA$7)) ->  | P17: =IF(ISBLANK(G17)," ",(LOOKUP(G17,'Component Weights'!$B$16:$J$16,'Component Weights'!$B$17:$J$17)*$AA$8)) ->  | Q17: =IF(ISBLANK(B17)," ",(LOOKUP(B17,'Component Weights'!$B$16:$J$16,'Component Weights'!$B$17:$J$17)*$AA$9)) ->  | R17: =IF(ISBLANK(H17)," ",(LOOKUP(H17,'Component Weights'!$B$16:$J$16,'Component Weights'!$B$17:$J$17)*$AA$10)) ->  | S17: =IF(ISBLANK(I17)," ",(LOOKUP(I17,'Component Weights'!$B$16:$J$16,'Component Weights'!$B$17:$J$17)*$AA$11)) ->  | T17: =IF(ISBLANK(J17)," ",(LOOKUP(J17,'Component Weights'!$B$16:$J$16,'Component Weights'!$B$17:$J$17)*$AA$12)) ->  | U17: 0 | V17: 99 | X17: =U17 -> 0
A18: (Enter Custom Product Here) | K18: =SUM(IF(ISBLANK(C18),,LOOKUP(C18,'Component Weights'!$B$16:$J$16,'Component Weights'!$B$17:$J$17)),IF(ISBLANK(D18),,LOOKUP(D18,'Component Weights'!$B$16:$J$16,'Component Weights'!$B$17:$J$17)),IF(ISBLANK(E18),,LOOKUP(E18,'Component Weights'!$B$16:$J$16,'Component Weights'!$B$17:$J$17)),IF(ISBLANK(F18),,LOOKUP(F18,'Component Weights'!$B$16:$J$16,'Component Weights'!$B$17:$J$17)),IF(ISBLANK(G18),,LOOKUP(G18,'Component Weights'!$B$16:$J$16,'Component Weights'!$B$17:$J$17)),IF(ISBLANK(B18),,LOOKUP(B18,'Component Weights'!$B$16:$J$16,'Component Weights'!$B$17:$J$17)),IF(ISBLANK(H18),,LOOKUP(H18,'Component Weights'!$B$16:$J$16,'Component Weights'!$B$17:$J$17)),IF(ISBLANK(I18),,LOOKUP(I18,'Component Weights'!$B$16:$J$16,'Component Weights'!$B$17:$J$17)),IF(ISBLANK(J18),,LOOKUP(J18,'Component Weights'!$B$16:$J$16,'Component Weights'!$B$17:$J$17))) -> 0 | L18: =IF(ISBLANK(C18)," ",(LOOKUP(C18,'Component Weights'!$B$16:$J$16,'Component Weights'!$B$17:$J$17)*$AA$4)) ->  | M18: =IF(ISBLANK(D18)," ",(LOOKUP(D18,'Component Weights'!$B$16:$J$16,'Component Weights'!$B$17:$J$17)*$AA$5)) ->  | N18: =IF(ISBLANK(E18)," ",(LOOKUP(E18,'Component Weights'!$B$16:$J$16,'Component Weights'!$B$17:$J$17)*$AA$6)) ->  | O18: =IF(ISBLANK(F18)," ",(LOOKUP(F18,'Component Weights'!$B$16:$J$16,'Component Weights'!$B$17:$J$17)*$AA$7)) ->  | P18: =IF(ISBLANK(G18)," ",(LOOKUP(G18,'Component Weights'!$B$16:$J$16,'Component Weights'!$B$17:$J$17)*$AA$8)) ->  | Q18: =IF(ISBLANK(B18)," ",(LOOKUP(B18,'Component Weights'!$B$16:$J$16,'Component Weights'!$B$17:$J$17)*$AA$9)) ->  | R18: =IF(ISBLANK(H18)," ",(LOOKUP(H18,'Component Weights'!$B$16:$J$16,'Component Weights'!$B$17:$J$17)*$AA$10)) ->  | S18: =IF(ISBLANK(I18)," ",(LOOKUP(I18,'Component Weights'!$B$16:$J$16,'Component Weights'!$B$17:$J$17)*$AA$11)) ->  | T18: =IF(ISBLANK(J18)," ",(LOOKUP(J18,'Component Weights'!$B$16:$J$16,'Component Weights'!$B$17:$J$17)*$AA$12)) ->  | U18: 0 | V18: 99 | X18: 0
K19: =AVERAGE(K$2:K12) -> 11.54545455 | L19: =AVERAGE(L$2:L12) ->  | M19: =AVERAGE(M$2:M12) -> 0.07636363636 | N19: =AVERAGE(N$2:N12) -> 0.16 | O19: =AVERAGE(O$2:O12) -> 0.1309090909 | P19: =AVERAGE(P$2:P12) -> 0.06818181818 | Q19: =AVERAGE(Q$2:Q12) ->  | R19: =AVERAGE(R$2:R12) -> 0.2945454545 | S19: =AVERAGE(S$2:S12) -> 0.16 | T19: =AVERAGE(T$2:T12) -> 0.24 | U19: =AVERAGE(U$2:U12) -> 1.13 | V19: =IF(AND(OR(#REF!=72,#REF!=73,#REF!=74,#REF!=75,#REF!=76),$U19>0),RANK($U19,Y$2:Y$40,0)," ") -> 

Sheet Windows
A1: Instructions: Scroll down to see all products. New products may be added to the end of the list. Rate the performance of each product as "N, L, M or H." (Hover over the component title for the rating description.) Use your Backspace button to clear values. The Sort button (below) will incorporate your priorities as currently stated on the table to the right. (Scroll to the right to see the table.) | B1: Available Locally | C1: Incremental Energy Savings | D1: Use of Recycled Content | E1: Low Energy Usage Manufacturing Process | F1: Easily Biodegradable | G1: Made from Natural Materials | H1: Low Emissions Potential | I1: Listed in Other Programs | J1: Non Hazardous as Waste | K1: Total Raw Score | L1: Incremental Energy Savings Weighted Score | M1: Use of Recycled Content Weighted Score | N1: Low Energy Usage Mfg. Process Weighted Score | O1: Easily Biodegradable Weighted Score | P1: Made from Natural Materials Weighted Score | Q1: Available Locally Weighted Score | R1: Low Emissions Potential Weighted Score | S1: Listed in Other Programs Weighted Score | T1: Non Hazardous as Waste Weighted Score | U1: Total Weighted Score | V1: Force Ranking | X1: Weighted Score for Force Rank Calculation | Z1: Detailed instructions and options for using this tool are found in the Using the DYO® GBD Kit Decision Matrix Software Section of your DYO® Green Building Decision Kit.
A2: Composite - Double Pane w/Low-E | C2: H | D2: M | E2: M | F2: N | G2: M | H2: M | I2: H | J2: M | K2: =SUM(IF(ISBLANK(C2),,LOOKUP(C2,'Component Weights'!$B$16:$J$16,'Component Weights'!$B$17:$J$17)),IF(ISBLANK(D2),,LOOKUP(D2,'Component Weights'!$B$16:$J$16,'Component Weights'!$B$17:$J$17)),IF(ISBLANK(E2),,LOOKUP(E2,'Component Weights'!$B$16:$J$16,'Component Weights'!$B$17:$J$17)),IF(ISBLANK(F2),,LOOKUP(F2,'Component Weights'!$B$16:$J$16,'Component Weights'!$B$17:$J$17)),IF(ISBLANK(G2),,LOOKUP(G2,'Component Weights'!$B$16:$J$16,'Component Weights'!$B$17:$J$17)),IF(ISBLANK(B2),,LOOKUP(B2,'Component Weights'!$B$16:$J$16,'Component Weights'!$B$17:$J$17)),IF(ISBLANK(H2),,LOOKUP(H2,'Component Weights'!$B$16:$J$16,'Component Weights'!$B$17:$J$17)),IF(ISBLANK(I2),,LOOKUP(I2,'Component Weights'!$B$16:$J$16,'Component Weights'!$B$17:$J$17)),IF(ISBLANK(J2),,LOOKUP(J2,'Component Weights'!$B$16:$J$16,'Component Weights'!$B$17:$J$17))) -> 16 | L2: =IF(ISBLANK(C2)," ",(LOOKUP(C2,'Component Weights'!$B$16:$J$16,'Component Weights'!$B$17:$J$17)*$AA$4)) -> 0.24 | M2: =IF(ISBLANK(D2)," ",(LOOKUP(D2,'Component Weights'!$B$16:$J$16,'Component Weights'!$B$17:$J$17)*$AA$5)) -> 0.24 | N2: =IF(ISBLANK(E2)," ",(LOOKUP(E2,'Component Weights'!$B$16:$J$16,'Component Weights'!$B$17:$J$17)*$AA$6)) -> 0.16 | O2: =IF(ISBLANK(F2)," ",(LOOKUP(F2,'Component Weights'!$B$16:$J$16,'Component Weights'!$B$17:$J$17)*$AA$7)) -> 0 | P2: =IF(ISBLANK(G2)," ",(LOOKUP(G2,'Component Weights'!$B$16:$J$16,'Component Weights'!$B$17:$J$17)*$AA$8)) -> 0.1 | Q2: =IF(ISBLANK(B2)," ",(LOOKUP(B2,'Component Weights'!$B$16:$J$16,'Component Weights'!$B$17:$J$17)*$AA$9)) ->  | R2: =IF(ISBLANK(H2)," ",(LOOKUP(H2,'Component Weights'!$B$16:$J$16,'Component Weights'!$B$17:$J$17)*$AA$10)) -> 0.24 | S2: =IF(ISBLANK(I2)," ",(LOOKUP(I2,'Component Weights'!$B$16:$J$16,'Component Weights'!$B$17:$J$17)*$AA$11)) -> 0.24 | T2: =IF(ISBLANK(J2)," ",(LOOKUP(J2,'Component Weights'!$B$16:$J$16,'Component Weights'!$B$17:$J$17)*$AA$12)) -> 0.24 | U2: =SUM(L2:T2) -> 1.46 | V2: =IF($U2>0,RANK($U2,X$2:X$206,0),99) -> 1 | X2: =U2 -> 1.46 | Z2: Component Weights for | AA2: Weight
A3: Composite - Double Pane w/Low-E & Argon | C3: H | D3: M | E3: M | F3: N | G3: M | H3: M | I3: H | J3: M | K3: =SUM(IF(ISBLANK(C3),,LOOKUP(C3,'Component Weights'!$B$16:$J$16,'Component Weights'!$B$17:$J$17)),IF(ISBLANK(D3),,LOOKUP(D3,'Component Weights'!$B$16:$J$16,'Component Weights'!$B$17:$J$17)),IF(ISBLANK(E3),,LOOKUP(E3,'Component Weights'!$B$16:$J$16,'Component Weights'!$B$17:$J$17)),IF(ISBLANK(F3),,LOOKUP(F3,'Component Weights'!$B$16:$J$16,'Component Weights'!$B$17:$J$17)),IF(ISBLANK(G3),,LOOKUP(G3,'Component Weights'!$B$16:$J$16,'Component Weights'!$B$17:$J$17)),IF(ISBLANK(B3),,LOOKUP(B3,'Component Weights'!$B$16:$J$16,'Component Weights'!$B$17:$J$17)),IF(ISBLANK(H3),,LOOKUP(H3,'Component Weights'!$B$16:$J$16,'Component Weights'!$B$17:$J$17)),IF(ISBLANK(I3),,LOOKUP(I3,'Component Weights'!$B$16:$J$16,'Component Weights'!$B$17:$J$17)),IF(ISBLANK(J3),,LOOKUP(J3,'Component Weights'!$B$16:$J$16,'Component Weights'!$B$17:$J$17))) -> 16 | L3: =IF(ISBLANK(C3)," ",(LOOKUP(C3,'Component Weights'!$B$16:$J$16,'Component Weights'!$B$17:$J$17)*$AA$4)) -> 0.24 | M3: =IF(ISBLANK(D3)," ",(LOOKUP(D3,'Component Weights'!$B$16:$J$16,'Component Weights'!$B$17:$J$17)*$AA$5)) -> 0.24 | N3: =IF(ISBLANK(E3)," ",(LOOKUP(E3,'Component Weights'!$B$16:$J$16,'Component Weights'!$B$17:$J$17)*$AA$6)) -> 0.16 | O3: =IF(ISBLANK(F3)," ",(LOOKUP(F3,'Component Weights'!$B$16:$J$16,'Component Weights'!$B$17:$J$17)*$AA$7)) -> 0 | P3: =IF(ISBLANK(G3)," ",(LOOKUP(G3,'Component Weights'!$B$16:$J$16,'Component Weights'!$B$17:$J$17)*$AA$8)) -> 0.1 | Q3: =IF(ISBLANK(B3)," ",(LOOKUP(B3,'Component Weights'!$B$16:$J$16,'Component Weights'!$B$17:$J$17)*$AA$9)) ->  | R3: =IF(ISBLANK(H3)," ",(LOOKUP(H3,'Component Weights'!$B$16:$J$16,'Component Weights'!$B$17:$J$17)*$AA$10)) -> 0.24 | S3: =IF(ISBLANK(I3)," ",(LOOKUP(I3,'Component Weights'!$B$16:$J$16,'Component Weights'!$B$17:$J$17)*$AA$11)) -> 0.24 | T3: =IF(ISBLANK(J3)," ",(LOOKUP(J3,'Component Weights'!$B$16:$J$16,'Component Weights'!$B$17:$J$17)*$AA$12)) -> 0.24 | U3: 1.46 | V3: 1 | X3: 1.46 | Z3: Windows
A4: Composite - Double Pane w/Argon | C4: H | D4: M | E4: M | F4: N | G4: M | H4: M | I4: H | J4: M | K4: =SUM(IF(ISBLANK(C4),,LOOKUP(C4,'Component Weights'!$B$16:$J$16,'Component Weights'!$B$17:$J$17)),IF(ISBLANK(D4),,LOOKUP(D4,'Component Weights'!$B$16:$J$16,'Component Weights'!$B$17:$J$17)),IF(ISBLANK(E4),,LOOKUP(E4,'Component Weights'!$B$16:$J$16,'Component Weights'!$B$17:$J$17)),IF(ISBLANK(F4),,LOOKUP(F4,'Component Weights'!$B$16:$J$16,'Component Weights'!$B$17:$J$17)),IF(ISBLANK(G4),,LOOKUP(G4,'Component Weights'!$B$16:$J$16,'Component Weights'!$B$17:$J$17)),IF(ISBLANK(B4),,LOOKUP(B4,'Component Weights'!$B$16:$J$16,'Component Weights'!$B$17:$J$17)),IF(ISBLANK(H4),,LOOKUP(H4,'Component Weights'!$B$16:$J$16,'Component Weights'!$B$17:$J$17)),IF(ISBLANK(I4),,LOOKUP(I4,'Component Weights'!$B$16:$J$16,'Component Weights'!$B$17:$J$17)),IF(ISBLANK(J4),,LOOKUP(J4,'Component Weights'!$B$16:$J$16,'Component Weights'!$B$17:$J$17))) -> 16 | L4: =IF(ISBLANK(C4)," ",(LOOKUP(C4,'Component Weights'!$B$16:$J$16,'Component Weights'!$B$17:$J$17)*$AA$4)) -> 0.24 | M4: =IF(ISBLANK(D4)," ",(LOOKUP(D4,'Component Weights'!$B$16:$J$16,'Component Weights'!$B$17:$J$17)*$AA$5)) -> 0.24 | N4: =IF(ISBLANK(E4)," ",(LOOKUP(E4,'Component Weights'!$B$16:$J$16,'Component Weights'!$B$17:$J$17)*$AA$6)) -> 0.16 | O4: =IF(ISBLANK(F4)," ",(LOOKUP(F4,'Component Weights'!$B$16:$J$16,'Component Weights'!$B$17:$J$17)*$AA$7)) -> 0 | P4: =IF(ISBLANK(G4)," ",(LOOKUP(G4,'Component Weights'!$B$16:$J$16,'Component Weights'!$B$17:$J$17)*$AA$8)) -> 0.1 | Q4: =IF(ISBLANK(B4)," ",(LOOKUP(B4,'Component Weights'!$B$16:$J$16,'Component Weights'!$B$17:$J$17)*$AA$9)) ->  | R4: =IF(ISBLANK(H4)," ",(LOOKUP(H4,'Component Weights'!$B$16:$J$16,'Component Weights'!$B$17:$J$17)*$AA$10)) -> 0.24 | S4: =IF(ISBLANK(I4)," ",(LOOKUP(I4,'Component Weights'!$B$16:$J$16,'Component Weights'!$B$17:$J$17)*$AA$11)) -> 0.24 | T4: =IF(ISBLANK(J4)," ",(LOOKUP(J4,'Component Weights'!$B$16:$J$16,'Component Weights'!$B$17:$J$17)*$AA$12)) -> 0.24 | U4: 1.46 | V4: 1 | X4: 1.46 | Z4: Incremental Energy Savings | AA4: 0.08 | AB4: M | AC4: The amount of incremental energy, expressed in Btu/Hr, that a product saves or generates for the structure.
A5: Composite - Triple Pane w/Low-E & Argon | C5: H | D5: M | E5: M | F5: N | G5: M | H5: M | I5: H | J5: M | K5: =SUM(IF(ISBLANK(C5),,LOOKUP(C5,'Component Weights'!$B$16:$J$16,'Component Weights'!$B$17:$J$17)),IF(ISBLANK(D5),,LOOKUP(D5,'Component Weights'!$B$16:$J$16,'Component Weights'!$B$17:$J$17)),IF(ISBLANK(E5),,LOOKUP(E5,'Component Weights'!$B$16:$J$16,'Component Weights'!$B$17:$J$17)),IF(ISBLANK(F5),,LOOKUP(F5,'Component Weights'!$B$16:$J$16,'Component Weights'!$B$17:$J$17)),IF(ISBLANK(G5),,LOOKUP(G5,'Component Weights'!$B$16:$J$16,'Component Weights'!$B$17:$J$17)),IF(ISBLANK(B5),,LOOKUP(B5,'Component Weights'!$B$16:$J$16,'Component Weights'!$B$17:$J$17)),IF(ISBLANK(H5),,LOOKUP(H5,'Component Weights'!$B$16:$J$16,'Component Weights'!$B$17:$J$17)),IF(ISBLANK(I5),,LOOKUP(I5,'Component Weights'!$B$16:$J$16,'Component Weights'!$B$17:$J$17)),IF(ISBLANK(J5),,LOOKUP(J5,'Component Weights'!$B$16:$J$16,'Component Weights'!$B$17:$J$17))) -> 16 | L5: =IF(ISBLANK(C5)," ",(LOOKUP(C5,'Component Weights'!$B$16:$J$16,'Component Weights'!$B$17:$J$17)*$AA$4)) -> 0.24 | M5: =IF(ISBLANK(D5)," ",(LOOKUP(D5,'Component Weights'!$B$16:$J$16,'Component Weights'!$B$17:$J$17)*$AA$5)) -> 0.24 | N5: =IF(ISBLANK(E5)," ",(LOOKUP(E5,'Component Weights'!$B$16:$J$16,'Component Weights'!$B$17:$J$17)*$AA$6)) -> 0.16 | O5: =IF(ISBLANK(F5)," ",(LOOKUP(F5,'Component Weights'!$B$16:$J$16,'Component Weights'!$B$17:$J$17)*$AA$7)) -> 0 | P5: =IF(ISBLANK(G5)," ",(LOOKUP(G5,'Component Weights'!$B$16:$J$16,'Component Weights'!$B$17:$J$17)*$AA$8)) -> 0.1 | Q5: =IF(ISBLANK(B5)," ",(LOOKUP(B5,'Component Weights'!$B$16:$J$16,'Component Weights'!$B$17:$J$17)*$AA$9)) ->  | R5: =IF(ISBLANK(H5)," ",(LOOKUP(H5,'Component Weights'!$B$16:$J$16,'Component Weights'!$B$17:$J$17)*$AA$10)) -> 0.24 | S5: =IF(ISBLANK(I5)," ",(LOOKUP(I5,'Component Weights'!$B$16:$J$16,'Component Weights'!$B$17:$J$17)*$AA$11)) -> 0.24 | T5: =IF(ISBLANK(J5)," ",(LOOKUP(J5,'Component Weights'!$B$16:$J$16,'Component Weights'!$B$17:$J$17)*$AA$12)) -> 0.24 | U5: 1.46 | V5: 1 | X5: 1.46 | Z5: Use of Recycled Content | AA5: 0.12 | AB5: H | AC5: The amount of recycled content, expressed as a percentage, found in a product.
A6: Composite - Triple Pane w/Argon | C6: H | D6: M | E6: M | F6: N | G6: M | H6: M | I6: H | J6: M | K6: =SUM(IF(ISBLANK(C6),,LOOKUP(C6,'Component Weights'!$B$16:$J$16,'Component Weights'!$B$17:$J$17)),IF(ISBLANK(D6),,LOOKUP(D6,'Component Weights'!$B$16:$J$16,'Component Weights'!$B$17:$J$17)),IF(ISBLANK(E6),,LOOKUP(E6,'Component Weights'!$B$16:$J$16,'Component Weights'!$B$17:$J$17)),IF(ISBLANK(F6),,LOOKUP(F6,'Component Weights'!$B$16:$J$16,'Component Weights'!$B$17:$J$17)),IF(ISBLANK(G6),,LOOKUP(G6,'Component Weights'!$B$16:$J$16,'Component Weights'!$B$17:$J$17)),IF(ISBLANK(B6),,LOOKUP(B6,'Component Weights'!$B$16:$J$16,'Component Weights'!$B$17:$J$17)),IF(ISBLANK(H6),,LOOKUP(H6,'Component Weights'!$B$16:$J$16,'Component Weights'!$B$17:$J$17)),IF(ISBLANK(I6),,LOOKUP(I6,'Component Weights'!$B$16:$J$16,'Component Weights'!$B$17:$J$17)),IF(ISBLANK(J6),,LOOKUP(J6,'Component Weights'!$B$16:$J$16,'Component Weights'!$B$17:$J$17))) -> 16 | L6: =IF(ISBLANK(C6)," ",(LOOKUP(C6,'Component Weights'!$B$16:$J$16,'Component Weights'!$B$17:$J$17)*$AA$4)) -> 0.24 | M6: =IF(ISBLANK(D6)," ",(LOOKUP(D6,'Component Weights'!$B$16:$J$16,'Component Weights'!$B$17:$J$17)*$AA$5)) -> 0.24 | N6: =IF(ISBLANK(E6)," ",(LOOKUP(E6,'Component Weights'!$B$16:$J$16,'Component Weights'!$B$17:$J$17)*$AA$6)) -> 0.16 | O6: =IF(ISBLANK(F6)," ",(LOOKUP(F6,'Component Weights'!$B$16:$J$16,'Component Weights'!$B$17:$J$17)*$AA$7)) -> 0 | P6: =IF(ISBLANK(G6)," ",(LOOKUP(G6,'Component Weights'!$B$16:$J$16,'Component Weights'!$B$17:$J$17)*$AA$8)) -> 0.1 | Q6: =IF(ISBLANK(B6)," ",(LOOKUP(B6,'Component Weights'!$B$16:$J$16,'Component Weights'!$B$17:$J$17)*$AA$9)) ->  | R6: =IF(ISBLANK(H6)," ",(LOOKUP(H6,'Component Weights'!$B$16:$J$16,'Component Weights'!$B$17:$J$17)*$AA$10)) -> 0.24 | S6: =IF(ISBLANK(I6)," ",(LOOKUP(I6,'Component Weights'!$B$16:$J$16,'Component Weights'!$B$17:$J$17)*$AA$11)) -> 0.24 | T6: =IF(ISBLANK(J6)," ",(LOOKUP(J6,'Component Weights'!$B$16:$J$16,'Component Weights'!$B$17:$J$17)*$AA$12)) -> 0.24 | U6: 1.46 | V6: 1 | X6: 1.46 | Z6: Low Energy Usage Manufacturing Process | AA6: 0.08 | AB6: M | AC6: The amount of energy used in manufacture of the product.
A7: Composite - Double Pane w/Reflective Film | C7: H | D7: M | E7: M | F7: N | G7: M | H7: M | I7: M | J7: M | K7: =SUM(IF(ISBLANK(C7),,LOOKUP(C7,'Component Weights'!$B$16:$J$16,'Component Weights'!$B$17:$J$17)),IF(ISBLANK(D7),,LOOKUP(D7,'Component Weights'!$B$16:$J$16,'Component Weights'!$B$17:$J$17)),IF(ISBLANK(E7),,LOOKUP(E7,'Component Weights'!$B$16:$J$16,'Component Weights'!$B$17:$J$17)),IF(ISBLANK(F7),,LOOKUP(F7,'Component Weights'!$B$16:$J$16,'Component Weights'!$B$17:$J$17)),IF(ISBLANK(G7),,LOOKUP(G7,'Component Weights'!$B$16:$J$16,'Component Weights'!$B$17:$J$17)),IF(ISBLANK(B7),,LOOKUP(B7,'Component Weights'!$B$16:$J$16,'Component Weights'!$B$17:$J$17)),IF(ISBLANK(H7),,LOOKUP(H7,'Component Weights'!$B$16:$J$16,'Component Weights'!$B$17:$J$17)),IF(ISBLANK(I7),,LOOKUP(I7,'Component Weights'!$B$16:$J$16,'Component Weights'!$B$17:$J$17)),IF(ISBLANK(J7),,LOOKUP(J7,'Component Weights'!$B$16:$J$16,'Component Weights'!$B$17:$J$17))) -> 15 | L7: =IF(ISBLANK(C7)," ",(LOOKUP(C7,'Component Weights'!$B$16:$J$16,'Component Weights'!$B$17:$J$17)*$AA$4)) -> 0.24 | M7: =IF(ISBLANK(D7)," ",(LOOKUP(D7,'Component Weights'!$B$16:$J$16,'Component Weights'!$B$17:$J$17)*$AA$5)) -> 0.24 | N7: =IF(ISBLANK(E7)," ",(LOOKUP(E7,'Component Weights'!$B$16:$J$16,'Component Weights'!$B$17:$J$17)*$AA$6)) -> 0.16 | O7: =IF(ISBLANK(F7)," ",(LOOKUP(F7,'Component Weights'!$B$16:$J$16,'Component Weights'!$B$17:$J$17)*$AA$7)) -> 0 | P7: =IF(ISBLANK(G7)," ",(LOOKUP(G7,'Component Weights'!$B$16:$J$16,'Component Weights'!$B$17:$J$17)*$AA$8)) -> 0.1 | Q7: =IF(ISBLANK(B7)," ",(LOOKUP(B7,'Component Weights'!$B$16:$J$16,'Component Weights'!$B$17:$J$17)*$AA$9)) ->  | R7: =IF(ISBLANK(H7)," ",(LOOKUP(H7,'Component Weights'!$B$16:$J$16,'Component Weights'!$B$17:$J$17)*$AA$10)) -> 0.24 | S7: =IF(ISBLANK(I7)," ",(LOOKUP(I7,'Component Weights'!$B$16:$J$16,'Component Weights'!$B$17:$J$17)*$AA$11)) -> 0.16 | T7: =IF(ISBLANK(J7)," ",(LOOKUP(J7,'Component Weights'!$B$16:$J$16,'Component Weights'!$B$17:$J$17)*$AA$12)) -> 0.24 | U7: 1.38 | V7: 6 | X7: 1.38 | Z7: Easily Biodegradable | AA7: 0.12 | AB7: H | AC7: The amount of time it will take the product to degrade once its useful life is over.
A8: Composite - Triple Pane w/Low-E | C8: H | D8: M | E8: M | F8: N | G8: M | H8: M | I8: L | J8: M | K8: =SUM(IF(ISBLANK(C8),,LOOKUP(C8,'Component Weights'!$B$16:$J$16,'Component Weights'!$B$17:$J$17)),IF(ISBLANK(D8),,LOOKUP(D8,'Component Weights'!$B$16:$J$16,'Component Weights'!$B$17:$J$17)),IF(ISBLANK(E8),,LOOKUP(E8,'Component Weights'!$B$16:$J$16,'Component Weights'!$B$17:$J$17)),IF(ISBLANK(F8),,LOOKUP(F8,'Component Weights'!$B$16:$J$16,'Component Weights'!$B$17:$J$17)),IF(ISBLANK(G8),,LOOKUP(G8,'Component Weights'!$B$16:$J$16,'Component Weights'!$B$17:$J$17)),IF(ISBLANK(B8),,LOOKUP(B8,'Component Weights'!$B$16:$J$16,'Component Weights'!$B$17:$J$17)),IF(ISBLANK(H8),,LOOKUP(H8,'Component Weights'!$B$16:$J$16,'Component Weights'!$B$17:$J$17)),IF(ISBLANK(I8),,LOOKUP(I8,'Component Weights'!$B$16:$J$16,'Component Weights'!$B$17:$J$17)),IF(ISBLANK(J8),,LOOKUP(J8,'Component Weights'!$B$16:$J$16,'Component Weights'!$B$17:$J$17))) -> 14 | L8: =IF(ISBLANK(C8)," ",(LOOKUP(C8,'Component Weights'!$B$16:$J$16,'Component Weights'!$B$17:$J$17)*$AA$4)) -> 0.24 | M8: =IF(ISBLANK(D8)," ",(LOOKUP(D8,'Component Weights'!$B$16:$J$16,'Component Weights'!$B$17:$J$17)*$AA$5)) -> 0.24 | N8: =IF(ISBLANK(E8)," ",(LOOKUP(E8,'Component Weights'!$B$16:$J$16,'Component Weights'!$B$17:$J$17)*$AA$6)) -> 0.16 | O8: =IF(ISBLANK(F8)," ",(LOOKUP(F8,'Component Weights'!$B$16:$J$16,'Component Weights'!$B$17:$J$17)*$AA$7)) -> 0 | P8: =IF(ISBLANK(G8)," ",(LOOKUP(G8,'Component Weights'!$B$16:$J$16,'Component Weights'!$B$17:$J$17)*$AA$8)) -> 0.1 | Q8: =IF(ISBLANK(B8)," ",(LOOKUP(B8,'Component Weights'!$B$16:$J$16,'Component Weights'!$B$17:$J$17)*$AA$9)) ->  | R8: =IF(ISBLANK(H8)," ",(LOOKUP(H8,'Component Weights'!$B$16:$J$16,'Component Weights'!$B$17:$J$17)*$AA$10)) -> 0.24 | S8: =IF(ISBLANK(I8)," ",(LOOKUP(I8,'Component Weights'!$B$16:$J$16,'Component Weights'!$B$17:$J$17)*$AA$11)) -> 0.08 | T8: =IF(ISBLANK(J8)," ",(LOOKUP(J8,'Component Weights'!$B$16:$J$16,'Component Weights'!$B$17:$J$17)*$AA$12)) -> 0.24 | U8: 1.3 | V8: 7 | X8: 1.3 | Z8: Made from Natural Materials | AA8: 0.05 | AB8: L | AC8: The amount, expressed as a percentage, of natural (not man-made) materials used to make the product.
A9: Composite - Double Pane | C9: M | D9: M | E9: M | F9: N | G9: M | H9: M | I9: L | J9: M | K9: =SUM(IF(ISBLANK(C9),,LOOKUP(C9,'Component Weights'!$B$16:$J$16,'Component Weights'!$B$17:$J$17)),IF(ISBLANK(D9),,LOOKUP(D9,'Component Weights'!$B$16:$J$16,'Component Weights'!$B$17:$J$17)),IF(ISBLANK(E9),,LOOKUP(E9,'Component Weights'!$B$16:$J$16,'Component Weights'!$B$17:$J$17)),IF(ISBLANK(F9),,LOOKUP(F9,'Component Weights'!$B$16:$J$16,'Component Weights'!$B$17:$J$17)),IF(ISBLANK(G9),,LOOKUP(G9,'Component Weights'!$B$16:$J$16,'Component Weights'!$B$17:$J$17)),IF(ISBLANK(B9),,LOOKUP(B9,'Component Weights'!$B$16:$J$16,'Component Weights'!$B$17:$J$17)),IF(ISBLANK(H9),,LOOKUP(H9,'Component Weights'!$B$16:$J$16,'Component Weights'!$B$17:$J$17)),IF(ISBLANK(I9),,LOOKUP(I9,'Component Weights'!$B$16:$J$16,'Component Weights'!$B$17:$J$17)),IF(ISBLANK(J9),,LOOKUP(J9,'Component Weights'!$B$16:$J$16,'Component Weights'!$B$17:$J$17))) -> 13 | L9: =IF(ISBLANK(C9)," ",(LOOKUP(C9,'Component Weights'!$B$16:$J$16,'Component Weights'!$B$17:$J$17)*$AA$4)) -> 0.16 | M9: =IF(ISBLANK(D9)," ",(LOOKUP(D9,'Component Weights'!$B$16:$J$16,'Component Weights'!$B$17:$J$17)*$AA$5)) -> 0.24 | N9: =IF(ISBLANK(E9)," ",(LOOKUP(E9,'Component Weights'!$B$16:$J$16,'Component Weights'!$B$17:$J$17)*$AA$6)) -> 0.16 | O9: =IF(ISBLANK(F9)," ",(LOOKUP(F9,'Component Weights'!$B$16:$J$16,'Component Weights'!$B$17:$J$17)*$AA$7)) -> 0 | P9: =IF(ISBLANK(G9)," ",(LOOKUP(G9,'Component Weights'!$B$16:$J$16,'Component Weights'!$B$17:$J$17)*$AA$8)) -> 0.1 | Q9: =IF(ISBLANK(B9)," ",(LOOKUP(B9,'Component Weights'!$B$16:$J$16,'Component Weights'!$B$17:$J$17)*$AA$9)) ->  | R9: =IF(ISBLANK(H9)," ",(LOOKUP(H9,'Component Weights'!$B$16:$J$16,'Component Weights'!$B$17:$J$17)*$AA$10)) -> 0.24 | S9: =IF(ISBLANK(I9)," ",(LOOKUP(I9,'Component Weights'!$B$16:$J$16,'Component Weights'!$B$17:$J$17)*$AA$11)) -> 0.08 | T9: =IF(ISBLANK(J9)," ",(LOOKUP(J9,'Component Weights'!$B$16:$J$16,'Component Weights'!$B$17:$J$17)*$AA$12)) -> 0.24 | U9: 1.22 | V9: 8 | X9: 1.22 | Z9: Available Locally | AA9: 0.23 | AB9: H+ | AC9: The distance in miles that the product must travel to the destination of final use.
A10: Wood - Double Pane w/Low-E | C10: H | D10: N | E10: L | F10: N | G10: M | H10: M | I10: H | J10: M | K10: =SUM(IF(ISBLANK(C10),,LOOKUP(C10,'Component Weights'!$B$16:$J$16,'Component Weights'!$B$17:$J$17)),IF(ISBLANK(D10),,LOOKUP(D10,'Component Weights'!$B$16:$J$16,'Component Weights'!$B$17:$J$17)),IF(ISBLANK(E10),,LOOKUP(E10,'Component Weights'!$B$16:$J$16,'Component Weights'!$B$17:$J$17)),IF(ISBLANK(F10),,LOOKUP(F10,'Component Weights'!$B$16:$J$16,'Component Weights'!$B$17:$J$17)),IF(ISBLANK(G10),,LOOKUP(G10,'Component Weights'!$B$16:$J$16,'Component Weights'!$B$17:$J$17)),IF(ISBLANK(B10),,LOOKUP(B10,'Component Weights'!$B$16:$J$16,'Component Weights'!$B$17:$J$17)),IF(ISBLANK(H10),,LOOKUP(H10,'Component Weights'!$B$16:$J$16,'Component Weights'!$B$17:$J$17)),IF(ISBLANK(I10),,LOOKUP(I10,'Component Weights'!$B$16:$J$16,'Component Weights'!$B$17:$J$17)),IF(ISBLANK(J10),,LOOKUP(J10,'Component Weights'!$B$16:$J$16,'Component Weights'!$B$17:$J$17))) -> 13 | L10: =IF(ISBLANK(C10)," ",(LOOKUP(C10,'Component Weights'!$B$16:$J$16,'Component Weights'!$B$17:$J$17)*$AA$4)) -> 0.24 | M10: =IF(ISBLANK(D10)," ",(LOOKUP(D10,'Component Weights'!$B$16:$J$16,'Component Weights'!$B$17:$J$17)*$AA$5)) -> 0 | N10: =IF(ISBLANK(E10)," ",(LOOKUP(E10,'Component Weights'!$B$16:$J$16,'Component Weights'!$B$17:$J$17)*$AA$6)) -> 0.08 | O10: =IF(ISBLANK(F10)," ",(LOOKUP(F10,'Component Weights'!$B$16:$J$16,'Component Weights'!$B$17:$J$17)*$AA$7)) -> 0 | P10: =IF(ISBLANK(G10)," ",(LOOKUP(G10,'Component Weights'!$B$16:$J$16,'Component Weights'!$B$17:$J$17)*$AA$8)) -> 0.1 | Q10: =IF(ISBLANK(B10)," ",(LOOKUP(B10,'Component Weights'!$B$16:$J$16,'Component Weights'!$B$17:$J$17)*$AA$9)) ->  | R10: =IF(ISBLANK(H10)," ",(LOOKUP(H10,'Component Weights'!$B$16:$J$16,'Component Weights'!$B$17:$J$17)*$AA$10)) -> 0.24 | S10: =IF(ISBLANK(I10)," ",(LOOKUP(I10,'Component Weights'!$B$16:$J$16,'Component Weights'!$B$17:$J$17)*$AA$11)) -> 0.24 | T10: =IF(ISBLANK(J10)," ",(LOOKUP(J10,'Component Weights'!$B$16:$J$16,'Component Weights'!$B$17:$J$17)*$AA$12)) -> 0.24 | U10: 1.14 | V10: 9 | X10: 1.14 | Z10: Low Emissions Potential | AA10: 0.12 | AB10: H | AC10: The amount of time it will take the product to stop outgassing.
A11: Wood - Double Pane w/Low-E & Argon | C11: H | D11: N | E11: L | F11: N | G11: M | H11: M | I11: H | J11: M | K11: =SUM(IF(ISBLANK(C11),,LOOKUP(C11,'Component Weights'!$B$16:$J$16,'Component Weights'!$B$17:$J$17)),IF(ISBLANK(D11),,LOOKUP(D11,'Component Weights'!$B$16:$J$16,'Component Weights'!$B$17:$J$17)),IF(ISBLANK(E11),,LOOKUP(E11,'Component Weights'!$B$16:$J$16,'Component Weights'!$B$17:$J$17)),IF(ISBLANK(F11),,LOOKUP(F11,'Component Weights'!$B$16:$J$16,'Component Weights'!$B$17:$J$17)),IF(ISBLANK(G11),,LOOKUP(G11,'Component Weights'!$B$16:$J$16,'Component Weights'!$B$17:$J$17)),IF(ISBLANK(B11),,LOOKUP(B11,'Component Weights'!$B$16:$J$16,'Component Weights'!$B$17:$J$17)),IF(ISBLANK(H11),,LOOKUP(H11,'Component Weights'!$B$16:$J$16,'Component Weights'!$B$17:$J$17)),IF(ISBLANK(I11),,LOOKUP(I11,'Component Weights'!$B$16:$J$16,'Component Weights'!$B$17:$J$17)),IF(ISBLANK(J11),,LOOKUP(J11,'Component Weights'!$B$16:$J$16,'Component Weights'!$B$17:$J$17))) -> 13 | L11: =IF(ISBLANK(C11)," ",(LOOKUP(C11,'Component Weights'!$B$16:$J$16,'Component Weights'!$B$17:$J$17)*$AA$4)) -> 0.24 | M11: =IF(ISBLANK(D11)," ",(LOOKUP(D11,'Component Weights'!$B$16:$J$16,'Component Weights'!$B$17:$J$17)*$AA$5)) -> 0 | N11: =IF(ISBLANK(E11)," ",(LOOKUP(E11,'Component Weights'!$B$16:$J$16,'Component Weights'!$B$17:$J$17)*$AA$6)) -> 0.08 | O11: =IF(ISBLANK(F11)," ",(LOOKUP(F11,'Component Weights'!$B$16:$J$16,'Component Weights'!$B$17:$J$17)*$AA$7)) -> 0 | P11: =IF(ISBLANK(G11)," ",(LOOKUP(G11,'Component Weights'!$B$16:$J$16,'Component Weights'!$B$17:$J$17)*$AA$8)) -> 0.1 | Q11: =IF(ISBLANK(B11)," ",(LOOKUP(B11,'Component Weights'!$B$16:$J$16,'Component Weights'!$B$17:$J$17)*$AA$9)) ->  | R11: =IF(ISBLANK(H11)," ",(LOOKUP(H11,'Component Weights'!$B$16:$J$16,'Component Weights'!$B$17:$J$17)*$AA$10)) -> 0.24 | S11: =IF(ISBLANK(I11)," ",(LOOKUP(I11,'Component Weights'!$B$16:$J$16,'Component Weights'!$B$17:$J$17)*$AA$11)) -> 0.24 | T11: =IF(ISBLANK(J11)," ",(LOOKUP(J11,'Component Weights'!$B$16:$J$16,'Component Weights'!$B$17:$J$17)*$AA$12)) -> 0.24 | U11: 1.14 | V11: 9 | X11: 1.14 | Z11: Listed in Other Programs (e.g. EnergyStar) | AA11: 0.08 | AB11: M | AC11: The level of product recommendation in recognized energy and environmental programs.
A12: Composite - Single Pane w/Reflective Film | C12: M | D12: M | E12: M | F12: N | G12: M | H12: M | I12: N | J12: M | K12: =SUM(IF(ISBLANK(C12),,LOOKUP(C12,'Component Weights'!$B$16:$J$16,'Component Weights'!$B$17:$J$17)),IF(ISBLANK(D12),,LOOKUP(D12,'Component Weights'!$B$16:$J$16,'Component Weights'!$B$17:$J$17)),IF(ISBLANK(E12),,LOOKUP(E12,'Component Weights'!$B$16:$J$16,'Component Weights'!$B$17:$J$17)),IF(ISBLANK(F12),,LOOKUP(F12,'Component Weights'!$B$16:$J$16,'Component Weights'!$B$17:$J$17)),IF(ISBLANK(G12),,LOOKUP(G12,'Component Weights'!$B$16:$J$16,'Component Weights'!$B$17:$J$17)),IF(ISBLANK(B12),,LOOKUP(B12,'Component Weights'!$B$16:$J$16,'Component Weights'!$B$17:$J$17)),IF(ISBLANK(H12),,LOOKUP(H12,'Component Weights'!$B$16:$J$16,'Component Weights'!$B$17:$J$17)),IF(ISBLANK(I12),,LOOKUP(I12,'Component Weights'!$B$16:$J$16,'Component Weights'!$B$17:$J$17)),IF(ISBLANK(J12),,LOOKUP(J12,'Component Weights'!$B$16:$J$16,'Component Weights'!$B$17:$J$17))) -> 12 | L12: =IF(ISBLANK(C12)," ",(LOOKUP(C12,'Component Weights'!$B$16:$J$16,'Component Weights'!$B$17:$J$17)*$AA$4)) -> 0.16 | M12: =IF(ISBLANK(D12)," ",(LOOKUP(D12,'Component Weights'!$B$16:$J$16,'Component Weights'!$B$17:$J$17)*$AA$5)) -> 0.24 | N12: =IF(ISBLANK(E12)," ",(LOOKUP(E12,'Component Weights'!$B$16:$J$16,'Component Weights'!$B$17:$J$17)*$AA$6)) -> 0.16 | O12: =IF(ISBLANK(F12)," ",(LOOKUP(F12,'Component Weights'!$B$16:$J$16,'Component Weights'!$B$17:$J$17)*$AA$7)) -> 0 | P12: =IF(ISBLANK(G12)," ",(LOOKUP(G12,'Component Weights'!$B$16:$J$16,'Component Weights'!$B$17:$J$17)*$AA$8)) -> 0.1 | Q12: =IF(ISBLANK(B12)," ",(LOOKUP(B12,'Component Weights'!$B$16:$J$16,'Component Weights'!$B$17:$J$17)*$AA$9)) ->  | R12: =IF(ISBLANK(H12)," ",(LOOKUP(H12,'Component Weights'!$B$16:$J$16,'Component Weights'!$B$17:$J$17)*$AA$10)) -> 0.24 | S12: =IF(ISBLANK(I12)," ",(LOOKUP(I12,'Component Weights'!$B$16:$J$16,'Component Weights'!$B$17:$J$17)*$AA$11)) -> 0 | T12: =IF(ISBLANK(J12)," ",(LOOKUP(J12,'Component Weights'!$B$16:$J$16,'Component Weights'!$B$17:$J$17)*$AA$12)) -> 0.24 | U12: 1.14 | V12: 9 | X12: 1.14 | Z12: Non Hazardous as Waste | AA12: 0.12 | AB12: H | AC12: The amount of hazardous materials and components found in the product.
A13: Composite - Triple Pane w/Reflective Film | C13: M | D13: M | E13: M | F13: N | G13: M | H13: M | I13: N | J13: M | K13: =SUM(IF(ISBLANK(C13),,LOOKUP(C13,'Component Weights'!$B$16:$J$16,'Component Weights'!$B$17:$J$17)),IF(ISBLANK(D13),,LOOKUP(D13,'Component Weights'!$B$16:$J$16,'Component Weights'!$B$17:$J$17)),IF(ISBLANK(E13),,LOOKUP(E13,'Component Weights'!$B$16:$J$16,'Component Weights'!$B$17:$J$17)),IF(ISBLANK(F13),,LOOKUP(F13,'Component Weights'!$B$16:$J$16,'Component Weights'!$B$17:$J$17)),IF(ISBLANK(G13),,LOOKUP(G13,'Component Weights'!$B$16:$J$16,'Component Weights'!$B$17:$J$17)),IF(ISBLANK(B13),,LOOKUP(B13,'Component Weights'!$B$16:$J$16,'Component Weights'!$B$17:$J$17)),IF(ISBLANK(H13),,LOOKUP(H13,'Component Weights'!$B$16:$J$16,'Component Weights'!$B$17:$J$17)),IF(ISBLANK(I13),,LOOKUP(I13,'Component Weights'!$B$16:$J$16,'Component Weights'!$B$17:$J$17)),IF(ISBLANK(J13),,LOOKUP(J13,'Component Weights'!$B$16:$J$16,'Component Weights'!$B$17:$J$17))) -> 12 | L13: =IF(ISBLANK(C13)," ",(LOOKUP(C13,'Component Weights'!$B$16:$J$16,'Component Weights'!$B$17:$J$17)*$AA$4)) -> 0.16 | M13: =IF(ISBLANK(D13)," ",(LOOKUP(D13,'Component Weights'!$B$16:$J$16,'Component Weights'!$B$17:$J$17)*$AA$5)) -> 0.24 | N13: =IF(ISBLANK(E13)," ",(LOOKUP(E13,'Component Weights'!$B$16:$J$16,'Component Weights'!$B$17:$J$17)*$AA$6)) -> 0.16 | O13: =IF(ISBLANK(F13)," ",(LOOKUP(F13,'Component Weights'!$B$16:$J$16,'Component Weights'!$B$17:$J$17)*$AA$7)) -> 0 | P13: =IF(ISBLANK(G13)," ",(LOOKUP(G13,'Component Weights'!$B$16:$J$16,'Component Weights'!$B$17:$J$17)*$AA$8)) -> 0.1 | Q13: =IF(ISBLANK(B13)," ",(LOOKUP(B13,'Component Weights'!$B$16:$J$16,'Component Weights'!$B$17:$J$17)*$AA$9)) ->  | R13: =IF(ISBLANK(H13)," ",(LOOKUP(H13,'Component Weights'!$B$16:$J$16,'Component Weights'!$B$17:$J$17)*$AA$10)) -> 0.24 | S13: =IF(ISBLANK(I13)," ",(LOOKUP(I13,'Component Weights'!$B$16:$J$16,'Component Weights'!$B$17:$J$17)*$AA$11)) -> 0 | T13: =IF(ISBLANK(J13)," ",(LOOKUP(J13,'Component Weights'!$B$16:$J$16,'Component Weights'!$B$17:$J$17)*$AA$12)) -> 0.24 | U13: 1.14 | V13: 9 | X13: 1.14 | Z13: Total Weightings Must Equal 100% | AA13: =SUM(AA4:AA12) -> 1 | AC13: =IF(AA13<>100%,"Keep Working - Weightings must equal 100%"," ") -> 
A14: Wood - Triple Pane w/Low-E | C14: H | D14: N | E14: L | F14: N | G14: M | H14: M | I14: M | J14: M | K14: =SUM(IF(ISBLANK(C14),,LOOKUP(C14,'Component Weights'!$B$16:$J$16,'Component Weights'!$B$17:$J$17)),IF(ISBLANK(D14),,LOOKUP(D14,'Component Weights'!$B$16:$J$16,'Component Weights'!$B$17:$J$17)),IF(ISBLANK(E14),,LOOKUP(E14,'Component Weights'!$B$16:$J$16,'Component Weights'!$B$17:$J$17)),IF(ISBLANK(F14),,LOOKUP(F14,'Component Weights'!$B$16:$J$16,'Component Weights'!$B$17:$J$17)),IF(ISBLANK(G14),,LOOKUP(G14,'Component Weights'!$B$16:$J$16,'Component Weights'!$B$17:$J$17)),IF(ISBLANK(B14),,LOOKUP(B14,'Component Weights'!$B$16:$J$16,'Component Weights'!$B$17:$J$17)),IF(ISBLANK(H14),,LOOKUP(H14,'Component Weights'!$B$16:$J$16,'Component Weights'!$B$17:$J$17)),IF(ISBLANK(I14),,LOOKUP(I14,'Component Weights'!$B$16:$J$16,'Component Weights'!$B$17:$J$17)),IF(ISBLANK(J14),,LOOKUP(J14,'Component Weights'!$B$16:$J$16,'Component Weights'!$B$17:$J$17))) -> 12 | L14: =IF(ISBLANK(C14)," ",(LOOKUP(C14,'Component Weights'!$B$16:$J$16,'Component Weights'!$B$17:$J$17)*$AA$4)) -> 0.24 | M14: =IF(ISBLANK(D14)," ",(LOOKUP(D14,'Component Weights'!$B$16:$J$16,'Component Weights'!$B$17:$J$17)*$AA$5)) -> 0 | N14: =IF(ISBLANK(E14)," ",(LOOKUP(E14,'Component Weights'!$B$16:$J$16,'Component Weights'!$B$17:$J$17)*$AA$6)) -> 0.08 | O14: =IF(ISBLANK(F14)," ",(LOOKUP(F14,'Component Weights'!$B$16:$J$16,'Component Weights'!$B$17:$J$17)*$AA$7)) -> 0 | P14: =IF(ISBLANK(G14)," ",(LOOKUP(G14,'Component Weights'!$B$16:$J$16,'Component Weights'!$B$17:$J$17)*$AA$8)) -> 0.1 | Q14: =IF(ISBLANK(B14)," ",(LOOKUP(B14,'Component Weights'!$B$16:$J$16,'Component Weights'!$B$17:$J$17)*$AA$9)) ->  | R14: =IF(ISBLANK(H14)," ",(LOOKUP(H14,'Component Weights'!$B$16:$J$16,'Component Weights'!$B$17:$J$17)*$AA$10)) -> 0.24 | S14: =IF(ISBLANK(I14)," ",(LOOKUP(I14,'Component Weights'!$B$16:$J$16,'Component Weights'!$B$17:$J$17)*$AA$11)) -> 0.16 | T14: =IF(ISBLANK(J14)," ",(LOOKUP(J14,'Component Weights'!$B$16:$J$16,'Component Weights'!$B$17:$J$17)*$AA$12)) -> 0.24 | U14: 1.06 | V14: 13 | X14: 1.06
A15: Wood - Triple Pane w/Low-E & Argon | C15: H | D15: N | E15: L | F15: N | G15: M | H15: M | I15: M | J15: M | K15: =SUM(IF(ISBLANK(C15),,LOOKUP(C15,'Component Weights'!$B$16:$J$16,'Component Weights'!$B$17:$J$17)),IF(ISBLANK(D15),,LOOKUP(D15,'Component Weights'!$B$16:$J$16,'Component Weights'!$B$17:$J$17)),IF(ISBLANK(E15),,LOOKUP(E15,'Component Weights'!$B$16:$J$16,'Component Weights'!$B$17:$J$17)),IF(ISBLANK(F15),,LOOKUP(F15,'Component Weights'!$B$16:$J$16,'Component Weights'!$B$17:$J$17)),IF(ISBLANK(G15),,LOOKUP(G15,'Component Weights'!$B$16:$J$16,'Component Weights'!$B$17:$J$17)),IF(ISBLANK(B15),,LOOKUP(B15,'Component Weights'!$B$16:$J$16,'Component Weights'!$B$17:$J$17)),IF(ISBLANK(H15),,LOOKUP(H15,'Component Weights'!$B$16:$J$16,'Component Weights'!$B$17:$J$17)),IF(ISBLANK(I15),,LOOKUP(I15,'Component Weights'!$B$16:$J$16,'Component Weights'!$B$17:$J$17)),IF(ISBLANK(J15),,LOOKUP(J15,'Component Weights'!$B$16:$J$16,'Component Weights'!$B$17:$J$17))) -> 12 | L15: =IF(ISBLANK(C15)," ",(LOOKUP(C15,'Component Weights'!$B$16:$J$16,'Component Weights'!$B$17:$J$17)*$AA$4)) -> 0.24 | M15: =IF(ISBLANK(D15)," ",(LOOKUP(D15,'Component Weights'!$B$16:$J$16,'Component Weights'!$B$17:$J$17)*$AA$5)) -> 0 | N15: =IF(ISBLANK(E15)," ",(LOOKUP(E15,'Component Weights'!$B$16:$J$16,'Component Weights'!$B$17:$J$17)*$AA$6)) -> 0.08 | O15: =IF(ISBLANK(F15)," ",(LOOKUP(F15,'Component Weights'!$B$16:$J$16,'Component Weights'!$B$17:$J$17)*$AA$7)) -> 0 | P15: =IF(ISBLANK(G15)," ",(LOOKUP(G15,'Component Weights'!$B$16:$J$16,'Component Weights'!$B$17:$J$17)*$AA$8)) -> 0.1 | Q15: =IF(ISBLANK(B15)," ",(LOOKUP(B15,'Component Weights'!$B$16:$J$16,'Component Weights'!$B$17:$J$17)*$AA$9)) ->  | R15: =IF(ISBLANK(H15)," ",(LOOKUP(H15,'Component Weights'!$B$16:$J$16,'Component Weights'!$B$17:$J$17)*$AA$10)) -> 0.24 | S15: =IF(ISBLANK(I15)," ",(LOOKUP(I15,'Component Weights'!$B$16:$J$16,'Component Weights'!$B$17:$J$17)*$AA$11)) -> 0.16 | T15: =IF(ISBLANK(J15)," ",(LOOKUP(J15,'Component Weights'!$B$16:$J$16,'Component Weights'!$B$17:$J$17)*$AA$12)) -> 0.24 | U15: 1.06 | V15: 13 | X15: 1.06
A16: Wood - Double Pane w/Argon | C16: M | D16: N | E16: L | F16: N | G16: M | H16: M | I16: H | J16: M | K16: =SUM(IF(ISBLANK(C16),,LOOKUP(C16,'Component Weights'!$B$16:$J$16,'Component Weights'!$B$17:$J$17)),IF(ISBLANK(D16),,LOOKUP(D16,'Component Weights'!$B$16:$J$16,'Component Weights'!$B$17:$J$17)),IF(ISBLANK(E16),,LOOKUP(E16,'Component Weights'!$B$16:$J$16,'Component Weights'!$B$17:$J$17)),IF(ISBLANK(F16),,LOOKUP(F16,'Component Weights'!$B$16:$J$16,'Component Weights'!$B$17:$J$17)),IF(ISBLANK(G16),,LOOKUP(G16,'Component Weights'!$B$16:$J$16,'Component Weights'!$B$17:$J$17)),IF(ISBLANK(B16),,LOOKUP(B16,'Component Weights'!$B$16:$J$16,'Component Weights'!$B$17:$J$17)),IF(ISBLANK(H16),,LOOKUP(H16,'Component Weights'!$B$16:$J$16,'Component Weights'!$B$17:$J$17)),IF(ISBLANK(I16),,LOOKUP(I16,'Component Weights'!$B$16:$J$16,'Component Weights'!$B$17:$J$17)),IF(ISBLANK(J16),,LOOKUP(J16,'Component Weights'!$B$16:$J$16,'Component Weights'!$B$17:$J$17))) -> 12 | L16: =IF(ISBLANK(C16)," ",(LOOKUP(C16,'Component Weights'!$B$16:$J$16,'Component Weights'!$B$17:$J$17)*$AA$4)) -> 0.16 | M16: =IF(ISBLANK(D16)," ",(LOOKUP(D16,'Component Weights'!$B$16:$J$16,'Component Weights'!$B$17:$J$17)*$AA$5)) -> 0 | N16: =IF(ISBLANK(E16)," ",(LOOKUP(E16,'Component Weights'!$B$16:$J$16,'Component Weights'!$B$17:$J$17)*$AA$6)) -> 0.08 | O16: =IF(ISBLANK(F16)," ",(LOOKUP(F16,'Component Weights'!$B$16:$J$16,'Component Weights'!$B$17:$J$17)*$AA$7)) -> 0 | P16: =IF(ISBLANK(G16)," ",(LOOKUP(G16,'Component Weights'!$B$16:$J$16,'Component Weights'!$B$17:$J$17)*$AA$8)) -> 0.1 | Q16: =IF(ISBLANK(B16)," ",(LOOKUP(B16,'Component Weights'!$B$16:$J$16,'Component Weights'!$B$17:$J$17)*$AA$9)) ->  | R16: =IF(ISBLANK(H16)," ",(LOOKUP(H16,'Component Weights'!$B$16:$J$16,'Component Weights'!$B$17:$J$17)*$AA$10)) -> 0.24 | S16: =IF(ISBLANK(I16)," ",(LOOKUP(I16,'Component Weights'!$B$16:$J$16,'Component Weights'!$B$17:$J$17)*$AA$11)) -> 0.24 | T16: =IF(ISBLANK(J16)," ",(LOOKUP(J16,'Component Weights'!$B$16:$J$16,'Component Weights'!$B$17:$J$17)*$AA$12)) -> 0.24 | U16: 1.06 | V16: 13 | X16: 1.06
A17: Composite - Single Pane | C17: L | D17: M | E17: M | F17: N | G17: M | H17: M | I17: N | J17: M | K17: =SUM(IF(ISBLANK(C17),,LOOKUP(C17,'Component Weights'!$B$16:$J$16,'Component Weights'!$B$17:$J$17)),IF(ISBLANK(D17),,LOOKUP(D17,'Component Weights'!$B$16:$J$16,'Component Weights'!$B$17:$J$17)),IF(ISBLANK(E17),,LOOKUP(E17,'Component Weights'!$B$16:$J$16,'Component Weights'!$B$17:$J$17)),IF(ISBLANK(F17),,LOOKUP(F17,'Component Weights'!$B$16:$J$16,'Component Weights'!$B$17:$J$17)),IF(ISBLANK(G17),,LOOKUP(G17,'Component Weights'!$B$16:$J$16,'Component Weights'!$B$17:$J$17)),IF(ISBLANK(B17),,LOOKUP(B17,'Component Weights'!$B$16:$J$16,'Component Weights'!$B$17:$J$17)),IF(ISBLANK(H17),,LOOKUP(H17,'Component Weights'!$B$16:$J$16,'Component Weights'!$B$17:$J$17)),IF(ISBLANK(I17),,LOOKUP(I17,'Component Weights'!$B$16:$J$16,'Component Weights'!$B$17:$J$17)),IF(ISBLANK(J17),,LOOKUP(J17,'Component Weights'!$B$16:$J$16,'Component Weights'!$B$17:$J$17))) -> 11 | L17: =IF(ISBLANK(C17)," ",(LOOKUP(C17,'Component Weights'!$B$16:$J$16,'Component Weights'!$B$17:$J$17)*$AA$4)) -> 0.08 | M17: =IF(ISBLANK(D17)," ",(LOOKUP(D17,'Component Weights'!$B$16:$J$16,'Component Weights'!$B$17:$J$17)*$AA$5)) -> 0.24 | N17: =IF(ISBLANK(E17)," ",(LOOKUP(E17,'Component Weights'!$B$16:$J$16,'Component Weights'!$B$17:$J$17)*$AA$6)) -> 0.16 | O17: =IF(ISBLANK(F17)," ",(LOOKUP(F17,'Component Weights'!$B$16:$J$16,'Component Weights'!$B$17:$J$17)*$AA$7)) -> 0 | P17: =IF(ISBLANK(G17)," ",(LOOKUP(G17,'Component Weights'!$B$16:$J$16,'Component Weights'!$B$17:$J$17)*$AA$8)) -> 0.1 | Q17: =IF(ISBLANK(B17)," ",(LOOKUP(B17,'Component Weights'!$B$16:$J$16,'Component Weights'!$B$17:$J$17)*$AA$9)) ->  | R17: =IF(ISBLANK(H17)," ",(LOOKUP(H17,'Component Weights'!$B$16:$J$16,'Component Weights'!$B$17:$J$17)*$AA$10)) -> 0.24 | S17: =IF(ISBLANK(I17)," ",(LOOKUP(I17,'Component Weights'!$B$16:$J$16,'Component Weights'!$B$17:$J$17)*$AA$11)) -> 0 | T17: =IF(ISBLANK(J17)," ",(LOOKUP(J17,'Component Weights'!$B$16:$J$16,'Component Weights'!$B$17:$J$17)*$AA$12)) -> 0.24 | U17: 1.06 | V17: 13 | X17: 1.06
A18: Composite - Triple Pane | C18: L | D18: M | E18: M | F18: N | G18: M | H18: M | I18: N | J18: M | K18: =SUM(IF(ISBLANK(C18),,LOOKUP(C18,'Component Weights'!$B$16:$J$16,'Component Weights'!$B$17:$J$17)),IF(ISBLANK(D18),,LOOKUP(D18,'Component Weights'!$B$16:$J$16,'Component Weights'!$B$17:$J$17)),IF(ISBLANK(E18),,LOOKUP(E18,'Component Weights'!$B$16:$J$16,'Component Weights'!$B$17:$J$17)),IF(ISBLANK(F18),,LOOKUP(F18,'Component Weights'!$B$16:$J$16,'Component Weights'!$B$17:$J$17)),IF(ISBLANK(G18),,LOOKUP(G18,'Component Weights'!$B$16:$J$16,'Component Weights'!$B$17:$J$17)),IF(ISBLANK(B18),,LOOKUP(B18,'Component Weights'!$B$16:$J$16,'Component Weights'!$B$17:$J$17)),IF(ISBLANK(H18),,LOOKUP(H18,'Component Weights'!$B$16:$J$16,'Component Weights'!$B$17:$J$17)),IF(ISBLANK(I18),,LOOKUP(I18,'Component Weights'!$B$16:$J$16,'Component Weights'!$B$17:$J$17)),IF(ISBLANK(J18),,LOOKUP(J18,'Component Weights'!$B$16:$J$16,'Component Weights'!$B$17:$J$17))) -> 11 | L18: =IF(ISBLANK(C18)," ",(LOOKUP(C18,'Component Weights'!$B$16:$J$16,'Component Weights'!$B$17:$J$17)*$AA$4)) -> 0.08 | M18: =IF(ISBLANK(D18)," ",(LOOKUP(D18,'Component Weights'!$B$16:$J$16,'Component Weights'!$B$17:$J$17)*$AA$5)) -> 0.24 | N18: =IF(ISBLANK(E18)," ",(LOOKUP(E18,'Component Weights'!$B$16:$J$16,'Component Weights'!$B$17:$J$17)*$AA$6)) -> 0.16 | O18: =IF(ISBLANK(F18)," ",(LOOKUP(F18,'Component Weights'!$B$16:$J$16,'Component Weights'!$B$17:$J$17)*$AA$7)) -> 0 | P18: =IF(ISBLANK(G18)," ",(LOOKUP(G18,'Component Weights'!$B$16:$J$16,'Component Weights'!$B$17:$J$17)*$AA$8)) -> 0.1 | Q18: =IF(ISBLANK(B18)," ",(LOOKUP(B18,'Component Weights'!$B$16:$J$16,'Component Weights'!$B$17:$J$17)*$AA$9)) ->  | R18: =IF(ISBLANK(H18)," ",(LOOKUP(H18,'Component Weights'!$B$16:$J$16,'Component Weights'!$B$17:$J$17)*$AA$10)) -> 0.24 | S18: =IF(ISBLANK(I18)," ",(LOOKUP(I18,'Component Weights'!$B$16:$J$16,'Component Weights'!$B$17:$J$17)*$AA$11)) -> 0 | T18: =IF(ISBLANK(J18)," ",(LOOKUP(J18,'Component Weights'!$B$16:$J$16,'Component Weights'!$B$17:$J$17)*$AA$12)) -> 0.24 | U18: 1.06 | V18: 13 | X18: 1.06
A19: Wood - Triple Pane w/Argon | C19: M | D19: N | E19: L | F19: N | G19: M | H19: M | I19: M | J19: M | K19: =SUM(IF(ISBLANK(C19),,LOOKUP(C19,'Component Weights'!$B$16:$J$16,'Component Weights'!$B$17:$J$17)),IF(ISBLANK(D19),,LOOKUP(D19,'Component Weights'!$B$16:$J$16,'Component Weights'!$B$17:$J$17)),IF(ISBLANK(E19),,LOOKUP(E19,'Component Weights'!$B$16:$J$16,'Component Weights'!$B$17:$J$17)),IF(ISBLANK(F19),,LOOKUP(F19,'Component Weights'!$B$16:$J$16,'Component Weights'!$B$17:$J$17)),IF(ISBLANK(G19),,LOOKUP(G19,'Component Weights'!$B$16:$J$16,'Component Weights'!$B$17:$J$17)),IF(ISBLANK(B19),,LOOKUP(B19,'Component Weights'!$B$16:$J$16,'Component Weights'!$B$17:$J$17)),IF(ISBLANK(H19),,LOOKUP(H19,'Component Weights'!$B$16:$J$16,'Component Weights'!$B$17:$J$17)),IF(ISBLANK(I19),,LOOKUP(I19,'Component Weights'!$B$16:$J$16,'Component Weights'!$B$17:$J$17)),IF(ISBLANK(J19),,LOOKUP(J19,'Component Weights'!$B$16:$J$16,'Component Weights'!$B$17:$J$17))) -> 11 | L19: =IF(ISBLANK(C19)," ",(LOOKUP(C19,'Component Weights'!$B$16:$J$16,'Component Weights'!$B$17:$J$17)*$AA$4)) -> 0.16 | M19: =IF(ISBLANK(D19)," ",(LOOKUP(D19,'Component Weights'!$B$16:$J$16,'Component Weights'!$B$17:$J$17)*$AA$5)) -> 0 | N19: =IF(ISBLANK(E19)," ",(LOOKUP(E19,'Component Weights'!$B$16:$J$16,'Component Weights'!$B$17:$J$17)*$AA$6)) -> 0.08 | O19: =IF(ISBLANK(F19)," ",(LOOKUP(F19,'Component Weights'!$B$16:$J$16,'Component Weights'!$B$17:$J$17)*$AA$7)) -> 0 | P19: =IF(ISBLANK(G19)," ",(LOOKUP(G19,'Component Weights'!$B$16:$J$16,'Component Weights'!$B$17:$J$17)*$AA$8)) -> 0.1 | Q19: =IF(ISBLANK(B19)," ",(LOOKUP(B19,'Component Weights'!$B$16:$J$16,'Component Weights'!$B$17:$J$17)*$AA$9)) ->  | R19: =IF(ISBLANK(H19)," ",(LOOKUP(H19,'Component Weights'!$B$16:$J$16,'Component Weights'!$B$17:$J$17)*$AA$10)) -> 0.24 | S19: =IF(ISBLANK(I19)," ",(LOOKUP(I19,'Component Weights'!$B$16:$J$16,'Component Weights'!$B$17:$J$17)*$AA$11)) -> 0.16 | T19: =IF(ISBLANK(J19)," ",(LOOKUP(J19,'Component Weights'!$B$16:$J$16,'Component Weights'!$B$17:$J$17)*$AA$12)) -> 0.24 | U19: 0.98 | V19: 18 | X19: 0.98
A20: Fiberglass - Double Pane w/Low-E & Argon | C20: H | D20: N | E20: L | F20: N | G20: N | H20: M | I20: M | J20: M | K20: =SUM(IF(ISBLANK(C20),,LOOKUP(C20,'Component Weights'!$B$16:$J$16,'Component Weights'!$B$17:$J$17)),IF(ISBLANK(D20),,LOOKUP(D20,'Component Weights'!$B$16:$J$16,'Component Weights'!$B$17:$J$17)),IF(ISBLANK(E20),,LOOKUP(E20,'Component Weights'!$B$16:$J$16,'Component Weights'!$B$17:$J$17)),IF(ISBLANK(F20),,LOOKUP(F20,'Component Weights'!$B$16:$J$16,'Component Weights'!$B$17:$J$17)),IF(ISBLANK(G20),,LOOKUP(G20,'Component Weights'!$B$16:$J$16,'Component Weights'!$B$17:$J$17)),IF(ISBLANK(B20),,LOOKUP(B20,'Component Weights'!$B$16:$J$16,'Component Weights'!$B$17:$J$17)),IF(ISBLANK(H20),,LOOKUP(H20,'Component Weights'!$B$16:$J$16,'Component Weights'!$B$17:$J$17)),IF(ISBLANK(I20),,LOOKUP(I20,'Component Weights'!$B$16:$J$16,'Component Weights'!$B$17:$J$17)),IF(ISBLANK(J20),,LOOKUP(J20,'Component Weights'!$B$16:$J$16,'Component Weights'!$B$17:$J$17))) -> 10 | L20: =IF(ISBLANK(C20)," ",(LOOKUP(C20,'Component Weights'!$B$16:$J$16,'Component Weights'!$B$17:$J$17)*$AA$4)) -> 0.24 | M20: =IF(ISBLANK(D20)," ",(LOOKUP(D20,'Component Weights'!$B$16:$J$16,'Component Weights'!$B$17:$J$17)*$AA$5)) -> 0 | N20: =IF(ISBLANK(E20)," ",(LOOKUP(E20,'Component Weights'!$B$16:$J$16,'Component Weights'!$B$17:$J$17)*$AA$6)) -> 0.08 | O20: =IF(ISBLANK(F20)," ",(LOOKUP(F20,'Component Weights'!$B$16:$J$16,'Component Weights'!$B$17:$J$17)*$AA$7)) -> 0 | P20: =IF(ISBLANK(G20)," ",(LOOKUP(G20,'Component Weights'!$B$16:$J$16,'Component Weights'!$B$17:$J$17)*$AA$8)) -> 0 | Q20: =IF(ISBLANK(B20)," ",(LOOKUP(B20,'Component Weights'!$B$16:$J$16,'Component Weights'!$B$17:$J$17)*$AA$9)) ->  | R20: =IF(ISBLANK(H20)," ",(LOOKUP(H20,'Component Weights'!$B$16:$J$16,'Component Weights'!$B$17:$J$17)*$AA$10)) -> 0.24 | S20: =IF(ISBLANK(I20)," ",(LOOKUP(I20,'Component Weights'!$B$16:$J$16,'Component Weights'!$B$17:$J$17)*$AA$11)) -> 0.16 | T20: =IF(ISBLANK(J20)," ",(LOOKUP(J20,'Component Weights'!$B$16:$J$16,'Component Weights'!$B$17:$J$17)*$AA$12)) -> 0.24 | U20: 0.96 | V20: 19 | X20: 0.96
A21: Fiberglass - Triple Pane w/Low-E & Argon | C21: H | D21: N | E21: L | F21: N | G21: N | H21: M | I21: M | J21: M | K21: =SUM(IF(ISBLANK(C21),,LOOKUP(C21,'Component Weights'!$B$16:$J$16,'Component Weights'!$B$17:$J$17)),IF(ISBLANK(D21),,LOOKUP(D21,'Component Weights'!$B$16:$J$16,'Component Weights'!$B$17:$J$17)),IF(ISBLANK(E21),,LOOKUP(E21,'Component Weights'!$B$16:$J$16,'Component Weights'!$B$17:$J$17)),IF(ISBLANK(F21),,LOOKUP(F21,'Component Weights'!$B$16:$J$16,'Component Weights'!$B$17:$J$17)),IF(ISBLANK(G21),,LOOKUP(G21,'Component Weights'!$B$16:$J$16,'Component Weights'!$B$17:$J$17)),IF(ISBLANK(B21),,LOOKUP(B21,'Component Weights'!$B$16:$J$16,'Component Weights'!$B$17:$J$17)),IF(ISBLANK(H21),,LOOKUP(H21,'Component Weights'!$B$16:$J$16,'Component Weights'!$B$17:$J$17)),IF(ISBLANK(I21),,LOOKUP(I21,'Component Weights'!$B$16:$J$16,'Component Weights'!$B$17:$J$17)),IF(ISBLANK(J21),,LOOKUP(J21,'Component Weights'!$B$16:$J$16,'Component Weights'!$B$17:$J$17))) -> 10 | L21: =IF(ISBLANK(C21)," ",(LOOKUP(C21,'Component Weights'!$B$16:$J$16,'Component Weights'!$B$17:$J$17)*$AA$4)) -> 0.24 | M21: =IF(ISBLANK(D21)," ",(LOOKUP(D21,'Component Weights'!$B$16:$J$16,'Component Weights'!$B$17:$J$17)*$AA$5)) -> 0 | N21: =IF(ISBLANK(E21)," ",(LOOKUP(E21,'Component Weights'!$B$16:$J$16,'Component Weights'!$B$17:$J$17)*$AA$6)) -> 0.08 | O21: =IF(ISBLANK(F21)," ",(LOOKUP(F21,'Component Weights'!$B$16:$J$16,'Component Weights'!$B$17:$J$17)*$AA$7)) -> 0 | P21: =IF(ISBLANK(G21)," ",(LOOKUP(G21,'Component Weights'!$B$16:$J$16,'Component Weights'!$B$17:$J$17)*$AA$8)) -> 0 | Q21: =IF(ISBLANK(B21)," ",(LOOKUP(B21,'Component Weights'!$B$16:$J$16,'Component Weights'!$B$17:$J$17)*$AA$9)) ->  | R21: =IF(ISBLANK(H21)," ",(LOOKUP(H21,'Component Weights'!$B$16:$J$16,'Component Weights'!$B$17:$J$17)*$AA$10)) -> 0.24 | S21: =IF(ISBLANK(I21)," ",(LOOKUP(I21,'Component Weights'!$B$16:$J$16,'Component Weights'!$B$17:$J$17)*$AA$11)) -> 0.16 | T21: =IF(ISBLANK(J21)," ",(LOOKUP(J21,'Component Weights'!$B$16:$J$16,'Component Weights'!$B$17:$J$17)*$AA$12)) -> 0.24 | U21: 0.96 | V21: 19 | X21: 0.96
A22: Metal - Double Pane w/Low-E & Argon | C22: H | D22: N | E22: L | F22: N | G22: N | H22: M | I22: M | J22: M | K22: =SUM(IF(ISBLANK(C22),,LOOKUP(C22,'Component Weights'!$B$16:$J$16,'Component Weights'!$B$17:$J$17)),IF(ISBLANK(D22),,LOOKUP(D22,'Component Weights'!$B$16:$J$16,'Component Weights'!$B$17:$J$17)),IF(ISBLANK(E22),,LOOKUP(E22,'Component Weights'!$B$16:$J$16,'Component Weights'!$B$17:$J$17)),IF(ISBLANK(F22),,LOOKUP(F22,'Component Weights'!$B$16:$J$16,'Component Weights'!$B$17:$J$17)),IF(ISBLANK(G22),,LOOKUP(G22,'Component Weights'!$B$16:$J$16,'Component Weights'!$B$17:$J$17)),IF(ISBLANK(B22),,LOOKUP(B22,'Component Weights'!$B$16:$J$16,'Component Weights'!$B$17:$J$17)),IF(ISBLANK(H22),,LOOKUP(H22,'Component Weights'!$B$16:$J$16,'Component Weights'!$B$17:$J$17)),IF(ISBLANK(I22),,LOOKUP(I22,'Component Weights'!$B$16:$J$16,'Component Weights'!$B$17:$J$17)),IF(ISBLANK(J22),,LOOKUP(J22,'Component Weights'!$B$16:$J$16,'Component Weights'!$B$17:$J$17))) -> 10 | L22: =IF(ISBLANK(C22)," ",(LOOKUP(C22,'Component Weights'!$B$16:$J$16,'Component Weights'!$B$17:$J$17)*$AA$4)) -> 0.24 | M22: =IF(ISBLANK(D22)," ",(LOOKUP(D22,'Component Weights'!$B$16:$J$16,'Component Weights'!$B$17:$J$17)*$AA$5)) -> 0 | N22: =IF(ISBLANK(E22)," ",(LOOKUP(E22,'Component Weights'!$B$16:$J$16,'Component Weights'!$B$17:$J$17)*$AA$6)) -> 0.08 | O22: =IF(ISBLANK(F22)," ",(LOOKUP(F22,'Component Weights'!$B$16:$J$16,'Component Weights'!$B$17:$J$17)*$AA$7)) -> 0 | P22: =IF(ISBLANK(G22)," ",(LOOKUP(G22,'Component Weights'!$B$16:$J$16,'Component Weights'!$B$17:$J$17)*$AA$8)) -> 0 | Q22: =IF(ISBLANK(B22)," ",(LOOKUP(B22,'Component Weights'!$B$16:$J$16,'Component Weights'!$B$17:$J$17)*$AA$9)) ->  | R22: =IF(ISBLANK(H22)," ",(LOOKUP(H22,'Component Weights'!$B$16:$J$16,'Component Weights'!$B$17:$J$17)*$AA$10)) -> 0.24 | S22: =IF(ISBLANK(I22)," ",(LOOKUP(I22,'Component Weights'!$B$16:$J$16,'Component Weights'!$B$17:$J$17)*$AA$11)) -> 0.16 | T22: =IF(ISBLANK(J22)," ",(LOOKUP(J22,'Component Weights'!$B$16:$J$16,'Component Weights'!$B$17:$J$17)*$AA$12)) -> 0.24 | U22: 0.96 | V22: 19 | X22: 0.96
A23: Metal - Triple Pane w/Low-E & Argon | C23: H | D23: N | E23: L | F23: N | G23: N | H23: M | I23: M | J23: M | K23: =SUM(IF(ISBLANK(C23),,LOOKUP(C23,'Component Weights'!$B$16:$J$16,'Component Weights'!$B$17:$J$17)),IF(ISBLANK(D23),,LOOKUP(D23,'Component Weights'!$B$16:$J$16,'Component Weights'!$B$17:$J$17)),IF(ISBLANK(E23),,LOOKUP(E23,'Component Weights'!$B$16:$J$16,'Component Weights'!$B$17:$J$17)),IF(ISBLANK(F23),,LOOKUP(F23,'Component Weights'!$B$16:$J$16,'Component Weights'!$B$17:$J$17)),IF(ISBLANK(G23),,LOOKUP(G23,'Component Weights'!$B$16:$J$16,'Component Weights'!$B$17:$J$17)),IF(ISBLANK(B23),,LOOKUP(B23,'Component Weights'!$B$16:$J$16,'Component Weights'!$B$17:$J$17)),IF(ISBLANK(H23),,LOOKUP(H23,'Component Weights'!$B$16:$J$16,'Component Weights'!$B$17:$J$17)),IF(ISBLANK(I23),,LOOKUP(I23,'Component Weights'!$B$16:$J$16,'Component Weights'!$B$17:$J$17)),IF(ISBLANK(J23),,LOOKUP(J23,'Component Weights'!$B$16:$J$16,'Component Weights'!$B$17:$J$17))) -> 10 | L23: =IF(ISBLANK(C23)," ",(LOOKUP(C23,'Component Weights'!$B$16:$J$16,'Component Weights'!$B$17:$J$17)*$AA$4)) -> 0.24 | M23: =IF(ISBLANK(D23)," ",(LOOKUP(D23,'Component Weights'!$B$16:$J$16,'Component Weights'!$B$17:$J$17)*$AA$5)) -> 0 | N23: =IF(ISBLANK(E23)," ",(LOOKUP(E23,'Component Weights'!$B$16:$J$16,'Component Weights'!$B$17:$J$17)*$AA$6)) -> 0.08 | O23: =IF(ISBLANK(F23)," ",(LOOKUP(F23,'Component Weights'!$B$16:$J$16,'Component Weights'!$B$17:$J$17)*$AA$7)) -> 0 | P23: =IF(ISBLANK(G23)," ",(LOOKUP(G23,'Component Weights'!$B$16:$J$16,'Component Weights'!$B$17:$J$17)*$AA$8)) -> 0 | Q23: =IF(ISBLANK(B23)," ",(LOOKUP(B23,'Component Weights'!$B$16:$J$16,'Component Weights'!$B$17:$J$17)*$AA$9)) ->  | R23: =IF(ISBLANK(H23)," ",(LOOKUP(H23,'Component Weights'!$B$16:$J$16,'Component Weights'!$B$17:$J$17)*$AA$10)) -> 0.24 | S23: =IF(ISBLANK(I23)," ",(LOOKUP(I23,'Component Weights'!$B$16:$J$16,'Component Weights'!$B$17:$J$17)*$AA$11)) -> 0.16 | T23: =IF(ISBLANK(J23)," ",(LOOKUP(J23,'Component Weights'!$B$16:$J$16,'Component Weights'!$B$17:$J$17)*$AA$12)) -> 0.24 | U23: 0.96 | V23: 19 | X23: 0.96
A24: Wood - Double Pane w/Reflective Film | C24: M | D24: N | E24: L | F24: N | G24: M | H24: M | I24: L | J24: M | K24: =SUM(IF(ISBLANK(C24),,LOOKUP(C24,'Component Weights'!$B$16:$J$16,'Component Weights'!$B$17:$J$17)),IF(ISBLANK(D24),,LOOKUP(D24,'Component Weights'!$B$16:$J$16,'Component Weights'!$B$17:$J$17)),IF(ISBLANK(E24),,LOOKUP(E24,'Component Weights'!$B$16:$J$16,'Component Weights'!$B$17:$J$17)),IF(ISBLANK(F24),,LOOKUP(F24,'Component Weights'!$B$16:$J$16,'Component Weights'!$B$17:$J$17)),IF(ISBLANK(G24),,LOOKUP(G24,'Component Weights'!$B$16:$J$16,'Component Weights'!$B$17:$J$17)),IF(ISBLANK(B24),,LOOKUP(B24,'Component Weights'!$B$16:$J$16,'Component Weights'!$B$17:$J$17)),IF(ISBLANK(H24),,LOOKUP(H24,'Component Weights'!$B$16:$J$16,'Component Weights'!$B$17:$J$17)),IF(ISBLANK(I24),,LOOKUP(I24,'Component Weights'!$B$16:$J$16,'Component Weights'!$B$17:$J$17)),IF(ISBLANK(J24),,LOOKUP(J24,'Component Weights'!$B$16:$J$16,'Component Weights'!$B$17:$J$17))) -> 10 | L24: =IF(ISBLANK(C24)," ",(LOOKUP(C24,'Component Weights'!$B$16:$J$16,'Component Weights'!$B$17:$J$17)*$AA$4)) -> 0.16 | M24: =IF(ISBLANK(D24)," ",(LOOKUP(D24,'Component Weights'!$B$16:$J$16,'Component Weights'!$B$17:$J$17)*$AA$5)) -> 0 | N24: =IF(ISBLANK(E24)," ",(LOOKUP(E24,'Component Weights'!$B$16:$J$16,'Component Weights'!$B$17:$J$17)*$AA$6)) -> 0.08 | O24: =IF(ISBLANK(F24)," ",(LOOKUP(F24,'Component Weights'!$B$16:$J$16,'Component Weights'!$B$17:$J$17)*$AA$7)) -> 0 | P24: =IF(ISBLANK(G24)," ",(LOOKUP(G24,'Component Weights'!$B$16:$J$16,'Component Weights'!$B$17:$J$17)*$AA$8)) -> 0.1 | Q24: =IF(ISBLANK(B24)," ",(LOOKUP(B24,'Component Weights'!$B$16:$J$16,'Component Weights'!$B$17:$J$17)*$AA$9)) ->  | R24: =IF(ISBLANK(H24)," ",(LOOKUP(H24,'Component Weights'!$B$16:$J$16,'Component Weights'!$B$17:$J$17)*$AA$10)) -> 0.24 | S24: =IF(ISBLANK(I24)," ",(LOOKUP(I24,'Component Weights'!$B$16:$J$16,'Component Weights'!$B$17:$J$17)*$AA$11)) -> 0.08 | T24: =IF(ISBLANK(J24)," ",(LOOKUP(J24,'Component Weights'!$B$16:$J$16,'Component Weights'!$B$17:$J$17)*$AA$12)) -> 0.24 | U24: 0.9 | V24: 23 | X24: 0.9
A25: Vinyl - Double Pane w/Low-E | C25: H | D25: N | E25: N | F25: N | G25: N | H25: M | I25: M | J25: M | K25: =SUM(IF(ISBLANK(C25),,LOOKUP(C25,'Component Weights'!$B$16:$J$16,'Component Weights'!$B$17:$J$17)),IF(ISBLANK(D25),,LOOKUP(D25,'Component Weights'!$B$16:$J$16,'Component Weights'!$B$17:$J$17)),IF(ISBLANK(E25),,LOOKUP(E25,'Component Weights'!$B$16:$J$16,'Component Weights'!$B$17:$J$17)),IF(ISBLANK(F25),,LOOKUP(F25,'Component Weights'!$B$16:$J$16,'Component Weights'!$B$17:$J$17)),IF(ISBLANK(G25),,LOOKUP(G25,'Component Weights'!$B$16:$J$16,'Component Weights'!$B$17:$J$17)),IF(ISBLANK(B25),,LOOKUP(B25,'Component Weights'!$B$16:$J$16,'Component Weights'!$B$17:$J$17)),IF(ISBLANK(H25),,LOOKUP(H25,'Component Weights'!$B$16:$J$16,'Component Weights'!$B$17:$J$17)),IF(ISBLANK(I25),,LOOKUP(I25,'Component Weights'!$B$16:$J$16,'Component Weights'!$B$17:$J$17)),IF(ISBLANK(J25),,LOOKUP(J25,'Component Weights'!$B$16:$J$16,'Component Weights'!$B$17:$J$17))) -> 9 | L25: =IF(ISBLANK(C25)," ",(LOOKUP(C25,'Component Weights'!$B$16:$J$16,'Component Weights'!$B$17:$J$17)*$AA$4)) -> 0.24 | M25: =IF(ISBLANK(D25)," ",(LOOKUP(D25,'Component Weights'!$B$16:$J$16,'Component Weights'!$B$17:$J$17)*$AA$5)) -> 0 | N25: =IF(ISBLANK(E25)," ",(LOOKUP(E25,'Component Weights'!$B$16:$J$16,'Component Weights'!$B$17:$J$17)*$AA$6)) -> 0 | O25: =IF(ISBLANK(F25)," ",(LOOKUP(F25,'Component Weights'!$B$16:$J$16,'Component Weights'!$B$17:$J$17)*$AA$7)) -> 0 | P25: =IF(ISBLANK(G25)," ",(LOOKUP(G25,'Component Weights'!$B$16:$J$16,'Component Weights'!$B$17:$J$17)*$AA$8)) -> 0 | Q25: =IF(ISBLANK(B25)," ",(LOOKUP(B25,'Component Weights'!$B$16:$J$16,'Component Weights'!$B$17:$J$17)*$AA$9)) ->  | R25: =IF(ISBLANK(H25)," ",(LOOKUP(H25,'Component Weights'!$B$16:$J$16,'Component Weights'!$B$17:$J$17)*$AA$10)) -> 0.24 | S25: =IF(ISBLANK(I25)," ",(LOOKUP(I25,'Component Weights'!$B$16:$J$16,'Component Weights'!$B$17:$J$17)*$AA$11)) -> 0.16 | T25: =IF(ISBLANK(J25)," ",(LOOKUP(J25,'Component Weights'!$B$16:$J$16,'Component Weights'!$B$17:$J$17)*$AA$12)) -> 0.24 | U25: 0.88 | V25: 24 | X25: 0.88
A26: Vinyl - Double Pane w/Low-E & Argon | C26: H | D26: N | E26: N | F26: N | G26: N | H26: M | I26: M | J26: M | K26: =SUM(IF(ISBLANK(C26),,LOOKUP(C26,'Component Weights'!$B$16:$J$16,'Component Weights'!$B$17:$J$17)),IF(ISBLANK(D26),,LOOKUP(D26,'Component Weights'!$B$16:$J$16,'Component Weights'!$B$17:$J$17)),IF(ISBLANK(E26),,LOOKUP(E26,'Component Weights'!$B$16:$J$16,'Component Weights'!$B$17:$J$17)),IF(ISBLANK(F26),,LOOKUP(F26,'Component Weights'!$B$16:$J$16,'Component Weights'!$B$17:$J$17)),IF(ISBLANK(G26),,LOOKUP(G26,'Component Weights'!$B$16:$J$16,'Component Weights'!$B$17:$J$17)),IF(ISBLANK(B26),,LOOKUP(B26,'Component Weights'!$B$16:$J$16,'Component Weights'!$B$17:$J$17)),IF(ISBLANK(H26),,LOOKUP(H26,'Component Weights'!$B$16:$J$16,'Component Weights'!$B$17:$J$17)),IF(ISBLANK(I26),,LOOKUP(I26,'Component Weights'!$B$16:$J$16,'Component Weights'!$B$17:$J$17)),IF(ISBLANK(J26),,LOOKUP(J26,'Component Weights'!$B$16:$J$16,'Component Weights'!$B$17:$J$17))) -> 9 | L26: =IF(ISBLANK(C26)," ",(LOOKUP(C26,'Component Weights'!$B$16:$J$16,'Component Weights'!$B$17:$J$17)*$AA$4)) -> 0.24 | M26: =IF(ISBLANK(D26)," ",(LOOKUP(D26,'Component Weights'!$B$16:$J$16,'Component Weights'!$B$17:$J$17)*$AA$5)) -> 0 | N26: =IF(ISBLANK(E26)," ",(LOOKUP(E26,'Component Weights'!$B$16:$J$16,'Component Weights'!$B$17:$J$17)*$AA$6)) -> 0 | O26: =IF(ISBLANK(F26)," ",(LOOKUP(F26,'Component Weights'!$B$16:$J$16,'Component Weights'!$B$17:$J$17)*$AA$7)) -> 0 | P26: =IF(ISBLANK(G26)," ",(LOOKUP(G26,'Component Weights'!$B$16:$J$16,'Component Weights'!$B$17:$J$17)*$AA$8)) -> 0 | Q26: =IF(ISBLANK(B26)," ",(LOOKUP(B26,'Component Weights'!$B$16:$J$16,'Component Weights'!$B$17:$J$17)*$AA$9)) ->  | R26: =IF(ISBLANK(H26)," ",(LOOKUP(H26,'Component Weights'!$B$16:$J$16,'Component Weights'!$B$17:$J$17)*$AA$10)) -> 0.24 | S26: =IF(ISBLANK(I26)," ",(LOOKUP(I26,'Component Weights'!$B$16:$J$16,'Component Weights'!$B$17:$J$17)*$AA$11)) -> 0.16 | T26: =IF(ISBLANK(J26)," ",(LOOKUP(J26,'Component Weights'!$B$16:$J$16,'Component Weights'!$B$17:$J$17)*$AA$12)) -> 0.24 | U26: 0.88 | V26: 24 | X26: 0.88
A27: Vinyl - Triple Pane w/Low-E & Argon | C27: H | D27: N | E27: N | F27: N | G27: N | H27: M | I27: M | J27: M | K27: =SUM(IF(ISBLANK(C27),,LOOKUP(C27,'Component Weights'!$B$16:$J$16,'Component Weights'!$B$17:$J$17)),IF(ISBLANK(D27),,LOOKUP(D27,'Component Weights'!$B$16:$J$16,'Component Weights'!$B$17:$J$17)),IF(ISBLANK(E27),,LOOKUP(E27,'Component Weights'!$B$16:$J$16,'Component Weights'!$B$17:$J$17)),IF(ISBLANK(F27),,LOOKUP(F27,'Component Weights'!$B$16:$J$16,'Component Weights'!$B$17:$J$17)),IF(ISBLANK(G27),,LOOKUP(G27,'Component Weights'!$B$16:$J$16,'Component Weights'!$B$17:$J$17)),IF(ISBLANK(B27),,LOOKUP(B27,'Component Weights'!$B$16:$J$16,'Component Weights'!$B$17:$J$17)),IF(ISBLANK(H27),,LOOKUP(H27,'Component Weights'!$B$16:$J$16,'Component Weights'!$B$17:$J$17)),IF(ISBLANK(I27),,LOOKUP(I27,'Component Weights'!$B$16:$J$16,'Component Weights'!$B$17:$J$17)),IF(ISBLANK(J27),,LOOKUP(J27,'Component Weights'!$B$16:$J$16,'Component Weights'!$B$17:$J$17))) -> 9 | L27: =IF(ISBLANK(C27)," ",(LOOKUP(C27,'Component Weights'!$B$16:$J$16,'Component Weights'!$B$17:$J$17)*$AA$4)) -> 0.24 | M27: =IF(ISBLANK(D27)," ",(LOOKUP(D27,'Component Weights'!$B$16:$J$16,'Component Weights'!$B$17:$J$17)*$AA$5)) -> 0 | N27: =IF(ISBLANK(E27)," ",(LOOKUP(E27,'Component Weights'!$B$16:$J$16,'Component Weights'!$B$17:$J$17)*$AA$6)) -> 0 | O27: =IF(ISBLANK(F27)," ",(LOOKUP(F27,'Component Weights'!$B$16:$J$16,'Component Weights'!$B$17:$J$17)*$AA$7)) -> 0 | P27: =IF(ISBLANK(G27)," ",(LOOKUP(G27,'Component Weights'!$B$16:$J$16,'Component Weights'!$B$17:$J$17)*$AA$8)) -> 0 | Q27: =IF(ISBLANK(B27)," ",(LOOKUP(B27,'Component Weights'!$B$16:$J$16,'Component Weights'!$B$17:$J$17)*$AA$9)) ->  | R27: =IF(ISBLANK(H27)," ",(LOOKUP(H27,'Component Weights'!$B$16:$J$16,'Component Weights'!$B$17:$J$17)*$AA$10)) -> 0.24 | S27: =IF(ISBLANK(I27)," ",(LOOKUP(I27,'Component Weights'!$B$16:$J$16,'Component Weights'!$B$17:$J$17)*$AA$11)) -> 0.16 | T27: =IF(ISBLANK(J27)," ",(LOOKUP(J27,'Component Weights'!$B$16:$J$16,'Component Weights'!$B$17:$J$17)*$AA$12)) -> 0.24 | U27: 0.88 | V27: 24 | X27: 0.88
A28: Fiberglass - Double Pane w/Low-E | C28: H | D28: N | E28: L | F28: N | G28: N | H28: M | I28: L | J28: M | K28: =SUM(IF(ISBLANK(C28),,LOOKUP(C28,'Component Weights'!$B$16:$J$16,'Component Weights'!$B$17:$J$17)),IF(ISBLANK(D28),,LOOKUP(D28,'Component Weights'!$B$16:$J$16,'Component Weights'!$B$17:$J$17)),IF(ISBLANK(E28),,LOOKUP(E28,'Component Weights'!$B$16:$J$16,'Component Weights'!$B$17:$J$17)),IF(ISBLANK(F28),,LOOKUP(F28,'Component Weights'!$B$16:$J$16,'Component Weights'!$B$17:$J$17)),IF(ISBLANK(G28),,LOOKUP(G28,'Component Weights'!$B$16:$J$16,'Component Weights'!$B$17:$J$17)),IF(ISBLANK(B28),,LOOKUP(B28,'Component Weights'!$B$16:$J$16,'Component Weights'!$B$17:$J$17)),IF(ISBLANK(H28),,LOOKUP(H28,'Component Weights'!$B$16:$J$16,'Component Weights'!$B$17:$J$17)),IF(ISBLANK(I28),,LOOKUP(I28,'Component Weights'!$B$16:$J$16,'Component Weights'!$B$17:$J$17)),IF(ISBLANK(J28),,LOOKUP(J28,'Component Weights'!$B$16:$J$16,'Component Weights'!$B$17:$J$17))) -> 9 | L28: =IF(ISBLANK(C28)," ",(LOOKUP(C28,'Component Weights'!$B$16:$J$16,'Component Weights'!$B$17:$J$17)*$AA$4)) -> 0.24 | M28: =IF(ISBLANK(D28)," ",(LOOKUP(D28,'Component Weights'!$B$16:$J$16,'Component Weights'!$B$17:$J$17)*$AA$5)) -> 0 | N28: =IF(ISBLANK(E28)," ",(LOOKUP(E28,'Component Weights'!$B$16:$J$16,'Component Weights'!$B$17:$J$17)*$AA$6)) -> 0.08 | O28: =IF(ISBLANK(F28)," ",(LOOKUP(F28,'Component Weights'!$B$16:$J$16,'Component Weights'!$B$17:$J$17)*$AA$7)) -> 0 | P28: =IF(ISBLANK(G28)," ",(LOOKUP(G28,'Component Weights'!$B$16:$J$16,'Component Weights'!$B$17:$J$17)*$AA$8)) -> 0 | Q28: =IF(ISBLANK(B28)," ",(LOOKUP(B28,'Component Weights'!$B$16:$J$16,'Component Weights'!$B$17:$J$17)*$AA$9)) ->  | R28: =IF(ISBLANK(H28)," ",(LOOKUP(H28,'Component Weights'!$B$16:$J$16,'Component Weights'!$B$17:$J$17)*$AA$10)) -> 0.24 | S28: =IF(ISBLANK(I28)," ",(LOOKUP(I28,'Component Weights'!$B$16:$J$16,'Component Weights'!$B$17:$J$17)*$AA$11)) -> 0.08 | T28: =IF(ISBLANK(J28)," ",(LOOKUP(J28,'Component Weights'!$B$16:$J$16,'Component Weights'!$B$17:$J$17)*$AA$12)) -> 0.24 | U28: 0.88 | V28: 24 | X28: 0.88
A29: Fiberglass - Triple Pane w/Low-E | C29: H | D29: N | E29: L | F29: N | G29: N | H29: M | I29: L | J29: M | K29: =SUM(IF(ISBLANK(C29),,LOOKUP(C29,'Component Weights'!$B$16:$J$16,'Component Weights'!$B$17:$J$17)),IF(ISBLANK(D29),,LOOKUP(D29,'Component Weights'!$B$16:$J$16,'Component Weights'!$B$17:$J$17)),IF(ISBLANK(E29),,LOOKUP(E29,'Component Weights'!$B$16:$J$16,'Component Weights'!$B$17:$J$17)),IF(ISBLANK(F29),,LOOKUP(F29,'Component Weights'!$B$16:$J$16,'Component Weights'!$B$17:$J$17)),IF(ISBLANK(G29),,LOOKUP(G29,'Component Weights'!$B$16:$J$16,'Component Weights'!$B$17:$J$17)),IF(ISBLANK(B29),,LOOKUP(B29,'Component Weights'!$B$16:$J$16,'Component Weights'!$B$17:$J$17)),IF(ISBLANK(H29),,LOOKUP(H29,'Component Weights'!$B$16:$J$16,'Component Weights'!$B$17:$J$17)),IF(ISBLANK(I29),,LOOKUP(I29,'Component Weights'!$B$16:$J$16,'Component Weights'!$B$17:$J$17)),IF(ISBLANK(J29),,LOOKUP(J29,'Component Weights'!$B$16:$J$16,'Component Weights'!$B$17:$J$17))) -> 9 | L29: =IF(ISBLANK(C29)," ",(LOOKUP(C29,'Component Weights'!$B$16:$J$16,'Component Weights'!$B$17:$J$17)*$AA$4)) -> 0.24 | M29: =IF(ISBLANK(D29)," ",(LOOKUP(D29,'Component Weights'!$B$16:$J$16,'Component Weights'!$B$17:$J$17)*$AA$5)) -> 0 | N29: =IF(ISBLANK(E29)," ",(LOOKUP(E29,'Component Weights'!$B$16:$J$16,'Component Weights'!$B$17:$J$17)*$AA$6)) -> 0.08 | O29: =IF(ISBLANK(F29)," ",(LOOKUP(F29,'Component Weights'!$B$16:$J$16,'Component Weights'!$B$17:$J$17)*$AA$7)) -> 0 | P29: =IF(ISBLANK(G29)," ",(LOOKUP(G29,'Component Weights'!$B$16:$J$16,'Component Weights'!$B$17:$J$17)*$AA$8)) -> 0 | Q29: =IF(ISBLANK(B29)," ",(LOOKUP(B29,'Component Weights'!$B$16:$J$16,'Component Weights'!$B$17:$J$17)*$AA$9)) ->  | R29: =IF(ISBLANK(H29)," ",(LOOKUP(H29,'Component Weights'!$B$16:$J$16,'Component Weights'!$B$17:$J$17)*$AA$10)) -> 0.24 | S29: =IF(ISBLANK(I29)," ",(LOOKUP(I29,'Component Weights'!$B$16:$J$16,'Component Weights'!$B$17:$J$17)*$AA$11)) -> 0.08 | T29: =IF(ISBLANK(J29)," ",(LOOKUP(J29,'Component Weights'!$B$16:$J$16,'Component Weights'!$B$17:$J$17)*$AA$12)) -> 0.24 | U29: 0.88 | V29: 24 | X29: 0.88
A30: Metal - Double Pane w/Reflective Film | C30: M | D30: N | E30: L | F30: N | G30: N | H30: M | I30: M | J30: M | K30: =SUM(IF(ISBLANK(C30),,LOOKUP(C30,'Component Weights'!$B$16:$J$16,'Component Weights'!$B$17:$J$17)),IF(ISBLANK(D30),,LOOKUP(D30,'Component Weights'!$B$16:$J$16,'Component Weights'!$B$17:$J$17)),IF(ISBLANK(E30),,LOOKUP(E30,'Component Weights'!$B$16:$J$16,'Component Weights'!$B$17:$J$17)),IF(ISBLANK(F30),,LOOKUP(F30,'Component Weights'!$B$16:$J$16,'Component Weights'!$B$17:$J$17)),IF(ISBLANK(G30),,LOOKUP(G30,'Component Weights'!$B$16:$J$16,'Component Weights'!$B$17:$J$17)),IF(ISBLANK(B30),,LOOKUP(B30,'Component Weights'!$B$16:$J$16,'Component Weights'!$B$17:$J$17)),IF(ISBLANK(H30),,LOOKUP(H30,'Component Weights'!$B$16:$J$16,'Component Weights'!$B$17:$J$17)),IF(ISBLANK(I30),,LOOKUP(I30,'Component Weights'!$B$16:$J$16,'Component Weights'!$B$17:$J$17)),IF(ISBLANK(J30),,LOOKUP(J30,'Component Weights'!$B$16:$J$16,'Component Weights'!$B$17:$J$17))) -> 9 | L30: =IF(ISBLANK(C30)," ",(LOOKUP(C30,'Component Weights'!$B$16:$J$16,'Component Weights'!$B$17:$J$17)*$AA$4)) -> 0.16 | M30: =IF(ISBLANK(D30)," ",(LOOKUP(D30,'Component Weights'!$B$16:$J$16,'Component Weights'!$B$17:$J$17)*$AA$5)) -> 0 | N30: =IF(ISBLANK(E30)," ",(LOOKUP(E30,'Component Weights'!$B$16:$J$16,'Component Weights'!$B$17:$J$17)*$AA$6)) -> 0.08 | O30: =IF(ISBLANK(F30)," ",(LOOKUP(F30,'Component Weights'!$B$16:$J$16,'Component Weights'!$B$17:$J$17)*$AA$7)) -> 0 | P30: =IF(ISBLANK(G30)," ",(LOOKUP(G30,'Component Weights'!$B$16:$J$16,'Component Weights'!$B$17:$J$17)*$AA$8)) -> 0 | Q30: =IF(ISBLANK(B30)," ",(LOOKUP(B30,'Component Weights'!$B$16:$J$16,'Component Weights'!$B$17:$J$17)*$AA$9)) ->  | R30: =IF(ISBLANK(H30)," ",(LOOKUP(H30,'Component Weights'!$B$16:$J$16,'Component Weights'!$B$17:$J$17)*$AA$10)) -> 0.24 | S30: =IF(ISBLANK(I30)," ",(LOOKUP(I30,'Component Weights'!$B$16:$J$16,'Component Weights'!$B$17:$J$17)*$AA$11)) -> 0.16 | T30: =IF(ISBLANK(J30)," ",(LOOKUP(J30,'Component Weights'!$B$16:$J$16,'Component Weights'!$B$17:$J$17)*$AA$12)) -> 0.24 | U30: 0.88 | V30: 24 | X30: 0.88
A31: Metal - Double Pane w/Low-E | C31: M | D31: N | E31: L | F31: N | G31: N | H31: M | I31: M | J31: M | K31: =SUM(IF(ISBLANK(C31),,LOOKUP(C31,'Component Weights'!$B$16:$J$16,'Component Weights'!$B$17:$J$17)),IF(ISBLANK(D31),,LOOKUP(D31,'Component Weights'!$B$16:$J$16,'Component Weights'!$B$17:$J$17)),IF(ISBLANK(E31),,LOOKUP(E31,'Component Weights'!$B$16:$J$16,'Component Weights'!$B$17:$J$17)),IF(ISBLANK(F31),,LOOKUP(F31,'Component Weights'!$B$16:$J$16,'Component Weights'!$B$17:$J$17)),IF(ISBLANK(G31),,LOOKUP(G31,'Component Weights'!$B$16:$J$16,'Component Weights'!$B$17:$J$17)),IF(ISBLANK(B31),,LOOKUP(B31,'Component Weights'!$B$16:$J$16,'Component Weights'!$B$17:$J$17)),IF(ISBLANK(H31),,LOOKUP(H31,'Component Weights'!$B$16:$J$16,'Component Weights'!$B$17:$J$17)),IF(ISBLANK(I31),,LOOKUP(I31,'Component Weights'!$B$16:$J$16,'Component Weights'!$B$17:$J$17)),IF(ISBLANK(J31),,LOOKUP(J31,'Component Weights'!$B$16:$J$16,'Component Weights'!$B$17:$J$17))) -> 9 | L31: =IF(ISBLANK(C31)," ",(LOOKUP(C31,'Component Weights'!$B$16:$J$16,'Component Weights'!$B$17:$J$17)*$AA$4)) -> 0.16 | M31: =IF(ISBLANK(D31)," ",(LOOKUP(D31,'Component Weights'!$B$16:$J$16,'Component Weights'!$B$17:$J$17)*$AA$5)) -> 0 | N31: =IF(ISBLANK(E31)," ",(LOOKUP(E31,'Component Weights'!$B$16:$J$16,'Component Weights'!$B$17:$J$17)*$AA$6)) -> 0.08 | O31: =IF(ISBLANK(F31)," ",(LOOKUP(F31,'Component Weights'!$B$16:$J$16,'Component Weights'!$B$17:$J$17)*$AA$7)) -> 0 | P31: =IF(ISBLANK(G31)," ",(LOOKUP(G31,'Component Weights'!$B$16:$J$16,'Component Weights'!$B$17:$J$17)*$AA$8)) -> 0 | Q31: =IF(ISBLANK(B31)," ",(LOOKUP(B31,'Component Weights'!$B$16:$J$16,'Component Weights'!$B$17:$J$17)*$AA$9)) ->  | R31: =IF(ISBLANK(H31)," ",(LOOKUP(H31,'Component Weights'!$B$16:$J$16,'Component Weights'!$B$17:$J$17)*$AA$10)) -> 0.24 | S31: =IF(ISBLANK(I31)," ",(LOOKUP(I31,'Component Weights'!$B$16:$J$16,'Component Weights'!$B$17:$J$17)*$AA$11)) -> 0.16 | T31: =IF(ISBLANK(J31)," ",(LOOKUP(J31,'Component Weights'!$B$16:$J$16,'Component Weights'!$B$17:$J$17)*$AA$12)) -> 0.24 | U31: 0.88 | V31: 24 | X31: 0.88
A32: Metal - Triple Pane w/Argon | C32: M | D32: N | E32: L | F32: N | G32: N | H32: M | I32: M | J32: M | K32: =SUM(IF(ISBLANK(C32),,LOOKUP(C32,'Component Weights'!$B$16:$J$16,'Component Weights'!$B$17:$J$17)),IF(ISBLANK(D32),,LOOKUP(D32,'Component Weights'!$B$16:$J$16,'Component Weights'!$B$17:$J$17)),IF(ISBLANK(E32),,LOOKUP(E32,'Component Weights'!$B$16:$J$16,'Component Weights'!$B$17:$J$17)),IF(ISBLANK(F32),,LOOKUP(F32,'Component Weights'!$B$16:$J$16,'Component Weights'!$B$17:$J$17)),IF(ISBLANK(G32),,LOOKUP(G32,'Component Weights'!$B$16:$J$16,'Component Weights'!$B$17:$J$17)),IF(ISBLANK(B32),,LOOKUP(B32,'Component Weights'!$B$16:$J$16,'Component Weights'!$B$17:$J$17)),IF(ISBLANK(H32),,LOOKUP(H32,'Component Weights'!$B$16:$J$16,'Component Weights'!$B$17:$J$17)),IF(ISBLANK(I32),,LOOKUP(I32,'Component Weights'!$B$16:$J$16,'Component Weights'!$B$17:$J$17)),IF(ISBLANK(J32),,LOOKUP(J32,'Component Weights'!$B$16:$J$16,'Component Weights'!$B$17:$J$17))) -> 9 | L32: =IF(ISBLANK(C32)," ",(LOOKUP(C32,'Component Weights'!$B$16:$J$16,'Component Weights'!$B$17:$J$17)*$AA$4)) -> 0.16 | M32: =IF(ISBLANK(D32)," ",(LOOKUP(D32,'Component Weights'!$B$16:$J$16,'Component Weights'!$B$17:$J$17)*$AA$5)) -> 0 | N32: =IF(ISBLANK(E32)," ",(LOOKUP(E32,'Component Weights'!$B$16:$J$16,'Component Weights'!$B$17:$J$17)*$AA$6)) -> 0.08 | O32: =IF(ISBLANK(F32)," ",(LOOKUP(F32,'Component Weights'!$B$16:$J$16,'Component Weights'!$B$17:$J$17)*$AA$7)) -> 0 | P32: =IF(ISBLANK(G32)," ",(LOOKUP(G32,'Component Weights'!$B$16:$J$16,'Component Weights'!$B$17:$J$17)*$AA$8)) -> 0 | Q32: =IF(ISBLANK(B32)," ",(LOOKUP(B32,'Component Weights'!$B$16:$J$16,'Component Weights'!$B$17:$J$17)*$AA$9)) ->  | R32: =IF(ISBLANK(H32)," ",(LOOKUP(H32,'Component Weights'!$B$16:$J$16,'Component Weights'!$B$17:$J$17)*$AA$10)) -> 0.24 | S32: =IF(ISBLANK(I32)," ",(LOOKUP(I32,'Component Weights'!$B$16:$J$16,'Component Weights'!$B$17:$J$17)*$AA$11)) -> 0.16 | T32: =IF(ISBLANK(J32)," ",(LOOKUP(J32,'Component Weights'!$B$16:$J$16,'Component Weights'!$B$17:$J$17)*$AA$12)) -> 0.24 | U32: 0.88 | V32: 24 | X32: 0.88
A33: Wood - Triple Pane w/Reflective Film | C33: M | D33: N | E33: L | F33: N | G33: M | H33: M | I33: N | J33: M | K33: =SUM(IF(ISBLANK(C33),,LOOKUP(C33,'Component Weights'!$B$16:$J$16,'Component Weights'!$B$17:$J$17)),IF(ISBLANK(D33),,LOOKUP(D33,'Component Weights'!$B$16:$J$16,'Component Weights'!$B$17:$J$17)),IF(ISBLANK(E33),,LOOKUP(E33,'Component Weights'!$B$16:$J$16,'Component Weights'!$B$17:$J$17)),IF(ISBLANK(F33),,LOOKUP(F33,'Component Weights'!$B$16:$J$16,'Component Weights'!$B$17:$J$17)),IF(ISBLANK(G33),,LOOKUP(G33,'Component Weights'!$B$16:$J$16,'Component Weights'!$B$17:$J$17)),IF(ISBLANK(B33),,LOOKUP(B33,'Component Weights'!$B$16:$J$16,'Component Weights'!$B$17:$J$17)),IF(ISBLANK(H33),,LOOKUP(H33,'Component Weights'!$B$16:$J$16,'Component Weights'!$B$17:$J$17)),IF(ISBLANK(I33),,LOOKUP(I33,'Component Weights'!$B$16:$J$16,'Component Weights'!$B$17:$J$17)),IF(ISBLANK(J33),,LOOKUP(J33,'Component Weights'!$B$16:$J$16,'Component Weights'!$B$17:$J$17))) -> 9 | L33: =IF(ISBLANK(C33)," ",(LOOKUP(C33,'Component Weights'!$B$16:$J$16,'Component Weights'!$B$17:$J$17)*$AA$4)) -> 0.16 | M33: =IF(ISBLANK(D33)," ",(LOOKUP(D33,'Component Weights'!$B$16:$J$16,'Component Weights'!$B$17:$J$17)*$AA$5)) -> 0 | N33: =IF(ISBLANK(E33)," ",(LOOKUP(E33,'Component Weights'!$B$16:$J$16,'Component Weights'!$B$17:$J$17)*$AA$6)) -> 0.08 | O33: =IF(ISBLANK(F33)," ",(LOOKUP(F33,'Component Weights'!$B$16:$J$16,'Component Weights'!$B$17:$J$17)*$AA$7)) -> 0 | P33: =IF(ISBLANK(G33)," ",(LOOKUP(G33,'Component Weights'!$B$16:$J$16,'Component Weights'!$B$17:$J$17)*$AA$8)) -> 0.1 | Q33: =IF(ISBLANK(B33)," ",(LOOKUP(B33,'Component Weights'!$B$16:$J$16,'Component Weights'!$B$17:$J$17)*$AA$9)) ->  | R33: =IF(ISBLANK(H33)," ",(LOOKUP(H33,'Component Weights'!$B$16:$J$16,'Component Weights'!$B$17:$J$17)*$AA$10)) -> 0.24 | S33: =IF(ISBLANK(I33)," ",(LOOKUP(I33,'Component Weights'!$B$16:$J$16,'Component Weights'!$B$17:$J$17)*$AA$11)) -> 0 | T33: =IF(ISBLANK(J33)," ",(LOOKUP(J33,'Component Weights'!$B$16:$J$16,'Component Weights'!$B$17:$J$17)*$AA$12)) -> 0.24 | U33: 0.82 | V33: 32 | X33: 0.82
A34: Vinyl - Double Pane w/Argon | C34: M | D34: N | E34: N | F34: N | G34: N | H34: M | I34: M | J34: M | K34: =SUM(IF(ISBLANK(C34),,LOOKUP(C34,'Component Weights'!$B$16:$J$16,'Component Weights'!$B$17:$J$17)),IF(ISBLANK(D34),,LOOKUP(D34,'Component Weights'!$B$16:$J$16,'Component Weights'!$B$17:$J$17)),IF(ISBLANK(E34),,LOOKUP(E34,'Component Weights'!$B$16:$J$16,'Component Weights'!$B$17:$J$17)),IF(ISBLANK(F34),,LOOKUP(F34,'Component Weights'!$B$16:$J$16,'Component Weights'!$B$17:$J$17)),IF(ISBLANK(G34),,LOOKUP(G34,'Component Weights'!$B$16:$J$16,'Component Weights'!$B$17:$J$17)),IF(ISBLANK(B34),,LOOKUP(B34,'Component Weights'!$B$16:$J$16,'Component Weights'!$B$17:$J$17)),IF(ISBLANK(H34),,LOOKUP(H34,'Component Weights'!$B$16:$J$16,'Component Weights'!$B$17:$J$17)),IF(ISBLANK(I34),,LOOKUP(I34,'Component Weights'!$B$16:$J$16,'Component Weights'!$B$17:$J$17)),IF(ISBLANK(J34),,LOOKUP(J34,'Component Weights'!$B$16:$J$16,'Component Weights'!$B$17:$J$17))) -> 8 | L34: =IF(ISBLANK(C34)," ",(LOOKUP(C34,'Component Weights'!$B$16:$J$16,'Component Weights'!$B$17:$J$17)*$AA$4)) -> 0.16 | M34: =IF(ISBLANK(D34)," ",(LOOKUP(D34,'Component Weights'!$B$16:$J$16,'Component Weights'!$B$17:$J$17)*$AA$5)) -> 0 | N34: =IF(ISBLANK(E34)," ",(LOOKUP(E34,'Component Weights'!$B$16:$J$16,'Component Weights'!$B$17:$J$17)*$AA$6)) -> 0 | O34: =IF(ISBLANK(F34)," ",(LOOKUP(F34,'Component Weights'!$B$16:$J$16,'Component Weights'!$B$17:$J$17)*$AA$7)) -> 0 | P34: =IF(ISBLANK(G34)," ",(LOOKUP(G34,'Component Weights'!$B$16:$J$16,'Component Weights'!$B$17:$J$17)*$AA$8)) -> 0 | Q34: =IF(ISBLANK(B34)," ",(LOOKUP(B34,'Component Weights'!$B$16:$J$16,'Component Weights'!$B$17:$J$17)*$AA$9)) ->  | R34: =IF(ISBLANK(H34)," ",(LOOKUP(H34,'Component Weights'!$B$16:$J$16,'Component Weights'!$B$17:$J$17)*$AA$10)) -> 0.24 | S34: =IF(ISBLANK(I34)," ",(LOOKUP(I34,'Component Weights'!$B$16:$J$16,'Component Weights'!$B$17:$J$17)*$AA$11)) -> 0.16 | T34: =IF(ISBLANK(J34)," ",(LOOKUP(J34,'Component Weights'!$B$16:$J$16,'Component Weights'!$B$17:$J$17)*$AA$12)) -> 0.24 | U34: =SUM(L34:T34) -> 0.8 | V34: =IF($U34>0,RANK($U34,X$2:X$206,0),99) -> 33 | X34: 0.8
A35: Vinyl - Triple Pane w/Argon | C35: M | D35: N | E35: N | F35: N | G35: N | H35: M | I35: M | J35: M | K35: =SUM(IF(ISBLANK(C35),,LOOKUP(C35,'Component Weights'!$B$16:$J$16,'Component Weights'!$B$17:$J$17)),IF(ISBLANK(D35),,LOOKUP(D35,'Component Weights'!$B$16:$J$16,'Component Weights'!$B$17:$J$17)),IF(ISBLANK(E35),,LOOKUP(E35,'Component Weights'!$B$16:$J$16,'Component Weights'!$B$17:$J$17)),IF(ISBLANK(F35),,LOOKUP(F35,'Component Weights'!$B$16:$J$16,'Component Weights'!$B$17:$J$17)),IF(ISBLANK(G35),,LOOKUP(G35,'Component Weights'!$B$16:$J$16,'Component Weights'!$B$17:$J$17)),IF(ISBLANK(B35),,LOOKUP(B35,'Component Weights'!$B$16:$J$16,'Component Weights'!$B$17:$J$17)),IF(ISBLANK(H35),,LOOKUP(H35,'Component Weights'!$B$16:$J$16,'Component Weights'!$B$17:$J$17)),IF(ISBLANK(I35),,LOOKUP(I35,'Component Weights'!$B$16:$J$16,'Component Weights'!$B$17:$J$17)),IF(ISBLANK(J35),,LOOKUP(J35,'Component Weights'!$B$16:$J$16,'Component Weights'!$B$17:$J$17))) -> 8 | L35: =IF(ISBLANK(C35)," ",(LOOKUP(C35,'Component Weights'!$B$16:$J$16,'Component Weights'!$B$17:$J$17)*$AA$4)) -> 0.16 | M35: =IF(ISBLANK(D35)," ",(LOOKUP(D35,'Component Weights'!$B$16:$J$16,'Component Weights'!$B$17:$J$17)*$AA$5)) -> 0 | N35: =IF(ISBLANK(E35)," ",(LOOKUP(E35,'Component Weights'!$B$16:$J$16,'Component Weights'!$B$17:$J$17)*$AA$6)) -> 0 | O35: =IF(ISBLANK(F35)," ",(LOOKUP(F35,'Component Weights'!$B$16:$J$16,'Component Weights'!$B$17:$J$17)*$AA$7)) -> 0 | P35: =IF(ISBLANK(G35)," ",(LOOKUP(G35,'Component Weights'!$B$16:$J$16,'Component Weights'!$B$17:$J$17)*$AA$8)) -> 0 | Q35: =IF(ISBLANK(B35)," ",(LOOKUP(B35,'Component Weights'!$B$16:$J$16,'Component Weights'!$B$17:$J$17)*$AA$9)) ->  | R35: =IF(ISBLANK(H35)," ",(LOOKUP(H35,'Component Weights'!$B$16:$J$16,'Component Weights'!$B$17:$J$17)*$AA$10)) -> 0.24 | S35: =IF(ISBLANK(I35)," ",(LOOKUP(I35,'Component Weights'!$B$16:$J$16,'Component Weights'!$B$17:$J$17)*$AA$11)) -> 0.16 | T35: =IF(ISBLANK(J35)," ",(LOOKUP(J35,'Component Weights'!$B$16:$J$16,'Component Weights'!$B$17:$J$17)*$AA$12)) -> 0.24 | U35: 0.8 | V35: 33 | X35: 0.8
A36: Vinyl - Triple Pane w/Low-E | C36: H | D36: N | E36: N | F36: N | G36: N | H36: M | I36: L | J36: M | K36: =SUM(IF(ISBLANK(C36),,LOOKUP(C36,'Component Weights'!$B$16:$J$16,'Component Weights'!$B$17:$J$17)),IF(ISBLANK(D36),,LOOKUP(D36,'Component Weights'!$B$16:$J$16,'Component Weights'!$B$17:$J$17)),IF(ISBLANK(E36),,LOOKUP(E36,'Component Weights'!$B$16:$J$16,'Component Weights'!$B$17:$J$17)),IF(ISBLANK(F36),,LOOKUP(F36,'Component Weights'!$B$16:$J$16,'Component Weights'!$B$17:$J$17)),IF(ISBLANK(G36),,LOOKUP(G36,'Component Weights'!$B$16:$J$16,'Component Weights'!$B$17:$J$17)),IF(ISBLANK(B36),,LOOKUP(B36,'Component Weights'!$B$16:$J$16,'Component Weights'!$B$17:$J$17)),IF(ISBLANK(H36),,LOOKUP(H36,'Component Weights'!$B$16:$J$16,'Component Weights'!$B$17:$J$17)),IF(ISBLANK(I36),,LOOKUP(I36,'Component Weights'!$B$16:$J$16,'Component Weights'!$B$17:$J$17)),IF(ISBLANK(J36),,LOOKUP(J36,'Component Weights'!$B$16:$J$16,'Component Weights'!$B$17:$J$17))) -> 8 | L36: =IF(ISBLANK(C36)," ",(LOOKUP(C36,'Component Weights'!$B$16:$J$16,'Component Weights'!$B$17:$J$17)*$AA$4)) -> 0.24 | M36: =IF(ISBLANK(D36)," ",(LOOKUP(D36,'Component Weights'!$B$16:$J$16,'Component Weights'!$B$17:$J$17)*$AA$5)) -> 0 | N36: =IF(ISBLANK(E36)," ",(LOOKUP(E36,'Component Weights'!$B$16:$J$16,'Component Weights'!$B$17:$J$17)*$AA$6)) -> 0 | O36: =IF(ISBLANK(F36)," ",(LOOKUP(F36,'Component Weights'!$B$16:$J$16,'Component Weights'!$B$17:$J$17)*$AA$7)) -> 0 | P36: =IF(ISBLANK(G36)," ",(LOOKUP(G36,'Component Weights'!$B$16:$J$16,'Component Weights'!$B$17:$J$17)*$AA$8)) -> 0 | Q36: =IF(ISBLANK(B36)," ",(LOOKUP(B36,'Component Weights'!$B$16:$J$16,'Component Weights'!$B$17:$J$17)*$AA$9)) ->  | R36: =IF(ISBLANK(H36)," ",(LOOKUP(H36,'Component Weights'!$B$16:$J$16,'Component Weights'!$B$17:$J$17)*$AA$10)) -> 0.24 | S36: =IF(ISBLANK(I36)," ",(LOOKUP(I36,'Component Weights'!$B$16:$J$16,'Component Weights'!$B$17:$J$17)*$AA$11)) -> 0.08 | T36: =IF(ISBLANK(J36)," ",(LOOKUP(J36,'Component Weights'!$B$16:$J$16,'Component Weights'!$B$17:$J$17)*$AA$12)) -> 0.24 | U36: 0.8 | V36: 35 | X36: 0.8
A37: Fiberglass - Double Pane w/Reflective Film | C37: M | D37: N | E37: L | F37: N | G37: N | H37: M | I37: L | J37: M | K37: =SUM(IF(ISBLANK(C37),,LOOKUP(C37,'Component Weights'!$B$16:$J$16,'Component Weights'!$B$17:$J$17)),IF(ISBLANK(D37),,LOOKUP(D37,'Component Weights'!$B$16:$J$16,'Component Weights'!$B$17:$J$17)),IF(ISBLANK(E37),,LOOKUP(E37,'Component Weights'!$B$16:$J$16,'Component Weights'!$B$17:$J$17)),IF(ISBLANK(F37),,LOOKUP(F37,'Component Weights'!$B$16:$J$16,'Component Weights'!$B$17:$J$17)),IF(ISBLANK(G37),,LOOKUP(G37,'Component Weights'!$B$16:$J$16,'Component Weights'!$B$17:$J$17)),IF(ISBLANK(B37),,LOOKUP(B37,'Component Weights'!$B$16:$J$16,'Component Weights'!$B$17:$J$17)),IF(ISBLANK(H37),,LOOKUP(H37,'Component Weights'!$B$16:$J$16,'Component Weights'!$B$17:$J$17)),IF(ISBLANK(I37),,LOOKUP(I37,'Component Weights'!$B$16:$J$16,'Component Weights'!$B$17:$J$17)),IF(ISBLANK(J37),,LOOKUP(J37,'Component Weights'!$B$16:$J$16,'Component Weights'!$B$17:$J$17))) -> 8 | L37: =IF(ISBLANK(C37)," ",(LOOKUP(C37,'Component Weights'!$B$16:$J$16,'Component Weights'!$B$17:$J$17)*$AA$4)) -> 0.16 | M37: =IF(ISBLANK(D37)," ",(LOOKUP(D37,'Component Weights'!$B$16:$J$16,'Component Weights'!$B$17:$J$17)*$AA$5)) -> 0 | N37: =IF(ISBLANK(E37)," ",(LOOKUP(E37,'Component Weights'!$B$16:$J$16,'Component Weights'!$B$17:$J$17)*$AA$6)) -> 0.08 | O37: =IF(ISBLANK(F37)," ",(LOOKUP(F37,'Component Weights'!$B$16:$J$16,'Component Weights'!$B$17:$J$17)*$AA$7)) -> 0 | P37: =IF(ISBLANK(G37)," ",(LOOKUP(G37,'Component Weights'!$B$16:$J$16,'Component Weights'!$B$17:$J$17)*$AA$8)) -> 0 | Q37: =IF(ISBLANK(B37)," ",(LOOKUP(B37,'Component Weights'!$B$16:$J$16,'Component Weights'!$B$17:$J$17)*$AA$9)) ->  | R37: =IF(ISBLANK(H37)," ",(LOOKUP(H37,'Component Weights'!$B$16:$J$16,'Component Weights'!$B$17:$J$17)*$AA$10)) -> 0.24 | S37: =IF(ISBLANK(I37)," ",(LOOKUP(I37,'Component Weights'!$B$16:$J$16,'Component Weights'!$B$17:$J$17)*$AA$11)) -> 0.08 | T37: =IF(ISBLANK(J37)," ",(LOOKUP(J37,'Component Weights'!$B$16:$J$16,'Component Weights'!$B$17:$J$17)*$AA$12)) -> 0.24 | U37: 0.8 | V37: 35 | X37: 0.8
A38: Fiberglass - Double Pane w/Argon | C38: M | D38: N | E38: L | F38: N | G38: N | H38: M | I38: L | J38: M | K38: =SUM(IF(ISBLANK(C38),,LOOKUP(C38,'Component Weights'!$B$16:$J$16,'Component Weights'!$B$17:$J$17)),IF(ISBLANK(D38),,LOOKUP(D38,'Component Weights'!$B$16:$J$16,'Component Weights'!$B$17:$J$17)),IF(ISBLANK(E38),,LOOKUP(E38,'Component Weights'!$B$16:$J$16,'Component Weights'!$B$17:$J$17)),IF(ISBLANK(F38),,LOOKUP(F38,'Component Weights'!$B$16:$J$16,'Component Weights'!$B$17:$J$17)),IF(ISBLANK(G38),,LOOKUP(G38,'Component Weights'!$B$16:$J$16,'Component Weights'!$B$17:$J$17)),IF(ISBLANK(B38),,LOOKUP(B38,'Component Weights'!$B$16:$J$16,'Component Weights'!$B$17:$J$17)),IF(ISBLANK(H38),,LOOKUP(H38,'Component Weights'!$B$16:$J$16,'Component Weights'!$B$17:$J$17)),IF(ISBLANK(I38),,LOOKUP(I38,'Component Weights'!$B$16:$J$16,'Component Weights'!$B$17:$J$17)),IF(ISBLANK(J38),,LOOKUP(J38,'Component Weights'!$B$16:$J$16,'Component Weights'!$B$17:$J$17))) -> 8 | L38: =IF(ISBLANK(C38)," ",(LOOKUP(C38,'Component Weights'!$B$16:$J$16,'Component Weights'!$B$17:$J$17)*$AA$4)) -> 0.16 | M38: =IF(ISBLANK(D38)," ",(LOOKUP(D38,'Component Weights'!$B$16:$J$16,'Component Weights'!$B$17:$J$17)*$AA$5)) -> 0 | N38: =IF(ISBLANK(E38)," ",(LOOKUP(E38,'Component Weights'!$B$16:$J$16,'Component Weights'!$B$17:$J$17)*$AA$6)) -> 0.08 | O38: =IF(ISBLANK(F38)," ",(LOOKUP(F38,'Component Weights'!$B$16:$J$16,'Component Weights'!$B$17:$J$17)*$AA$7)) -> 0 | P38: =IF(ISBLANK(G38)," ",(LOOKUP(G38,'Component Weights'!$B$16:$J$16,'Component Weights'!$B$17:$J$17)*$AA$8)) -> 0 | Q38: =IF(ISBLANK(B38)," ",(LOOKUP(B38,'Component Weights'!$B$16:$J$16,'Component Weights'!$B$17:$J$17)*$AA$9)) ->  | R38: =IF(ISBLANK(H38)," ",(LOOKUP(H38,'Component Weights'!$B$16:$J$16,'Component Weights'!$B$17:$J$17)*$AA$10)) -> 0.24 | S38: =IF(ISBLANK(I38)," ",(LOOKUP(I38,'Component Weights'!$B$16:$J$16,'Component Weights'!$B$17:$J$17)*$AA$11)) -> 0.08 | T38: =IF(ISBLANK(J38)," ",(LOOKUP(J38,'Component Weights'!$B$16:$J$16,'Component Weights'!$B$17:$J$17)*$AA$12)) -> 0.24 | U38: 0.8 | V38: 35 | X38: 0.8
A39: Fiberglass - Triple Pane w/Argon | C39: M | D39: N | E39: L | F39: N | G39: N | H39: M | I39: L | J39: M | K39: =SUM(IF(ISBLANK(C39),,LOOKUP(C39,'Component Weights'!$B$16:$J$16,'Component Weights'!$B$17:$J$17)),IF(ISBLANK(D39),,LOOKUP(D39,'Component Weights'!$B$16:$J$16,'Component Weights'!$B$17:$J$17)),IF(ISBLANK(E39),,LOOKUP(E39,'Component Weights'!$B$16:$J$16,'Component Weights'!$B$17:$J$17)),IF(ISBLANK(F39),,LOOKUP(F39,'Component Weights'!$B$16:$J$16,'Component Weights'!$B$17:$J$17)),IF(ISBLANK(G39),,LOOKUP(G39,'Component Weights'!$B$16:$J$16,'Component Weights'!$B$17:$J$17)),IF(ISBLANK(B39),,LOOKUP(B39,'Component Weights'!$B$16:$J$16,'Component Weights'!$B$17:$J$17)),IF(ISBLANK(H39),,LOOKUP(H39,'Component Weights'!$B$16:$J$16,'Component Weights'!$B$17:$J$17)),IF(ISBLANK(I39),,LOOKUP(I39,'Component Weights'!$B$16:$J$16,'Component Weights'!$B$17:$J$17)),IF(ISBLANK(J39),,LOOKUP(J39,'Component Weights'!$B$16:$J$16,'Component Weights'!$B$17:$J$17))) -> 8 | L39: =IF(ISBLANK(C39)," ",(LOOKUP(C39,'Component Weights'!$B$16:$J$16,'Component Weights'!$B$17:$J$17)*$AA$4)) -> 0.16 | M39: =IF(ISBLANK(D39)," ",(LOOKUP(D39,'Component Weights'!$B$16:$J$16,'Component Weights'!$B$17:$J$17)*$AA$5)) -> 0 | N39: =IF(ISBLANK(E39)," ",(LOOKUP(E39,'Component Weights'!$B$16:$J$16,'Component Weights'!$B$17:$J$17)*$AA$6)) -> 0.08 | O39: =IF(ISBLANK(F39)," ",(LOOKUP(F39,'Component Weights'!$B$16:$J$16,'Component Weights'!$B$17:$J$17)*$AA$7)) -> 0 | P39: =IF(ISBLANK(G39)," ",(LOOKUP(G39,'Component Weights'!$B$16:$J$16,'Component Weights'!$B$17:$J$17)*$AA$8)) -> 0 | Q39: =IF(ISBLANK(B39)," ",(LOOKUP(B39,'Component Weights'!$B$16:$J$16,'Component Weights'!$B$17:$J$17)*$AA$9)) ->  | R39: =IF(ISBLANK(H39)," ",(LOOKUP(H39,'Component Weights'!$B$16:$J$16,'Component Weights'!$B$17:$J$17)*$AA$10)) -> 0.24 | S39: =IF(ISBLANK(I39)," ",(LOOKUP(I39,'Component Weights'!$B$16:$J$16,'Component Weights'!$B$17:$J$17)*$AA$11)) -> 0.08 | T39: =IF(ISBLANK(J39)," ",(LOOKUP(J39,'Component Weights'!$B$16:$J$16,'Component Weights'!$B$17:$J$17)*$AA$12)) -> 0.24 | U39: 0.8 | V39: 35 | X39: 0.8
A40: Metal - Double Pane w/Argon | C40: M | D40: N | E40: L | F40: N | G40: N | H40: M | I40: L | J40: M | K40: =SUM(IF(ISBLANK(C40),,LOOKUP(C40,'Component Weights'!$B$16:$J$16,'Component Weights'!$B$17:$J$17)),IF(ISBLANK(D40),,LOOKUP(D40,'Component Weights'!$B$16:$J$16,'Component Weights'!$B$17:$J$17)),IF(ISBLANK(E40),,LOOKUP(E40,'Component Weights'!$B$16:$J$16,'Component Weights'!$B$17:$J$17)),IF(ISBLANK(F40),,LOOKUP(F40,'Component Weights'!$B$16:$J$16,'Component Weights'!$B$17:$J$17)),IF(ISBLANK(G40),,LOOKUP(G40,'Component Weights'!$B$16:$J$16,'Component Weights'!$B$17:$J$17)),IF(ISBLANK(B40),,LOOKUP(B40,'Component Weights'!$B$16:$J$16,'Component Weights'!$B$17:$J$17)),IF(ISBLANK(H40),,LOOKUP(H40,'Component Weights'!$B$16:$J$16,'Component Weights'!$B$17:$J$17)),IF(ISBLANK(I40),,LOOKUP(I40,'Component Weights'!$B$16:$J$16,'Component Weights'!$B$17:$J$17)),IF(ISBLANK(J40),,LOOKUP(J40,'Component Weights'!$B$16:$J$16,'Component Weights'!$B$17:$J$17))) -> 8 | L40: =IF(ISBLANK(C40)," ",(LOOKUP(C40,'Component Weights'!$B$16:$J$16,'Component Weights'!$B$17:$J$17)*$AA$4)) -> 0.16 | M40: =IF(ISBLANK(D40)," ",(LOOKUP(D40,'Component Weights'!$B$16:$J$16,'Component Weights'!$B$17:$J$17)*$AA$5)) -> 0 | N40: =IF(ISBLANK(E40)," ",(LOOKUP(E40,'Component Weights'!$B$16:$J$16,'Component Weights'!$B$17:$J$17)*$AA$6)) -> 0.08 | O40: =IF(ISBLANK(F40)," ",(LOOKUP(F40,'Component Weights'!$B$16:$J$16,'Component Weights'!$B$17:$J$17)*$AA$7)) -> 0 | P40: =IF(ISBLANK(G40)," ",(LOOKUP(G40,'Component Weights'!$B$16:$J$16,'Component Weights'!$B$17:$J$17)*$AA$8)) -> 0 | Q40: =IF(ISBLANK(B40)," ",(LOOKUP(B40,'Component Weights'!$B$16:$J$16,'Component Weights'!$B$17:$J$17)*$AA$9)) ->  | R40: =IF(ISBLANK(H40)," ",(LOOKUP(H40,'Component Weights'!$B$16:$J$16,'Component Weights'!$B$17:$J$17)*$AA$10)) -> 0.24 | S40: =IF(ISBLANK(I40)," ",(LOOKUP(I40,'Component Weights'!$B$16:$J$16,'Component Weights'!$B$17:$J$17)*$AA$11)) -> 0.08 | T40: =IF(ISBLANK(J40)," ",(LOOKUP(J40,'Component Weights'!$B$16:$J$16,'Component Weights'!$B$17:$J$17)*$AA$12)) -> 0.24 | U40: 0.8 | V40: 35 | X40: 0.8
A41: Metal - Triple Pane w/Low-E | C41: M | D41: N | E41: L | F41: N | G41: N | H41: M | I41: L | J41: M | K41: =SUM(IF(ISBLANK(C41),,LOOKUP(C41,'Component Weights'!$B$16:$J$16,'Component Weights'!$B$17:$J$17)),IF(ISBLANK(D41),,LOOKUP(D41,'Component Weights'!$B$16:$J$16,'Component Weights'!$B$17:$J$17)),IF(ISBLANK(E41),,LOOKUP(E41,'Component Weights'!$B$16:$J$16,'Component Weights'!$B$17:$J$17)),IF(ISBLANK(F41),,LOOKUP(F41,'Component Weights'!$B$16:$J$16,'Component Weights'!$B$17:$J$17)),IF(ISBLANK(G41),,LOOKUP(G41,'Component Weights'!$B$16:$J$16,'Component Weights'!$B$17:$J$17)),IF(ISBLANK(B41),,LOOKUP(B41,'Component Weights'!$B$16:$J$16,'Component Weights'!$B$17:$J$17)),IF(ISBLANK(H41),,LOOKUP(H41,'Component Weights'!$B$16:$J$16,'Component Weights'!$B$17:$J$17)),IF(ISBLANK(I41),,LOOKUP(I41,'Component Weights'!$B$16:$J$16,'Component Weights'!$B$17:$J$17)),IF(ISBLANK(J41),,LOOKUP(J41,'Component Weights'!$B$16:$J$16,'Component Weights'!$B$17:$J$17))) -> 8 | L41: =IF(ISBLANK(C41)," ",(LOOKUP(C41,'Component Weights'!$B$16:$J$16,'Component Weights'!$B$17:$J$17)*$AA$4)) -> 0.16 | M41: =IF(ISBLANK(D41)," ",(LOOKUP(D41,'Component Weights'!$B$16:$J$16,'Component Weights'!$B$17:$J$17)*$AA$5)) -> 0 | N41: =IF(ISBLANK(E41)," ",(LOOKUP(E41,'Component Weights'!$B$16:$J$16,'Component Weights'!$B$17:$J$17)*$AA$6)) -> 0.08 | O41: =IF(ISBLANK(F41)," ",(LOOKUP(F41,'Component Weights'!$B$16:$J$16,'Component Weights'!$B$17:$J$17)*$AA$7)) -> 0 | P41: =IF(ISBLANK(G41)," ",(LOOKUP(G41,'Component Weights'!$B$16:$J$16,'Component Weights'!$B$17:$J$17)*$AA$8)) -> 0 | Q41: =IF(ISBLANK(B41)," ",(LOOKUP(B41,'Component Weights'!$B$16:$J$16,'Component Weights'!$B$17:$J$17)*$AA$9)) ->  | R41: =IF(ISBLANK(H41)," ",(LOOKUP(H41,'Component Weights'!$B$16:$J$16,'Component Weights'!$B$17:$J$17)*$AA$10)) -> 0.24 | S41: =IF(ISBLANK(I41)," ",(LOOKUP(I41,'Component Weights'!$B$16:$J$16,'Component Weights'!$B$17:$J$17)*$AA$11)) -> 0.08 | T41: =IF(ISBLANK(J41)," ",(LOOKUP(J41,'Component Weights'!$B$16:$J$16,'Component Weights'!$B$17:$J$17)*$AA$12)) -> 0.24 | U41: 0.8 | V41: 35 | X41: 0.8
A42: Wood - Single Pane w/Reflective Film | C42: L | D42: N | E42: L | F42: N | G42: M | H42: M | I42: N | J42: M | K42: =SUM(IF(ISBLANK(C42),,LOOKUP(C42,'Component Weights'!$B$16:$J$16,'Component Weights'!$B$17:$J$17)),IF(ISBLANK(D42),,LOOKUP(D42,'Component Weights'!$B$16:$J$16,'Component Weights'!$B$17:$J$17)),IF(ISBLANK(E42),,LOOKUP(E42,'Component Weights'!$B$16:$J$16,'Component Weights'!$B$17:$J$17)),IF(ISBLANK(F42),,LOOKUP(F42,'Component Weights'!$B$16:$J$16,'Component Weights'!$B$17:$J$17)),IF(ISBLANK(G42),,LOOKUP(G42,'Component Weights'!$B$16:$J$16,'Component Weights'!$B$17:$J$17)),IF(ISBLANK(B42),,LOOKUP(B42,'Component Weights'!$B$16:$J$16,'Component Weights'!$B$17:$J$17)),IF(ISBLANK(H42),,LOOKUP(H42,'Component Weights'!$B$16:$J$16,'Component Weights'!$B$17:$J$17)),IF(ISBLANK(I42),,LOOKUP(I42,'Component Weights'!$B$16:$J$16,'Component Weights'!$B$17:$J$17)),IF(ISBLANK(J42),,LOOKUP(J42,'Component Weights'!$B$16:$J$16,'Component Weights'!$B$17:$J$17))) -> 8 | L42: =IF(ISBLANK(C42)," ",(LOOKUP(C42,'Component Weights'!$B$16:$J$16,'Component Weights'!$B$17:$J$17)*$AA$4)) -> 0.08 | M42: =IF(ISBLANK(D42)," ",(LOOKUP(D42,'Component Weights'!$B$16:$J$16,'Component Weights'!$B$17:$J$17)*$AA$5)) -> 0 | N42: =IF(ISBLANK(E42)," ",(LOOKUP(E42,'Component Weights'!$B$16:$J$16,'Component Weights'!$B$17:$J$17)*$AA$6)) -> 0.08 | O42: =IF(ISBLANK(F42)," ",(LOOKUP(F42,'Component Weights'!$B$16:$J$16,'Component Weights'!$B$17:$J$17)*$AA$7)) -> 0 | P42: =IF(ISBLANK(G42)," ",(LOOKUP(G42,'Component Weights'!$B$16:$J$16,'Component Weights'!$B$17:$J$17)*$AA$8)) -> 0.1 | Q42: =IF(ISBLANK(B42)," ",(LOOKUP(B42,'Component Weights'!$B$16:$J$16,'Component Weights'!$B$17:$J$17)*$AA$9)) ->  | R42: =IF(ISBLANK(H42)," ",(LOOKUP(H42,'Component Weights'!$B$16:$J$16,'Component Weights'!$B$17:$J$17)*$AA$10)) -> 0.24 | S42: =IF(ISBLANK(I42)," ",(LOOKUP(I42,'Component Weights'!$B$16:$J$16,'Component Weights'!$B$17:$J$17)*$AA$11)) -> 0 | T42: =IF(ISBLANK(J42)," ",(LOOKUP(J42,'Component Weights'!$B$16:$J$16,'Component Weights'!$B$17:$J$17)*$AA$12)) -> 0.24 | U42: 0.74 | V42: 41 | X42: 0.74
A43: Wood - Double Pane | C43: L | D43: N | E43: L | F43: N | G43: M | H43: M | I43: N | J43: M | K43: =SUM(IF(ISBLANK(C43),,LOOKUP(C43,'Component Weights'!$B$16:$J$16,'Component Weights'!$B$17:$J$17)),IF(ISBLANK(D43),,LOOKUP(D43,'Component Weights'!$B$16:$J$16,'Component Weights'!$B$17:$J$17)),IF(ISBLANK(E43),,LOOKUP(E43,'Component Weights'!$B$16:$J$16,'Component Weights'!$B$17:$J$17)),IF(ISBLANK(F43),,LOOKUP(F43,'Component Weights'!$B$16:$J$16,'Component Weights'!$B$17:$J$17)),IF(ISBLANK(G43),,LOOKUP(G43,'Component Weights'!$B$16:$J$16,'Component Weights'!$B$17:$J$17)),IF(ISBLANK(B43),,LOOKUP(B43,'Component Weights'!$B$16:$J$16,'Component Weights'!$B$17:$J$17)),IF(ISBLANK(H43),,LOOKUP(H43,'Component Weights'!$B$16:$J$16,'Component Weights'!$B$17:$J$17)),IF(ISBLANK(I43),,LOOKUP(I43,'Component Weights'!$B$16:$J$16,'Component Weights'!$B$17:$J$17)),IF(ISBLANK(J43),,LOOKUP(J43,'Component Weights'!$B$16:$J$16,'Component Weights'!$B$17:$J$17))) -> 8 | L43: =IF(ISBLANK(C43)," ",(LOOKUP(C43,'Component Weights'!$B$16:$J$16,'Component Weights'!$B$17:$J$17)*$AA$4)) -> 0.08 | M43: =IF(ISBLANK(D43)," ",(LOOKUP(D43,'Component Weights'!$B$16:$J$16,'Component Weights'!$B$17:$J$17)*$AA$5)) -> 0 | N43: =IF(ISBLANK(E43)," ",(LOOKUP(E43,'Component Weights'!$B$16:$J$16,'Component Weights'!$B$17:$J$17)*$AA$6)) -> 0.08 | O43: =IF(ISBLANK(F43)," ",(LOOKUP(F43,'Component Weights'!$B$16:$J$16,'Component Weights'!$B$17:$J$17)*$AA$7)) -> 0 | P43: =IF(ISBLANK(G43)," ",(LOOKUP(G43,'Component Weights'!$B$16:$J$16,'Component Weights'!$B$17:$J$17)*$AA$8)) -> 0.1 | Q43: =IF(ISBLANK(B43)," ",(LOOKUP(B43,'Component Weights'!$B$16:$J$16,'Component Weights'!$B$17:$J$17)*$AA$9)) ->  | R43: =IF(ISBLANK(H43)," ",(LOOKUP(H43,'Component Weights'!$B$16:$J$16,'Component Weights'!$B$17:$J$17)*$AA$10)) -> 0.24 | S43: =IF(ISBLANK(I43)," ",(LOOKUP(I43,'Component Weights'!$B$16:$J$16,'Component Weights'!$B$17:$J$17)*$AA$11)) -> 0 | T43: =IF(ISBLANK(J43)," ",(LOOKUP(J43,'Component Weights'!$B$16:$J$16,'Component Weights'!$B$17:$J$17)*$AA$12)) -> 0.24 | U43: 0.74 | V43: 41 | X43: 0.74
A44: Wood - Triple Pane | C44: L | D44: N | E44: L | F44: N | G44: M | H44: M | I44: N | J44: M | K44: =SUM(IF(ISBLANK(C44),,LOOKUP(C44,'Component Weights'!$B$16:$J$16,'Component Weights'!$B$17:$J$17)),IF(ISBLANK(D44),,LOOKUP(D44,'Component Weights'!$B$16:$J$16,'Component Weights'!$B$17:$J$17)),IF(ISBLANK(E44),,LOOKUP(E44,'Component Weights'!$B$16:$J$16,'Component Weights'!$B$17:$J$17)),IF(ISBLANK(F44),,LOOKUP(F44,'Component Weights'!$B$16:$J$16,'Component Weights'!$B$17:$J$17)),IF(ISBLANK(G44),,LOOKUP(G44,'Component Weights'!$B$16:$J$16,'Component Weights'!$B$17:$J$17)),IF(ISBLANK(B44),,LOOKUP(B44,'Component Weights'!$B$16:$J$16,'Component Weights'!$B$17:$J$17)),IF(ISBLANK(H44),,LOOKUP(H44,'Component Weights'!$B$16:$J$16,'Component Weights'!$B$17:$J$17)),IF(ISBLANK(I44),,LOOKUP(I44,'Component Weights'!$B$16:$J$16,'Component Weights'!$B$17:$J$17)),IF(ISBLANK(J44),,LOOKUP(J44,'Component Weights'!$B$16:$J$16,'Component Weights'!$B$17:$J$17))) -> 8 | L44: =IF(ISBLANK(C44)," ",(LOOKUP(C44,'Component Weights'!$B$16:$J$16,'Component Weights'!$B$17:$J$17)*$AA$4)) -> 0.08 | M44: =IF(ISBLANK(D44)," ",(LOOKUP(D44,'Component Weights'!$B$16:$J$16,'Component Weights'!$B$17:$J$17)*$AA$5)) -> 0 | N44: =IF(ISBLANK(E44)," ",(LOOKUP(E44,'Component Weights'!$B$16:$J$16,'Component Weights'!$B$17:$J$17)*$AA$6)) -> 0.08 | O44: =IF(ISBLANK(F44)," ",(LOOKUP(F44,'Component Weights'!$B$16:$J$16,'Component Weights'!$B$17:$J$17)*$AA$7)) -> 0 | P44: =IF(ISBLANK(G44)," ",(LOOKUP(G44,'Component Weights'!$B$16:$J$16,'Component Weights'!$B$17:$J$17)*$AA$8)) -> 0.1 | Q44: =IF(ISBLANK(B44)," ",(LOOKUP(B44,'Component Weights'!$B$16:$J$16,'Component Weights'!$B$17:$J$17)*$AA$9)) ->  | R44: =IF(ISBLANK(H44)," ",(LOOKUP(H44,'Component Weights'!$B$16:$J$16,'Component Weights'!$B$17:$J$17)*$AA$10)) -> 0.24 | S44: =IF(ISBLANK(I44)," ",(LOOKUP(I44,'Component Weights'!$B$16:$J$16,'Component Weights'!$B$17:$J$17)*$AA$11)) -> 0 | T44: =IF(ISBLANK(J44)," ",(LOOKUP(J44,'Component Weights'!$B$16:$J$16,'Component Weights'!$B$17:$J$17)*$AA$12)) -> 0.24 | U44: 0.74 | V44: 41 | X44: 0.74
A45: Vinyl - Double Pane w/Reflective Film | C45: M | D45: N | E45: N | F45: N | G45: N | H45: M | I45: L | J45: M | K45: =SUM(IF(ISBLANK(C45),,LOOKUP(C45,'Component Weights'!$B$16:$J$16,'Component Weights'!$B$17:$J$17)),IF(ISBLANK(D45),,LOOKUP(D45,'Component Weights'!$B$16:$J$16,'Component Weights'!$B$17:$J$17)),IF(ISBLANK(E45),,LOOKUP(E45,'Component Weights'!$B$16:$J$16,'Component Weights'!$B$17:$J$17)),IF(ISBLANK(F45),,LOOKUP(F45,'Component Weights'!$B$16:$J$16,'Component Weights'!$B$17:$J$17)),IF(ISBLANK(G45),,LOOKUP(G45,'Component Weights'!$B$16:$J$16,'Component Weights'!$B$17:$J$17)),IF(ISBLANK(B45),,LOOKUP(B45,'Component Weights'!$B$16:$J$16,'Component Weights'!$B$17:$J$17)),IF(ISBLANK(H45),,LOOKUP(H45,'Component Weights'!$B$16:$J$16,'Component Weights'!$B$17:$J$17)),IF(ISBLANK(I45),,LOOKUP(I45,'Component Weights'!$B$16:$J$16,'Component Weights'!$B$17:$J$17)),IF(ISBLANK(J45),,LOOKUP(J45,'Component Weights'!$B$16:$J$16,'Component Weights'!$B$17:$J$17))) -> 7 | L45: =IF(ISBLANK(C45)," ",(LOOKUP(C45,'Component Weights'!$B$16:$J$16,'Component Weights'!$B$17:$J$17)*$AA$4)) -> 0.16 | M45: =IF(ISBLANK(D45)," ",(LOOKUP(D45,'Component Weights'!$B$16:$J$16,'Component Weights'!$B$17:$J$17)*$AA$5)) -> 0 | N45: =IF(ISBLANK(E45)," ",(LOOKUP(E45,'Component Weights'!$B$16:$J$16,'Component Weights'!$B$17:$J$17)*$AA$6)) -> 0 | O45: =IF(ISBLANK(F45)," ",(LOOKUP(F45,'Component Weights'!$B$16:$J$16,'Component Weights'!$B$17:$J$17)*$AA$7)) -> 0 | P45: =IF(ISBLANK(G45)," ",(LOOKUP(G45,'Component Weights'!$B$16:$J$16,'Component Weights'!$B$17:$J$17)*$AA$8)) -> 0 | Q45: =IF(ISBLANK(B45)," ",(LOOKUP(B45,'Component Weights'!$B$16:$J$16,'Component Weights'!$B$17:$J$17)*$AA$9)) ->  | R45: =IF(ISBLANK(H45)," ",(LOOKUP(H45,'Component Weights'!$B$16:$J$16,'Component Weights'!$B$17:$J$17)*$AA$10)) -> 0.24 | S45: =IF(ISBLANK(I45)," ",(LOOKUP(I45,'Component Weights'!$B$16:$J$16,'Component Weights'!$B$17:$J$17)*$AA$11)) -> 0.08 | T45: =IF(ISBLANK(J45)," ",(LOOKUP(J45,'Component Weights'!$B$16:$J$16,'Component Weights'!$B$17:$J$17)*$AA$12)) -> 0.24 | U45: 0.72 | V45: 44 | X45: 0.72
A46: Fiberglass - Triple Pane w/Reflective Film | C46: M | D46: N | E46: L | F46: N | G46: N | H46: M | I46: N | J46: M | K46: =SUM(IF(ISBLANK(C46),,LOOKUP(C46,'Component Weights'!$B$16:$J$16,'Component Weights'!$B$17:$J$17)),IF(ISBLANK(D46),,LOOKUP(D46,'Component Weights'!$B$16:$J$16,'Component Weights'!$B$17:$J$17)),IF(ISBLANK(E46),,LOOKUP(E46,'Component Weights'!$B$16:$J$16,'Component Weights'!$B$17:$J$17)),IF(ISBLANK(F46),,LOOKUP(F46,'Component Weights'!$B$16:$J$16,'Component Weights'!$B$17:$J$17)),IF(ISBLANK(G46),,LOOKUP(G46,'Component Weights'!$B$16:$J$16,'Component Weights'!$B$17:$J$17)),IF(ISBLANK(B46),,LOOKUP(B46,'Component Weights'!$B$16:$J$16,'Component Weights'!$B$17:$J$17)),IF(ISBLANK(H46),,LOOKUP(H46,'Component Weights'!$B$16:$J$16,'Component Weights'!$B$17:$J$17)),IF(ISBLANK(I46),,LOOKUP(I46,'Component Weights'!$B$16:$J$16,'Component Weights'!$B$17:$J$17)),IF(ISBLANK(J46),,LOOKUP(J46,'Component Weights'!$B$16:$J$16,'Component Weights'!$B$17:$J$17))) -> 7 | L46: =IF(ISBLANK(C46)," ",(LOOKUP(C46,'Component Weights'!$B$16:$J$16,'Component Weights'!$B$17:$J$17)*$AA$4)) -> 0.16 | M46: =IF(ISBLANK(D46)," ",(LOOKUP(D46,'Component Weights'!$B$16:$J$16,'Component Weights'!$B$17:$J$17)*$AA$5)) -> 0 | N46: =IF(ISBLANK(E46)," ",(LOOKUP(E46,'Component Weights'!$B$16:$J$16,'Component Weights'!$B$17:$J$17)*$AA$6)) -> 0.08 | O46: =IF(ISBLANK(F46)," ",(LOOKUP(F46,'Component Weights'!$B$16:$J$16,'Component Weights'!$B$17:$J$17)*$AA$7)) -> 0 | P46: =IF(ISBLANK(G46)," ",(LOOKUP(G46,'Component Weights'!$B$16:$J$16,'Component Weights'!$B$17:$J$17)*$AA$8)) -> 0 | Q46: =IF(ISBLANK(B46)," ",(LOOKUP(B46,'Component Weights'!$B$16:$J$16,'Component Weights'!$B$17:$J$17)*$AA$9)) ->  | R46: =IF(ISBLANK(H46)," ",(LOOKUP(H46,'Component Weights'!$B$16:$J$16,'Component Weights'!$B$17:$J$17)*$AA$10)) -> 0.24 | S46: =IF(ISBLANK(I46)," ",(LOOKUP(I46,'Component Weights'!$B$16:$J$16,'Component Weights'!$B$17:$J$17)*$AA$11)) -> 0 | T46: =IF(ISBLANK(J46)," ",(LOOKUP(J46,'Component Weights'!$B$16:$J$16,'Component Weights'!$B$17:$J$17)*$AA$12)) -> 0.24 | U46: 0.72 | V46: 44 | X46: 0.72
A47: Metal - Triple Pane w/Reflective Film | C47: M | D47: N | E47: L | F47: N | G47: N | H47: M | I47: N | J47: M | K47: =SUM(IF(ISBLANK(C47),,LOOKUP(C47,'Component Weights'!$B$16:$J$16,'Component Weights'!$B$17:$J$17)),IF(ISBLANK(D47),,LOOKUP(D47,'Component Weights'!$B$16:$J$16,'Component Weights'!$B$17:$J$17)),IF(ISBLANK(E47),,LOOKUP(E47,'Component Weights'!$B$16:$J$16,'Component Weights'!$B$17:$J$17)),IF(ISBLANK(F47),,LOOKUP(F47,'Component Weights'!$B$16:$J$16,'Component Weights'!$B$17:$J$17)),IF(ISBLANK(G47),,LOOKUP(G47,'Component Weights'!$B$16:$J$16,'Component Weights'!$B$17:$J$17)),IF(ISBLANK(B47),,LOOKUP(B47,'Component Weights'!$B$16:$J$16,'Component Weights'!$B$17:$J$17)),IF(ISBLANK(H47),,LOOKUP(H47,'Component Weights'!$B$16:$J$16,'Component Weights'!$B$17:$J$17)),IF(ISBLANK(I47),,LOOKUP(I47,'Component Weights'!$B$16:$J$16,'Component Weights'!$B$17:$J$17)),IF(ISBLANK(J47),,LOOKUP(J47,'Component Weights'!$B$16:$J$16,'Component Weights'!$B$17:$J$17))) -> 7 | L47: =IF(ISBLANK(C47)," ",(LOOKUP(C47,'Component Weights'!$B$16:$J$16,'Component Weights'!$B$17:$J$17)*$AA$4)) -> 0.16 | M47: =IF(ISBLANK(D47)," ",(LOOKUP(D47,'Component Weights'!$B$16:$J$16,'Component Weights'!$B$17:$J$17)*$AA$5)) -> 0 | N47: =IF(ISBLANK(E47)," ",(LOOKUP(E47,'Component Weights'!$B$16:$J$16,'Component Weights'!$B$17:$J$17)*$AA$6)) -> 0.08 | O47: =IF(ISBLANK(F47)," ",(LOOKUP(F47,'Component Weights'!$B$16:$J$16,'Component Weights'!$B$17:$J$17)*$AA$7)) -> 0 | P47: =IF(ISBLANK(G47)," ",(LOOKUP(G47,'Component Weights'!$B$16:$J$16,'Component Weights'!$B$17:$J$17)*$AA$8)) -> 0 | Q47: =IF(ISBLANK(B47)," ",(LOOKUP(B47,'Component Weights'!$B$16:$J$16,'Component Weights'!$B$17:$J$17)*$AA$9)) ->  | R47: =IF(ISBLANK(H47)," ",(LOOKUP(H47,'Component Weights'!$B$16:$J$16,'Component Weights'!$B$17:$J$17)*$AA$10)) -> 0.24 | S47: =IF(ISBLANK(I47)," ",(LOOKUP(I47,'Component Weights'!$B$16:$J$16,'Component Weights'!$B$17:$J$17)*$AA$11)) -> 0 | T47: =IF(ISBLANK(J47)," ",(LOOKUP(J47,'Component Weights'!$B$16:$J$16,'Component Weights'!$B$17:$J$17)*$AA$12)) -> 0.24 | U47: 0.72 | V47: 44 | X47: 0.72
A48: Fiberglass - Double Pane | C48: L | D48: N | E48: L | F48: N | G48: N | H48: M | I48: L | J48: M | K48: =SUM(IF(ISBLANK(C48),,LOOKUP(C48,'Component Weights'!$B$16:$J$16,'Component Weights'!$B$17:$J$17)),IF(ISBLANK(D48),,LOOKUP(D48,'Component Weights'!$B$16:$J$16,'Component Weights'!$B$17:$J$17)),IF(ISBLANK(E48),,LOOKUP(E48,'Component Weights'!$B$16:$J$16,'Component Weights'!$B$17:$J$17)),IF(ISBLANK(F48),,LOOKUP(F48,'Component Weights'!$B$16:$J$16,'Component Weights'!$B$17:$J$17)),IF(ISBLANK(G48),,LOOKUP(G48,'Component Weights'!$B$16:$J$16,'Component Weights'!$B$17:$J$17)),IF(ISBLANK(B48),,LOOKUP(B48,'Component Weights'!$B$16:$J$16,'Component Weights'!$B$17:$J$17)),IF(ISBLANK(H48),,LOOKUP(H48,'Component Weights'!$B$16:$J$16,'Component Weights'!$B$17:$J$17)),IF(ISBLANK(I48),,LOOKUP(I48,'Component Weights'!$B$16:$J$16,'Component Weights'!$B$17:$J$17)),IF(ISBLANK(J48),,LOOKUP(J48,'Component Weights'!$B$16:$J$16,'Component Weights'!$B$17:$J$17))) -> 7 | L48: =IF(ISBLANK(C48)," ",(LOOKUP(C48,'Component Weights'!$B$16:$J$16,'Component Weights'!$B$17:$J$17)*$AA$4)) -> 0.08 | M48: =IF(ISBLANK(D48)," ",(LOOKUP(D48,'Component Weights'!$B$16:$J$16,'Component Weights'!$B$17:$J$17)*$AA$5)) -> 0 | N48: =IF(ISBLANK(E48)," ",(LOOKUP(E48,'Component Weights'!$B$16:$J$16,'Component Weights'!$B$17:$J$17)*$AA$6)) -> 0.08 | O48: =IF(ISBLANK(F48)," ",(LOOKUP(F48,'Component Weights'!$B$16:$J$16,'Component Weights'!$B$17:$J$17)*$AA$7)) -> 0 | P48: =IF(ISBLANK(G48)," ",(LOOKUP(G48,'Component Weights'!$B$16:$J$16,'Component Weights'!$B$17:$J$17)*$AA$8)) -> 0 | Q48: =IF(ISBLANK(B48)," ",(LOOKUP(B48,'Component Weights'!$B$16:$J$16,'Component Weights'!$B$17:$J$17)*$AA$9)) ->  | R48: =IF(ISBLANK(H48)," ",(LOOKUP(H48,'Component Weights'!$B$16:$J$16,'Component Weights'!$B$17:$J$17)*$AA$10)) -> 0.24 | S48: =IF(ISBLANK(I48)," ",(LOOKUP(I48,'Component Weights'!$B$16:$J$16,'Component Weights'!$B$17:$J$17)*$AA$11)) -> 0.08 | T48: =IF(ISBLANK(J48)," ",(LOOKUP(J48,'Component Weights'!$B$16:$J$16,'Component Weights'!$B$17:$J$17)*$AA$12)) -> 0.24 | U48: 0.72 | V48: 44 | X48: 0.72
A49: Wood - Single Pane | C49: N | D49: N | E49: L | F49: N | G49: M | H49: M | I49: N | J49: M | K49: =SUM(IF(ISBLANK(C49),,LOOKUP(C49,'Component Weights'!$B$16:$J$16,'Component Weights'!$B$17:$J$17)),IF(ISBLANK(D49),,LOOKUP(D49,'Component Weights'!$B$16:$J$16,'Component Weights'!$B$17:$J$17)),IF(ISBLANK(E49),,LOOKUP(E49,'Component Weights'!$B$16:$J$16,'Component Weights'!$B$17:$J$17)),IF(ISBLANK(F49),,LOOKUP(F49,'Component Weights'!$B$16:$J$16,'Component Weights'!$B$17:$J$17)),IF(ISBLANK(G49),,LOOKUP(G49,'Component Weights'!$B$16:$J$16,'Component Weights'!$B$17:$J$17)),IF(ISBLANK(B49),,LOOKUP(B49,'Component Weights'!$B$16:$J$16,'Component Weights'!$B$17:$J$17)),IF(ISBLANK(H49),,LOOKUP(H49,'Component Weights'!$B$16:$J$16,'Component Weights'!$B$17:$J$17)),IF(ISBLANK(I49),,LOOKUP(I49,'Component Weights'!$B$16:$J$16,'Component Weights'!$B$17:$J$17)),IF(ISBLANK(J49),,LOOKUP(J49,'Component Weights'!$B$16:$J$16,'Component Weights'!$B$17:$J$17))) -> 7 | L49: =IF(ISBLANK(C49)," ",(LOOKUP(C49,'Component Weights'!$B$16:$J$16,'Component Weights'!$B$17:$J$17)*$AA$4)) -> 0 | M49: =IF(ISBLANK(D49)," ",(LOOKUP(D49,'Component Weights'!$B$16:$J$16,'Component Weights'!$B$17:$J$17)*$AA$5)) -> 0 | N49: =IF(ISBLANK(E49)," ",(LOOKUP(E49,'Component Weights'!$B$16:$J$16,'Component Weights'!$B$17:$J$17)*$AA$6)) -> 0.08 | O49: =IF(ISBLANK(F49)," ",(LOOKUP(F49,'Component Weights'!$B$16:$J$16,'Component Weights'!$B$17:$J$17)*$AA$7)) -> 0 | P49: =IF(ISBLANK(G49)," ",(LOOKUP(G49,'Component Weights'!$B$16:$J$16,'Component Weights'!$B$17:$J$17)*$AA$8)) -> 0.1 | Q49: =IF(ISBLANK(B49)," ",(LOOKUP(B49,'Component Weights'!$B$16:$J$16,'Component Weights'!$B$17:$J$17)*$AA$9)) ->  | R49: =IF(ISBLANK(H49)," ",(LOOKUP(H49,'Component Weights'!$B$16:$J$16,'Component Weights'!$B$17:$J$17)*$AA$10)) -> 0.24 | S49: =IF(ISBLANK(I49)," ",(LOOKUP(I49,'Component Weights'!$B$16:$J$16,'Component Weights'!$B$17:$J$17)*$AA$11)) -> 0 | T49: =IF(ISBLANK(J49)," ",(LOOKUP(J49,'Component Weights'!$B$16:$J$16,'Component Weights'!$B$17:$J$17)*$AA$12)) -> 0.24 | U49: 0.66 | V49: 48 | X49: 0.66
A50: Vinyl - Triple Pane w/Reflective Film | C50: M | D50: N | E50: N | F50: N | G50: N | H50: M | I50: N | J50: M | K50: =SUM(IF(ISBLANK(C50),,LOOKUP(C50,'Component Weights'!$B$16:$J$16,'Component Weights'!$B$17:$J$17)),IF(ISBLANK(D50),,LOOKUP(D50,'Component Weights'!$B$16:$J$16,'Component Weights'!$B$17:$J$17)),IF(ISBLANK(E50),,LOOKUP(E50,'Component Weights'!$B$16:$J$16,'Component Weights'!$B$17:$J$17)),IF(ISBLANK(F50),,LOOKUP(F50,'Component Weights'!$B$16:$J$16,'Component Weights'!$B$17:$J$17)),IF(ISBLANK(G50),,LOOKUP(G50,'Component Weights'!$B$16:$J$16,'Component Weights'!$B$17:$J$17)),IF(ISBLANK(B50),,LOOKUP(B50,'Component Weights'!$B$16:$J$16,'Component Weights'!$B$17:$J$17)),IF(ISBLANK(H50),,LOOKUP(H50,'Component Weights'!$B$16:$J$16,'Component Weights'!$B$17:$J$17)),IF(ISBLANK(I50),,LOOKUP(I50,'Component Weights'!$B$16:$J$16,'Component Weights'!$B$17:$J$17)),IF(ISBLANK(J50),,LOOKUP(J50,'Component Weights'!$B$16:$J$16,'Component Weights'!$B$17:$J$17))) -> 6 | L50: =IF(ISBLANK(C50)," ",(LOOKUP(C50,'Component Weights'!$B$16:$J$16,'Component Weights'!$B$17:$J$17)*$AA$4)) -> 0.16 | M50: =IF(ISBLANK(D50)," ",(LOOKUP(D50,'Component Weights'!$B$16:$J$16,'Component Weights'!$B$17:$J$17)*$AA$5)) -> 0 | N50: =IF(ISBLANK(E50)," ",(LOOKUP(E50,'Component Weights'!$B$16:$J$16,'Component Weights'!$B$17:$J$17)*$AA$6)) -> 0 | O50: =IF(ISBLANK(F50)," ",(LOOKUP(F50,'Component Weights'!$B$16:$J$16,'Component Weights'!$B$17:$J$17)*$AA$7)) -> 0 | P50: =IF(ISBLANK(G50)," ",(LOOKUP(G50,'Component Weights'!$B$16:$J$16,'Component Weights'!$B$17:$J$17)*$AA$8)) -> 0 | Q50: =IF(ISBLANK(B50)," ",(LOOKUP(B50,'Component Weights'!$B$16:$J$16,'Component Weights'!$B$17:$J$17)*$AA$9)) ->  | R50: =IF(ISBLANK(H50)," ",(LOOKUP(H50,'Component Weights'!$B$16:$J$16,'Component Weights'!$B$17:$J$17)*$AA$10)) -> 0.24 | S50: =IF(ISBLANK(I50)," ",(LOOKUP(I50,'Component Weights'!$B$16:$J$16,'Component Weights'!$B$17:$J$17)*$AA$11)) -> 0 | T50: =IF(ISBLANK(J50)," ",(LOOKUP(J50,'Component Weights'!$B$16:$J$16,'Component Weights'!$B$17:$J$17)*$AA$12)) -> 0.24 | U50: 0.64 | V50: 49 | X50: 0.64
A51: Vinyl - Double Pane | C51: L | D51: N | E51: N | F51: N | G51: N | H51: M | I51: L | J51: M | K51: =SUM(IF(ISBLANK(C51),,LOOKUP(C51,'Component Weights'!$B$16:$J$16,'Component Weights'!$B$17:$J$17)),IF(ISBLANK(D51),,LOOKUP(D51,'Component Weights'!$B$16:$J$16,'Component Weights'!$B$17:$J$17)),IF(ISBLANK(E51),,LOOKUP(E51,'Component Weights'!$B$16:$J$16,'Component Weights'!$B$17:$J$17)),IF(ISBLANK(F51),,LOOKUP(F51,'Component Weights'!$B$16:$J$16,'Component Weights'!$B$17:$J$17)),IF(ISBLANK(G51),,LOOKUP(G51,'Component Weights'!$B$16:$J$16,'Component Weights'!$B$17:$J$17)),IF(ISBLANK(B51),,LOOKUP(B51,'Component Weights'!$B$16:$J$16,'Component Weights'!$B$17:$J$17)),IF(ISBLANK(H51),,LOOKUP(H51,'Component Weights'!$B$16:$J$16,'Component Weights'!$B$17:$J$17)),IF(ISBLANK(I51),,LOOKUP(I51,'Component Weights'!$B$16:$J$16,'Component Weights'!$B$17:$J$17)),IF(ISBLANK(J51),,LOOKUP(J51,'Component Weights'!$B$16:$J$16,'Component Weights'!$B$17:$J$17))) -> 6 | L51: =IF(ISBLANK(C51)," ",(LOOKUP(C51,'Component Weights'!$B$16:$J$16,'Component Weights'!$B$17:$J$17)*$AA$4)) -> 0.08 | M51: =IF(ISBLANK(D51)," ",(LOOKUP(D51,'Component Weights'!$B$16:$J$16,'Component Weights'!$B$17:$J$17)*$AA$5)) -> 0 | N51: =IF(ISBLANK(E51)," ",(LOOKUP(E51,'Component Weights'!$B$16:$J$16,'Component Weights'!$B$17:$J$17)*$AA$6)) -> 0 | O51: =IF(ISBLANK(F51)," ",(LOOKUP(F51,'Component Weights'!$B$16:$J$16,'Component Weights'!$B$17:$J$17)*$AA$7)) -> 0 | P51: =IF(ISBLANK(G51)," ",(LOOKUP(G51,'Component Weights'!$B$16:$J$16,'Component Weights'!$B$17:$J$17)*$AA$8)) -> 0 | Q51: =IF(ISBLANK(B51)," ",(LOOKUP(B51,'Component Weights'!$B$16:$J$16,'Component Weights'!$B$17:$J$17)*$AA$9)) ->  | R51: =IF(ISBLANK(H51)," ",(LOOKUP(H51,'Component Weights'!$B$16:$J$16,'Component Weights'!$B$17:$J$17)*$AA$10)) -> 0.24 | S51: =IF(ISBLANK(I51)," ",(LOOKUP(I51,'Component Weights'!$B$16:$J$16,'Component Weights'!$B$17:$J$17)*$AA$11)) -> 0.08 | T51: =IF(ISBLANK(J51)," ",(LOOKUP(J51,'Component Weights'!$B$16:$J$16,'Component Weights'!$B$17:$J$17)*$AA$12)) -> 0.24 | U51: 0.64 | V51: 49 | X51: 0.64
A52: Fiberglass - Single Pane w/Reflective Film | C52: L | D52: N | E52: L | F52: N | G52: N | H52: M | I52: N | J52: M | K52: =SUM(IF(ISBLANK(C52),,LOOKUP(C52,'Component Weights'!$B$16:$J$16,'Component Weights'!$B$17:$J$17)),IF(ISBLANK(D52),,LOOKUP(D52,'Component Weights'!$B$16:$J$16,'Component Weights'!$B$17:$J$17)),IF(ISBLANK(E52),,LOOKUP(E52,'Component Weights'!$B$16:$J$16,'Component Weights'!$B$17:$J$17)),IF(ISBLANK(F52),,LOOKUP(F52,'Component Weights'!$B$16:$J$16,'Component Weights'!$B$17:$J$17)),IF(ISBLANK(G52),,LOOKUP(G52,'Component Weights'!$B$16:$J$16,'Component Weights'!$B$17:$J$17)),IF(ISBLANK(B52),,LOOKUP(B52,'Component Weights'!$B$16:$J$16,'Component Weights'!$B$17:$J$17)),IF(ISBLANK(H52),,LOOKUP(H52,'Component Weights'!$B$16:$J$16,'Component Weights'!$B$17:$J$17)),IF(ISBLANK(I52),,LOOKUP(I52,'Component Weights'!$B$16:$J$16,'Component Weights'!$B$17:$J$17)),IF(ISBLANK(J52),,LOOKUP(J52,'Component Weights'!$B$16:$J$16,'Component Weights'!$B$17:$J$17))) -> 6 | L52: =IF(ISBLANK(C52)," ",(LOOKUP(C52,'Component Weights'!$B$16:$J$16,'Component Weights'!$B$17:$J$17)*$AA$4)) -> 0.08 | M52: =IF(ISBLANK(D52)," ",(LOOKUP(D52,'Component Weights'!$B$16:$J$16,'Component Weights'!$B$17:$J$17)*$AA$5)) -> 0 | N52: =IF(ISBLANK(E52)," ",(LOOKUP(E52,'Component Weights'!$B$16:$J$16,'Component Weights'!$B$17:$J$17)*$AA$6)) -> 0.08 | O52: =IF(ISBLANK(F52)," ",(LOOKUP(F52,'Component Weights'!$B$16:$J$16,'Component Weights'!$B$17:$J$17)*$AA$7)) -> 0 | P52: =IF(ISBLANK(G52)," ",(LOOKUP(G52,'Component Weights'!$B$16:$J$16,'Component Weights'!$B$17:$J$17)*$AA$8)) -> 0 | Q52: =IF(ISBLANK(B52)," ",(LOOKUP(B52,'Component Weights'!$B$16:$J$16,'Component Weights'!$B$17:$J$17)*$AA$9)) ->  | R52: =IF(ISBLANK(H52)," ",(LOOKUP(H52,'Component Weights'!$B$16:$J$16,'Component Weights'!$B$17:$J$17)*$AA$10)) -> 0.24 | S52: =IF(ISBLANK(I52)," ",(LOOKUP(I52,'Component Weights'!$B$16:$J$16,'Component Weights'!$B$17:$J$17)*$AA$11)) -> 0 | T52: =IF(ISBLANK(J52)," ",(LOOKUP(J52,'Component Weights'!$B$16:$J$16,'Component Weights'!$B$17:$J$17)*$AA$12)) -> 0.24 | U52: 0.64 | V52: 49 | X52: 0.64
A53: Fiberglass - Triple Pane | C53: L | D53: N | E53: L | F53: N | G53: N | H53: M | I53: N | J53: M | K53: =SUM(IF(ISBLANK(C53),,LOOKUP(C53,'Component Weights'!$B$16:$J$16,'Component Weights'!$B$17:$J$17)),IF(ISBLANK(D53),,LOOKUP(D53,'Component Weights'!$B$16:$J$16,'Component Weights'!$B$17:$J$17)),IF(ISBLANK(E53),,LOOKUP(E53,'Component Weights'!$B$16:$J$16,'Component Weights'!$B$17:$J$17)),IF(ISBLANK(F53),,LOOKUP(F53,'Component Weights'!$B$16:$J$16,'Component Weights'!$B$17:$J$17)),IF(ISBLANK(G53),,LOOKUP(G53,'Component Weights'!$B$16:$J$16,'Component Weights'!$B$17:$J$17)),IF(ISBLANK(B53),,LOOKUP(B53,'Component Weights'!$B$16:$J$16,'Component Weights'!$B$17:$J$17)),IF(ISBLANK(H53),,LOOKUP(H53,'Component Weights'!$B$16:$J$16,'Component Weights'!$B$17:$J$17)),IF(ISBLANK(I53),,LOOKUP(I53,'Component Weights'!$B$16:$J$16,'Component Weights'!$B$17:$J$17)),IF(ISBLANK(J53),,LOOKUP(J53,'Component Weights'!$B$16:$J$16,'Component Weights'!$B$17:$J$17))) -> 6 | L53: =IF(ISBLANK(C53)," ",(LOOKUP(C53,'Component Weights'!$B$16:$J$16,'Component Weights'!$B$17:$J$17)*$AA$4)) -> 0.08 | M53: =IF(ISBLANK(D53)," ",(LOOKUP(D53,'Component Weights'!$B$16:$J$16,'Component Weights'!$B$17:$J$17)*$AA$5)) -> 0 | N53: =IF(ISBLANK(E53)," ",(LOOKUP(E53,'Component Weights'!$B$16:$J$16,'Component Weights'!$B$17:$J$17)*$AA$6)) -> 0.08 | O53: =IF(ISBLANK(F53)," ",(LOOKUP(F53,'Component Weights'!$B$16:$J$16,'Component Weights'!$B$17:$J$17)*$AA$7)) -> 0 | P53: =IF(ISBLANK(G53)," ",(LOOKUP(G53,'Component Weights'!$B$16:$J$16,'Component Weights'!$B$17:$J$17)*$AA$8)) -> 0 | Q53: =IF(ISBLANK(B53)," ",(LOOKUP(B53,'Component Weights'!$B$16:$J$16,'Component Weights'!$B$17:$J$17)*$AA$9)) ->  | R53: =IF(ISBLANK(H53)," ",(LOOKUP(H53,'Component Weights'!$B$16:$J$16,'Component Weights'!$B$17:$J$17)*$AA$10)) -> 0.24 | S53: =IF(ISBLANK(I53)," ",(LOOKUP(I53,'Component Weights'!$B$16:$J$16,'Component Weights'!$B$17:$J$17)*$AA$11)) -> 0 | T53: =IF(ISBLANK(J53)," ",(LOOKUP(J53,'Component Weights'!$B$16:$J$16,'Component Weights'!$B$17:$J$17)*$AA$12)) -> 0.24 | U53: 0.64 | V53: 49 | X53: 0.64
A54: Metal - Single Pane w/Reflective Film | C54: L | D54: N | E54: L | F54: N | G54: N | H54: M | I54: N | J54: M | K54: =SUM(IF(ISBLANK(C54),,LOOKUP(C54,'Component Weights'!$B$16:$J$16,'Component Weights'!$B$17:$J$17)),IF(ISBLANK(D54),,LOOKUP(D54,'Component Weights'!$B$16:$J$16,'Component Weights'!$B$17:$J$17)),IF(ISBLANK(E54),,LOOKUP(E54,'Component Weights'!$B$16:$J$16,'Component Weights'!$B$17:$J$17)),IF(ISBLANK(F54),,LOOKUP(F54,'Component Weights'!$B$16:$J$16,'Component Weights'!$B$17:$J$17)),IF(ISBLANK(G54),,LOOKUP(G54,'Component Weights'!$B$16:$J$16,'Component Weights'!$B$17:$J$17)),IF(ISBLANK(B54),,LOOKUP(B54,'Component Weights'!$B$16:$J$16,'Component Weights'!$B$17:$J$17)),IF(ISBLANK(H54),,LOOKUP(H54,'Component Weights'!$B$16:$J$16,'Component Weights'!$B$17:$J$17)),IF(ISBLANK(I54),,LOOKUP(I54,'Component Weights'!$B$16:$J$16,'Component Weights'!$B$17:$J$17)),IF(ISBLANK(J54),,LOOKUP(J54,'Component Weights'!$B$16:$J$16,'Component Weights'!$B$17:$J$17))) -> 6 | L54: =IF(ISBLANK(C54)," ",(LOOKUP(C54,'Component Weights'!$B$16:$J$16,'Component Weights'!$B$17:$J$17)*$AA$4)) -> 0.08 | M54: =IF(ISBLANK(D54)," ",(LOOKUP(D54,'Component Weights'!$B$16:$J$16,'Component Weights'!$B$17:$J$17)*$AA$5)) -> 0 | N54: =IF(ISBLANK(E54)," ",(LOOKUP(E54,'Component Weights'!$B$16:$J$16,'Component Weights'!$B$17:$J$17)*$AA$6)) -> 0.08 | O54: =IF(ISBLANK(F54)," ",(LOOKUP(F54,'Component Weights'!$B$16:$J$16,'Component Weights'!$B$17:$J$17)*$AA$7)) -> 0 | P54: =IF(ISBLANK(G54)," ",(LOOKUP(G54,'Component Weights'!$B$16:$J$16,'Component Weights'!$B$17:$J$17)*$AA$8)) -> 0 | Q54: =IF(ISBLANK(B54)," ",(LOOKUP(B54,'Component Weights'!$B$16:$J$16,'Component Weights'!$B$17:$J$17)*$AA$9)) ->  | R54: =IF(ISBLANK(H54)," ",(LOOKUP(H54,'Component Weights'!$B$16:$J$16,'Component Weights'!$B$17:$J$17)*$AA$10)) -> 0.24 | S54: =IF(ISBLANK(I54)," ",(LOOKUP(I54,'Component Weights'!$B$16:$J$16,'Component Weights'!$B$17:$J$17)*$AA$11)) -> 0 | T54: =IF(ISBLANK(J54)," ",(LOOKUP(J54,'Component Weights'!$B$16:$J$16,'Component Weights'!$B$17:$J$17)*$AA$12)) -> 0.24 | U54: 0.64 | V54: 49 | X54: 0.64
A55: Metal - Double Pane | C55: L | D55: N | E55: L | F55: N | G55: N | H55: M | I55: N | J55: M | K55: =SUM(IF(ISBLANK(C55),,LOOKUP(C55,'Component Weights'!$B$16:$J$16,'Component Weights'!$B$17:$J$17)),IF(ISBLANK(D55),,LOOKUP(D55,'Component Weights'!$B$16:$J$16,'Component Weights'!$B$17:$J$17)),IF(ISBLANK(E55),,LOOKUP(E55,'Component Weights'!$B$16:$J$16,'Component Weights'!$B$17:$J$17)),IF(ISBLANK(F55),,LOOKUP(F55,'Component Weights'!$B$16:$J$16,'Component Weights'!$B$17:$J$17)),IF(ISBLANK(G55),,LOOKUP(G55,'Component Weights'!$B$16:$J$16,'Component Weights'!$B$17:$J$17)),IF(ISBLANK(B55),,LOOKUP(B55,'Component Weights'!$B$16:$J$16,'Component Weights'!$B$17:$J$17)),IF(ISBLANK(H55),,LOOKUP(H55,'Component Weights'!$B$16:$J$16,'Component Weights'!$B$17:$J$17)),IF(ISBLANK(I55),,LOOKUP(I55,'Component Weights'!$B$16:$J$16,'Component Weights'!$B$17:$J$17)),IF(ISBLANK(J55),,LOOKUP(J55,'Component Weights'!$B$16:$J$16,'Component Weights'!$B$17:$J$17))) -> 6 | L55: =IF(ISBLANK(C55)," ",(LOOKUP(C55,'Component Weights'!$B$16:$J$16,'Component Weights'!$B$17:$J$17)*$AA$4)) -> 0.08 | M55: =IF(ISBLANK(D55)," ",(LOOKUP(D55,'Component Weights'!$B$16:$J$16,'Component Weights'!$B$17:$J$17)*$AA$5)) -> 0 | N55: =IF(ISBLANK(E55)," ",(LOOKUP(E55,'Component Weights'!$B$16:$J$16,'Component Weights'!$B$17:$J$17)*$AA$6)) -> 0.08 | O55: =IF(ISBLANK(F55)," ",(LOOKUP(F55,'Component Weights'!$B$16:$J$16,'Component Weights'!$B$17:$J$17)*$AA$7)) -> 0 | P55: =IF(ISBLANK(G55)," ",(LOOKUP(G55,'Component Weights'!$B$16:$J$16,'Component Weights'!$B$17:$J$17)*$AA$8)) -> 0 | Q55: =IF(ISBLANK(B55)," ",(LOOKUP(B55,'Component Weights'!$B$16:$J$16,'Component Weights'!$B$17:$J$17)*$AA$9)) ->  | R55: =IF(ISBLANK(H55)," ",(LOOKUP(H55,'Component Weights'!$B$16:$J$16,'Component Weights'!$B$17:$J$17)*$AA$10)) -> 0.24 | S55: =IF(ISBLANK(I55)," ",(LOOKUP(I55,'Component Weights'!$B$16:$J$16,'Component Weights'!$B$17:$J$17)*$AA$11)) -> 0 | T55: =IF(ISBLANK(J55)," ",(LOOKUP(J55,'Component Weights'!$B$16:$J$16,'Component Weights'!$B$17:$J$17)*$AA$12)) -> 0.24 | U55: 0.64 | V55: 49 | X55: 0.64
A56: Metal - Triple Pane | C56: L | D56: N | E56: L | F56: N | G56: N | H56: M | I56: N | J56: M | K56: =SUM(IF(ISBLANK(C56),,LOOKUP(C56,'Component Weights'!$B$16:$J$16,'Component Weights'!$B$17:$J$17)),IF(ISBLANK(D56),,LOOKUP(D56,'Component Weights'!$B$16:$J$16,'Component Weights'!$B$17:$J$17)),IF(ISBLANK(E56),,LOOKUP(E56,'Component Weights'!$B$16:$J$16,'Component Weights'!$B$17:$J$17)),IF(ISBLANK(F56),,LOOKUP(F56,'Component Weights'!$B$16:$J$16,'Component Weights'!$B$17:$J$17)),IF(ISBLANK(G56),,LOOKUP(G56,'Component Weights'!$B$16:$J$16,'Component Weights'!$B$17:$J$17)),IF(ISBLANK(B56),,LOOKUP(B56,'Component Weights'!$B$16:$J$16,'Component Weights'!$B$17:$J$17)),IF(ISBLANK(H56),,LOOKUP(H56,'Component Weights'!$B$16:$J$16,'Component Weights'!$B$17:$J$17)),IF(ISBLANK(I56),,LOOKUP(I56,'Component Weights'!$B$16:$J$16,'Component Weights'!$B$17:$J$17)),IF(ISBLANK(J56),,LOOKUP(J56,'Component Weights'!$B$16:$J$16,'Component Weights'!$B$17:$J$17))) -> 6 | L56: =IF(ISBLANK(C56)," ",(LOOKUP(C56,'Component Weights'!$B$16:$J$16,'Component Weights'!$B$17:$J$17)*$AA$4)) -> 0.08 | M56: =IF(ISBLANK(D56)," ",(LOOKUP(D56,'Component Weights'!$B$16:$J$16,'Component Weights'!$B$17:$J$17)*$AA$5)) -> 0 | N56: =IF(ISBLANK(E56)," ",(LOOKUP(E56,'Component Weights'!$B$16:$J$16,'Component Weights'!$B$17:$J$17)*$AA$6)) -> 0.08 | O56: =IF(ISBLANK(F56)," ",(LOOKUP(F56,'Component Weights'!$B$16:$J$16,'Component Weights'!$B$17:$J$17)*$AA$7)) -> 0 | P56: =IF(ISBLANK(G56)," ",(LOOKUP(G56,'Component Weights'!$B$16:$J$16,'Component Weights'!$B$17:$J$17)*$AA$8)) -> 0 | Q56: =IF(ISBLANK(B56)," ",(LOOKUP(B56,'Component Weights'!$B$16:$J$16,'Component Weights'!$B$17:$J$17)*$AA$9)) ->  | R56: =IF(ISBLANK(H56)," ",(LOOKUP(H56,'Component Weights'!$B$16:$J$16,'Component Weights'!$B$17:$J$17)*$AA$10)) -> 0.24 | S56: =IF(ISBLANK(I56)," ",(LOOKUP(I56,'Component Weights'!$B$16:$J$16,'Component Weights'!$B$17:$J$17)*$AA$11)) -> 0 | T56: =IF(ISBLANK(J56)," ",(LOOKUP(J56,'Component Weights'!$B$16:$J$16,'Component Weights'!$B$17:$J$17)*$AA$12)) -> 0.24 | U56: 0.64 | V56: 49 | X56: 0.64
A57: Vinyl - Single Pane w/Reflective Film | C57: L | D57: N | E57: N | F57: N | G57: N | H57: M | I57: N | J57: M | K57: =SUM(IF(ISBLANK(C57),,LOOKUP(C57,'Component Weights'!$B$16:$J$16,'Component Weights'!$B$17:$J$17)),IF(ISBLANK(D57),,LOOKUP(D57,'Component Weights'!$B$16:$J$16,'Component Weights'!$B$17:$J$17)),IF(ISBLANK(E57),,LOOKUP(E57,'Component Weights'!$B$16:$J$16,'Component Weights'!$B$17:$J$17)),IF(ISBLANK(F57),,LOOKUP(F57,'Component Weights'!$B$16:$J$16,'Component Weights'!$B$17:$J$17)),IF(ISBLANK(G57),,LOOKUP(G57,'Component Weights'!$B$16:$J$16,'Component Weights'!$B$17:$J$17)),IF(ISBLANK(B57),,LOOKUP(B57,'Component Weights'!$B$16:$J$16,'Component Weights'!$B$17:$J$17)),IF(ISBLANK(H57),,LOOKUP(H57,'Component Weights'!$B$16:$J$16,'Component Weights'!$B$17:$J$17)),IF(ISBLANK(I57),,LOOKUP(I57,'Component Weights'!$B$16:$J$16,'Component Weights'!$B$17:$J$17)),IF(ISBLANK(J57),,LOOKUP(J57,'Component Weights'!$B$16:$J$16,'Component Weights'!$B$17:$J$17))) -> 5 | L57: =IF(ISBLANK(C57)," ",(LOOKUP(C57,'Component Weights'!$B$16:$J$16,'Component Weights'!$B$17:$J$17)*$AA$4)) -> 0.08 | M57: =IF(ISBLANK(D57)," ",(LOOKUP(D57,'Component Weights'!$B$16:$J$16,'Component Weights'!$B$17:$J$17)*$AA$5)) -> 0 | N57: =IF(ISBLANK(E57)," ",(LOOKUP(E57,'Component Weights'!$B$16:$J$16,'Component Weights'!$B$17:$J$17)*$AA$6)) -> 0 | O57: =IF(ISBLANK(F57)," ",(LOOKUP(F57,'Component Weights'!$B$16:$J$16,'Component Weights'!$B$17:$J$17)*$AA$7)) -> 0 | P57: =IF(ISBLANK(G57)," ",(LOOKUP(G57,'Component Weights'!$B$16:$J$16,'Component Weights'!$B$17:$J$17)*$AA$8)) -> 0 | Q57: =IF(ISBLANK(B57)," ",(LOOKUP(B57,'Component Weights'!$B$16:$J$16,'Component Weights'!$B$17:$J$17)*$AA$9)) ->  | R57: =IF(ISBLANK(H57)," ",(LOOKUP(H57,'Component Weights'!$B$16:$J$16,'Component Weights'!$B$17:$J$17)*$AA$10)) -> 0.24 | S57: =IF(ISBLANK(I57)," ",(LOOKUP(I57,'Component Weights'!$B$16:$J$16,'Component Weights'!$B$17:$J$17)*$AA$11)) -> 0 | T57: =IF(ISBLANK(J57)," ",(LOOKUP(J57,'Component Weights'!$B$16:$J$16,'Component Weights'!$B$17:$J$17)*$AA$12)) -> 0.24 | U57: 0.56 | V57: 56 | X57: 0.56
A58: Vinyl - Triple Pane | C58: L | D58: N | E58: N | F58: N | G58: N | H58: M | I58: N | J58: M | K58: =SUM(IF(ISBLANK(C58),,LOOKUP(C58,'Component Weights'!$B$16:$J$16,'Component Weights'!$B$17:$J$17)),IF(ISBLANK(D58),,LOOKUP(D58,'Component Weights'!$B$16:$J$16,'Component Weights'!$B$17:$J$17)),IF(ISBLANK(E58),,LOOKUP(E58,'Component Weights'!$B$16:$J$16,'Component Weights'!$B$17:$J$17)),IF(ISBLANK(F58),,LOOKUP(F58,'Component Weights'!$B$16:$J$16,'Component Weights'!$B$17:$J$17)),IF(ISBLANK(G58),,LOOKUP(G58,'Component Weights'!$B$16:$J$16,'Component Weights'!$B$17:$J$17)),IF(ISBLANK(B58),,LOOKUP(B58,'Component Weights'!$B$16:$J$16,'Component Weights'!$B$17:$J$17)),IF(ISBLANK(H58),,LOOKUP(H58,'Component Weights'!$B$16:$J$16,'Component Weights'!$B$17:$J$17)),IF(ISBLANK(I58),,LOOKUP(I58,'Component Weights'!$B$16:$J$16,'Component Weights'!$B$17:$J$17)),IF(ISBLANK(J58),,LOOKUP(J58,'Component Weights'!$B$16:$J$16,'Component Weights'!$B$17:$J$17))) -> 5 | L58: =IF(ISBLANK(C58)," ",(LOOKUP(C58,'Component Weights'!$B$16:$J$16,'Component Weights'!$B$17:$J$17)*$AA$4)) -> 0.08 | M58: =IF(ISBLANK(D58)," ",(LOOKUP(D58,'Component Weights'!$B$16:$J$16,'Component Weights'!$B$17:$J$17)*$AA$5)) -> 0 | N58: =IF(ISBLANK(E58)," ",(LOOKUP(E58,'Component Weights'!$B$16:$J$16,'Component Weights'!$B$17:$J$17)*$AA$6)) -> 0 | O58: =IF(ISBLANK(F58)," ",(LOOKUP(F58,'Component Weights'!$B$16:$J$16,'Component Weights'!$B$17:$J$17)*$AA$7)) -> 0 | P58: =IF(ISBLANK(G58)," ",(LOOKUP(G58,'Component Weights'!$B$16:$J$16,'Component Weights'!$B$17:$J$17)*$AA$8)) -> 0 | Q58: =IF(ISBLANK(B58)," ",(LOOKUP(B58,'Component Weights'!$B$16:$J$16,'Component Weights'!$B$17:$J$17)*$AA$9)) ->  | R58: =IF(ISBLANK(H58)," ",(LOOKUP(H58,'Component Weights'!$B$16:$J$16,'Component Weights'!$B$17:$J$17)*$AA$10)) -> 0.24 | S58: =IF(ISBLANK(I58)," ",(LOOKUP(I58,'Component Weights'!$B$16:$J$16,'Component Weights'!$B$17:$J$17)*$AA$11)) -> 0 | T58: =IF(ISBLANK(J58)," ",(LOOKUP(J58,'Component Weights'!$B$16:$J$16,'Component Weights'!$B$17:$J$17)*$AA$12)) -> 0.24 | U58: 0.56 | V58: 56 | X58: 0.56
A59: Fiberglass - Single Pane | C59: N | D59: N | E59: L | F59: N | G59: N | H59: M | I59: N | J59: M | K59: =SUM(IF(ISBLANK(C59),,LOOKUP(C59,'Component Weights'!$B$16:$J$16,'Component Weights'!$B$17:$J$17)),IF(ISBLANK(D59),,LOOKUP(D59,'Component Weights'!$B$16:$J$16,'Component Weights'!$B$17:$J$17)),IF(ISBLANK(E59),,LOOKUP(E59,'Component Weights'!$B$16:$J$16,'Component Weights'!$B$17:$J$17)),IF(ISBLANK(F59),,LOOKUP(F59,'Component Weights'!$B$16:$J$16,'Component Weights'!$B$17:$J$17)),IF(ISBLANK(G59),,LOOKUP(G59,'Component Weights'!$B$16:$J$16,'Component Weights'!$B$17:$J$17)),IF(ISBLANK(B59),,LOOKUP(B59,'Component Weights'!$B$16:$J$16,'Component Weights'!$B$17:$J$17)),IF(ISBLANK(H59),,LOOKUP(H59,'Component Weights'!$B$16:$J$16,'Component Weights'!$B$17:$J$17)),IF(ISBLANK(I59),,LOOKUP(I59,'Component Weights'!$B$16:$J$16,'Component Weights'!$B$17:$J$17)),IF(ISBLANK(J59),,LOOKUP(J59,'Component Weights'!$B$16:$J$16,'Component Weights'!$B$17:$J$17))) -> 5 | L59: =IF(ISBLANK(C59)," ",(LOOKUP(C59,'Component Weights'!$B$16:$J$16,'Component Weights'!$B$17:$J$17)*$AA$4)) -> 0 | M59: =IF(ISBLANK(D59)," ",(LOOKUP(D59,'Component Weights'!$B$16:$J$16,'Component Weights'!$B$17:$J$17)*$AA$5)) -> 0 | N59: =IF(ISBLANK(E59)," ",(LOOKUP(E59,'Component Weights'!$B$16:$J$16,'Component Weights'!$B$17:$J$17)*$AA$6)) -> 0.08 | O59: =IF(ISBLANK(F59)," ",(LOOKUP(F59,'Component Weights'!$B$16:$J$16,'Component Weights'!$B$17:$J$17)*$AA$7)) -> 0 | P59: =IF(ISBLANK(G59)," ",(LOOKUP(G59,'Component Weights'!$B$16:$J$16,'Component Weights'!$B$17:$J$17)*$AA$8)) -> 0 | Q59: =IF(ISBLANK(B59)," ",(LOOKUP(B59,'Component Weights'!$B$16:$J$16,'Component Weights'!$B$17:$J$17)*$AA$9)) ->  | R59: =IF(ISBLANK(H59)," ",(LOOKUP(H59,'Component Weights'!$B$16:$J$16,'Component Weights'!$B$17:$J$17)*$AA$10)) -> 0.24 | S59: =IF(ISBLANK(I59)," ",(LOOKUP(I59,'Component Weights'!$B$16:$J$16,'Component Weights'!$B$17:$J$17)*$AA$11)) -> 0 | T59: =IF(ISBLANK(J59)," ",(LOOKUP(J59,'Component Weights'!$B$16:$J$16,'Component Weights'!$B$17:$J$17)*$AA$12)) -> 0.24 | U59: 0.56 | V59: 56 | X59: 0.56
A60: Metal - Single Pane | C60: N | D60: N | E60: L | F60: N | G60: N | H60: M | I60: N | J60: M | K60: =SUM(IF(ISBLANK(C60),,LOOKUP(C60,'Component Weights'!$B$16:$J$16,'Component Weights'!$B$17:$J$17)),IF(ISBLANK(D60),,LOOKUP(D60,'Component Weights'!$B$16:$J$16,'Component Weights'!$B$17:$J$17)),IF(ISBLANK(E60),,LOOKUP(E60,'Component Weights'!$B$16:$J$16,'Component Weights'!$B$17:$J$17)),IF(ISBLANK(F60),,LOOKUP(F60,'Component Weights'!$B$16:$J$16,'Component Weights'!$B$17:$J$17)),IF(ISBLANK(G60),,LOOKUP(G60,'Component Weights'!$B$16:$J$16,'Component Weights'!$B$17:$J$17)),IF(ISBLANK(B60),,LOOKUP(B60,'Component Weights'!$B$16:$J$16,'Component Weights'!$B$17:$J$17)),IF(ISBLANK(H60),,LOOKUP(H60,'Component Weights'!$B$16:$J$16,'Component Weights'!$B$17:$J$17)),IF(ISBLANK(I60),,LOOKUP(I60,'Component Weights'!$B$16:$J$16,'Component Weights'!$B$17:$J$17)),IF(ISBLANK(J60),,LOOKUP(J60,'Component Weights'!$B$16:$J$16,'Component Weights'!$B$17:$J$17))) -> 5 | L60: =IF(ISBLANK(C60)," ",(LOOKUP(C60,'Component Weights'!$B$16:$J$16,'Component Weights'!$B$17:$J$17)*$AA$4)) -> 0 | M60: =IF(ISBLANK(D60)," ",(LOOKUP(D60,'Component Weights'!$B$16:$J$16,'Component Weights'!$B$17:$J$17)*$AA$5)) -> 0 | N60: =IF(ISBLANK(E60)," ",(LOOKUP(E60,'Component Weights'!$B$16:$J$16,'Component Weights'!$B$17:$J$17)*$AA$6)) -> 0.08 | O60: =IF(ISBLANK(F60)," ",(LOOKUP(F60,'Component Weights'!$B$16:$J$16,'Component Weights'!$B$17:$J$17)*$AA$7)) -> 0 | P60: =IF(ISBLANK(G60)," ",(LOOKUP(G60,'Component Weights'!$B$16:$J$16,'Component Weights'!$B$17:$J$17)*$AA$8)) -> 0 | Q60: =IF(ISBLANK(B60)," ",(LOOKUP(B60,'Component Weights'!$B$16:$J$16,'Component Weights'!$B$17:$J$17)*$AA$9)) ->  | R60: =IF(ISBLANK(H60)," ",(LOOKUP(H60,'Component Weights'!$B$16:$J$16,'Component Weights'!$B$17:$J$17)*$AA$10)) -> 0.24 | S60: =IF(ISBLANK(I60)," ",(LOOKUP(I60,'Component Weights'!$B$16:$J$16,'Component Weights'!$B$17:$J$17)*$AA$11)) -> 0 | T60: =IF(ISBLANK(J60)," ",(LOOKUP(J60,'Component Weights'!$B$16:$J$16,'Component Weights'!$B$17:$J$17)*$AA$12)) -> 0.24 | U60: 0.56 | V60: 56 | X60: 0.56
A61: Vinyl - Single Pane | C61: N | D61: N | E61: N | F61: N | G61: N | H61: M | I61: N | J61: M | K61: =SUM(IF(ISBLANK(C61),,LOOKUP(C61,'Component Weights'!$B$16:$J$16,'Component Weights'!$B$17:$J$17)),IF(ISBLANK(D61),,LOOKUP(D61,'Component Weights'!$B$16:$J$16,'Component Weights'!$B$17:$J$17)),IF(ISBLANK(E61),,LOOKUP(E61,'Component Weights'!$B$16:$J$16,'Component Weights'!$B$17:$J$17)),IF(ISBLANK(F61),,LOOKUP(F61,'Component Weights'!$B$16:$J$16,'Component Weights'!$B$17:$J$17)),IF(ISBLANK(G61),,LOOKUP(G61,'Component Weights'!$B$16:$J$16,'Component Weights'!$B$17:$J$17)),IF(ISBLANK(B61),,LOOKUP(B61,'Component Weights'!$B$16:$J$16,'Component Weights'!$B$17:$J$17)),IF(ISBLANK(H61),,LOOKUP(H61,'Component Weights'!$B$16:$J$16,'Component Weights'!$B$17:$J$17)),IF(ISBLANK(I61),,LOOKUP(I61,'Component Weights'!$B$16:$J$16,'Component Weights'!$B$17:$J$17)),IF(ISBLANK(J61),,LOOKUP(J61,'Component Weights'!$B$16:$J$16,'Component Weights'!$B$17:$J$17))) -> 4 | L61: =IF(ISBLANK(C61)," ",(LOOKUP(C61,'Component Weights'!$B$16:$J$16,'Component Weights'!$B$17:$J$17)*$AA$4)) -> 0 | M61: =IF(ISBLANK(D61)," ",(LOOKUP(D61,'Component Weights'!$B$16:$J$16,'Component Weights'!$B$17:$J$17)*$AA$5)) -> 0 | N61: =IF(ISBLANK(E61)," ",(LOOKUP(E61,'Component Weights'!$B$16:$J$16,'Component Weights'!$B$17:$J$17)*$AA$6)) -> 0 | O61: =IF(ISBLANK(F61)," ",(LOOKUP(F61,'Component Weights'!$B$16:$J$16,'Component Weights'!$B$17:$J$17)*$AA$7)) -> 0 | P61: =IF(ISBLANK(G61)," ",(LOOKUP(G61,'Component Weights'!$B$16:$J$16,'Component Weights'!$B$17:$J$17)*$AA$8)) -> 0 | Q61: =IF(ISBLANK(B61)," ",(LOOKUP(B61,'Component Weights'!$B$16:$J$16,'Component Weights'!$B$17:$J$17)*$AA$9)) ->  | R61: =IF(ISBLANK(H61)," ",(LOOKUP(H61,'Component Weights'!$B$16:$J$16,'Component Weights'!$B$17:$J$17)*$AA$10)) -> 0.24 | S61: =IF(ISBLANK(I61)," ",(LOOKUP(I61,'Component Weights'!$B$16:$J$16,'Component Weights'!$B$17:$J$17)*$AA$11)) -> 0 | T61: =IF(ISBLANK(J61)," ",(LOOKUP(J61,'Component Weights'!$B$16:$J$16,'Component Weights'!$B$17:$J$17)*$AA$12)) -> 0.24 | U61: 0.48 | V61: 60 | X61: 0.48
A62: (Enter Custom Product Here) | K62: =SUM(IF(ISBLANK(C62),,LOOKUP(C62,'Component Weights'!$B$16:$J$16,'Component Weights'!$B$17:$J$17)),IF(ISBLANK(D62),,LOOKUP(D62,'Component Weights'!$B$16:$J$16,'Component Weights'!$B$17:$J$17)),IF(ISBLANK(E62),,LOOKUP(E62,'Component Weights'!$B$16:$J$16,'Component Weights'!$B$17:$J$17)),IF(ISBLANK(F62),,LOOKUP(F62,'Component Weights'!$B$16:$J$16,'Component Weights'!$B$17:$J$17)),IF(ISBLANK(G62),,LOOKUP(G62,'Component Weights'!$B$16:$J$16,'Component Weights'!$B$17:$J$17)),IF(ISBLANK(B62),,LOOKUP(B62,'Component Weights'!$B$16:$J$16,'Component Weights'!$B$17:$J$17)),IF(ISBLANK(H62),,LOOKUP(H62,'Component Weights'!$B$16:$J$16,'Component Weights'!$B$17:$J$17)),IF(ISBLANK(I62),,LOOKUP(I62,'Component Weights'!$B$16:$J$16,'Component Weights'!$B$17:$J$17)),IF(ISBLANK(J62),,LOOKUP(J62,'Component Weights'!$B$16:$J$16,'Component Weights'!$B$17:$J$17))) -> 0 | L62: =IF(ISBLANK(C62)," ",(LOOKUP(C62,'Component Weights'!$B$16:$J$16,'Component Weights'!$B$17:$J$17)*$AA$4)) ->  | M62: =IF(ISBLANK(D62)," ",(LOOKUP(D62,'Component Weights'!$B$16:$J$16,'Component Weights'!$B$17:$J$17)*$AA$5)) ->  | N62: =IF(ISBLANK(E62)," ",(LOOKUP(E62,'Component Weights'!$B$16:$J$16,'Component Weights'!$B$17:$J$17)*$AA$6)) ->  | O62: =IF(ISBLANK(F62)," ",(LOOKUP(F62,'Component Weights'!$B$16:$J$16,'Component Weights'!$B$17:$J$17)*$AA$7)) ->  | P62: =IF(ISBLANK(G62)," ",(LOOKUP(G62,'Component Weights'!$B$16:$J$16,'Component Weights'!$B$17:$J$17)*$AA$8)) ->  | Q62: =IF(ISBLANK(B62)," ",(LOOKUP(B62,'Component Weights'!$B$16:$J$16,'Component Weights'!$B$17:$J$17)*$AA$9)) ->  | R62: =IF(ISBLANK(H62)," ",(LOOKUP(H62,'Component Weights'!$B$16:$J$16,'Component Weights'!$B$17:$J$17)*$AA$10)) ->  | S62: =IF(ISBLANK(I62)," ",(LOOKUP(I62,'Component Weights'!$B$16:$J$16,'Component Weights'!$B$17:$J$17)*$AA$11)) ->  | T62: =IF(ISBLANK(J62)," ",(LOOKUP(J62,'Component Weights'!$B$16:$J$16,'Component Weights'!$B$17:$J$17)*$AA$12)) ->  | U62: 0 | V62: 99 | X62: 0
A63: (Enter Custom Product Here) | K63: =SUM(IF(ISBLANK(C63),,LOOKUP(C63,'Component Weights'!$B$16:$J$16,'Component Weights'!$B$17:$J$17)),IF(ISBLANK(D63),,LOOKUP(D63,'Component Weights'!$B$16:$J$16,'Component Weights'!$B$17:$J$17)),IF(ISBLANK(E63),,LOOKUP(E63,'Component Weights'!$B$16:$J$16,'Component Weights'!$B$17:$J$17)),IF(ISBLANK(F63),,LOOKUP(F63,'Component Weights'!$B$16:$J$16,'Component Weights'!$B$17:$J$17)),IF(ISBLANK(G63),,LOOKUP(G63,'Component Weights'!$B$16:$J$16,'Component Weights'!$B$17:$J$17)),IF(ISBLANK(B63),,LOOKUP(B63,'Component Weights'!$B$16:$J$16,'Component Weights'!$B$17:$J$17)),IF(ISBLANK(H63),,LOOKUP(H63,'Component Weights'!$B$16:$J$16,'Component Weights'!$B$17:$J$17)),IF(ISBLANK(I63),,LOOKUP(I63,'Component Weights'!$B$16:$J$16,'Component Weights'!$B$17:$J$17)),IF(ISBLANK(J63),,LOOKUP(J63,'Component Weights'!$B$16:$J$16,'Component Weights'!$B$17:$J$17))) -> 0 | L63: =IF(ISBLANK(C63)," ",(LOOKUP(C63,'Component Weights'!$B$16:$J$16,'Component Weights'!$B$17:$J$17)*$AA$4)) ->  | M63: =IF(ISBLANK(D63)," ",(LOOKUP(D63,'Component Weights'!$B$16:$J$16,'Component Weights'!$B$17:$J$17)*$AA$5)) ->  | N63: =IF(ISBLANK(E63)," ",(LOOKUP(E63,'Component Weights'!$B$16:$J$16,'Component Weights'!$B$17:$J$17)*$AA$6)) ->  | O63: =IF(ISBLANK(F63)," ",(LOOKUP(F63,'Component Weights'!$B$16:$J$16,'Component Weights'!$B$17:$J$17)*$AA$7)) ->  | P63: =IF(ISBLANK(G63)," ",(LOOKUP(G63,'Component Weights'!$B$16:$J$16,'Component Weights'!$B$17:$J$17)*$AA$8)) ->  | Q63: =IF(ISBLANK(B63)," ",(LOOKUP(B63,'Component Weights'!$B$16:$J$16,'Component Weights'!$B$17:$J$17)*$AA$9)) ->  | R63: =IF(ISBLANK(H63)," ",(LOOKUP(H63,'Component Weights'!$B$16:$J$16,'Component Weights'!$B$17:$J$17)*$AA$10)) ->  | S63: =IF(ISBLANK(I63)," ",(LOOKUP(I63,'Component Weights'!$B$16:$J$16,'Component Weights'!$B$17:$J$17)*$AA$11)) ->  | T63: =IF(ISBLANK(J63)," ",(LOOKUP(J63,'Component Weights'!$B$16:$J$16,'Component Weights'!$B$17:$J$17)*$AA$12)) ->  | U63: 0 | V63: 99 | X63: =U63 -> 0
A64: (Enter Custom Product Here) | K64: =SUM(IF(ISBLANK(C64),,LOOKUP(C64,'Component Weights'!$B$16:$J$16,'Component Weights'!$B$17:$J$17)),IF(ISBLANK(D64),,LOOKUP(D64,'Component Weights'!$B$16:$J$16,'Component Weights'!$B$17:$J$17)),IF(ISBLANK(E64),,LOOKUP(E64,'Component Weights'!$B$16:$J$16,'Component Weights'!$B$17:$J$17)),IF(ISBLANK(F64),,LOOKUP(F64,'Component Weights'!$B$16:$J$16,'Component Weights'!$B$17:$J$17)),IF(ISBLANK(G64),,LOOKUP(G64,'Component Weights'!$B$16:$J$16,'Component Weights'!$B$17:$J$17)),IF(ISBLANK(B64),,LOOKUP(B64,'Component Weights'!$B$16:$J$16,'Component Weights'!$B$17:$J$17)),IF(ISBLANK(H64),,LOOKUP(H64,'Component Weights'!$B$16:$J$16,'Component Weights'!$B$17:$J$17)),IF(ISBLANK(I64),,LOOKUP(I64,'Component Weights'!$B$16:$J$16,'Component Weights'!$B$17:$J$17)),IF(ISBLANK(J64),,LOOKUP(J64,'Component Weights'!$B$16:$J$16,'Component Weights'!$B$17:$J$17))) -> 0 | L64: =IF(ISBLANK(C64)," ",(LOOKUP(C64,'Component Weights'!$B$16:$J$16,'Component Weights'!$B$17:$J$17)*$AA$4)) ->  | M64: =IF(ISBLANK(D64)," ",(LOOKUP(D64,'Component Weights'!$B$16:$J$16,'Component Weights'!$B$17:$J$17)*$AA$5)) ->  | N64: =IF(ISBLANK(E64)," ",(LOOKUP(E64,'Component Weights'!$B$16:$J$16,'Component Weights'!$B$17:$J$17)*$AA$6)) ->  | O64: =IF(ISBLANK(F64)," ",(LOOKUP(F64,'Component Weights'!$B$16:$J$16,'Component Weights'!$B$17:$J$17)*$AA$7)) ->  | P64: =IF(ISBLANK(G64)," ",(LOOKUP(G64,'Component Weights'!$B$16:$J$16,'Component Weights'!$B$17:$J$17)*$AA$8)) ->  | Q64: =IF(ISBLANK(B64)," ",(LOOKUP(B64,'Component Weights'!$B$16:$J$16,'Component Weights'!$B$17:$J$17)*$AA$9)) ->  | R64: =IF(ISBLANK(H64)," ",(LOOKUP(H64,'Component Weights'!$B$16:$J$16,'Component Weights'!$B$17:$J$17)*$AA$10)) ->  | S64: =IF(ISBLANK(I64)," ",(LOOKUP(I64,'Component Weights'!$B$16:$J$16,'Component Weights'!$B$17:$J$17)*$AA$11)) ->  | T64: =IF(ISBLANK(J64)," ",(LOOKUP(J64,'Component Weights'!$B$16:$J$16,'Component Weights'!$B$17:$J$17)*$AA$12)) ->  | U64: 0 | V64: 99 | X64: =U64 -> 0
A65: (Enter Custom Product Here) | K65: =SUM(IF(ISBLANK(C65),,LOOKUP(C65,'Component Weights'!$B$16:$J$16,'Component Weights'!$B$17:$J$17)),IF(ISBLANK(D65),,LOOKUP(D65,'Component Weights'!$B$16:$J$16,'Component Weights'!$B$17:$J$17)),IF(ISBLANK(E65),,LOOKUP(E65,'Component Weights'!$B$16:$J$16,'Component Weights'!$B$17:$J$17)),IF(ISBLANK(F65),,LOOKUP(F65,'Component Weights'!$B$16:$J$16,'Component Weights'!$B$17:$J$17)),IF(ISBLANK(G65),,LOOKUP(G65,'Component Weights'!$B$16:$J$16,'Component Weights'!$B$17:$J$17)),IF(ISBLANK(B65),,LOOKUP(B65,'Component Weights'!$B$16:$J$16,'Component Weights'!$B$17:$J$17)),IF(ISBLANK(H65),,LOOKUP(H65,'Component Weights'!$B$16:$J$16,'Component Weights'!$B$17:$J$17)),IF(ISBLANK(I65),,LOOKUP(I65,'Component Weights'!$B$16:$J$16,'Component Weights'!$B$17:$J$17)),IF(ISBLANK(J65),,LOOKUP(J65,'Component Weights'!$B$16:$J$16,'Component Weights'!$B$17:$J$17))) -> 0 | L65: =IF(ISBLANK(C65)," ",(LOOKUP(C65,'Component Weights'!$B$16:$J$16,'Component Weights'!$B$17:$J$17)*$AA$4)) ->  | M65: =IF(ISBLANK(D65)," ",(LOOKUP(D65,'Component Weights'!$B$16:$J$16,'Component Weights'!$B$17:$J$17)*$AA$5)) ->  | N65: =IF(ISBLANK(E65)," ",(LOOKUP(E65,'Component Weights'!$B$16:$J$16,'Component Weights'!$B$17:$J$17)*$AA$6)) ->  | O65: =IF(ISBLANK(F65)," ",(LOOKUP(F65,'Component Weights'!$B$16:$J$16,'Component Weights'!$B$17:$J$17)*$AA$7)) ->  | P65: =IF(ISBLANK(G65)," ",(LOOKUP(G65,'Component Weights'!$B$16:$J$16,'Component Weights'!$B$17:$J$17)*$AA$8)) ->  | Q65: =IF(ISBLANK(B65)," ",(LOOKUP(B65,'Component Weights'!$B$16:$J$16,'Component Weights'!$B$17:$J$17)*$AA$9)) ->  | R65: =IF(ISBLANK(H65)," ",(LOOKUP(H65,'Component Weights'!$B$16:$J$16,'Component Weights'!$B$17:$J$17)*$AA$10)) ->  | S65: =IF(ISBLANK(I65)," ",(LOOKUP(I65,'Component Weights'!$B$16:$J$16,'Component Weights'!$B$17:$J$17)*$AA$11)) ->  | T65: =IF(ISBLANK(J65)," ",(LOOKUP(J65,'Component Weights'!$B$16:$J$16,'Component Weights'!$B$17:$J$17)*$AA$12)) ->  | U65: 0 | V65: 99 | X65: =U65 -> 0
A66: (Enter Custom Product Here) | K66: =SUM(IF(ISBLANK(C66),,LOOKUP(C66,'Component Weights'!$B$16:$J$16,'Component Weights'!$B$17:$J$17)),IF(ISBLANK(D66),,LOOKUP(D66,'Component Weights'!$B$16:$J$16,'Component Weights'!$B$17:$J$17)),IF(ISBLANK(E66),,LOOKUP(E66,'Component Weights'!$B$16:$J$16,'Component Weights'!$B$17:$J$17)),IF(ISBLANK(F66),,LOOKUP(F66,'Component Weights'!$B$16:$J$16,'Component Weights'!$B$17:$J$17)),IF(ISBLANK(G66),,LOOKUP(G66,'Component Weights'!$B$16:$J$16,'Component Weights'!$B$17:$J$17)),IF(ISBLANK(B66),,LOOKUP(B66,'Component Weights'!$B$16:$J$16,'Component Weights'!$B$17:$J$17)),IF(ISBLANK(H66),,LOOKUP(H66,'Component Weights'!$B$16:$J$16,'Component Weights'!$B$17:$J$17)),IF(ISBLANK(I66),,LOOKUP(I66,'Component Weights'!$B$16:$J$16,'Component Weights'!$B$17:$J$17)),IF(ISBLANK(J66),,LOOKUP(J66,'Component Weights'!$B$16:$J$16,'Component Weights'!$B$17:$J$17))) -> 0 | L66: =IF(ISBLANK(C66)," ",(LOOKUP(C66,'Component Weights'!$B$16:$J$16,'Component Weights'!$B$17:$J$17)*$AA$4)) ->  | M66: =IF(ISBLANK(D66)," ",(LOOKUP(D66,'Component Weights'!$B$16:$J$16,'Component Weights'!$B$17:$J$17)*$AA$5)) ->  | N66: =IF(ISBLANK(E66)," ",(LOOKUP(E66,'Component Weights'!$B$16:$J$16,'Component Weights'!$B$17:$J$17)*$AA$6)) ->  | O66: =IF(ISBLANK(F66)," ",(LOOKUP(F66,'Component Weights'!$B$16:$J$16,'Component Weights'!$B$17:$J$17)*$AA$7)) ->  | P66: =IF(ISBLANK(G66)," ",(LOOKUP(G66,'Component Weights'!$B$16:$J$16,'Component Weights'!$B$17:$J$17)*$AA$8)) ->  | Q66: =IF(ISBLANK(B66)," ",(LOOKUP(B66,'Component Weights'!$B$16:$J$16,'Component Weights'!$B$17:$J$17)*$AA$9)) ->  | R66: =IF(ISBLANK(H66)," ",(LOOKUP(H66,'Component Weights'!$B$16:$J$16,'Component Weights'!$B$17:$J$17)*$AA$10)) ->  | S66: =IF(ISBLANK(I66)," ",(LOOKUP(I66,'Component Weights'!$B$16:$J$16,'Component Weights'!$B$17:$J$17)*$AA$11)) ->  | T66: =IF(ISBLANK(J66)," ",(LOOKUP(J66,'Component Weights'!$B$16:$J$16,'Component Weights'!$B$17:$J$17)*$AA$12)) ->  | U66: =SUM(L66:T66) -> 0 | V66: 99 | X66: =U66 -> 0
A67: (Enter Custom Product Here) | K67: =SUM(IF(ISBLANK(C67),,LOOKUP(C67,'Component Weights'!$B$16:$J$16,'Component Weights'!$B$17:$J$17)),IF(ISBLANK(D67),,LOOKUP(D67,'Component Weights'!$B$16:$J$16,'Component Weights'!$B$17:$J$17)),IF(ISBLANK(E67),,LOOKUP(E67,'Component Weights'!$B$16:$J$16,'Component Weights'!$B$17:$J$17)),IF(ISBLANK(F67),,LOOKUP(F67,'Component Weights'!$B$16:$J$16,'Component Weights'!$B$17:$J$17)),IF(ISBLANK(G67),,LOOKUP(G67,'Component Weights'!$B$16:$J$16,'Component Weights'!$B$17:$J$17)),IF(ISBLANK(B67),,LOOKUP(B67,'Component Weights'!$B$16:$J$16,'Component Weights'!$B$17:$J$17)),IF(ISBLANK(H67),,LOOKUP(H67,'Component Weights'!$B$16:$J$16,'Component Weights'!$B$17:$J$17)),IF(ISBLANK(I67),,LOOKUP(I67,'Component Weights'!$B$16:$J$16,'Component Weights'!$B$17:$J$17)),IF(ISBLANK(J67),,LOOKUP(J67,'Component Weights'!$B$16:$J$16,'Component Weights'!$B$17:$J$17))) -> 0 | L67: =IF(ISBLANK(C67)," ",(LOOKUP(C67,'Component Weights'!$B$16:$J$16,'Component Weights'!$B$17:$J$17)*$AA$4)) ->  | M67: =IF(ISBLANK(D67)," ",(LOOKUP(D67,'Component Weights'!$B$16:$J$16,'Component Weights'!$B$17:$J$17)*$AA$5)) ->  | N67: =IF(ISBLANK(E67)," ",(LOOKUP(E67,'Component Weights'!$B$16:$J$16,'Component Weights'!$B$17:$J$17)*$AA$6)) ->  | O67: =IF(ISBLANK(F67)," ",(LOOKUP(F67,'Component Weights'!$B$16:$J$16,'Component Weights'!$B$17:$J$17)*$AA$7)) ->  | P67: =IF(ISBLANK(G67)," ",(LOOKUP(G67,'Component Weights'!$B$16:$J$16,'Component Weights'!$B$17:$J$17)*$AA$8)) ->  | Q67: =IF(ISBLANK(B67)," ",(LOOKUP(B67,'Component Weights'!$B$16:$J$16,'Component Weights'!$B$17:$J$17)*$AA$9)) ->  | R67: =IF(ISBLANK(H67)," ",(LOOKUP(H67,'Component Weights'!$B$16:$J$16,'Component Weights'!$B$17:$J$17)*$AA$10)) ->  | S67: =IF(ISBLANK(I67)," ",(LOOKUP(I67,'Component Weights'!$B$16:$J$16,'Component Weights'!$B$17:$J$17)*$AA$11)) ->  | T67: =IF(ISBLANK(J67)," ",(LOOKUP(J67,'Component Weights'!$B$16:$J$16,'Component Weights'!$B$17:$J$17)*$AA$12)) ->  | U67: =SUM(L67:T67) -> 0 | V67: 99 | X67: 0
K68: =AVERAGE(K$2:K61) -> 9.35 | L68: =AVERAGE(L$2:L61) -> 0.1586666667 | M68: =AVERAGE(M$2:M61) -> 0.048 | N68: =AVERAGE(N$2:N61) -> 0.08 | O68: =AVERAGE(O$2:O61) -> 0 | P68: =AVERAGE(P$2:P61) -> 0.04 | Q68: =AVERAGE(Q$2:Q61) ->  | R68: =AVERAGE(R$2:R61) -> 0.24 | S68: =AVERAGE(S$2:S61) -> 0.09333333333 | T68: =AVERAGE(T$2:T61) -> 0.24 | U68: =AVERAGE(U$2:U61) -> 0.9 | V68: =IF(AND(OR(#REF!=72,#REF!=73,#REF!=74,#REF!=75,#REF!=76),$U68>0),RANK($U68,Y$3:Y$37,0)," ") -> 

Sheet Insulation
A1: Instructions: Scroll down to see all products. New products may be added to the end of the list. Rate the performance of each product as "N, L, M or H." (Hover over the component title for the rating description.) Use your Backspace button to clear values. The Sort button (below) will incorporate your priorities as currently stated on the table to the right. (Scroll to the right to see the table.) | B1: Available Locally | C1: Incremental Energy Savings | D1: Use of Recycled Content | E1: Low Energy Usage Manufacturing Process | F1: Easily Biodegradable | G1: Made from Natural Materials | H1: Low Emissions Potential | I1: Listed in Other Programs | J1: Non Hazardous as Waste | K1: Total Raw Score | L1: Incremental Energy Savings Weighted Score | M1: Use of Recycled Content Weighted Score | N1: Low Energy Usage Mfg. Process Weighted Score | O1: Easily Biodegradable Weighted Score | P1: Made from Natural Materials Weighted Score | Q1: Available Locally Weighted Score | R1: Low Emissions Potential Weighted Score | S1: Listed in Other Programs Weighted Score | T1: Non Hazardous as Waste Weighted Score | U1: Total Weighted Score | V1: Force Ranking | X1: Weighted Score for Force Rank Calculation | Z1: Detailed instructions and options for using this tool are found in the Using the DYO® GBD Kit Decision Matrix Software Section of your DYO® Green Building Decision Kit.
A2: Cellulose | D2: H | E2: H | F2: H | G2: H | H2: H | I2: H | J2: H | K2: =SUM(IF(ISBLANK(C2),,LOOKUP(C2,'Component Weights'!$B$16:$J$16,'Component Weights'!$B$17:$J$17)),IF(ISBLANK(D2),,LOOKUP(D2,'Component Weights'!$B$16:$J$16,'Component Weights'!$B$17:$J$17)),IF(ISBLANK(E2),,LOOKUP(E2,'Component Weights'!$B$16:$J$16,'Component Weights'!$B$17:$J$17)),IF(ISBLANK(F2),,LOOKUP(F2,'Component Weights'!$B$16:$J$16,'Component Weights'!$B$17:$J$17)),IF(ISBLANK(G2),,LOOKUP(G2,'Component Weights'!$B$16:$J$16,'Component Weights'!$B$17:$J$17)),IF(ISBLANK(B2),,LOOKUP(B2,'Component Weights'!$B$16:$J$16,'Component Weights'!$B$17:$J$17)),IF(ISBLANK(H2),,LOOKUP(H2,'Component Weights'!$B$16:$J$16,'Component Weights'!$B$17:$J$17)),IF(ISBLANK(I2),,LOOKUP(I2,'Component Weights'!$B$16:$J$16,'Component Weights'!$B$17:$J$17)),IF(ISBLANK(J2),,LOOKUP(J2,'Component Weights'!$B$16:$J$16,'Component Weights'!$B$17:$J$17))) -> 21 | L2: =IF(ISBLANK(C2)," ",(LOOKUP(C2,'Component Weights'!$B$16:$J$16,'Component Weights'!$B$17:$J$17)*$AA$4)) ->  | M2: =IF(ISBLANK(D2)," ",(LOOKUP(D2,'Component Weights'!$B$16:$J$16,'Component Weights'!$B$17:$J$17)*$AA$5)) -> 0.36 | N2: =IF(ISBLANK(E2)," ",(LOOKUP(E2,'Component Weights'!$B$16:$J$16,'Component Weights'!$B$17:$J$17)*$AA$6)) -> 0.24 | O2: =IF(ISBLANK(F2)," ",(LOOKUP(F2,'Component Weights'!$B$16:$J$16,'Component Weights'!$B$17:$J$17)*$AA$7)) -> 0.36 | P2: =IF(ISBLANK(G2)," ",(LOOKUP(G2,'Component Weights'!$B$16:$J$16,'Component Weights'!$B$17:$J$17)*$AA$8)) -> 0.15 | Q2: =IF(ISBLANK(B2)," ",(LOOKUP(B2,'Component Weights'!$B$16:$J$16,'Component Weights'!$B$17:$J$17)*$AA$9)) ->  | R2: =IF(ISBLANK(H2)," ",(LOOKUP(H2,'Component Weights'!$B$16:$J$16,'Component Weights'!$B$17:$J$17)*$AA$10)) -> 0.36 | S2: =IF(ISBLANK(I2)," ",(LOOKUP(I2,'Component Weights'!$B$16:$J$16,'Component Weights'!$B$17:$J$17)*$AA$11)) -> 0.24 | T2: =IF(ISBLANK(J2)," ",(LOOKUP(J2,'Component Weights'!$B$16:$J$16,'Component Weights'!$B$17:$J$17)*$AA$12)) -> 0.36 | U2: =SUM(L2:T2) -> 2.07 | V2: =IF($U2>0,RANK($U2,X$2:X$206,0),99) -> 1 | X2: =U2 -> 2.07 | Z2: Component Weights for | AA2: Weight
A3: Recycled Denim | D3: H | E3: H | F3: L | G3: H | H3: H | I3: M | J3: H | K3: =SUM(IF(ISBLANK(C3),,LOOKUP(C3,'Component Weights'!$B$16:$J$16,'Component Weights'!$B$17:$J$17)),IF(ISBLANK(D3),,LOOKUP(D3,'Component Weights'!$B$16:$J$16,'Component Weights'!$B$17:$J$17)),IF(ISBLANK(E3),,LOOKUP(E3,'Component Weights'!$B$16:$J$16,'Component Weights'!$B$17:$J$17)),IF(ISBLANK(F3),,LOOKUP(F3,'Component Weights'!$B$16:$J$16,'Component Weights'!$B$17:$J$17)),IF(ISBLANK(G3),,LOOKUP(G3,'Component Weights'!$B$16:$J$16,'Component Weights'!$B$17:$J$17)),IF(ISBLANK(B3),,LOOKUP(B3,'Component Weights'!$B$16:$J$16,'Component Weights'!$B$17:$J$17)),IF(ISBLANK(H3),,LOOKUP(H3,'Component Weights'!$B$16:$J$16,'Component Weights'!$B$17:$J$17)),IF(ISBLANK(I3),,LOOKUP(I3,'Component Weights'!$B$16:$J$16,'Component Weights'!$B$17:$J$17)),IF(ISBLANK(J3),,LOOKUP(J3,'Component Weights'!$B$16:$J$16,'Component Weights'!$B$17:$J$17))) -> 18 | L3: =IF(ISBLANK(C3)," ",(LOOKUP(C3,'Component Weights'!$B$16:$J$16,'Component Weights'!$B$17:$J$17)*$AA$4)) ->  | M3: =IF(ISBLANK(D3)," ",(LOOKUP(D3,'Component Weights'!$B$16:$J$16,'Component Weights'!$B$17:$J$17)*$AA$5)) -> 0.36 | N3: =IF(ISBLANK(E3)," ",(LOOKUP(E3,'Component Weights'!$B$16:$J$16,'Component Weights'!$B$17:$J$17)*$AA$6)) -> 0.24 | O3: =IF(ISBLANK(F3)," ",(LOOKUP(F3,'Component Weights'!$B$16:$J$16,'Component Weights'!$B$17:$J$17)*$AA$7)) -> 0.12 | P3: =IF(ISBLANK(G3)," ",(LOOKUP(G3,'Component Weights'!$B$16:$J$16,'Component Weights'!$B$17:$J$17)*$AA$8)) -> 0.15 | Q3: =IF(ISBLANK(B3)," ",(LOOKUP(B3,'Component Weights'!$B$16:$J$16,'Component Weights'!$B$17:$J$17)*$AA$9)) ->  | R3: =IF(ISBLANK(H3)," ",(LOOKUP(H3,'Component Weights'!$B$16:$J$16,'Component Weights'!$B$17:$J$17)*$AA$10)) -> 0.36 | S3: =IF(ISBLANK(I3)," ",(LOOKUP(I3,'Component Weights'!$B$16:$J$16,'Component Weights'!$B$17:$J$17)*$AA$11)) -> 0.16 | T3: =IF(ISBLANK(J3)," ",(LOOKUP(J3,'Component Weights'!$B$16:$J$16,'Component Weights'!$B$17:$J$17)*$AA$12)) -> 0.36 | U3: 1.75 | V3: 2 | X3: 1.75 | Z3: Insulation
A4: Cotton | D4: N | E4: H | F4: L | G4: H | H4: H | I4: M | J4: H | K4: =SUM(IF(ISBLANK(C4),,LOOKUP(C4,'Component Weights'!$B$16:$J$16,'Component Weights'!$B$17:$J$17)),IF(ISBLANK(D4),,LOOKUP(D4,'Component Weights'!$B$16:$J$16,'Component Weights'!$B$17:$J$17)),IF(ISBLANK(E4),,LOOKUP(E4,'Component Weights'!$B$16:$J$16,'Component Weights'!$B$17:$J$17)),IF(ISBLANK(F4),,LOOKUP(F4,'Component Weights'!$B$16:$J$16,'Component Weights'!$B$17:$J$17)),IF(ISBLANK(G4),,LOOKUP(G4,'Component Weights'!$B$16:$J$16,'Component Weights'!$B$17:$J$17)),IF(ISBLANK(B4),,LOOKUP(B4,'Component Weights'!$B$16:$J$16,'Component Weights'!$B$17:$J$17)),IF(ISBLANK(H4),,LOOKUP(H4,'Component Weights'!$B$16:$J$16,'Component Weights'!$B$17:$J$17)),IF(ISBLANK(I4),,LOOKUP(I4,'Component Weights'!$B$16:$J$16,'Component Weights'!$B$17:$J$17)),IF(ISBLANK(J4),,LOOKUP(J4,'Component Weights'!$B$16:$J$16,'Component Weights'!$B$17:$J$17))) -> 15 | L4: =IF(ISBLANK(C4)," ",(LOOKUP(C4,'Component Weights'!$B$16:$J$16,'Component Weights'!$B$17:$J$17)*$AA$4)) ->  | M4: =IF(ISBLANK(D4)," ",(LOOKUP(D4,'Component Weights'!$B$16:$J$16,'Component Weights'!$B$17:$J$17)*$AA$5)) -> 0 | N4: =IF(ISBLANK(E4)," ",(LOOKUP(E4,'Component Weights'!$B$16:$J$16,'Component Weights'!$B$17:$J$17)*$AA$6)) -> 0.24 | O4: =IF(ISBLANK(F4)," ",(LOOKUP(F4,'Component Weights'!$B$16:$J$16,'Component Weights'!$B$17:$J$17)*$AA$7)) -> 0.12 | P4: =IF(ISBLANK(G4)," ",(LOOKUP(G4,'Component Weights'!$B$16:$J$16,'Component Weights'!$B$17:$J$17)*$AA$8)) -> 0.15 | Q4: =IF(ISBLANK(B4)," ",(LOOKUP(B4,'Component Weights'!$B$16:$J$16,'Component Weights'!$B$17:$J$17)*$AA$9)) ->  | R4: =IF(ISBLANK(H4)," ",(LOOKUP(H4,'Component Weights'!$B$16:$J$16,'Component Weights'!$B$17:$J$17)*$AA$10)) -> 0.36 | S4: =IF(ISBLANK(I4)," ",(LOOKUP(I4,'Component Weights'!$B$16:$J$16,'Component Weights'!$B$17:$J$17)*$AA$11)) -> 0.16 | T4: =IF(ISBLANK(J4)," ",(LOOKUP(J4,'Component Weights'!$B$16:$J$16,'Component Weights'!$B$17:$J$17)*$AA$12)) -> 0.36 | U4: 1.39 | V4: 3 | X4: 1.39 | Z4: Incremental Energy Savings | AA4: 0.08 | AB4: M | AC4: The amount of incremental energy, expressed in Btu/Hr, that a product saves or generates for the structure.
A5: Soy Foam | D5: L | E5: L | F5: L | G5: L | H5: H | I5: H | J5: H | K5: =SUM(IF(ISBLANK(C5),,LOOKUP(C5,'Component Weights'!$B$16:$J$16,'Component Weights'!$B$17:$J$17)),IF(ISBLANK(D5),,LOOKUP(D5,'Component Weights'!$B$16:$J$16,'Component Weights'!$B$17:$J$17)),IF(ISBLANK(E5),,LOOKUP(E5,'Component Weights'!$B$16:$J$16,'Component Weights'!$B$17:$J$17)),IF(ISBLANK(F5),,LOOKUP(F5,'Component Weights'!$B$16:$J$16,'Component Weights'!$B$17:$J$17)),IF(ISBLANK(G5),,LOOKUP(G5,'Component Weights'!$B$16:$J$16,'Component Weights'!$B$17:$J$17)),IF(ISBLANK(B5),,LOOKUP(B5,'Component Weights'!$B$16:$J$16,'Component Weights'!$B$17:$J$17)),IF(ISBLANK(H5),,LOOKUP(H5,'Component Weights'!$B$16:$J$16,'Component Weights'!$B$17:$J$17)),IF(ISBLANK(I5),,LOOKUP(I5,'Component Weights'!$B$16:$J$16,'Component Weights'!$B$17:$J$17)),IF(ISBLANK(J5),,LOOKUP(J5,'Component Weights'!$B$16:$J$16,'Component Weights'!$B$17:$J$17))) -> 13 | L5: =IF(ISBLANK(C5)," ",(LOOKUP(C5,'Component Weights'!$B$16:$J$16,'Component Weights'!$B$17:$J$17)*$AA$4)) ->  | M5: =IF(ISBLANK(D5)," ",(LOOKUP(D5,'Component Weights'!$B$16:$J$16,'Component Weights'!$B$17:$J$17)*$AA$5)) -> 0.12 | N5: =IF(ISBLANK(E5)," ",(LOOKUP(E5,'Component Weights'!$B$16:$J$16,'Component Weights'!$B$17:$J$17)*$AA$6)) -> 0.08 | O5: =IF(ISBLANK(F5)," ",(LOOKUP(F5,'Component Weights'!$B$16:$J$16,'Component Weights'!$B$17:$J$17)*$AA$7)) -> 0.12 | P5: =IF(ISBLANK(G5)," ",(LOOKUP(G5,'Component Weights'!$B$16:$J$16,'Component Weights'!$B$17:$J$17)*$AA$8)) -> 0.05 | Q5: =IF(ISBLANK(B5)," ",(LOOKUP(B5,'Component Weights'!$B$16:$J$16,'Component Weights'!$B$17:$J$17)*$AA$9)) ->  | R5: =IF(ISBLANK(H5)," ",(LOOKUP(H5,'Component Weights'!$B$16:$J$16,'Component Weights'!$B$17:$J$17)*$AA$10)) -> 0.36 | S5: =IF(ISBLANK(I5)," ",(LOOKUP(I5,'Component Weights'!$B$16:$J$16,'Component Weights'!$B$17:$J$17)*$AA$11)) -> 0.24 | T5: =IF(ISBLANK(J5)," ",(LOOKUP(J5,'Component Weights'!$B$16:$J$16,'Component Weights'!$B$17:$J$17)*$AA$12)) -> 0.36 | U5: 1.33 | V5: 4 | X5: 1.33 | Z5: Use of Recycled Content | AA5: 0.12 | AB5: H | AC5: The amount of recycled content, expressed as a percentage, found in a product.
A6: Vermiculite | D6: N | E6: H | F6: L | G6: H | H6: H | I6: N | J6: H | K6: =SUM(IF(ISBLANK(C6),,LOOKUP(C6,'Component Weights'!$B$16:$J$16,'Component Weights'!$B$17:$J$17)),IF(ISBLANK(D6),,LOOKUP(D6,'Component Weights'!$B$16:$J$16,'Component Weights'!$B$17:$J$17)),IF(ISBLANK(E6),,LOOKUP(E6,'Component Weights'!$B$16:$J$16,'Component Weights'!$B$17:$J$17)),IF(ISBLANK(F6),,LOOKUP(F6,'Component Weights'!$B$16:$J$16,'Component Weights'!$B$17:$J$17)),IF(ISBLANK(G6),,LOOKUP(G6,'Component Weights'!$B$16:$J$16,'Component Weights'!$B$17:$J$17)),IF(ISBLANK(B6),,LOOKUP(B6,'Component Weights'!$B$16:$J$16,'Component Weights'!$B$17:$J$17)),IF(ISBLANK(H6),,LOOKUP(H6,'Component Weights'!$B$16:$J$16,'Component Weights'!$B$17:$J$17)),IF(ISBLANK(I6),,LOOKUP(I6,'Component Weights'!$B$16:$J$16,'Component Weights'!$B$17:$J$17)),IF(ISBLANK(J6),,LOOKUP(J6,'Component Weights'!$B$16:$J$16,'Component Weights'!$B$17:$J$17))) -> 13 | L6: =IF(ISBLANK(C6)," ",(LOOKUP(C6,'Component Weights'!$B$16:$J$16,'Component Weights'!$B$17:$J$17)*$AA$4)) ->  | M6: =IF(ISBLANK(D6)," ",(LOOKUP(D6,'Component Weights'!$B$16:$J$16,'Component Weights'!$B$17:$J$17)*$AA$5)) -> 0 | N6: =IF(ISBLANK(E6)," ",(LOOKUP(E6,'Component Weights'!$B$16:$J$16,'Component Weights'!$B$17:$J$17)*$AA$6)) -> 0.24 | O6: =IF(ISBLANK(F6)," ",(LOOKUP(F6,'Component Weights'!$B$16:$J$16,'Component Weights'!$B$17:$J$17)*$AA$7)) -> 0.12 | P6: =IF(ISBLANK(G6)," ",(LOOKUP(G6,'Component Weights'!$B$16:$J$16,'Component Weights'!$B$17:$J$17)*$AA$8)) -> 0.15 | Q6: =IF(ISBLANK(B6)," ",(LOOKUP(B6,'Component Weights'!$B$16:$J$16,'Component Weights'!$B$17:$J$17)*$AA$9)) ->  | R6: =IF(ISBLANK(H6)," ",(LOOKUP(H6,'Component Weights'!$B$16:$J$16,'Component Weights'!$B$17:$J$17)*$AA$10)) -> 0.36 | S6: =IF(ISBLANK(I6)," ",(LOOKUP(I6,'Component Weights'!$B$16:$J$16,'Component Weights'!$B$17:$J$17)*$AA$11)) -> 0 | T6: =IF(ISBLANK(J6)," ",(LOOKUP(J6,'Component Weights'!$B$16:$J$16,'Component Weights'!$B$17:$J$17)*$AA$12)) -> 0.36 | U6: 1.23 | V6: 5 | X6: 1.23 | Z6: Low Energy Usage Manufacturing Process | AA6: 0.08 | AB6: M | AC6: The amount of energy used in manufacture of the product.
A7: Perlite | D7: N | E7: H | F7: L | G7: H | H7: H | I7: N | J7: H | K7: =SUM(IF(ISBLANK(C7),,LOOKUP(C7,'Component Weights'!$B$16:$J$16,'Component Weights'!$B$17:$J$17)),IF(ISBLANK(D7),,LOOKUP(D7,'Component Weights'!$B$16:$J$16,'Component Weights'!$B$17:$J$17)),IF(ISBLANK(E7),,LOOKUP(E7,'Component Weights'!$B$16:$J$16,'Component Weights'!$B$17:$J$17)),IF(ISBLANK(F7),,LOOKUP(F7,'Component Weights'!$B$16:$J$16,'Component Weights'!$B$17:$J$17)),IF(ISBLANK(G7),,LOOKUP(G7,'Component Weights'!$B$16:$J$16,'Component Weights'!$B$17:$J$17)),IF(ISBLANK(B7),,LOOKUP(B7,'Component Weights'!$B$16:$J$16,'Component Weights'!$B$17:$J$17)),IF(ISBLANK(H7),,LOOKUP(H7,'Component Weights'!$B$16:$J$16,'Component Weights'!$B$17:$J$17)),IF(ISBLANK(I7),,LOOKUP(I7,'Component Weights'!$B$16:$J$16,'Component Weights'!$B$17:$J$17)),IF(ISBLANK(J7),,LOOKUP(J7,'Component Weights'!$B$16:$J$16,'Component Weights'!$B$17:$J$17))) -> 13 | L7: =IF(ISBLANK(C7)," ",(LOOKUP(C7,'Component Weights'!$B$16:$J$16,'Component Weights'!$B$17:$J$17)*$AA$4)) ->  | M7: =IF(ISBLANK(D7)," ",(LOOKUP(D7,'Component Weights'!$B$16:$J$16,'Component Weights'!$B$17:$J$17)*$AA$5)) -> 0 | N7: =IF(ISBLANK(E7)," ",(LOOKUP(E7,'Component Weights'!$B$16:$J$16,'Component Weights'!$B$17:$J$17)*$AA$6)) -> 0.24 | O7: =IF(ISBLANK(F7)," ",(LOOKUP(F7,'Component Weights'!$B$16:$J$16,'Component Weights'!$B$17:$J$17)*$AA$7)) -> 0.12 | P7: =IF(ISBLANK(G7)," ",(LOOKUP(G7,'Component Weights'!$B$16:$J$16,'Component Weights'!$B$17:$J$17)*$AA$8)) -> 0.15 | Q7: =IF(ISBLANK(B7)," ",(LOOKUP(B7,'Component Weights'!$B$16:$J$16,'Component Weights'!$B$17:$J$17)*$AA$9)) ->  | R7: =IF(ISBLANK(H7)," ",(LOOKUP(H7,'Component Weights'!$B$16:$J$16,'Component Weights'!$B$17:$J$17)*$AA$10)) -> 0.36 | S7: =IF(ISBLANK(I7)," ",(LOOKUP(I7,'Component Weights'!$B$16:$J$16,'Component Weights'!$B$17:$J$17)*$AA$11)) -> 0 | T7: =IF(ISBLANK(J7)," ",(LOOKUP(J7,'Component Weights'!$B$16:$J$16,'Component Weights'!$B$17:$J$17)*$AA$12)) -> 0.36 | U7: 1.23 | V7: 5 | X7: 1.23 | Z7: Easily Biodegradable | AA7: 0.12 | AB7: H | AC7: The amount of time it will take the product to degrade once its useful life is over.
A8: Open Cell Foam | D8: N | E8: L | F8: L | G8: L | H8: H | I8: H | J8: H | K8: =SUM(IF(ISBLANK(C8),,LOOKUP(C8,'Component Weights'!$B$16:$J$16,'Component Weights'!$B$17:$J$17)),IF(ISBLANK(D8),,LOOKUP(D8,'Component Weights'!$B$16:$J$16,'Component Weights'!$B$17:$J$17)),IF(ISBLANK(E8),,LOOKUP(E8,'Component Weights'!$B$16:$J$16,'Component Weights'!$B$17:$J$17)),IF(ISBLANK(F8),,LOOKUP(F8,'Component Weights'!$B$16:$J$16,'Component Weights'!$B$17:$J$17)),IF(ISBLANK(G8),,LOOKUP(G8,'Component Weights'!$B$16:$J$16,'Component Weights'!$B$17:$J$17)),IF(ISBLANK(B8),,LOOKUP(B8,'Component Weights'!$B$16:$J$16,'Component Weights'!$B$17:$J$17)),IF(ISBLANK(H8),,LOOKUP(H8,'Component Weights'!$B$16:$J$16,'Component Weights'!$B$17:$J$17)),IF(ISBLANK(I8),,LOOKUP(I8,'Component Weights'!$B$16:$J$16,'Component Weights'!$B$17:$J$17)),IF(ISBLANK(J8),,LOOKUP(J8,'Component Weights'!$B$16:$J$16,'Component Weights'!$B$17:$J$17))) -> 12 | L8: =IF(ISBLANK(C8)," ",(LOOKUP(C8,'Component Weights'!$B$16:$J$16,'Component Weights'!$B$17:$J$17)*$AA$4)) ->  | M8: =IF(ISBLANK(D8)," ",(LOOKUP(D8,'Component Weights'!$B$16:$J$16,'Component Weights'!$B$17:$J$17)*$AA$5)) -> 0 | N8: =IF(ISBLANK(E8)," ",(LOOKUP(E8,'Component Weights'!$B$16:$J$16,'Component Weights'!$B$17:$J$17)*$AA$6)) -> 0.08 | O8: =IF(ISBLANK(F8)," ",(LOOKUP(F8,'Component Weights'!$B$16:$J$16,'Component Weights'!$B$17:$J$17)*$AA$7)) -> 0.12 | P8: =IF(ISBLANK(G8)," ",(LOOKUP(G8,'Component Weights'!$B$16:$J$16,'Component Weights'!$B$17:$J$17)*$AA$8)) -> 0.05 | Q8: =IF(ISBLANK(B8)," ",(LOOKUP(B8,'Component Weights'!$B$16:$J$16,'Component Weights'!$B$17:$J$17)*$AA$9)) ->  | R8: =IF(ISBLANK(H8)," ",(LOOKUP(H8,'Component Weights'!$B$16:$J$16,'Component Weights'!$B$17:$J$17)*$AA$10)) -> 0.36 | S8: =IF(ISBLANK(I8)," ",(LOOKUP(I8,'Component Weights'!$B$16:$J$16,'Component Weights'!$B$17:$J$17)*$AA$11)) -> 0.24 | T8: =IF(ISBLANK(J8)," ",(LOOKUP(J8,'Component Weights'!$B$16:$J$16,'Component Weights'!$B$17:$J$17)*$AA$12)) -> 0.36 | U8: 1.21 | V8: 7 | X8: 1.21 | Z8: Made from Natural Materials | AA8: 0.05 | AB8: L | AC8: The amount, expressed as a percentage, of natural (not man-made) materials used to make the product.
A9: Whipped Concrete | D9: N | E9: L | F9: L | G9: M | H9: H | I9: L | J9: H | K9: =SUM(IF(ISBLANK(C9),,LOOKUP(C9,'Component Weights'!$B$16:$J$16,'Component Weights'!$B$17:$J$17)),IF(ISBLANK(D9),,LOOKUP(D9,'Component Weights'!$B$16:$J$16,'Component Weights'!$B$17:$J$17)),IF(ISBLANK(E9),,LOOKUP(E9,'Component Weights'!$B$16:$J$16,'Component Weights'!$B$17:$J$17)),IF(ISBLANK(F9),,LOOKUP(F9,'Component Weights'!$B$16:$J$16,'Component Weights'!$B$17:$J$17)),IF(ISBLANK(G9),,LOOKUP(G9,'Component Weights'!$B$16:$J$16,'Component Weights'!$B$17:$J$17)),IF(ISBLANK(B9),,LOOKUP(B9,'Component Weights'!$B$16:$J$16,'Component Weights'!$B$17:$J$17)),IF(ISBLANK(H9),,LOOKUP(H9,'Component Weights'!$B$16:$J$16,'Component Weights'!$B$17:$J$17)),IF(ISBLANK(I9),,LOOKUP(I9,'Component Weights'!$B$16:$J$16,'Component Weights'!$B$17:$J$17)),IF(ISBLANK(J9),,LOOKUP(J9,'Component Weights'!$B$16:$J$16,'Component Weights'!$B$17:$J$17))) -> 11 | L9: =IF(ISBLANK(C9)," ",(LOOKUP(C9,'Component Weights'!$B$16:$J$16,'Component Weights'!$B$17:$J$17)*$AA$4)) ->  | M9: =IF(ISBLANK(D9)," ",(LOOKUP(D9,'Component Weights'!$B$16:$J$16,'Component Weights'!$B$17:$J$17)*$AA$5)) -> 0 | N9: =IF(ISBLANK(E9)," ",(LOOKUP(E9,'Component Weights'!$B$16:$J$16,'Component Weights'!$B$17:$J$17)*$AA$6)) -> 0.08 | O9: =IF(ISBLANK(F9)," ",(LOOKUP(F9,'Component Weights'!$B$16:$J$16,'Component Weights'!$B$17:$J$17)*$AA$7)) -> 0.12 | P9: =IF(ISBLANK(G9)," ",(LOOKUP(G9,'Component Weights'!$B$16:$J$16,'Component Weights'!$B$17:$J$17)*$AA$8)) -> 0.1 | Q9: =IF(ISBLANK(B9)," ",(LOOKUP(B9,'Component Weights'!$B$16:$J$16,'Component Weights'!$B$17:$J$17)*$AA$9)) ->  | R9: =IF(ISBLANK(H9)," ",(LOOKUP(H9,'Component Weights'!$B$16:$J$16,'Component Weights'!$B$17:$J$17)*$AA$10)) -> 0.36 | S9: =IF(ISBLANK(I9)," ",(LOOKUP(I9,'Component Weights'!$B$16:$J$16,'Component Weights'!$B$17:$J$17)*$AA$11)) -> 0.08 | T9: =IF(ISBLANK(J9)," ",(LOOKUP(J9,'Component Weights'!$B$16:$J$16,'Component Weights'!$B$17:$J$17)*$AA$12)) -> 0.36 | U9: 1.1 | V9: 8 | X9: 1.1 | Z9: Available Locally | AA9: 0.23 | AB9: H+ | AC9: The distance in miles that the product must travel to the destination of final use.
A10: Castor Bean Foam | D10: L | E10: L | F10: L | G10: L | H10: M | I10: L | J10: H | K10: =SUM(IF(ISBLANK(C10),,LOOKUP(C10,'Component Weights'!$B$16:$J$16,'Component Weights'!$B$17:$J$17)),IF(ISBLANK(D10),,LOOKUP(D10,'Component Weights'!$B$16:$J$16,'Component Weights'!$B$17:$J$17)),IF(ISBLANK(E10),,LOOKUP(E10,'Component Weights'!$B$16:$J$16,'Component Weights'!$B$17:$J$17)),IF(ISBLANK(F10),,LOOKUP(F10,'Component Weights'!$B$16:$J$16,'Component Weights'!$B$17:$J$17)),IF(ISBLANK(G10),,LOOKUP(G10,'Component Weights'!$B$16:$J$16,'Component Weights'!$B$17:$J$17)),IF(ISBLANK(B10),,LOOKUP(B10,'Component Weights'!$B$16:$J$16,'Component Weights'!$B$17:$J$17)),IF(ISBLANK(H10),,LOOKUP(H10,'Component Weights'!$B$16:$J$16,'Component Weights'!$B$17:$J$17)),IF(ISBLANK(I10),,LOOKUP(I10,'Component Weights'!$B$16:$J$16,'Component Weights'!$B$17:$J$17)),IF(ISBLANK(J10),,LOOKUP(J10,'Component Weights'!$B$16:$J$16,'Component Weights'!$B$17:$J$17))) -> 10 | L10: =IF(ISBLANK(C10)," ",(LOOKUP(C10,'Component Weights'!$B$16:$J$16,'Component Weights'!$B$17:$J$17)*$AA$4)) ->  | M10: =IF(ISBLANK(D10)," ",(LOOKUP(D10,'Component Weights'!$B$16:$J$16,'Component Weights'!$B$17:$J$17)*$AA$5)) -> 0.12 | N10: =IF(ISBLANK(E10)," ",(LOOKUP(E10,'Component Weights'!$B$16:$J$16,'Component Weights'!$B$17:$J$17)*$AA$6)) -> 0.08 | O10: =IF(ISBLANK(F10)," ",(LOOKUP(F10,'Component Weights'!$B$16:$J$16,'Component Weights'!$B$17:$J$17)*$AA$7)) -> 0.12 | P10: =IF(ISBLANK(G10)," ",(LOOKUP(G10,'Component Weights'!$B$16:$J$16,'Component Weights'!$B$17:$J$17)*$AA$8)) -> 0.05 | Q10: =IF(ISBLANK(B10)," ",(LOOKUP(B10,'Component Weights'!$B$16:$J$16,'Component Weights'!$B$17:$J$17)*$AA$9)) ->  | R10: =IF(ISBLANK(H10)," ",(LOOKUP(H10,'Component Weights'!$B$16:$J$16,'Component Weights'!$B$17:$J$17)*$AA$10)) -> 0.24 | S10: =IF(ISBLANK(I10)," ",(LOOKUP(I10,'Component Weights'!$B$16:$J$16,'Component Weights'!$B$17:$J$17)*$AA$11)) -> 0.08 | T10: =IF(ISBLANK(J10)," ",(LOOKUP(J10,'Component Weights'!$B$16:$J$16,'Component Weights'!$B$17:$J$17)*$AA$12)) -> 0.36 | U10: 1.05 | V10: 9 | X10: 1.05 | Z10: Low Emissions Potential | AA10: 0.12 | AB10: H | AC10: The amount of time it will take the product to stop outgassing.
A11: Fiberglass | D11: L | E11: L | F11: N | G11: H | H11: M | I11: M | J11: M | K11: =SUM(IF(ISBLANK(C11),,LOOKUP(C11,'Component Weights'!$B$16:$J$16,'Component Weights'!$B$17:$J$17)),IF(ISBLANK(D11),,LOOKUP(D11,'Component Weights'!$B$16:$J$16,'Component Weights'!$B$17:$J$17)),IF(ISBLANK(E11),,LOOKUP(E11,'Component Weights'!$B$16:$J$16,'Component Weights'!$B$17:$J$17)),IF(ISBLANK(F11),,LOOKUP(F11,'Component Weights'!$B$16:$J$16,'Component Weights'!$B$17:$J$17)),IF(ISBLANK(G11),,LOOKUP(G11,'Component Weights'!$B$16:$J$16,'Component Weights'!$B$17:$J$17)),IF(ISBLANK(B11),,LOOKUP(B11,'Component Weights'!$B$16:$J$16,'Component Weights'!$B$17:$J$17)),IF(ISBLANK(H11),,LOOKUP(H11,'Component Weights'!$B$16:$J$16,'Component Weights'!$B$17:$J$17)),IF(ISBLANK(I11),,LOOKUP(I11,'Component Weights'!$B$16:$J$16,'Component Weights'!$B$17:$J$17)),IF(ISBLANK(J11),,LOOKUP(J11,'Component Weights'!$B$16:$J$16,'Component Weights'!$B$17:$J$17))) -> 11 | L11: =IF(ISBLANK(C11)," ",(LOOKUP(C11,'Component Weights'!$B$16:$J$16,'Component Weights'!$B$17:$J$17)*$AA$4)) ->  | M11: =IF(ISBLANK(D11)," ",(LOOKUP(D11,'Component Weights'!$B$16:$J$16,'Component Weights'!$B$17:$J$17)*$AA$5)) -> 0.12 | N11: =IF(ISBLANK(E11)," ",(LOOKUP(E11,'Component Weights'!$B$16:$J$16,'Component Weights'!$B$17:$J$17)*$AA$6)) -> 0.08 | O11: =IF(ISBLANK(F11)," ",(LOOKUP(F11,'Component Weights'!$B$16:$J$16,'Component Weights'!$B$17:$J$17)*$AA$7)) -> 0 | P11: =IF(ISBLANK(G11)," ",(LOOKUP(G11,'Component Weights'!$B$16:$J$16,'Component Weights'!$B$17:$J$17)*$AA$8)) -> 0.15 | Q11: =IF(ISBLANK(B11)," ",(LOOKUP(B11,'Component Weights'!$B$16:$J$16,'Component Weights'!$B$17:$J$17)*$AA$9)) ->  | R11: =IF(ISBLANK(H11)," ",(LOOKUP(H11,'Component Weights'!$B$16:$J$16,'Component Weights'!$B$17:$J$17)*$AA$10)) -> 0.24 | S11: =IF(ISBLANK(I11)," ",(LOOKUP(I11,'Component Weights'!$B$16:$J$16,'Component Weights'!$B$17:$J$17)*$AA$11)) -> 0.16 | T11: =IF(ISBLANK(J11)," ",(LOOKUP(J11,'Component Weights'!$B$16:$J$16,'Component Weights'!$B$17:$J$17)*$AA$12)) -> 0.24 | U11: 0.99 | V11: 10 | X11: 0.99 | Z11: Listed in Other Programs (e.g. EnergyStar) | AA11: 0.08 | AB11: M | AC11: The level of product recommendation in recognized energy and environmental programs.
A12: Mineral/Rock/Slag Wool | D12: L | E12: L | F12: L | G12: L | H12: N | I12: N | J12: M | K12: =SUM(IF(ISBLANK(C12),,LOOKUP(C12,'Component Weights'!$B$16:$J$16,'Component Weights'!$B$17:$J$17)),IF(ISBLANK(D12),,LOOKUP(D12,'Component Weights'!$B$16:$J$16,'Component Weights'!$B$17:$J$17)),IF(ISBLANK(E12),,LOOKUP(E12,'Component Weights'!$B$16:$J$16,'Component Weights'!$B$17:$J$17)),IF(ISBLANK(F12),,LOOKUP(F12,'Component Weights'!$B$16:$J$16,'Component Weights'!$B$17:$J$17)),IF(ISBLANK(G12),,LOOKUP(G12,'Component Weights'!$B$16:$J$16,'Component Weights'!$B$17:$J$17)),IF(ISBLANK(B12),,LOOKUP(B12,'Component Weights'!$B$16:$J$16,'Component Weights'!$B$17:$J$17)),IF(ISBLANK(H12),,LOOKUP(H12,'Component Weights'!$B$16:$J$16,'Component Weights'!$B$17:$J$17)),IF(ISBLANK(I12),,LOOKUP(I12,'Component Weights'!$B$16:$J$16,'Component Weights'!$B$17:$J$17)),IF(ISBLANK(J12),,LOOKUP(J12,'Component Weights'!$B$16:$J$16,'Component Weights'!$B$17:$J$17))) -> 6 | L12: =IF(ISBLANK(C12)," ",(LOOKUP(C12,'Component Weights'!$B$16:$J$16,'Component Weights'!$B$17:$J$17)*$AA$4)) ->  | M12: =IF(ISBLANK(D12)," ",(LOOKUP(D12,'Component Weights'!$B$16:$J$16,'Component Weights'!$B$17:$J$17)*$AA$5)) -> 0.12 | N12: =IF(ISBLANK(E12)," ",(LOOKUP(E12,'Component Weights'!$B$16:$J$16,'Component Weights'!$B$17:$J$17)*$AA$6)) -> 0.08 | O12: =IF(ISBLANK(F12)," ",(LOOKUP(F12,'Component Weights'!$B$16:$J$16,'Component Weights'!$B$17:$J$17)*$AA$7)) -> 0.12 | P12: =IF(ISBLANK(G12)," ",(LOOKUP(G12,'Component Weights'!$B$16:$J$16,'Component Weights'!$B$17:$J$17)*$AA$8)) -> 0.05 | Q12: =IF(ISBLANK(B12)," ",(LOOKUP(B12,'Component Weights'!$B$16:$J$16,'Component Weights'!$B$17:$J$17)*$AA$9)) ->  | R12: =IF(ISBLANK(H12)," ",(LOOKUP(H12,'Component Weights'!$B$16:$J$16,'Component Weights'!$B$17:$J$17)*$AA$10)) -> 0 | S12: =IF(ISBLANK(I12)," ",(LOOKUP(I12,'Component Weights'!$B$16:$J$16,'Component Weights'!$B$17:$J$17)*$AA$11)) -> 0 | T12: =IF(ISBLANK(J12)," ",(LOOKUP(J12,'Component Weights'!$B$16:$J$16,'Component Weights'!$B$17:$J$17)*$AA$12)) -> 0.24 | U12: 0.61 | V12: 11 | X12: 0.61 | Z12: Non Hazardous as Waste | AA12: 0.12 | AB12: H | AC12: The amount of hazardous materials and components found in the product.
A13: (Enter Custom Product Here) | K13: =SUM(IF(ISBLANK(C13),,LOOKUP(C13,'Component Weights'!$B$16:$J$16,'Component Weights'!$B$17:$J$17)),IF(ISBLANK(D13),,LOOKUP(D13,'Component Weights'!$B$16:$J$16,'Component Weights'!$B$17:$J$17)),IF(ISBLANK(E13),,LOOKUP(E13,'Component Weights'!$B$16:$J$16,'Component Weights'!$B$17:$J$17)),IF(ISBLANK(F13),,LOOKUP(F13,'Component Weights'!$B$16:$J$16,'Component Weights'!$B$17:$J$17)),IF(ISBLANK(G13),,LOOKUP(G13,'Component Weights'!$B$16:$J$16,'Component Weights'!$B$17:$J$17)),IF(ISBLANK(B13),,LOOKUP(B13,'Component Weights'!$B$16:$J$16,'Component Weights'!$B$17:$J$17)),IF(ISBLANK(H13),,LOOKUP(H13,'Component Weights'!$B$16:$J$16,'Component Weights'!$B$17:$J$17)),IF(ISBLANK(I13),,LOOKUP(I13,'Component Weights'!$B$16:$J$16,'Component Weights'!$B$17:$J$17)),IF(ISBLANK(J13),,LOOKUP(J13,'Component Weights'!$B$16:$J$16,'Component Weights'!$B$17:$J$17))) -> 0 | L13: =IF(ISBLANK(C13)," ",(LOOKUP(C13,'Component Weights'!$B$16:$J$16,'Component Weights'!$B$17:$J$17)*$AA$4)) ->  | M13: =IF(ISBLANK(D13)," ",(LOOKUP(D13,'Component Weights'!$B$16:$J$16,'Component Weights'!$B$17:$J$17)*$AA$5)) ->  | N13: =IF(ISBLANK(E13)," ",(LOOKUP(E13,'Component Weights'!$B$16:$J$16,'Component Weights'!$B$17:$J$17)*$AA$6)) ->  | O13: =IF(ISBLANK(F13)," ",(LOOKUP(F13,'Component Weights'!$B$16:$J$16,'Component Weights'!$B$17:$J$17)*$AA$7)) ->  | P13: =IF(ISBLANK(G13)," ",(LOOKUP(G13,'Component Weights'!$B$16:$J$16,'Component Weights'!$B$17:$J$17)*$AA$8)) ->  | Q13: =IF(ISBLANK(B13)," ",(LOOKUP(B13,'Component Weights'!$B$16:$J$16,'Component Weights'!$B$17:$J$17)*$AA$9)) ->  | R13: =IF(ISBLANK(H13)," ",(LOOKUP(H13,'Component Weights'!$B$16:$J$16,'Component Weights'!$B$17:$J$17)*$AA$10)) ->  | S13: =IF(ISBLANK(I13)," ",(LOOKUP(I13,'Component Weights'!$B$16:$J$16,'Component Weights'!$B$17:$J$17)*$AA$11)) ->  | T13: =IF(ISBLANK(J13)," ",(LOOKUP(J13,'Component Weights'!$B$16:$J$16,'Component Weights'!$B$17:$J$17)*$AA$12)) ->  | U13: 0 | V13: 99 | X13: 0 | Z13: Total Weightings Must Equal 100% | AA13: =SUM(AA4:AA12) -> 1 | AC13: =IF(AA13<>100%,"Keep Working - Weightings must equal 100%"," ") -> 
A14: (Enter Custom Product Here) | K14: =SUM(IF(ISBLANK(C14),,LOOKUP(C14,'Component Weights'!$B$16:$J$16,'Component Weights'!$B$17:$J$17)),IF(ISBLANK(D14),,LOOKUP(D14,'Component Weights'!$B$16:$J$16,'Component Weights'!$B$17:$J$17)),IF(ISBLANK(E14),,LOOKUP(E14,'Component Weights'!$B$16:$J$16,'Component Weights'!$B$17:$J$17)),IF(ISBLANK(F14),,LOOKUP(F14,'Component Weights'!$B$16:$J$16,'Component Weights'!$B$17:$J$17)),IF(ISBLANK(G14),,LOOKUP(G14,'Component Weights'!$B$16:$J$16,'Component Weights'!$B$17:$J$17)),IF(ISBLANK(B14),,LOOKUP(B14,'Component Weights'!$B$16:$J$16,'Component Weights'!$B$17:$J$17)),IF(ISBLANK(H14),,LOOKUP(H14,'Component Weights'!$B$16:$J$16,'Component Weights'!$B$17:$J$17)),IF(ISBLANK(I14),,LOOKUP(I14,'Component Weights'!$B$16:$J$16,'Component Weights'!$B$17:$J$17)),IF(ISBLANK(J14),,LOOKUP(J14,'Component Weights'!$B$16:$J$16,'Component Weights'!$B$17:$J$17))) -> 0 | L14: =IF(ISBLANK(C14)," ",(LOOKUP(C14,'Component Weights'!$B$16:$J$16,'Component Weights'!$B$17:$J$17)*$AA$4)) ->  | M14: =IF(ISBLANK(D14)," ",(LOOKUP(D14,'Component Weights'!$B$16:$J$16,'Component Weights'!$B$17:$J$17)*$AA$5)) ->  | N14: =IF(ISBLANK(E14)," ",(LOOKUP(E14,'Component Weights'!$B$16:$J$16,'Component Weights'!$B$17:$J$17)*$AA$6)) ->  | O14: =IF(ISBLANK(F14)," ",(LOOKUP(F14,'Component Weights'!$B$16:$J$16,'Component Weights'!$B$17:$J$17)*$AA$7)) ->  | P14: =IF(ISBLANK(G14)," ",(LOOKUP(G14,'Component Weights'!$B$16:$J$16,'Component Weights'!$B$17:$J$17)*$AA$8)) ->  | Q14: =IF(ISBLANK(B14)," ",(LOOKUP(B14,'Component Weights'!$B$16:$J$16,'Component Weights'!$B$17:$J$17)*$AA$9)) ->  | R14: =IF(ISBLANK(H14)," ",(LOOKUP(H14,'Component Weights'!$B$16:$J$16,'Component Weights'!$B$17:$J$17)*$AA$10)) ->  | S14: =IF(ISBLANK(I14)," ",(LOOKUP(I14,'Component Weights'!$B$16:$J$16,'Component Weights'!$B$17:$J$17)*$AA$11)) ->  | T14: =IF(ISBLANK(J14)," ",(LOOKUP(J14,'Component Weights'!$B$16:$J$16,'Component Weights'!$B$17:$J$17)*$AA$12)) ->  | U14: 0 | V14: 99 | X14: =U14 -> 0
A15: (Enter Custom Product Here) | K15: =SUM(IF(ISBLANK(C15),,LOOKUP(C15,'Component Weights'!$B$16:$J$16,'Component Weights'!$B$17:$J$17)),IF(ISBLANK(D15),,LOOKUP(D15,'Component Weights'!$B$16:$J$16,'Component Weights'!$B$17:$J$17)),IF(ISBLANK(E15),,LOOKUP(E15,'Component Weights'!$B$16:$J$16,'Component Weights'!$B$17:$J$17)),IF(ISBLANK(F15),,LOOKUP(F15,'Component Weights'!$B$16:$J$16,'Component Weights'!$B$17:$J$17)),IF(ISBLANK(G15),,LOOKUP(G15,'Component Weights'!$B$16:$J$16,'Component Weights'!$B$17:$J$17)),IF(ISBLANK(B15),,LOOKUP(B15,'Component Weights'!$B$16:$J$16,'Component Weights'!$B$17:$J$17)),IF(ISBLANK(H15),,LOOKUP(H15,'Component Weights'!$B$16:$J$16,'Component Weights'!$B$17:$J$17)),IF(ISBLANK(I15),,LOOKUP(I15,'Component Weights'!$B$16:$J$16,'Component Weights'!$B$17:$J$17)),IF(ISBLANK(J15),,LOOKUP(J15,'Component Weights'!$B$16:$J$16,'Component Weights'!$B$17:$J$17))) -> 0 | L15: =IF(ISBLANK(C15)," ",(LOOKUP(C15,'Component Weights'!$B$16:$J$16,'Component Weights'!$B$17:$J$17)*$AA$4)) ->  | M15: =IF(ISBLANK(D15)," ",(LOOKUP(D15,'Component Weights'!$B$16:$J$16,'Component Weights'!$B$17:$J$17)*$AA$5)) ->  | N15: =IF(ISBLANK(E15)," ",(LOOKUP(E15,'Component Weights'!$B$16:$J$16,'Component Weights'!$B$17:$J$17)*$AA$6)) ->  | O15: =IF(ISBLANK(F15)," ",(LOOKUP(F15,'Component Weights'!$B$16:$J$16,'Component Weights'!$B$17:$J$17)*$AA$7)) ->  | P15: =IF(ISBLANK(G15)," ",(LOOKUP(G15,'Component Weights'!$B$16:$J$16,'Component Weights'!$B$17:$J$17)*$AA$8)) ->  | Q15: =IF(ISBLANK(B15)," ",(LOOKUP(B15,'Component Weights'!$B$16:$J$16,'Component Weights'!$B$17:$J$17)*$AA$9)) ->  | R15: =IF(ISBLANK(H15)," ",(LOOKUP(H15,'Component Weights'!$B$16:$J$16,'Component Weights'!$B$17:$J$17)*$AA$10)) ->  | S15: =IF(ISBLANK(I15)," ",(LOOKUP(I15,'Component Weights'!$B$16:$J$16,'Component Weights'!$B$17:$J$17)*$AA$11)) ->  | T15: =IF(ISBLANK(J15)," ",(LOOKUP(J15,'Component Weights'!$B$16:$J$16,'Component Weights'!$B$17:$J$17)*$AA$12)) ->  | U15: 0 | V15: 99 | X15: =U15 -> 0
A16: (Enter Custom Product Here) | K16: =SUM(IF(ISBLANK(C16),,LOOKUP(C16,'Component Weights'!$B$16:$J$16,'Component Weights'!$B$17:$J$17)),IF(ISBLANK(D16),,LOOKUP(D16,'Component Weights'!$B$16:$J$16,'Component Weights'!$B$17:$J$17)),IF(ISBLANK(E16),,LOOKUP(E16,'Component Weights'!$B$16:$J$16,'Component Weights'!$B$17:$J$17)),IF(ISBLANK(F16),,LOOKUP(F16,'Component Weights'!$B$16:$J$16,'Component Weights'!$B$17:$J$17)),IF(ISBLANK(G16),,LOOKUP(G16,'Component Weights'!$B$16:$J$16,'Component Weights'!$B$17:$J$17)),IF(ISBLANK(B16),,LOOKUP(B16,'Component Weights'!$B$16:$J$16,'Component Weights'!$B$17:$J$17)),IF(ISBLANK(H16),,LOOKUP(H16,'Component Weights'!$B$16:$J$16,'Component Weights'!$B$17:$J$17)),IF(ISBLANK(I16),,LOOKUP(I16,'Component Weights'!$B$16:$J$16,'Component Weights'!$B$17:$J$17)),IF(ISBLANK(J16),,LOOKUP(J16,'Component Weights'!$B$16:$J$16,'Component Weights'!$B$17:$J$17))) -> 0 | L16: =IF(ISBLANK(C16)," ",(LOOKUP(C16,'Component Weights'!$B$16:$J$16,'Component Weights'!$B$17:$J$17)*$AA$4)) ->  | M16: =IF(ISBLANK(D16)," ",(LOOKUP(D16,'Component Weights'!$B$16:$J$16,'Component Weights'!$B$17:$J$17)*$AA$5)) ->  | N16: =IF(ISBLANK(E16)," ",(LOOKUP(E16,'Component Weights'!$B$16:$J$16,'Component Weights'!$B$17:$J$17)*$AA$6)) ->  | O16: =IF(ISBLANK(F16)," ",(LOOKUP(F16,'Component Weights'!$B$16:$J$16,'Component Weights'!$B$17:$J$17)*$AA$7)) ->  | P16: =IF(ISBLANK(G16)," ",(LOOKUP(G16,'Component Weights'!$B$16:$J$16,'Component Weights'!$B$17:$J$17)*$AA$8)) ->  | Q16: =IF(ISBLANK(B16)," ",(LOOKUP(B16,'Component Weights'!$B$16:$J$16,'Component Weights'!$B$17:$J$17)*$AA$9)) ->  | R16: =IF(ISBLANK(H16)," ",(LOOKUP(H16,'Component Weights'!$B$16:$J$16,'Component Weights'!$B$17:$J$17)*$AA$10)) ->  | S16: =IF(ISBLANK(I16)," ",(LOOKUP(I16,'Component Weights'!$B$16:$J$16,'Component Weights'!$B$17:$J$17)*$AA$11)) ->  | T16: =IF(ISBLANK(J16)," ",(LOOKUP(J16,'Component Weights'!$B$16:$J$16,'Component Weights'!$B$17:$J$17)*$AA$12)) ->  | U16: 0 | V16: 99 | X16: =U16 -> 0
A17: (Enter Custom Product Here) | K17: =SUM(IF(ISBLANK(C17),,LOOKUP(C17,'Component Weights'!$B$16:$J$16,'Component Weights'!$B$17:$J$17)),IF(ISBLANK(D17),,LOOKUP(D17,'Component Weights'!$B$16:$J$16,'Component Weights'!$B$17:$J$17)),IF(ISBLANK(E17),,LOOKUP(E17,'Component Weights'!$B$16:$J$16,'Component Weights'!$B$17:$J$17)),IF(ISBLANK(F17),,LOOKUP(F17,'Component Weights'!$B$16:$J$16,'Component Weights'!$B$17:$J$17)),IF(ISBLANK(G17),,LOOKUP(G17,'Component Weights'!$B$16:$J$16,'Component Weights'!$B$17:$J$17)),IF(ISBLANK(B17),,LOOKUP(B17,'Component Weights'!$B$16:$J$16,'Component Weights'!$B$17:$J$17)),IF(ISBLANK(H17),,LOOKUP(H17,'Component Weights'!$B$16:$J$16,'Component Weights'!$B$17:$J$17)),IF(ISBLANK(I17),,LOOKUP(I17,'Component Weights'!$B$16:$J$16,'Component Weights'!$B$17:$J$17)),IF(ISBLANK(J17),,LOOKUP(J17,'Component Weights'!$B$16:$J$16,'Component Weights'!$B$17:$J$17))) -> 0 | L17: =IF(ISBLANK(C17)," ",(LOOKUP(C17,'Component Weights'!$B$16:$J$16,'Component Weights'!$B$17:$J$17)*$AA$4)) ->  | M17: =IF(ISBLANK(D17)," ",(LOOKUP(D17,'Component Weights'!$B$16:$J$16,'Component Weights'!$B$17:$J$17)*$AA$5)) ->  | N17: =IF(ISBLANK(E17)," ",(LOOKUP(E17,'Component Weights'!$B$16:$J$16,'Component Weights'!$B$17:$J$17)*$AA$6)) ->  | O17: =IF(ISBLANK(F17)," ",(LOOKUP(F17,'Component Weights'!$B$16:$J$16,'Component Weights'!$B$17:$J$17)*$AA$7)) ->  | P17: =IF(ISBLANK(G17)," ",(LOOKUP(G17,'Component Weights'!$B$16:$J$16,'Component Weights'!$B$17:$J$17)*$AA$8)) ->  | Q17: =IF(ISBLANK(B17)," ",(LOOKUP(B17,'Component Weights'!$B$16:$J$16,'Component Weights'!$B$17:$J$17)*$AA$9)) ->  | R17: =IF(ISBLANK(H17)," ",(LOOKUP(H17,'Component Weights'!$B$16:$J$16,'Component Weights'!$B$17:$J$17)*$AA$10)) ->  | S17: =IF(ISBLANK(I17)," ",(LOOKUP(I17,'Component Weights'!$B$16:$J$16,'Component Weights'!$B$17:$J$17)*$AA$11)) ->  | T17: =IF(ISBLANK(J17)," ",(LOOKUP(J17,'Component Weights'!$B$16:$J$16,'Component Weights'!$B$17:$J$17)*$AA$12)) ->  | U17: 0 | V17: 99 | X17: =U17 -> 0
A18: (Enter Custom Product Here) | K18: =SUM(IF(ISBLANK(C18),,LOOKUP(C18,'Component Weights'!$B$16:$J$16,'Component Weights'!$B$17:$J$17)),IF(ISBLANK(D18),,LOOKUP(D18,'Component Weights'!$B$16:$J$16,'Component Weights'!$B$17:$J$17)),IF(ISBLANK(E18),,LOOKUP(E18,'Component Weights'!$B$16:$J$16,'Component Weights'!$B$17:$J$17)),IF(ISBLANK(F18),,LOOKUP(F18,'Component Weights'!$B$16:$J$16,'Component Weights'!$B$17:$J$17)),IF(ISBLANK(G18),,LOOKUP(G18,'Component Weights'!$B$16:$J$16,'Component Weights'!$B$17:$J$17)),IF(ISBLANK(B18),,LOOKUP(B18,'Component Weights'!$B$16:$J$16,'Component Weights'!$B$17:$J$17)),IF(ISBLANK(H18),,LOOKUP(H18,'Component Weights'!$B$16:$J$16,'Component Weights'!$B$17:$J$17)),IF(ISBLANK(I18),,LOOKUP(I18,'Component Weights'!$B$16:$J$16,'Component Weights'!$B$17:$J$17)),IF(ISBLANK(J18),,LOOKUP(J18,'Component Weights'!$B$16:$J$16,'Component Weights'!$B$17:$J$17))) -> 0 | L18: =IF(ISBLANK(C18)," ",(LOOKUP(C18,'Component Weights'!$B$16:$J$16,'Component Weights'!$B$17:$J$17)*$AA$4)) ->  | M18: =IF(ISBLANK(D18)," ",(LOOKUP(D18,'Component Weights'!$B$16:$J$16,'Component Weights'!$B$17:$J$17)*$AA$5)) ->  | N18: =IF(ISBLANK(E18)," ",(LOOKUP(E18,'Component Weights'!$B$16:$J$16,'Component Weights'!$B$17:$J$17)*$AA$6)) ->  | O18: =IF(ISBLANK(F18)," ",(LOOKUP(F18,'Component Weights'!$B$16:$J$16,'Component Weights'!$B$17:$J$17)*$AA$7)) ->  | P18: =IF(ISBLANK(G18)," ",(LOOKUP(G18,'Component Weights'!$B$16:$J$16,'Component Weights'!$B$17:$J$17)*$AA$8)) ->  | Q18: =IF(ISBLANK(B18)," ",(LOOKUP(B18,'Component Weights'!$B$16:$J$16,'Component Weights'!$B$17:$J$17)*$AA$9)) ->  | R18: =IF(ISBLANK(H18)," ",(LOOKUP(H18,'Component Weights'!$B$16:$J$16,'Component Weights'!$B$17:$J$17)*$AA$10)) ->  | S18: =IF(ISBLANK(I18)," ",(LOOKUP(I18,'Component Weights'!$B$16:$J$16,'Component Weights'!$B$17:$J$17)*$AA$11)) ->  | T18: =IF(ISBLANK(J18)," ",(LOOKUP(J18,'Component Weights'!$B$16:$J$16,'Component Weights'!$B$17:$J$17)*$AA$12)) ->  | U18: 0 | V18: 99 | X18: 0
K19: =AVERAGE(K$2:K12) -> 13 | L19: =AVERAGE(L$2:L12) ->  | M19: =AVERAGE(M$2:M12) -> 0.1090909091 | N19: =AVERAGE(N$2:N12) -> 0.1527272727 | O19: =AVERAGE(O$2:O12) -> 0.1309090909 | P19: =AVERAGE(P$2:P12) -> 0.1090909091 | Q19: =AVERAGE(Q$2:Q12) ->  | R19: =AVERAGE(R$2:R12) -> 0.3054545455 | S19: =AVERAGE(S$2:S12) -> 0.1236363636 | T19: =AVERAGE(T$2:T12) -> 0.3381818182 | U19: =AVERAGE(U$2:U12) -> 1.269090909 | V19: =IF(AND(OR(#REF!=72,#REF!=73,#REF!=74,#REF!=75,#REF!=76),$T19>0),RANK($T19,X$3:X$43,0)," ") -> 

Sheet Roofing
A1: Instructions: Scroll down to see all products. New products may be added to the end of the list. Rate the performance of each product as "N, L, M or H." (Hover over the component title for the rating description.) Use your Backspace button to clear values. The Sort button (below) will incorporate your priorities as currently stated on the table to the right. (Scroll to the right to see the table.) | B1: Available Locally | C1: Incremental Energy Savings | D1: Use of Recycled Content | E1: Low Energy Usage Manufacturing Process | F1: Easily Biodegradable | G1: Made from Natural Materials | H1: Low Emissions Potential | I1: Listed in Other Programs | J1: Non Hazardous as Waste | K1: Total Raw Score | L1: Incremental Energy Savings Weighted Score | M1: Use of Recycled Content Weighted Score | N1: Low Energy Usage Mfg. Process Weighted Score | O1: Easily Biodegradable Weighted Score | P1: Made from Natural Materials Weighted Score | Q1: Available Locally Weighted Score | R1: Low Emissions Potential Weighted Score | S1: Listed in Other Programs Weighted Score | T1: Non Hazardous as Waste Weighted Score | U1: Total Weighted Score | V1: Force Ranking | X1: Weighted Score for Force Rank Calculation | Z1: Detailed instructions and options for using this tool are found in the Using the DYO® GBD Kit Decision Matrix Software Section of your DYO® Green Building Decision Kit.
A2: Plant based “Green” Roof | D2: H | E2: H | F2: H | G2: H | I2: H | J2: H | K2: =SUM(IF(ISBLANK(C2),,LOOKUP(C2,'Component Weights'!$B$16:$J$16,'Component Weights'!$B$17:$J$17)),IF(ISBLANK(D2),,LOOKUP(D2,'Component Weights'!$B$16:$J$16,'Component Weights'!$B$17:$J$17)),IF(ISBLANK(E2),,LOOKUP(E2,'Component Weights'!$B$16:$J$16,'Component Weights'!$B$17:$J$17)),IF(ISBLANK(F2),,LOOKUP(F2,'Component Weights'!$B$16:$J$16,'Component Weights'!$B$17:$J$17)),IF(ISBLANK(G2),,LOOKUP(G2,'Component Weights'!$B$16:$J$16,'Component Weights'!$B$17:$J$17)),IF(ISBLANK(B2),,LOOKUP(B2,'Component Weights'!$B$16:$J$16,'Component Weights'!$B$17:$J$17)),IF(ISBLANK(H2),,LOOKUP(H2,'Component Weights'!$B$16:$J$16,'Component Weights'!$B$17:$J$17)),IF(ISBLANK(I2),,LOOKUP(I2,'Component Weights'!$B$16:$J$16,'Component Weights'!$B$17:$J$17)),IF(ISBLANK(J2),,LOOKUP(J2,'Component Weights'!$B$16:$J$16,'Component Weights'!$B$17:$J$17))) -> 18 | L2: =IF(ISBLANK(C2)," ",(LOOKUP(C2,'Component Weights'!$B$16:$J$16,'Component Weights'!$B$17:$J$17)*$AA$4)) ->  | M2: =IF(ISBLANK(D2)," ",(LOOKUP(D2,'Component Weights'!$B$16:$J$16,'Component Weights'!$B$17:$J$17)*$AA$5)) -> 0.36 | N2: =IF(ISBLANK(E2)," ",(LOOKUP(E2,'Component Weights'!$B$16:$J$16,'Component Weights'!$B$17:$J$17)*$AA$6)) -> 0.24 | O2: =IF(ISBLANK(F2)," ",(LOOKUP(F2,'Component Weights'!$B$16:$J$16,'Component Weights'!$B$17:$J$17)*$AA$7)) -> 0.36 | P2: =IF(ISBLANK(G2)," ",(LOOKUP(G2,'Component Weights'!$B$16:$J$16,'Component Weights'!$B$17:$J$17)*$AA$8)) -> 0.15 | Q2: =IF(ISBLANK(B2)," ",(LOOKUP(B2,'Component Weights'!$B$16:$J$16,'Component Weights'!$B$17:$J$17)*$AA$9)) ->  | R2: =IF(ISBLANK(H2)," ",(LOOKUP(H2,'Component Weights'!$B$16:$J$16,'Component Weights'!$B$17:$J$17)*$AA$10)) ->  | S2: =IF(ISBLANK(I2)," ",(LOOKUP(I2,'Component Weights'!$B$16:$J$16,'Component Weights'!$B$17:$J$17)*$AA$11)) -> 0.24 | T2: =IF(ISBLANK(J2)," ",(LOOKUP(J2,'Component Weights'!$B$16:$J$16,'Component Weights'!$B$17:$J$17)*$AA$12)) -> 0.36 | U2: =SUM(L2:T2) -> 1.71 | V2: =IF($U2>0,RANK($U2,X$2:X$206,0),99) -> 1 | X2: =U2 -> 1.71 | Z2: Component Weights for | AA2: Weight
A3: Wood | D3: M | E3: H | F3: H | G3: H | I3: L | J3: H | K3: =SUM(IF(ISBLANK(C3),,LOOKUP(C3,'Component Weights'!$B$16:$J$16,'Component Weights'!$B$17:$J$17)),IF(ISBLANK(D3),,LOOKUP(D3,'Component Weights'!$B$16:$J$16,'Component Weights'!$B$17:$J$17)),IF(ISBLANK(E3),,LOOKUP(E3,'Component Weights'!$B$16:$J$16,'Component Weights'!$B$17:$J$17)),IF(ISBLANK(F3),,LOOKUP(F3,'Component Weights'!$B$16:$J$16,'Component Weights'!$B$17:$J$17)),IF(ISBLANK(G3),,LOOKUP(G3,'Component Weights'!$B$16:$J$16,'Component Weights'!$B$17:$J$17)),IF(ISBLANK(B3),,LOOKUP(B3,'Component Weights'!$B$16:$J$16,'Component Weights'!$B$17:$J$17)),IF(ISBLANK(H3),,LOOKUP(H3,'Component Weights'!$B$16:$J$16,'Component Weights'!$B$17:$J$17)),IF(ISBLANK(I3),,LOOKUP(I3,'Component Weights'!$B$16:$J$16,'Component Weights'!$B$17:$J$17)),IF(ISBLANK(J3),,LOOKUP(J3,'Component Weights'!$B$16:$J$16,'Component Weights'!$B$17:$J$17))) -> 15 | L3: =IF(ISBLANK(C3)," ",(LOOKUP(C3,'Component Weights'!$B$16:$J$16,'Component Weights'!$B$17:$J$17)*$AA$4)) ->  | M3: =IF(ISBLANK(D3)," ",(LOOKUP(D3,'Component Weights'!$B$16:$J$16,'Component Weights'!$B$17:$J$17)*$AA$5)) -> 0.24 | N3: =IF(ISBLANK(E3)," ",(LOOKUP(E3,'Component Weights'!$B$16:$J$16,'Component Weights'!$B$17:$J$17)*$AA$6)) -> 0.24 | O3: =IF(ISBLANK(F3)," ",(LOOKUP(F3,'Component Weights'!$B$16:$J$16,'Component Weights'!$B$17:$J$17)*$AA$7)) -> 0.36 | P3: =IF(ISBLANK(G3)," ",(LOOKUP(G3,'Component Weights'!$B$16:$J$16,'Component Weights'!$B$17:$J$17)*$AA$8)) -> 0.15 | Q3: =IF(ISBLANK(B3)," ",(LOOKUP(B3,'Component Weights'!$B$16:$J$16,'Component Weights'!$B$17:$J$17)*$AA$9)) ->  | R3: =IF(ISBLANK(H3)," ",(LOOKUP(H3,'Component Weights'!$B$16:$J$16,'Component Weights'!$B$17:$J$17)*$AA$10)) ->  | S3: =IF(ISBLANK(I3)," ",(LOOKUP(I3,'Component Weights'!$B$16:$J$16,'Component Weights'!$B$17:$J$17)*$AA$11)) -> 0.08 | T3: =IF(ISBLANK(J3)," ",(LOOKUP(J3,'Component Weights'!$B$16:$J$16,'Component Weights'!$B$17:$J$17)*$AA$12)) -> 0.36 | U3: 1.43 | V3: 2 | X3: 1.43 | Z3: Roofing
A4: Eco Slate (made from recycled materials) | D4: H | E4: M | F4: N | G4: M | I4: H | J4: M | K4: =SUM(IF(ISBLANK(C4),,LOOKUP(C4,'Component Weights'!$B$16:$J$16,'Component Weights'!$B$17:$J$17)),IF(ISBLANK(D4),,LOOKUP(D4,'Component Weights'!$B$16:$J$16,'Component Weights'!$B$17:$J$17)),IF(ISBLANK(E4),,LOOKUP(E4,'Component Weights'!$B$16:$J$16,'Component Weights'!$B$17:$J$17)),IF(ISBLANK(F4),,LOOKUP(F4,'Component Weights'!$B$16:$J$16,'Component Weights'!$B$17:$J$17)),IF(ISBLANK(G4),,LOOKUP(G4,'Component Weights'!$B$16:$J$16,'Component Weights'!$B$17:$J$17)),IF(ISBLANK(B4),,LOOKUP(B4,'Component Weights'!$B$16:$J$16,'Component Weights'!$B$17:$J$17)),IF(ISBLANK(H4),,LOOKUP(H4,'Component Weights'!$B$16:$J$16,'Component Weights'!$B$17:$J$17)),IF(ISBLANK(I4),,LOOKUP(I4,'Component Weights'!$B$16:$J$16,'Component Weights'!$B$17:$J$17)),IF(ISBLANK(J4),,LOOKUP(J4,'Component Weights'!$B$16:$J$16,'Component Weights'!$B$17:$J$17))) -> 12 | L4: =IF(ISBLANK(C4)," ",(LOOKUP(C4,'Component Weights'!$B$16:$J$16,'Component Weights'!$B$17:$J$17)*$AA$4)) ->  | M4: =IF(ISBLANK(D4)," ",(LOOKUP(D4,'Component Weights'!$B$16:$J$16,'Component Weights'!$B$17:$J$17)*$AA$5)) -> 0.36 | N4: =IF(ISBLANK(E4)," ",(LOOKUP(E4,'Component Weights'!$B$16:$J$16,'Component Weights'!$B$17:$J$17)*$AA$6)) -> 0.16 | O4: =IF(ISBLANK(F4)," ",(LOOKUP(F4,'Component Weights'!$B$16:$J$16,'Component Weights'!$B$17:$J$17)*$AA$7)) -> 0 | P4: =IF(ISBLANK(G4)," ",(LOOKUP(G4,'Component Weights'!$B$16:$J$16,'Component Weights'!$B$17:$J$17)*$AA$8)) -> 0.1 | Q4: =IF(ISBLANK(B4)," ",(LOOKUP(B4,'Component Weights'!$B$16:$J$16,'Component Weights'!$B$17:$J$17)*$AA$9)) ->  | R4: =IF(ISBLANK(H4)," ",(LOOKUP(H4,'Component Weights'!$B$16:$J$16,'Component Weights'!$B$17:$J$17)*$AA$10)) ->  | S4: =IF(ISBLANK(I4)," ",(LOOKUP(I4,'Component Weights'!$B$16:$J$16,'Component Weights'!$B$17:$J$17)*$AA$11)) -> 0.24 | T4: =IF(ISBLANK(J4)," ",(LOOKUP(J4,'Component Weights'!$B$16:$J$16,'Component Weights'!$B$17:$J$17)*$AA$12)) -> 0.24 | U4: 1.1 | V4: 3 | X4: 1.1 | Z4: Incremental Energy Savings | AA4: 0.08 | AB4: M | AC4: The amount of incremental energy, expressed in Btu/Hr, that a product saves or generates for the structure.
A5: Slate (natural stone) | D5: N | E5: H | F5: L | G5: H | I5: M | J5: H | K5: =SUM(IF(ISBLANK(C5),,LOOKUP(C5,'Component Weights'!$B$16:$J$16,'Component Weights'!$B$17:$J$17)),IF(ISBLANK(D5),,LOOKUP(D5,'Component Weights'!$B$16:$J$16,'Component Weights'!$B$17:$J$17)),IF(ISBLANK(E5),,LOOKUP(E5,'Component Weights'!$B$16:$J$16,'Component Weights'!$B$17:$J$17)),IF(ISBLANK(F5),,LOOKUP(F5,'Component Weights'!$B$16:$J$16,'Component Weights'!$B$17:$J$17)),IF(ISBLANK(G5),,LOOKUP(G5,'Component Weights'!$B$16:$J$16,'Component Weights'!$B$17:$J$17)),IF(ISBLANK(B5),,LOOKUP(B5,'Component Weights'!$B$16:$J$16,'Component Weights'!$B$17:$J$17)),IF(ISBLANK(H5),,LOOKUP(H5,'Component Weights'!$B$16:$J$16,'Component Weights'!$B$17:$J$17)),IF(ISBLANK(I5),,LOOKUP(I5,'Component Weights'!$B$16:$J$16,'Component Weights'!$B$17:$J$17)),IF(ISBLANK(J5),,LOOKUP(J5,'Component Weights'!$B$16:$J$16,'Component Weights'!$B$17:$J$17))) -> 12 | L5: =IF(ISBLANK(C5)," ",(LOOKUP(C5,'Component Weights'!$B$16:$J$16,'Component Weights'!$B$17:$J$17)*$AA$4)) ->  | M5: =IF(ISBLANK(D5)," ",(LOOKUP(D5,'Component Weights'!$B$16:$J$16,'Component Weights'!$B$17:$J$17)*$AA$5)) -> 0 | N5: =IF(ISBLANK(E5)," ",(LOOKUP(E5,'Component Weights'!$B$16:$J$16,'Component Weights'!$B$17:$J$17)*$AA$6)) -> 0.24 | O5: =IF(ISBLANK(F5)," ",(LOOKUP(F5,'Component Weights'!$B$16:$J$16,'Component Weights'!$B$17:$J$17)*$AA$7)) -> 0.12 | P5: =IF(ISBLANK(G5)," ",(LOOKUP(G5,'Component Weights'!$B$16:$J$16,'Component Weights'!$B$17:$J$17)*$AA$8)) -> 0.15 | Q5: =IF(ISBLANK(B5)," ",(LOOKUP(B5,'Component Weights'!$B$16:$J$16,'Component Weights'!$B$17:$J$17)*$AA$9)) ->  | R5: =IF(ISBLANK(H5)," ",(LOOKUP(H5,'Component Weights'!$B$16:$J$16,'Component Weights'!$B$17:$J$17)*$AA$10)) ->  | S5: =IF(ISBLANK(I5)," ",(LOOKUP(I5,'Component Weights'!$B$16:$J$16,'Component Weights'!$B$17:$J$17)*$AA$11)) -> 0.16 | T5: =IF(ISBLANK(J5)," ",(LOOKUP(J5,'Component Weights'!$B$16:$J$16,'Component Weights'!$B$17:$J$17)*$AA$12)) -> 0.36 | U5: 1.03 | V5: 4 | X5: 1.03 | Z5: Use of Recycled Content | AA5: 0.12 | AB5: H | AC5: The amount of recycled content, expressed as a percentage, found in a product.
A6: Clay Tile | D6: N | E6: H | F6: L | G6: H | I6: N | J6: H | K6: =SUM(IF(ISBLANK(C6),,LOOKUP(C6,'Component Weights'!$B$16:$J$16,'Component Weights'!$B$17:$J$17)),IF(ISBLANK(D6),,LOOKUP(D6,'Component Weights'!$B$16:$J$16,'Component Weights'!$B$17:$J$17)),IF(ISBLANK(E6),,LOOKUP(E6,'Component Weights'!$B$16:$J$16,'Component Weights'!$B$17:$J$17)),IF(ISBLANK(F6),,LOOKUP(F6,'Component Weights'!$B$16:$J$16,'Component Weights'!$B$17:$J$17)),IF(ISBLANK(G6),,LOOKUP(G6,'Component Weights'!$B$16:$J$16,'Component Weights'!$B$17:$J$17)),IF(ISBLANK(B6),,LOOKUP(B6,'Component Weights'!$B$16:$J$16,'Component Weights'!$B$17:$J$17)),IF(ISBLANK(H6),,LOOKUP(H6,'Component Weights'!$B$16:$J$16,'Component Weights'!$B$17:$J$17)),IF(ISBLANK(I6),,LOOKUP(I6,'Component Weights'!$B$16:$J$16,'Component Weights'!$B$17:$J$17)),IF(ISBLANK(J6),,LOOKUP(J6,'Component Weights'!$B$16:$J$16,'Component Weights'!$B$17:$J$17))) -> 10 | L6: =IF(ISBLANK(C6)," ",(LOOKUP(C6,'Component Weights'!$B$16:$J$16,'Component Weights'!$B$17:$J$17)*$AA$4)) ->  | M6: =IF(ISBLANK(D6)," ",(LOOKUP(D6,'Component Weights'!$B$16:$J$16,'Component Weights'!$B$17:$J$17)*$AA$5)) -> 0 | N6: =IF(ISBLANK(E6)," ",(LOOKUP(E6,'Component Weights'!$B$16:$J$16,'Component Weights'!$B$17:$J$17)*$AA$6)) -> 0.24 | O6: =IF(ISBLANK(F6)," ",(LOOKUP(F6,'Component Weights'!$B$16:$J$16,'Component Weights'!$B$17:$J$17)*$AA$7)) -> 0.12 | P6: =IF(ISBLANK(G6)," ",(LOOKUP(G6,'Component Weights'!$B$16:$J$16,'Component Weights'!$B$17:$J$17)*$AA$8)) -> 0.15 | Q6: =IF(ISBLANK(B6)," ",(LOOKUP(B6,'Component Weights'!$B$16:$J$16,'Component Weights'!$B$17:$J$17)*$AA$9)) ->  | R6: =IF(ISBLANK(H6)," ",(LOOKUP(H6,'Component Weights'!$B$16:$J$16,'Component Weights'!$B$17:$J$17)*$AA$10)) ->  | S6: =IF(ISBLANK(I6)," ",(LOOKUP(I6,'Component Weights'!$B$16:$J$16,'Component Weights'!$B$17:$J$17)*$AA$11)) -> 0 | T6: =IF(ISBLANK(J6)," ",(LOOKUP(J6,'Component Weights'!$B$16:$J$16,'Component Weights'!$B$17:$J$17)*$AA$12)) -> 0.36 | U6: 0.87 | V6: 5 | X6: 0.87 | Z6: Low Energy Usage Manufacturing Process | AA6: 0.08 | AB6: M | AC6: The amount of energy used in manufacture of the product.
A7: Asphalt (short life) | D7: M | E7: L | F7: M | G7: M | I7: N | J7: L | K7: =SUM(IF(ISBLANK(C7),,LOOKUP(C7,'Component Weights'!$B$16:$J$16,'Component Weights'!$B$17:$J$17)),IF(ISBLANK(D7),,LOOKUP(D7,'Component Weights'!$B$16:$J$16,'Component Weights'!$B$17:$J$17)),IF(ISBLANK(E7),,LOOKUP(E7,'Component Weights'!$B$16:$J$16,'Component Weights'!$B$17:$J$17)),IF(ISBLANK(F7),,LOOKUP(F7,'Component Weights'!$B$16:$J$16,'Component Weights'!$B$17:$J$17)),IF(ISBLANK(G7),,LOOKUP(G7,'Component Weights'!$B$16:$J$16,'Component Weights'!$B$17:$J$17)),IF(ISBLANK(B7),,LOOKUP(B7,'Component Weights'!$B$16:$J$16,'Component Weights'!$B$17:$J$17)),IF(ISBLANK(H7),,LOOKUP(H7,'Component Weights'!$B$16:$J$16,'Component Weights'!$B$17:$J$17)),IF(ISBLANK(I7),,LOOKUP(I7,'Component Weights'!$B$16:$J$16,'Component Weights'!$B$17:$J$17)),IF(ISBLANK(J7),,LOOKUP(J7,'Component Weights'!$B$16:$J$16,'Component Weights'!$B$17:$J$17))) -> 8 | L7: =IF(ISBLANK(C7)," ",(LOOKUP(C7,'Component Weights'!$B$16:$J$16,'Component Weights'!$B$17:$J$17)*$AA$4)) ->  | M7: =IF(ISBLANK(D7)," ",(LOOKUP(D7,'Component Weights'!$B$16:$J$16,'Component Weights'!$B$17:$J$17)*$AA$5)) -> 0.24 | N7: =IF(ISBLANK(E7)," ",(LOOKUP(E7,'Component Weights'!$B$16:$J$16,'Component Weights'!$B$17:$J$17)*$AA$6)) -> 0.08 | O7: =IF(ISBLANK(F7)," ",(LOOKUP(F7,'Component Weights'!$B$16:$J$16,'Component Weights'!$B$17:$J$17)*$AA$7)) -> 0.24 | P7: =IF(ISBLANK(G7)," ",(LOOKUP(G7,'Component Weights'!$B$16:$J$16,'Component Weights'!$B$17:$J$17)*$AA$8)) -> 0.1 | Q7: =IF(ISBLANK(B7)," ",(LOOKUP(B7,'Component Weights'!$B$16:$J$16,'Component Weights'!$B$17:$J$17)*$AA$9)) ->  | R7: =IF(ISBLANK(H7)," ",(LOOKUP(H7,'Component Weights'!$B$16:$J$16,'Component Weights'!$B$17:$J$17)*$AA$10)) ->  | S7: =IF(ISBLANK(I7)," ",(LOOKUP(I7,'Component Weights'!$B$16:$J$16,'Component Weights'!$B$17:$J$17)*$AA$11)) -> 0 | T7: =IF(ISBLANK(J7)," ",(LOOKUP(J7,'Component Weights'!$B$16:$J$16,'Component Weights'!$B$17:$J$17)*$AA$12)) -> 0.12 | U7: 0.78 | V7: 6 | X7: 0.78 | Z7: Easily Biodegradable | AA7: 0.12 | AB7: H | AC7: The amount of time it will take the product to degrade once its useful life is over.
A8: Asphalt (long life) | D8: M | E8: L | F8: M | G8: M | I8: N | J8: L | K8: =SUM(IF(ISBLANK(C8),,LOOKUP(C8,'Component Weights'!$B$16:$J$16,'Component Weights'!$B$17:$J$17)),IF(ISBLANK(D8),,LOOKUP(D8,'Component Weights'!$B$16:$J$16,'Component Weights'!$B$17:$J$17)),IF(ISBLANK(E8),,LOOKUP(E8,'Component Weights'!$B$16:$J$16,'Component Weights'!$B$17:$J$17)),IF(ISBLANK(F8),,LOOKUP(F8,'Component Weights'!$B$16:$J$16,'Component Weights'!$B$17:$J$17)),IF(ISBLANK(G8),,LOOKUP(G8,'Component Weights'!$B$16:$J$16,'Component Weights'!$B$17:$J$17)),IF(ISBLANK(B8),,LOOKUP(B8,'Component Weights'!$B$16:$J$16,'Component Weights'!$B$17:$J$17)),IF(ISBLANK(H8),,LOOKUP(H8,'Component Weights'!$B$16:$J$16,'Component Weights'!$B$17:$J$17)),IF(ISBLANK(I8),,LOOKUP(I8,'Component Weights'!$B$16:$J$16,'Component Weights'!$B$17:$J$17)),IF(ISBLANK(J8),,LOOKUP(J8,'Component Weights'!$B$16:$J$16,'Component Weights'!$B$17:$J$17))) -> 8 | L8: =IF(ISBLANK(C8)," ",(LOOKUP(C8,'Component Weights'!$B$16:$J$16,'Component Weights'!$B$17:$J$17)*$AA$4)) ->  | M8: =IF(ISBLANK(D8)," ",(LOOKUP(D8,'Component Weights'!$B$16:$J$16,'Component Weights'!$B$17:$J$17)*$AA$5)) -> 0.24 | N8: =IF(ISBLANK(E8)," ",(LOOKUP(E8,'Component Weights'!$B$16:$J$16,'Component Weights'!$B$17:$J$17)*$AA$6)) -> 0.08 | O8: =IF(ISBLANK(F8)," ",(LOOKUP(F8,'Component Weights'!$B$16:$J$16,'Component Weights'!$B$17:$J$17)*$AA$7)) -> 0.24 | P8: =IF(ISBLANK(G8)," ",(LOOKUP(G8,'Component Weights'!$B$16:$J$16,'Component Weights'!$B$17:$J$17)*$AA$8)) -> 0.1 | Q8: =IF(ISBLANK(B8)," ",(LOOKUP(B8,'Component Weights'!$B$16:$J$16,'Component Weights'!$B$17:$J$17)*$AA$9)) ->  | R8: =IF(ISBLANK(H8)," ",(LOOKUP(H8,'Component Weights'!$B$16:$J$16,'Component Weights'!$B$17:$J$17)*$AA$10)) ->  | S8: =IF(ISBLANK(I8)," ",(LOOKUP(I8,'Component Weights'!$B$16:$J$16,'Component Weights'!$B$17:$J$17)*$AA$11)) -> 0 | T8: =IF(ISBLANK(J8)," ",(LOOKUP(J8,'Component Weights'!$B$16:$J$16,'Component Weights'!$B$17:$J$17)*$AA$12)) -> 0.12 | U8: 0.78 | V8: 6 | X8: 0.78 | Z8: Made from Natural Materials | AA8: 0.05 | AB8: L | AC8: The amount, expressed as a percentage, of natural (not man-made) materials used to make the product.
A9: Concrete Tile or Shingles | D9: N | E9: L | F9: L | G9: L | I9: M | J9: H | K9: =SUM(IF(ISBLANK(C9),,LOOKUP(C9,'Component Weights'!$B$16:$J$16,'Component Weights'!$B$17:$J$17)),IF(ISBLANK(D9),,LOOKUP(D9,'Component Weights'!$B$16:$J$16,'Component Weights'!$B$17:$J$17)),IF(ISBLANK(E9),,LOOKUP(E9,'Component Weights'!$B$16:$J$16,'Component Weights'!$B$17:$J$17)),IF(ISBLANK(F9),,LOOKUP(F9,'Component Weights'!$B$16:$J$16,'Component Weights'!$B$17:$J$17)),IF(ISBLANK(G9),,LOOKUP(G9,'Component Weights'!$B$16:$J$16,'Component Weights'!$B$17:$J$17)),IF(ISBLANK(B9),,LOOKUP(B9,'Component Weights'!$B$16:$J$16,'Component Weights'!$B$17:$J$17)),IF(ISBLANK(H9),,LOOKUP(H9,'Component Weights'!$B$16:$J$16,'Component Weights'!$B$17:$J$17)),IF(ISBLANK(I9),,LOOKUP(I9,'Component Weights'!$B$16:$J$16,'Component Weights'!$B$17:$J$17)),IF(ISBLANK(J9),,LOOKUP(J9,'Component Weights'!$B$16:$J$16,'Component Weights'!$B$17:$J$17))) -> 8 | L9: =IF(ISBLANK(C9)," ",(LOOKUP(C9,'Component Weights'!$B$16:$J$16,'Component Weights'!$B$17:$J$17)*$AA$4)) ->  | M9: =IF(ISBLANK(D9)," ",(LOOKUP(D9,'Component Weights'!$B$16:$J$16,'Component Weights'!$B$17:$J$17)*$AA$5)) -> 0 | N9: =IF(ISBLANK(E9)," ",(LOOKUP(E9,'Component Weights'!$B$16:$J$16,'Component Weights'!$B$17:$J$17)*$AA$6)) -> 0.08 | O9: =IF(ISBLANK(F9)," ",(LOOKUP(F9,'Component Weights'!$B$16:$J$16,'Component Weights'!$B$17:$J$17)*$AA$7)) -> 0.12 | P9: =IF(ISBLANK(G9)," ",(LOOKUP(G9,'Component Weights'!$B$16:$J$16,'Component Weights'!$B$17:$J$17)*$AA$8)) -> 0.05 | Q9: =IF(ISBLANK(B9)," ",(LOOKUP(B9,'Component Weights'!$B$16:$J$16,'Component Weights'!$B$17:$J$17)*$AA$9)) ->  | R9: =IF(ISBLANK(H9)," ",(LOOKUP(H9,'Component Weights'!$B$16:$J$16,'Component Weights'!$B$17:$J$17)*$AA$10)) ->  | S9: =IF(ISBLANK(I9)," ",(LOOKUP(I9,'Component Weights'!$B$16:$J$16,'Component Weights'!$B$17:$J$17)*$AA$11)) -> 0.16 | T9: =IF(ISBLANK(J9)," ",(LOOKUP(J9,'Component Weights'!$B$16:$J$16,'Component Weights'!$B$17:$J$17)*$AA$12)) -> 0.36 | U9: 0.77 | V9: 8 | X9: =U9 -> 0.77 | Z9: Available Locally | AA9: 0.23 | AB9: H+ | AC9: The distance in miles that the product must travel to the destination of final use.
A10: Simulated Tile | D10: M | E10: L | F10: N | G10: M | I10: L | J10: M | K10: =SUM(IF(ISBLANK(C10),,LOOKUP(C10,'Component Weights'!$B$16:$J$16,'Component Weights'!$B$17:$J$17)),IF(ISBLANK(D10),,LOOKUP(D10,'Component Weights'!$B$16:$J$16,'Component Weights'!$B$17:$J$17)),IF(ISBLANK(E10),,LOOKUP(E10,'Component Weights'!$B$16:$J$16,'Component Weights'!$B$17:$J$17)),IF(ISBLANK(F10),,LOOKUP(F10,'Component Weights'!$B$16:$J$16,'Component Weights'!$B$17:$J$17)),IF(ISBLANK(G10),,LOOKUP(G10,'Component Weights'!$B$16:$J$16,'Component Weights'!$B$17:$J$17)),IF(ISBLANK(B10),,LOOKUP(B10,'Component Weights'!$B$16:$J$16,'Component Weights'!$B$17:$J$17)),IF(ISBLANK(H10),,LOOKUP(H10,'Component Weights'!$B$16:$J$16,'Component Weights'!$B$17:$J$17)),IF(ISBLANK(I10),,LOOKUP(I10,'Component Weights'!$B$16:$J$16,'Component Weights'!$B$17:$J$17)),IF(ISBLANK(J10),,LOOKUP(J10,'Component Weights'!$B$16:$J$16,'Component Weights'!$B$17:$J$17))) -> 8 | L10: =IF(ISBLANK(C10)," ",(LOOKUP(C10,'Component Weights'!$B$16:$J$16,'Component Weights'!$B$17:$J$17)*$AA$4)) ->  | M10: =IF(ISBLANK(D10)," ",(LOOKUP(D10,'Component Weights'!$B$16:$J$16,'Component Weights'!$B$17:$J$17)*$AA$5)) -> 0.24 | N10: =IF(ISBLANK(E10)," ",(LOOKUP(E10,'Component Weights'!$B$16:$J$16,'Component Weights'!$B$17:$J$17)*$AA$6)) -> 0.08 | O10: =IF(ISBLANK(F10)," ",(LOOKUP(F10,'Component Weights'!$B$16:$J$16,'Component Weights'!$B$17:$J$17)*$AA$7)) -> 0 | P10: =IF(ISBLANK(G10)," ",(LOOKUP(G10,'Component Weights'!$B$16:$J$16,'Component Weights'!$B$17:$J$17)*$AA$8)) -> 0.1 | Q10: =IF(ISBLANK(B10)," ",(LOOKUP(B10,'Component Weights'!$B$16:$J$16,'Component Weights'!$B$17:$J$17)*$AA$9)) ->  | R10: =IF(ISBLANK(H10)," ",(LOOKUP(H10,'Component Weights'!$B$16:$J$16,'Component Weights'!$B$17:$J$17)*$AA$10)) ->  | S10: =IF(ISBLANK(I10)," ",(LOOKUP(I10,'Component Weights'!$B$16:$J$16,'Component Weights'!$B$17:$J$17)*$AA$11)) -> 0.08 | T10: =IF(ISBLANK(J10)," ",(LOOKUP(J10,'Component Weights'!$B$16:$J$16,'Component Weights'!$B$17:$J$17)*$AA$12)) -> 0.24 | U10: 0.74 | V10: 9 | X10: 0.74 | Z10: Low Emissions Potential | AA10: 0.12 | AB10: H | AC10: The amount of time it will take the product to stop outgassing.
A11: Metal Roofing, Seamed | D11: L | E11: L | F11: N | G11: N | I11: M | J11: M | K11: =SUM(IF(ISBLANK(C11),,LOOKUP(C11,'Component Weights'!$B$16:$J$16,'Component Weights'!$B$17:$J$17)),IF(ISBLANK(D11),,LOOKUP(D11,'Component Weights'!$B$16:$J$16,'Component Weights'!$B$17:$J$17)),IF(ISBLANK(E11),,LOOKUP(E11,'Component Weights'!$B$16:$J$16,'Component Weights'!$B$17:$J$17)),IF(ISBLANK(F11),,LOOKUP(F11,'Component Weights'!$B$16:$J$16,'Component Weights'!$B$17:$J$17)),IF(ISBLANK(G11),,LOOKUP(G11,'Component Weights'!$B$16:$J$16,'Component Weights'!$B$17:$J$17)),IF(ISBLANK(B11),,LOOKUP(B11,'Component Weights'!$B$16:$J$16,'Component Weights'!$B$17:$J$17)),IF(ISBLANK(H11),,LOOKUP(H11,'Component Weights'!$B$16:$J$16,'Component Weights'!$B$17:$J$17)),IF(ISBLANK(I11),,LOOKUP(I11,'Component Weights'!$B$16:$J$16,'Component Weights'!$B$17:$J$17)),IF(ISBLANK(J11),,LOOKUP(J11,'Component Weights'!$B$16:$J$16,'Component Weights'!$B$17:$J$17))) -> 6 | L11: =IF(ISBLANK(C11)," ",(LOOKUP(C11,'Component Weights'!$B$16:$J$16,'Component Weights'!$B$17:$J$17)*$AA$4)) ->  | M11: =IF(ISBLANK(D11)," ",(LOOKUP(D11,'Component Weights'!$B$16:$J$16,'Component Weights'!$B$17:$J$17)*$AA$5)) -> 0.12 | N11: =IF(ISBLANK(E11)," ",(LOOKUP(E11,'Component Weights'!$B$16:$J$16,'Component Weights'!$B$17:$J$17)*$AA$6)) -> 0.08 | O11: =IF(ISBLANK(F11)," ",(LOOKUP(F11,'Component Weights'!$B$16:$J$16,'Component Weights'!$B$17:$J$17)*$AA$7)) -> 0 | P11: =IF(ISBLANK(G11)," ",(LOOKUP(G11,'Component Weights'!$B$16:$J$16,'Component Weights'!$B$17:$J$17)*$AA$8)) -> 0 | Q11: =IF(ISBLANK(B11)," ",(LOOKUP(B11,'Component Weights'!$B$16:$J$16,'Component Weights'!$B$17:$J$17)*$AA$9)) ->  | R11: =IF(ISBLANK(H11)," ",(LOOKUP(H11,'Component Weights'!$B$16:$J$16,'Component Weights'!$B$17:$J$17)*$AA$10)) ->  | S11: =IF(ISBLANK(I11)," ",(LOOKUP(I11,'Component Weights'!$B$16:$J$16,'Component Weights'!$B$17:$J$17)*$AA$11)) -> 0.16 | T11: =IF(ISBLANK(J11)," ",(LOOKUP(J11,'Component Weights'!$B$16:$J$16,'Component Weights'!$B$17:$J$17)*$AA$12)) -> 0.24 | U11: 0.6 | V11: 10 | X11: 0.6 | Z11: Listed in Other Programs (e.g. EnergyStar) | AA11: 0.08 | AB11: M | AC11: The level of product recommendation in recognized energy and environmental programs.
A12: Metal Roofing, Seamlesss | D12: L | E12: L | F12: N | G12: N | I12: M | J12: M | K12: =SUM(IF(ISBLANK(C12),,LOOKUP(C12,'Component Weights'!$B$16:$J$16,'Component Weights'!$B$17:$J$17)),IF(ISBLANK(D12),,LOOKUP(D12,'Component Weights'!$B$16:$J$16,'Component Weights'!$B$17:$J$17)),IF(ISBLANK(E12),,LOOKUP(E12,'Component Weights'!$B$16:$J$16,'Component Weights'!$B$17:$J$17)),IF(ISBLANK(F12),,LOOKUP(F12,'Component Weights'!$B$16:$J$16,'Component Weights'!$B$17:$J$17)),IF(ISBLANK(G12),,LOOKUP(G12,'Component Weights'!$B$16:$J$16,'Component Weights'!$B$17:$J$17)),IF(ISBLANK(B12),,LOOKUP(B12,'Component Weights'!$B$16:$J$16,'Component Weights'!$B$17:$J$17)),IF(ISBLANK(H12),,LOOKUP(H12,'Component Weights'!$B$16:$J$16,'Component Weights'!$B$17:$J$17)),IF(ISBLANK(I12),,LOOKUP(I12,'Component Weights'!$B$16:$J$16,'Component Weights'!$B$17:$J$17)),IF(ISBLANK(J12),,LOOKUP(J12,'Component Weights'!$B$16:$J$16,'Component Weights'!$B$17:$J$17))) -> 6 | L12: =IF(ISBLANK(C12)," ",(LOOKUP(C12,'Component Weights'!$B$16:$J$16,'Component Weights'!$B$17:$J$17)*$AA$4)) ->  | M12: =IF(ISBLANK(D12)," ",(LOOKUP(D12,'Component Weights'!$B$16:$J$16,'Component Weights'!$B$17:$J$17)*$AA$5)) -> 0.12 | N12: =IF(ISBLANK(E12)," ",(LOOKUP(E12,'Component Weights'!$B$16:$J$16,'Component Weights'!$B$17:$J$17)*$AA$6)) -> 0.08 | O12: =IF(ISBLANK(F12)," ",(LOOKUP(F12,'Component Weights'!$B$16:$J$16,'Component Weights'!$B$17:$J$17)*$AA$7)) -> 0 | P12: =IF(ISBLANK(G12)," ",(LOOKUP(G12,'Component Weights'!$B$16:$J$16,'Component Weights'!$B$17:$J$17)*$AA$8)) -> 0 | Q12: =IF(ISBLANK(B12)," ",(LOOKUP(B12,'Component Weights'!$B$16:$J$16,'Component Weights'!$B$17:$J$17)*$AA$9)) ->  | R12: =IF(ISBLANK(H12)," ",(LOOKUP(H12,'Component Weights'!$B$16:$J$16,'Component Weights'!$B$17:$J$17)*$AA$10)) ->  | S12: =IF(ISBLANK(I12)," ",(LOOKUP(I12,'Component Weights'!$B$16:$J$16,'Component Weights'!$B$17:$J$17)*$AA$11)) -> 0.16 | T12: =IF(ISBLANK(J12)," ",(LOOKUP(J12,'Component Weights'!$B$16:$J$16,'Component Weights'!$B$17:$J$17)*$AA$12)) -> 0.24 | U12: 0.6 | V12: 10 | X12: 0.6 | Z12: Non Hazardous as Waste | AA12: 0.12 | AB12: H | AC12: The amount of hazardous materials and components found in the product.
A13: Metal Roofing w/Laminated Solar Electric Panels | D13: L | E13: N | F13: N | G13: N | I13: H | J13: L | K13: =SUM(IF(ISBLANK(C13),,LOOKUP(C13,'Component Weights'!$B$16:$J$16,'Component Weights'!$B$17:$J$17)),IF(ISBLANK(D13),,LOOKUP(D13,'Component Weights'!$B$16:$J$16,'Component Weights'!$B$17:$J$17)),IF(ISBLANK(E13),,LOOKUP(E13,'Component Weights'!$B$16:$J$16,'Component Weights'!$B$17:$J$17)),IF(ISBLANK(F13),,LOOKUP(F13,'Component Weights'!$B$16:$J$16,'Component Weights'!$B$17:$J$17)),IF(ISBLANK(G13),,LOOKUP(G13,'Component Weights'!$B$16:$J$16,'Component Weights'!$B$17:$J$17)),IF(ISBLANK(B13),,LOOKUP(B13,'Component Weights'!$B$16:$J$16,'Component Weights'!$B$17:$J$17)),IF(ISBLANK(H13),,LOOKUP(H13,'Component Weights'!$B$16:$J$16,'Component Weights'!$B$17:$J$17)),IF(ISBLANK(I13),,LOOKUP(I13,'Component Weights'!$B$16:$J$16,'Component Weights'!$B$17:$J$17)),IF(ISBLANK(J13),,LOOKUP(J13,'Component Weights'!$B$16:$J$16,'Component Weights'!$B$17:$J$17))) -> 5 | L13: =IF(ISBLANK(C13)," ",(LOOKUP(C13,'Component Weights'!$B$16:$J$16,'Component Weights'!$B$17:$J$17)*$AA$4)) ->  | M13: =IF(ISBLANK(D13)," ",(LOOKUP(D13,'Component Weights'!$B$16:$J$16,'Component Weights'!$B$17:$J$17)*$AA$5)) -> 0.12 | N13: =IF(ISBLANK(E13)," ",(LOOKUP(E13,'Component Weights'!$B$16:$J$16,'Component Weights'!$B$17:$J$17)*$AA$6)) -> 0 | O13: =IF(ISBLANK(F13)," ",(LOOKUP(F13,'Component Weights'!$B$16:$J$16,'Component Weights'!$B$17:$J$17)*$AA$7)) -> 0 | P13: =IF(ISBLANK(G13)," ",(LOOKUP(G13,'Component Weights'!$B$16:$J$16,'Component Weights'!$B$17:$J$17)*$AA$8)) -> 0 | Q13: =IF(ISBLANK(B13)," ",(LOOKUP(B13,'Component Weights'!$B$16:$J$16,'Component Weights'!$B$17:$J$17)*$AA$9)) ->  | R13: =IF(ISBLANK(H13)," ",(LOOKUP(H13,'Component Weights'!$B$16:$J$16,'Component Weights'!$B$17:$J$17)*$AA$10)) ->  | S13: =IF(ISBLANK(I13)," ",(LOOKUP(I13,'Component Weights'!$B$16:$J$16,'Component Weights'!$B$17:$J$17)*$AA$11)) -> 0.24 | T13: =IF(ISBLANK(J13)," ",(LOOKUP(J13,'Component Weights'!$B$16:$J$16,'Component Weights'!$B$17:$J$17)*$AA$12)) -> 0.12 | U13: 0.48 | V13: 12 | X13: 0.48 | Z13: Total Weightings Must Equal 100% | AA13: =SUM(AA4:AA12) -> 1 | AC13: =IF(AA13<>100%,"Keep Working - Weightings must equal 100%"," ") -> 
A14: Simulated Shingles w/Integrated Solar Electric Panels | D14: N | E14: N | F14: N | G14: N | I14: H | J14: L | K14: =SUM(IF(ISBLANK(C14),,LOOKUP(C14,'Component Weights'!$B$16:$J$16,'Component Weights'!$B$17:$J$17)),IF(ISBLANK(D14),,LOOKUP(D14,'Component Weights'!$B$16:$J$16,'Component Weights'!$B$17:$J$17)),IF(ISBLANK(E14),,LOOKUP(E14,'Component Weights'!$B$16:$J$16,'Component Weights'!$B$17:$J$17)),IF(ISBLANK(F14),,LOOKUP(F14,'Component Weights'!$B$16:$J$16,'Component Weights'!$B$17:$J$17)),IF(ISBLANK(G14),,LOOKUP(G14,'Component Weights'!$B$16:$J$16,'Component Weights'!$B$17:$J$17)),IF(ISBLANK(B14),,LOOKUP(B14,'Component Weights'!$B$16:$J$16,'Component Weights'!$B$17:$J$17)),IF(ISBLANK(H14),,LOOKUP(H14,'Component Weights'!$B$16:$J$16,'Component Weights'!$B$17:$J$17)),IF(ISBLANK(I14),,LOOKUP(I14,'Component Weights'!$B$16:$J$16,'Component Weights'!$B$17:$J$17)),IF(ISBLANK(J14),,LOOKUP(J14,'Component Weights'!$B$16:$J$16,'Component Weights'!$B$17:$J$17))) -> 4 | L14: =IF(ISBLANK(C14)," ",(LOOKUP(C14,'Component Weights'!$B$16:$J$16,'Component Weights'!$B$17:$J$17)*$AA$4)) ->  | M14: =IF(ISBLANK(D14)," ",(LOOKUP(D14,'Component Weights'!$B$16:$J$16,'Component Weights'!$B$17:$J$17)*$AA$5)) -> 0 | N14: =IF(ISBLANK(E14)," ",(LOOKUP(E14,'Component Weights'!$B$16:$J$16,'Component Weights'!$B$17:$J$17)*$AA$6)) -> 0 | O14: =IF(ISBLANK(F14)," ",(LOOKUP(F14,'Component Weights'!$B$16:$J$16,'Component Weights'!$B$17:$J$17)*$AA$7)) -> 0 | P14: =IF(ISBLANK(G14)," ",(LOOKUP(G14,'Component Weights'!$B$16:$J$16,'Component Weights'!$B$17:$J$17)*$AA$8)) -> 0 | Q14: =IF(ISBLANK(B14)," ",(LOOKUP(B14,'Component Weights'!$B$16:$J$16,'Component Weights'!$B$17:$J$17)*$AA$9)) ->  | R14: =IF(ISBLANK(H14)," ",(LOOKUP(H14,'Component Weights'!$B$16:$J$16,'Component Weights'!$B$17:$J$17)*$AA$10)) ->  | S14: =IF(ISBLANK(I14)," ",(LOOKUP(I14,'Component Weights'!$B$16:$J$16,'Component Weights'!$B$17:$J$17)*$AA$11)) -> 0.24 | T14: =IF(ISBLANK(J14)," ",(LOOKUP(J14,'Component Weights'!$B$16:$J$16,'Component Weights'!$B$17:$J$17)*$AA$12)) -> 0.12 | U14: 0.36 | V14: 13 | X14: 0.36
A15: (Enter Custom Product Here) | K15: =SUM(IF(ISBLANK(C15),,LOOKUP(C15,'Component Weights'!$B$16:$J$16,'Component Weights'!$B$17:$J$17)),IF(ISBLANK(D15),,LOOKUP(D15,'Component Weights'!$B$16:$J$16,'Component Weights'!$B$17:$J$17)),IF(ISBLANK(E15),,LOOKUP(E15,'Component Weights'!$B$16:$J$16,'Component Weights'!$B$17:$J$17)),IF(ISBLANK(F15),,LOOKUP(F15,'Component Weights'!$B$16:$J$16,'Component Weights'!$B$17:$J$17)),IF(ISBLANK(G15),,LOOKUP(G15,'Component Weights'!$B$16:$J$16,'Component Weights'!$B$17:$J$17)),IF(ISBLANK(B15),,LOOKUP(B15,'Component Weights'!$B$16:$J$16,'Component Weights'!$B$17:$J$17)),IF(ISBLANK(H15),,LOOKUP(H15,'Component Weights'!$B$16:$J$16,'Component Weights'!$B$17:$J$17)),IF(ISBLANK(I15),,LOOKUP(I15,'Component Weights'!$B$16:$J$16,'Component Weights'!$B$17:$J$17)),IF(ISBLANK(J15),,LOOKUP(J15,'Component Weights'!$B$16:$J$16,'Component Weights'!$B$17:$J$17))) -> 0 | L15: =IF(ISBLANK(C15)," ",(LOOKUP(C15,'Component Weights'!$B$16:$J$16,'Component Weights'!$B$17:$J$17)*$AA$4)) ->  | M15: =IF(ISBLANK(D15)," ",(LOOKUP(D15,'Component Weights'!$B$16:$J$16,'Component Weights'!$B$17:$J$17)*$AA$5)) ->  | N15: =IF(ISBLANK(E15)," ",(LOOKUP(E15,'Component Weights'!$B$16:$J$16,'Component Weights'!$B$17:$J$17)*$AA$6)) ->  | O15: =IF(ISBLANK(F15)," ",(LOOKUP(F15,'Component Weights'!$B$16:$J$16,'Component Weights'!$B$17:$J$17)*$AA$7)) ->  | P15: =IF(ISBLANK(G15)," ",(LOOKUP(G15,'Component Weights'!$B$16:$J$16,'Component Weights'!$B$17:$J$17)*$AA$8)) ->  | Q15: =IF(ISBLANK(B15)," ",(LOOKUP(B15,'Component Weights'!$B$16:$J$16,'Component Weights'!$B$17:$J$17)*$AA$9)) ->  | R15: =IF(ISBLANK(H15)," ",(LOOKUP(H15,'Component Weights'!$B$16:$J$16,'Component Weights'!$B$17:$J$17)*$AA$10)) ->  | S15: =IF(ISBLANK(I15)," ",(LOOKUP(I15,'Component Weights'!$B$16:$J$16,'Component Weights'!$B$17:$J$17)*$AA$11)) ->  | T15: =IF(ISBLANK(J15)," ",(LOOKUP(J15,'Component Weights'!$B$16:$J$16,'Component Weights'!$B$17:$J$17)*$AA$12)) ->  | U15: 0 | V15: 99 | X15: 0
A16: (Enter Custom Product Here) | K16: =SUM(IF(ISBLANK(C16),,LOOKUP(C16,'Component Weights'!$B$16:$J$16,'Component Weights'!$B$17:$J$17)),IF(ISBLANK(D16),,LOOKUP(D16,'Component Weights'!$B$16:$J$16,'Component Weights'!$B$17:$J$17)),IF(ISBLANK(E16),,LOOKUP(E16,'Component Weights'!$B$16:$J$16,'Component Weights'!$B$17:$J$17)),IF(ISBLANK(F16),,LOOKUP(F16,'Component Weights'!$B$16:$J$16,'Component Weights'!$B$17:$J$17)),IF(ISBLANK(G16),,LOOKUP(G16,'Component Weights'!$B$16:$J$16,'Component Weights'!$B$17:$J$17)),IF(ISBLANK(B16),,LOOKUP(B16,'Component Weights'!$B$16:$J$16,'Component Weights'!$B$17:$J$17)),IF(ISBLANK(H16),,LOOKUP(H16,'Component Weights'!$B$16:$J$16,'Component Weights'!$B$17:$J$17)),IF(ISBLANK(I16),,LOOKUP(I16,'Component Weights'!$B$16:$J$16,'Component Weights'!$B$17:$J$17)),IF(ISBLANK(J16),,LOOKUP(J16,'Component Weights'!$B$16:$J$16,'Component Weights'!$B$17:$J$17))) -> 0 | L16: =IF(ISBLANK(C16)," ",(LOOKUP(C16,'Component Weights'!$B$16:$J$16,'Component Weights'!$B$17:$J$17)*$AA$4)) ->  | M16: =IF(ISBLANK(D16)," ",(LOOKUP(D16,'Component Weights'!$B$16:$J$16,'Component Weights'!$B$17:$J$17)*$AA$5)) ->  | N16: =IF(ISBLANK(E16)," ",(LOOKUP(E16,'Component Weights'!$B$16:$J$16,'Component Weights'!$B$17:$J$17)*$AA$6)) ->  | O16: =IF(ISBLANK(F16)," ",(LOOKUP(F16,'Component Weights'!$B$16:$J$16,'Component Weights'!$B$17:$J$17)*$AA$7)) ->  | P16: =IF(ISBLANK(G16)," ",(LOOKUP(G16,'Component Weights'!$B$16:$J$16,'Component Weights'!$B$17:$J$17)*$AA$8)) ->  | Q16: =IF(ISBLANK(B16)," ",(LOOKUP(B16,'Component Weights'!$B$16:$J$16,'Component Weights'!$B$17:$J$17)*$AA$9)) ->  | R16: =IF(ISBLANK(H16)," ",(LOOKUP(H16,'Component Weights'!$B$16:$J$16,'Component Weights'!$B$17:$J$17)*$AA$10)) ->  | S16: =IF(ISBLANK(I16)," ",(LOOKUP(I16,'Component Weights'!$B$16:$J$16,'Component Weights'!$B$17:$J$17)*$AA$11)) ->  | T16: =IF(ISBLANK(J16)," ",(LOOKUP(J16,'Component Weights'!$B$16:$J$16,'Component Weights'!$B$17:$J$17)*$AA$12)) ->  | U16: 0 | V16: 99 | X16: =U16 -> 0
A17: (Enter Custom Product Here) | K17: =SUM(IF(ISBLANK(C17),,LOOKUP(C17,'Component Weights'!$B$16:$J$16,'Component Weights'!$B$17:$J$17)),IF(ISBLANK(D17),,LOOKUP(D17,'Component Weights'!$B$16:$J$16,'Component Weights'!$B$17:$J$17)),IF(ISBLANK(E17),,LOOKUP(E17,'Component Weights'!$B$16:$J$16,'Component Weights'!$B$17:$J$17)),IF(ISBLANK(F17),,LOOKUP(F17,'Component Weights'!$B$16:$J$16,'Component Weights'!$B$17:$J$17)),IF(ISBLANK(G17),,LOOKUP(G17,'Component Weights'!$B$16:$J$16,'Component Weights'!$B$17:$J$17)),IF(ISBLANK(B17),,LOOKUP(B17,'Component Weights'!$B$16:$J$16,'Component Weights'!$B$17:$J$17)),IF(ISBLANK(H17),,LOOKUP(H17,'Component Weights'!$B$16:$J$16,'Component Weights'!$B$17:$J$17)),IF(ISBLANK(I17),,LOOKUP(I17,'Component Weights'!$B$16:$J$16,'Component Weights'!$B$17:$J$17)),IF(ISBLANK(J17),,LOOKUP(J17,'Component Weights'!$B$16:$J$16,'Component Weights'!$B$17:$J$17))) -> 0 | L17: =IF(ISBLANK(C17)," ",(LOOKUP(C17,'Component Weights'!$B$16:$J$16,'Component Weights'!$B$17:$J$17)*$AA$4)) ->  | M17: =IF(ISBLANK(D17)," ",(LOOKUP(D17,'Component Weights'!$B$16:$J$16,'Component Weights'!$B$17:$J$17)*$AA$5)) ->  | N17: =IF(ISBLANK(E17)," ",(LOOKUP(E17,'Component Weights'!$B$16:$J$16,'Component Weights'!$B$17:$J$17)*$AA$6)) ->  | O17: =IF(ISBLANK(F17)," ",(LOOKUP(F17,'Component Weights'!$B$16:$J$16,'Component Weights'!$B$17:$J$17)*$AA$7)) ->  | P17: =IF(ISBLANK(G17)," ",(LOOKUP(G17,'Component Weights'!$B$16:$J$16,'Component Weights'!$B$17:$J$17)*$AA$8)) ->  | Q17: =IF(ISBLANK(B17)," ",(LOOKUP(B17,'Component Weights'!$B$16:$J$16,'Component Weights'!$B$17:$J$17)*$AA$9)) ->  | R17: =IF(ISBLANK(H17)," ",(LOOKUP(H17,'Component Weights'!$B$16:$J$16,'Component Weights'!$B$17:$J$17)*$AA$10)) ->  | S17: =IF(ISBLANK(I17)," ",(LOOKUP(I17,'Component Weights'!$B$16:$J$16,'Component Weights'!$B$17:$J$17)*$AA$11)) ->  | T17: =IF(ISBLANK(J17)," ",(LOOKUP(J17,'Component Weights'!$B$16:$J$16,'Component Weights'!$B$17:$J$17)*$AA$12)) ->  | U17: 0 | V17: 99 | X17: =U17 -> 0
A18: (Enter Custom Product Here) | K18: =SUM(IF(ISBLANK(C18),,LOOKUP(C18,'Component Weights'!$B$16:$J$16,'Component Weights'!$B$17:$J$17)),IF(ISBLANK(D18),,LOOKUP(D18,'Component Weights'!$B$16:$J$16,'Component Weights'!$B$17:$J$17)),IF(ISBLANK(E18),,LOOKUP(E18,'Component Weights'!$B$16:$J$16,'Component Weights'!$B$17:$J$17)),IF(ISBLANK(F18),,LOOKUP(F18,'Component Weights'!$B$16:$J$16,'Component Weights'!$B$17:$J$17)),IF(ISBLANK(G18),,LOOKUP(G18,'Component Weights'!$B$16:$J$16,'Component Weights'!$B$17:$J$17)),IF(ISBLANK(B18),,LOOKUP(B18,'Component Weights'!$B$16:$J$16,'Component Weights'!$B$17:$J$17)),IF(ISBLANK(H18),,LOOKUP(H18,'Component Weights'!$B$16:$J$16,'Component Weights'!$B$17:$J$17)),IF(ISBLANK(I18),,LOOKUP(I18,'Component Weights'!$B$16:$J$16,'Component Weights'!$B$17:$J$17)),IF(ISBLANK(J18),,LOOKUP(J18,'Component Weights'!$B$16:$J$16,'Component Weights'!$B$17:$J$17))) -> 0 | L18: =IF(ISBLANK(C18)," ",(LOOKUP(C18,'Component Weights'!$B$16:$J$16,'Component Weights'!$B$17:$J$17)*$AA$4)) ->  | M18: =IF(ISBLANK(D18)," ",(LOOKUP(D18,'Component Weights'!$B$16:$J$16,'Component Weights'!$B$17:$J$17)*$AA$5)) ->  | N18: =IF(ISBLANK(E18)," ",(LOOKUP(E18,'Component Weights'!$B$16:$J$16,'Component Weights'!$B$17:$J$17)*$AA$6)) ->  | O18: =IF(ISBLANK(F18)," ",(LOOKUP(F18,'Component Weights'!$B$16:$J$16,'Component Weights'!$B$17:$J$17)*$AA$7)) ->  | P18: =IF(ISBLANK(G18)," ",(LOOKUP(G18,'Component Weights'!$B$16:$J$16,'Component Weights'!$B$17:$J$17)*$AA$8)) ->  | Q18: =IF(ISBLANK(B18)," ",(LOOKUP(B18,'Component Weights'!$B$16:$J$16,'Component Weights'!$B$17:$J$17)*$AA$9)) ->  | R18: =IF(ISBLANK(H18)," ",(LOOKUP(H18,'Component Weights'!$B$16:$J$16,'Component Weights'!$B$17:$J$17)*$AA$10)) ->  | S18: =IF(ISBLANK(I18)," ",(LOOKUP(I18,'Component Weights'!$B$16:$J$16,'Component Weights'!$B$17:$J$17)*$AA$11)) ->  | T18: =IF(ISBLANK(J18)," ",(LOOKUP(J18,'Component Weights'!$B$16:$J$16,'Component Weights'!$B$17:$J$17)*$AA$12)) ->  | U18: 0 | V18: 99 | X18: =U18 -> 0
A19: (Enter Custom Product Here) | K19: =SUM(IF(ISBLANK(C19),,LOOKUP(C19,'Component Weights'!$B$16:$J$16,'Component Weights'!$B$17:$J$17)),IF(ISBLANK(D19),,LOOKUP(D19,'Component Weights'!$B$16:$J$16,'Component Weights'!$B$17:$J$17)),IF(ISBLANK(E19),,LOOKUP(E19,'Component Weights'!$B$16:$J$16,'Component Weights'!$B$17:$J$17)),IF(ISBLANK(F19),,LOOKUP(F19,'Component Weights'!$B$16:$J$16,'Component Weights'!$B$17:$J$17)),IF(ISBLANK(G19),,LOOKUP(G19,'Component Weights'!$B$16:$J$16,'Component Weights'!$B$17:$J$17)),IF(ISBLANK(B19),,LOOKUP(B19,'Component Weights'!$B$16:$J$16,'Component Weights'!$B$17:$J$17)),IF(ISBLANK(H19),,LOOKUP(H19,'Component Weights'!$B$16:$J$16,'Component Weights'!$B$17:$J$17)),IF(ISBLANK(I19),,LOOKUP(I19,'Component Weights'!$B$16:$J$16,'Component Weights'!$B$17:$J$17)),IF(ISBLANK(J19),,LOOKUP(J19,'Component Weights'!$B$16:$J$16,'Component Weights'!$B$17:$J$17))) -> 0 | L19: =IF(ISBLANK(C19)," ",(LOOKUP(C19,'Component Weights'!$B$16:$J$16,'Component Weights'!$B$17:$J$17)*$AA$4)) ->  | M19: =IF(ISBLANK(D19)," ",(LOOKUP(D19,'Component Weights'!$B$16:$J$16,'Component Weights'!$B$17:$J$17)*$AA$5)) ->  | N19: =IF(ISBLANK(E19)," ",(LOOKUP(E19,'Component Weights'!$B$16:$J$16,'Component Weights'!$B$17:$J$17)*$AA$6)) ->  | O19: =IF(ISBLANK(F19)," ",(LOOKUP(F19,'Component Weights'!$B$16:$J$16,'Component Weights'!$B$17:$J$17)*$AA$7)) ->  | P19: =IF(ISBLANK(G19)," ",(LOOKUP(G19,'Component Weights'!$B$16:$J$16,'Component Weights'!$B$17:$J$17)*$AA$8)) ->  | Q19: =IF(ISBLANK(B19)," ",(LOOKUP(B19,'Component Weights'!$B$16:$J$16,'Component Weights'!$B$17:$J$17)*$AA$9)) ->  | R19: =IF(ISBLANK(H19)," ",(LOOKUP(H19,'Component Weights'!$B$16:$J$16,'Component Weights'!$B$17:$J$17)*$AA$10)) ->  | S19: =IF(ISBLANK(I19)," ",(LOOKUP(I19,'Component Weights'!$B$16:$J$16,'Component Weights'!$B$17:$J$17)*$AA$11)) ->  | T19: =IF(ISBLANK(J19)," ",(LOOKUP(J19,'Component Weights'!$B$16:$J$16,'Component Weights'!$B$17:$J$17)*$AA$12)) ->  | U19: 0 | V19: 99 | X19: =U19 -> 0
A20: (Enter Custom Product Here) | K20: =SUM(IF(ISBLANK(C20),,LOOKUP(C20,'Component Weights'!$B$16:$J$16,'Component Weights'!$B$17:$J$17)),IF(ISBLANK(D20),,LOOKUP(D20,'Component Weights'!$B$16:$J$16,'Component Weights'!$B$17:$J$17)),IF(ISBLANK(E20),,LOOKUP(E20,'Component Weights'!$B$16:$J$16,'Component Weights'!$B$17:$J$17)),IF(ISBLANK(F20),,LOOKUP(F20,'Component Weights'!$B$16:$J$16,'Component Weights'!$B$17:$J$17)),IF(ISBLANK(G20),,LOOKUP(G20,'Component Weights'!$B$16:$J$16,'Component Weights'!$B$17:$J$17)),IF(ISBLANK(B20),,LOOKUP(B20,'Component Weights'!$B$16:$J$16,'Component Weights'!$B$17:$J$17)),IF(ISBLANK(H20),,LOOKUP(H20,'Component Weights'!$B$16:$J$16,'Component Weights'!$B$17:$J$17)),IF(ISBLANK(I20),,LOOKUP(I20,'Component Weights'!$B$16:$J$16,'Component Weights'!$B$17:$J$17)),IF(ISBLANK(J20),,LOOKUP(J20,'Component Weights'!$B$16:$J$16,'Component Weights'!$B$17:$J$17))) -> 0 | L20: =IF(ISBLANK(C20)," ",(LOOKUP(C20,'Component Weights'!$B$16:$J$16,'Component Weights'!$B$17:$J$17)*$AA$4)) ->  | M20: =IF(ISBLANK(D20)," ",(LOOKUP(D20,'Component Weights'!$B$16:$J$16,'Component Weights'!$B$17:$J$17)*$AA$5)) ->  | N20: =IF(ISBLANK(E20)," ",(LOOKUP(E20,'Component Weights'!$B$16:$J$16,'Component Weights'!$B$17:$J$17)*$AA$6)) ->  | O20: =IF(ISBLANK(F20)," ",(LOOKUP(F20,'Component Weights'!$B$16:$J$16,'Component Weights'!$B$17:$J$17)*$AA$7)) ->  | P20: =IF(ISBLANK(G20)," ",(LOOKUP(G20,'Component Weights'!$B$16:$J$16,'Component Weights'!$B$17:$J$17)*$AA$8)) ->  | Q20: =IF(ISBLANK(B20)," ",(LOOKUP(B20,'Component Weights'!$B$16:$J$16,'Component Weights'!$B$17:$J$17)*$AA$9)) ->  | R20: =IF(ISBLANK(H20)," ",(LOOKUP(H20,'Component Weights'!$B$16:$J$16,'Component Weights'!$B$17:$J$17)*$AA$10)) ->  | S20: =IF(ISBLANK(I20)," ",(LOOKUP(I20,'Component Weights'!$B$16:$J$16,'Component Weights'!$B$17:$J$17)*$AA$11)) ->  | T20: =IF(ISBLANK(J20)," ",(LOOKUP(J20,'Component Weights'!$B$16:$J$16,'Component Weights'!$B$17:$J$17)*$AA$12)) ->  | U20: 0 | V20: 99 | X20: =U20 -> 0
K21: =AVERAGE(K$2:K14) -> 9.230769231 | L21: =AVERAGE(L$2:L14) ->  | M21: =AVERAGE(M$2:M14) -> 0.1569230769 | N21: =AVERAGE(N$2:N14) -> 0.1230769231 | O21: =AVERAGE(O$2:O14) -> 0.12 | P21: =AVERAGE(P$2:P14) -> 0.08076923077 | Q21: =AVERAGE(Q$2:Q14) ->  | R21: =AVERAGE(R$2:R14) ->  | S21: =AVERAGE(S$2:S14) -> 0.1353846154 | T21: =AVERAGE(T$2:T14) -> 0.2492307692 | U21: =AVERAGE(U$2:U14) -> 0.8653846154 | V21: =IF(AND(OR(#REF!=72,#REF!=73,#REF!=74,#REF!=75,#REF!=76),$U21>0),RANK($U21,Y$3:Y$43,0)," ") -> 

Sheet Heating
A1: Instructions: Scroll down to see all products. New products may be added to the end of the list. Rate the performance of each product as "N, L, M or H." (Hover over the component title for the rating description.) Use your Backspace button to clear values. The Sort button (below) will incorporate your priorities as currently stated on the table to the right. (Scroll to the right to see the table.) | B1: Available Locally | C1: Incremental Energy Savings | D1: Use of Recycled Content | E1: Low Energy Usage Manufacturing Process | F1: Easily Biodegradable | G1: Made from Natural Materials | H1: Low Emissions Potential | I1: Listed in Other Programs | J1: Non Hazardous as Waste | K1: Total Raw Score | L1: Incremental Energy Savings Weighted Score | M1: Use of Recycled Content Weighted Score | N1: Low Energy Usage Mfg. Process Weighted Score | O1: Easily Biodegradable Weighted Score | P1: Made from Natural Materials Weighted Score | Q1: Available Locally Weighted Score | R1: Low Emissions Potential Weighted Score | S1: Listed in Other Programs Weighted Score | T1: Non Hazardous as Waste Weighted Score | U1: Total Weighted Score | V1: Force Ranking | X1: Weighted Score for Force Rank Calculation | Z1: Detailed instructions and options for using this tool are found in the Using the DYO® GBD Kit Decision Matrix Software Section of your DYO® Green Building Decision Kit.
A2: Radiant Heat System/Hydronic | D2: N | E2: L | F2: N | G2: N | H2: H | I2: H | J2: M | K2: =SUM(IF(ISBLANK(C2),,LOOKUP(C2,'Component Weights'!$B$16:$J$16,'Component Weights'!$B$17:$J$17)),IF(ISBLANK(D2),,LOOKUP(D2,'Component Weights'!$B$16:$J$16,'Component Weights'!$B$17:$J$17)),IF(ISBLANK(E2),,LOOKUP(E2,'Component Weights'!$B$16:$J$16,'Component Weights'!$B$17:$J$17)),IF(ISBLANK(F2),,LOOKUP(F2,'Component Weights'!$B$16:$J$16,'Component Weights'!$B$17:$J$17)),IF(ISBLANK(G2),,LOOKUP(G2,'Component Weights'!$B$16:$J$16,'Component Weights'!$B$17:$J$17)),IF(ISBLANK(B2),,LOOKUP(B2,'Component Weights'!$B$16:$J$16,'Component Weights'!$B$17:$J$17)),IF(ISBLANK(H2),,LOOKUP(H2,'Component Weights'!$B$16:$J$16,'Component Weights'!$B$17:$J$17)),IF(ISBLANK(I2),,LOOKUP(I2,'Component Weights'!$B$16:$J$16,'Component Weights'!$B$17:$J$17)),IF(ISBLANK(J2),,LOOKUP(J2,'Component Weights'!$B$16:$J$16,'Component Weights'!$B$17:$J$17))) -> 9 | L2: =IF(ISBLANK(C2)," ",(LOOKUP(C2,'Component Weights'!$B$16:$J$16,'Component Weights'!$B$17:$J$17)*$AA$4)) ->  | M2: =IF(ISBLANK(D2)," ",(LOOKUP(D2,'Component Weights'!$B$16:$J$16,'Component Weights'!$B$17:$J$17)*$AA$5)) -> 0 | N2: =IF(ISBLANK(E2)," ",(LOOKUP(E2,'Component Weights'!$B$16:$J$16,'Component Weights'!$B$17:$J$17)*$AA$6)) -> 0.08 | O2: =IF(ISBLANK(F2)," ",(LOOKUP(F2,'Component Weights'!$B$16:$J$16,'Component Weights'!$B$17:$J$17)*$AA$7)) -> 0 | P2: =IF(ISBLANK(G2)," ",(LOOKUP(G2,'Component Weights'!$B$16:$J$16,'Component Weights'!$B$17:$J$17)*$AA$8)) -> 0 | Q2: =IF(ISBLANK(B2)," ",(LOOKUP(B2,'Component Weights'!$B$16:$J$16,'Component Weights'!$B$17:$J$17)*$AA$9)) ->  | R2: =IF(ISBLANK(H2)," ",(LOOKUP(H2,'Component Weights'!$B$16:$J$16,'Component Weights'!$B$17:$J$17)*$AA$10)) -> 0.36 | S2: =IF(ISBLANK(I2)," ",(LOOKUP(I2,'Component Weights'!$B$16:$J$16,'Component Weights'!$B$17:$J$17)*$AA$11)) -> 0.24 | T2: =IF(ISBLANK(J2)," ",(LOOKUP(J2,'Component Weights'!$B$16:$J$16,'Component Weights'!$B$17:$J$17)*$AA$12)) -> 0.24 | U2: =SUM(L2:T2) -> 0.92 | V2: =IF($U2>0,RANK($U2,X$2:X$206,0),99) -> 1 | X2: =U2 -> 0.92 | Z2: Component Weights for | AA2: Weight
